Workbook

Sheet 0561 Tarapaca
B9: INFORMACIÓN RESOLUCIONES GORE ST 31 PROGRAMA INVERSIÓN REGIONAL
B12: Ley Inicial 2021 | C12: Ley Vigente 2021 | D12: Ley Vigente Medicion 2021 | E12: Gasto Acumulado
B13: 26,230,500 | C13: 19,545,282 | D13: 23,488,744 | E13: =+Y90 -> 3,907,569
Z14: IDENTIFICACIÓN INICIAL | AD14: MODIFICACIÓN | AH14: MODIFICACIÓN | AL14: MODIFICACIÓN | AP14: MODIFICACIÓN | AT14: MODIFICACIÓN | AX14: MODIFICACIÓN | BB14: MODIFICACIÓN | BF14: MODIFICACIÓN | BJ14: Programa Financiero
B15: N° | C15: ST-Item | D15: Código BIP | E15: Nombre de proyecto | F15: Etapa | G15: Región | H15: Comuna | I15: Etapa | J15: Costo Total Ficha IDI | K15: Ejecutado Años Anteriores FICHA IDI | L15: Saldo Proximos Años Ficha IDI | M15: Enero mensual SIGFE 2021 | N15: Febrero mensual SIGFE 2021 | O15: Marzo mensual SIGFE 2021 | P15: Abril mensual SIGFE 2021 | Q15: Mayo mensual SIGFE 2021 | R15: Junio mensual SIGFE 2021 | S15: Julio mensual SIGFE 2021 | T15: Agosto mensual SIGFE 2021 | U15: Septiembre mensual SIGFE 2021 | V15: Octubre mensual SIGFE 2021 | W15: Noviembre mensual SIGFE 2021 | X15: Diciembre mensual SIGFE 2021 | Y15: Total Ejecución acumulada 2021 | Z15: Monto Identificado Año 2021 | AA15: N° Resolución | AB15: Fecha Resolución | AC15: Fecha de Toma de Razón | AD15: Monto Modificado 2021 | AE15: N° Resolución | AF15: Fecha Resolución | AG15: Fecha de Toma de Razón | AH15: Monto Modificado 2021 | AI15: N° Resolución | AJ15: Fecha Resolución | AK15: Fecha de Toma de Razón | AL15: Monto Modificado 2021 | AM15: N° Resolución | AN15: Fecha Resolución | AO15: Fecha de Toma de Razón | AP15: Monto Modificado 2021 | AQ15: N° Resolución | AR15: Fecha Resolución | AS15: Fecha de Toma de Razón | AT15: Monto Modificado 2021 | AU15: N° Resolución | AV15: Fecha Resolución | AW15: Fecha de Toma de Razón | AX15: Monto Modificado 2021 | AY15: N° Resolución | AZ15: Fecha Resolución | BA15: Fecha de Toma de Razón | BB15: Monto Modificado 2021 | BC15: N° Resolución | BD15: Fecha Resolución | BE15: Fecha de Toma de Razón | BF15: Monto Modificado 2021 | BG15: N° Resolución | BH15: Fecha Resolución | BI15: Fecha de Toma de Razón | BJ15: Total Identificado | BK15: Saldo por Ejecutar
B16: 1 | C16: 31.01 | D16: 30077611 | E16: ACTUALIZACION PLANO REGULADOR COMUNA IQUIQUE | F16: Ejecución | G16: Tarapacá | H16: IQUIQUE | I16: A | J16: 744,539 | K16: 436,816 | L16: 0 | M16: 0 | N16: 0 | O16: 0 | P16: 0 | Q16: 0 | R16: 0 | S16: 0 | T16: 0 | U16: 0 | V16: 0 | W16: 0 | X16: 0 | Y16: =SUM(M16:X16) -> 0 | Z16: 36,000 | AA16: 5 | AB16: 2021-02-02 | AC16: 2021-02-19 | AD16: 159,951 | AE16: 19 | AF16: 2021-03-19 | AG16: 2021-04-12 | AH16: -103,926 | AI16: 48 | AJ16: 2021-07-13 | AK16: 2021-07-30 | BJ16: =+Z16+AD16+AH16+AL16+AP16+AT16+AX16+BB16+BF16 -> 92,025 | BK16: =+BJ16-Y16 -> 92,025
B17: 2 | C17: 31.01 | D17: 40007344 | E17: ANALISIS RIESGOS ALUVIONALES SECTOR ALTOS DE PLAYA BLANCA, COMUNA DE IQUIQUE | F17: Ejecución | G17: Tarapacá | H17: REGIONAL | I17: N | J17: 158,749 | K17: 67,491 | L17: 0 | M17: 0 | N17: 0 | O17: 0 | P17: 42,190 | Q17: 0 | R17: 0 | S17: 21,395 | T17: 0 | U17: 0 | V17: 0 | W17: 0 | X17: 0 | Y17: =SUM(M17:X17) -> 63,585 | Z17: 40,930 | AA17: 5 | AB17: 2021-02-02 | AC17: 2021-02-19 | AD17: 22,656 | AE17: 19 | AF17: 2021-03-19 | AG17: 2021-04-12 | BJ17: =+Z17+AD17+AH17+AL17+AP17+AT17+AX17+BB17+BF17 -> 63,586 | BK17: 1
B18: 3 | C18: 31.02 | D18: 30440181 | E18: CONSTRUCCION RED ELECTRICA A LA COMUNA DE COLCHANE | F18: Ejecución | G18: Tarapacá | H18: COLCHANE | I18: A | J18: 6,637,574 | K18: 6,440,789 | L18: 0 | M18: 0 | N18: 0 | O18: 1,505 | P18: 7,161 | Q18: 0 | R18: 0 | S18: 27,177 | T18: 1,100 | U18: 13,233 | V18: 0 | W18: 0 | X18: 0 | Y18: 50,176 | Z18: 173,918 | AA18: 5 | AB18: 2021-02-02 | AC18: 2021-02-19 | BJ18: 173,918 | BK18: 123,742
B19: 4 | C19: 31.02 | D19: 30463053 | E19: CONSTRUCCION ALCANTARILLADO CALETA CHANAVAYITA, IQUIQUE | F19: Ejecución | G19: Tarapacá | H19: IQUIQUE | I19: A | J19: 3,439,969 | K19: 3,152,218 | L19: 0 | M19: 0 | N19: 8,222 | O19: 2,000 | P19: 12,719 | Q19: 15,466 | R19: 2,000 | S19: 488 | T19: 0 | U19: 0 | V19: 0 | W19: 0 | X19: 0 | Y19: 40,895 | Z19: 273,850 | AA19: 5 | AB19: 2021-02-02 | AC19: 2021-02-19 | AD19: 489 | AE19: 37 | AF19: 2021-05-28 | AG19: 2021-06-07 | BJ19: 274,339 | BK19: 233,444
B20: 5 | C20: 31.02 | D20: 30096888 | E20: CONSTRUCCION CEMENTERIO MUNICIPAL, ALTO HOSPICIO, I REGION | F20: Ejecución | G20: Tarapacá | H20: ALTO HOSPICIO | I20: A | J20: 5,533,765 | K20: 4,598,333 | L20: 0 | M20: 0 | N20: 120,087 | O20: 161,897 | P20: 67,067 | Q20: 125,914 | R20: 0 | S20: 0 | T20: 0 | U20: 0 | V20: 0 | W20: 0 | X20: 0 | Y20: 474,965 | Z20: 491,833 | AA20: 5 | AB20: 2021-02-02 | AC20: 2021-02-19 | AD20: 1 | AE20: 37 | AF20: 2021-05-28 | AG20: 2021-06-07 | AH20: 443,599 | AI20: 47 | AJ20: 2021-07-13 | AK20: 2021-07-30 | BJ20: 935,433 | BK20: 460,468
B21: 6 | C21: 31.02 | D21: 30345873 | E21: CONSERVACION ACERAS Y SOLERAS EN COMUNA DE IQUIQUE, SECTOR SUR | F21: Ejecución | G21: Tarapacá | H21: IQUIQUE | I21: A | J21: 3,238,007 | K21: 3,133,903 | L21: 0 | M21: 0 | N21: 0 | O21: 0 | P21: 0 | Q21: 0 | R21: 0 | S21: 0 | T21: 0 | U21: 0 | V21: 0 | W21: 0 | X21: 0 | Y21: 0 | Z21: 101,813 | AA21: 5 | AB21: 2021-02-02 | AC21: 2021-02-19 | AD21: -101,812 | AE21: 9 | AF21: 2021-02-11 | AG21: 2021-03-04 | BJ21: 1 | BK21: 1
B22: 7 | C22: 31.02 | D22: 30344623 | E22: CONSTRUCCION COLEGIO MUNICIPAL, LA PAMPA, COMUNA DE ALTO HOSPICIO | F22: Diseño | G22: Tarapacá | H22: ALTO HOSPICIO | I22: A | J22: 168,418 | K22: 159,529 | L22: 0 | M22: 0 | N22: 0 | O22: 0 | P22: 0 | Q22: 0 | R22: 0 | S22: 0 | T22: 0 | U22: 0 | V22: 0 | W22: 0 | X22: 0 | Y22: 0 | Z22: 8,666 | AA22: 5 | AB22: 2021-02-02 | AC22: 2021-02-19 | BJ22: 8,666 | BK22: 8,666
B23: 8 | C23: 31.02 | D23: 30346224 | E23: CONSERVACION ACERAS Y SOLERAS COMUNA IQUIQUE, SECTOR NORTE, ETAPA I | F23: Ejecución | G23: Tarapacá | H23: IQUIQUE | I23: A | J23: 1,953,574 | K23: 1,547,135 | L23: 1 | M23: 0 | N23: 0 | O23: 0 | P23: 0 | Q23: 0 | R23: 0 | S23: 0 | T23: 0 | U23: 0 | V23: 0 | W23: 0 | X23: 0 | Y23: 0 | Z23: 184,286 | AA23: 5 | AB23: 2021-02-02 | AC23: 2021-02-19 | AD23: -100,000 | AE23: 7 | AF23: 2021-02-02 | AG23: 2021-02-23 | AH23: -84,284 | AI23: 9 | AJ23: 2021-02-11 | AK23: 2021-03-04 | BJ23: 2 | BK23: 2
B24: 9 | C24: 31.02 | D24: 30482214 | E24: CONSERVACION ACERAS Y SOLERAS EN COMUNA DE IQUIQUE, SECTOR NORTE, ETAPA II | F24: Ejecución | G24: Tarapacá | H24: IQUIQUE | I24: A | J24: 1,802,544 | K24: 1,293,947 | L24: 0 | M24: 0 | N24: 0 | O24: 0 | P24: 0 | Q24: 0 | R24: 0 | S24: 0 | T24: 0 | U24: 0 | V24: 0 | W24: 0 | X24: 0 | Y24: 0 | Z24: 167,012 | AA24: 5 | AB24: 2021-02-02 | AC24: 2021-02-19 | AD24: -167,010 | AE24: 9 | AF24: 2021-02-11 | AG24: 2021-03-04 | AH24: 8,093 | AI24: 37 | AJ24: 2021-02-11 | AK24: 2021-03-04 | AL24: 16,364 | AM24: 38 | AN24: 2021-06-08 | AO24: 2021-06-16 | BJ24: 24,459 | BK24: 24,459
B25: 10 | C25: 31.02 | D25: 30488457 | E25: RESTAURACION FACHADAS CALLE BAQUEDANO, ZONA TIPICA DE IQUIQUE | F25: Ejecución | G25: Tarapacá | H25: IQUIQUE | I25: A | J25: 800,104 | K25: 91,158 | L25: 3 | M25: 0 | N25: 0 | O25: 0 | P25: 0 | Q25: 0 | R25: 63,644 | S25: 0 | T25: 0 | U25: 0 | V25: 0 | W25: 0 | X25: 0 | Y25: 63,644 | Z25: 693,906 | AA25: 5 | AB25: 2021-02-02 | AC25: 2021-02-19 | AD25: -35,677 | AE25: 41 | AF25: 2021-06-15 | AG25: 2021-06-24 | AH25: -5,893 | AI25: 55 | AJ25: 2021-08-31 | AK25: 2021-09-23 | BJ25: 652,336 | BK25: 588,692
B26: 11 | C26: 31.02 | D26: 30121131 | E26: RESTAURACION IGLESIA SAN ANTONIO DE PADUA Y CONVENTO FRANCISCANO | F26: Diseño | G26: Tarapacá | H26: IQUIQUE | I26: A | J26: 160,250 | K26: 68,757 | L26: 0 | M26: 0 | N26: 0 | O26: 12,240 | P26: 0 | Q26: 0 | R26: 0 | S26: 0 | T26: 0 | U26: 0 | V26: 0 | W26: 0 | X26: 0 | Y26: 12,240 | Z26: 89,064 | AA26: 5 | AB26: 2021-02-02 | AC26: 2021-02-19 | AD26: -8,009 | AE26: 29 | AF26: 2021-04-30 | AG26: 2021-05-18 | AH26: -31,775 | AI26: 33 | AJ26: 2021-05-14 | AK26: 2021-05-26 | BJ26: 49,280 | BK26: 37,040
B27: 12 | C27: 31.02 | D27: 30476597 | E27: CONSTRUCCION TERMAS DE CHUSMIZA, COMUNA DE HUARA | F27: Diseño | G27: Tarapacá | H27: REGIONAL | I27: A | J27: 135,168 | K27: 100,403 | L27: 0 | M27: 0 | N27: 0 | O27: 0 | P27: 0 | Q27: 0 | R27: 0 | S27: 0 | T27: 0 | U27: 0 | V27: 0 | W27: 0 | X27: 0 | Y27: 0 | Z27: 26,472 | AA27: 5 | AB27: 2021-02-02 | AC27: 2021-02-19 | AD27: -8,127 | AE27: 33 | AF27: 2021-05-14 | AG27: 2021-05-26 | BJ27: 18,345 | BK27: 18,345
B28: 13 | C28: 31.02 | D28: 30407383 | E28: CONSERVACION CENTRO CERRADO IQUIQUE | F28: Ejecución | G28: Tarapacá | H28: REGIONAL | I28: A | J28: 1,245,553 | K28: 280,624 | L28: 2 | M28: 0 | N28: 50,012 | O28: 0 | P28: 34,302 | Q28: 0 | R28: 68,072 | S28: 0 | T28: 63,746 | U28: 0 | V28: 0 | W28: 0 | X28: 0 | Y28: 216,132 | Z28: 862,079 | AA28: 5 | AB28: 2021-02-02 | AC28: 2021-02-19 | AD28: -5,159 | AE28: 13 | AF28: 2021-03-04 | AG28: 2021-03-30 | AH28: -332,606 | AI28: 21 | AJ28: 2021-04-05 | AK28: 2021-04-23 | AL28: 105,510 | AM28: 55 | AN28: 2021-08-31 | AO28: 2021-09-23 | BJ28: 629,824 | BK28: 413,692
B29: 14 | C29: 31.02 | D29: 40003275 | E29: RESTAURACION EDIFICIO SOCIEDAD PROTECTORA DE EMPLEADOS DE TARAPACA, MHN | F29: Diseño | G29: Tarapacá | H29: REGIONAL | I29: A | J29: 1,643,583 | K29: 1,549,964 | L29: 62 | M29: 0 | N29: 4,000 | O29: 2,000 | P29: 2,000 | Q29: 1,000 | R29: 0 | S29: 0 | T29: 13,350 | U29: 0 | V29: 0 | W29: 0 | X29: 0 | Y29: 22,350 | Z29: 78,155 | AA29: 5 | AB29: 2021-02-02 | AC29: 2021-02-19 | AD29: -40,455 | AE29: 55 | AF29: 2021-08-31 | AG29: 2021-09-23 | BJ29: 37,700 | BK29: 15,350
B30: 15 | C30: 31.02 | D30: 40003160 | E30: RESTAURACION EX CARCEL DE PISAGUA, PARA EL CENTRO DE INTERPRETACION HISTORICA | F30: Diseño | G30: Tarapacá | H30: REGIONAL | I30: A | J30: 448,514 | K30: 194,412 | L30: 0 | M30: 0 | N30: 0 | O30: 0 | P30: 0 | Q30: 0 | R30: 0 | S30: 0 | T30: 0 | U30: 0 | V30: 0 | W30: 0 | X30: 0 | Y30: 0 | Z30: 124,255 | AA30: 5 | AB30: 2021-02-02 | AC30: 2021-02-19 | AD30: -41,418 | AE30: 10 | AF30: 2021-02-12 | AG30: 2021-03-04 | AH30: -41,419 | AI30: 33 | AJ30: 2021-05-14 | AK30: 2021-05-26 | BJ30: 41,418 | BK30: 41,418
B31: 16 | C31: 31.02 | D31: 40000942 | E31: CONSTRUCCION SISTEMA DE CAMARAS DE TELEVIGILANCIA COMUNA DE ALTO HOSPICIO | F31: Ejecución | G31: Tarapacá | H31: ALTO HOSPICIO | I31: A | J31: 4,031,602 | K31: 53,506 | L31: 331,298 | M31: 0 | N31: 0 | O31: 0 | P31: 0 | Q31: 0 | R31: 0 | S31: 0 | T31: 0 | U31: 0 | V31: 0 | W31: 0 | X31: 0 | Y31: 0 | Z31: 3,564,105 | AA31: 5 | AB31: 2021-02-02 | AC31: 2021-02-19 | AD31: -593,360 | AE31: 7 | AF31: 2021-02-02 | AG31: 2021-02-23 | AH31: -246,018 | AI31: 10 | AJ31: 2021-02-12 | AK31: 2021-03-04 | AL31: -70,286 | AM31: 13 | AN31: 2021-03-04 | AO31: 2021-03-30 | AP31: -1,031,771 | AQ31: 19 | AR31: 2021-03-19 | AS31: 2021-04-12 | AT31: -368,167 | AU31: 27 | AV31: 2021-03-19 | AW31: 2021-04-12 | AX31: -193,731 | AY31: 40 | AZ31: 2021-06-11 | BA31: 2021-06-24 | BB31: -174,437 | BC31: 48 | BD31: 2021-07-13 | BE31: 2021-07-30 | BJ31: 886,335 | BK31: 886,335
B32: 17 | C32: 31.02 | D32: 30130917 | E32: CONSTRUCCION BORDE COSTERO CALETA CHANAVAYITA, IQUIQUE | F32: Ejecución | G32: Tarapacá | H32: IQUIQUE | I32: A | J32: 1,767,375 | K32: 41,395 | L32: 976,706 | M32: 0 | N32: 0 | O32: 0 | P32: 15,225 | Q32: 2,100 | R32: 2,100 | S32: 2,100 | T32: 2,100 | U32: 2,100 | V32: 0 | W32: 0 | X32: 0 | Y32: 25,725 | Z32: 732,786 | AA32: 5 | AB32: 2021-02-02 | AC32: 2021-02-19 | AD32: -5,612 | AE32: 6 | AF32: 2021-02-02 | AG32: 2021-02-23 | AH32: -540,437 | AI32: 7 | AJ32: 2021-02-02 | AK32: 2021-02-23 | AL32: 201,602 | AM32: 37 | AN32: 2021-05-28 | AO32: 2021-06-07 | BJ32: 388,339 | BK32: 362,614
B33: 18 | C33: 31.02 | D33: 40000964 | E33: MEJORAMIENTO PSICINA CENTRO DEPORTIVO LA PAMPA | F33: Ejecución | G33: Tarapacá | H33: ALTO HOSPICIO | I33: N | J33: 902,226 | K33: 0 | L33: 450,089 | M33: 0 | N33: 0 | O33: 0 | P33: 0 | Q33: 0 | R33: 0 | S33: 0 | T33: 0 | U33: 0 | V33: 0 | W33: 0 | X33: 0 | Y33: 0 | Z33: 238,001 | AA33: 5 | AB33: 2021-02-02 | AC33: 2021-02-19 | AD33: -237,999 | AE33: 21 | AF33: 2021-04-05 | AG33: 2021-04-23 | BJ33: 2 | BK33: 2
B34: 19 | C34: 31.02 | D34: 30483228 | E34: CONSTRUCCION RED ELECTRICA VARIAS LOCALIDADES DE LA COMUNA DE HUARA | F34: Ejecución | G34: Tarapacá | H34: HUARA | I34: A | J34: 8,263,699 | K34: 8,190,599 | L34: 52,794 | M34: 0 | N34: 3,900 | O34: 4,061 | P34: 4,061 | Q34: 4,061 | R34: 1,950 | S34: 4,061 | T34: 4,061 | U34: 1,950 | V34: 0 | W34: 0 | X34: 0 | Y34: 28,105 | Z34: 58,256 | AA34: 5 | AB34: 2021-02-02 | AC34: 2021-02-19 | AD34: -1,978 | AE34: 29 | AF34: 2021-04-30 | AG34: 2021-05-18 | BJ34: 56,278 | BK34: 28,173
B35: 20 | C35: 31.02 | D35: 40002657 | E35: CONSTRUCCION CENTRO COMUNITARIO COMUNA IQUIQUE | F35: Ejecución | G35: Tarapacá | H35: IQUIQUE | I35: A | J35: 978,801 | K35: 438,807 | L35: 4,943 | M35: 0 | N35: 93,132 | O35: 89,297 | P35: 76,675 | Q35: 293 | R35: 92,389 | S35: 17,981 | T35: 51,226 | U35: 791 | V35: 0 | W35: 0 | X35: 0 | Y35: 421,784 | Z35: 505,989 | AA35: 5 | AB35: 2021-02-02 | AC35: 2021-02-19 | BJ35: 505,989 | BK35: 84,205
B36: 21 | C36: 31.02 | D36: 30110277 | E36: CONSTRUCCION POSTA DE SALUD RURAL DE CARIQUIMA, COMUNA DE COLCHANE | F36: Ejecución | G36: Tarapacá | H36: COLCHANE | I36: A | J36: 1,278,536 | K36: 307,636 | L36: 0 | M36: 0 | N36: 116,583 | O36: 23,550 | P36: 69,913 | Q36: 51,766 | R36: 1,600 | S36: =2000+48449 -> 50,449 | T36: =9810+1667+2000+51615+35423 -> 100,515 | U36: =2000+34909+355+333+1667 -> 39,264 | V36: 0 | W36: 0 | X36: 0 | Y36: 453,640 | Z36: 949,536 | AA36: 5 | AB36: 2021-02-02 | AC36: 2021-02-19 | AD36: -84,655 | AE36: 13 | AF36: 2021-03-04 | AG36: 2021-03-30 | AH36: -26,055 | AI36: 19 | AJ36: 2021-03-19 | AK36: 2021-04-12 | AL36: -132,370 | AM36: 48 | AN36: 2021-07-13 | AO36: 2021-07-30 | AP36: -8,485 | AQ36: 55 | AR36: 2021-08-31 | AS36: 2021-09-23 | AT36: 6,368 | AU36: 55 | AV36: 2021-08-31 | AW36: 2021-09-23 | BJ36: 704,339 | BK36: 250,699
B37: 22 | C37: 31.02 | D37: 30108640 | E37: REPOSICION POSTA SALUD RURAL DE LA TIRANA, COMUNA DE POZO ALMONTE | F37: Ejecución | G37: Tarapacá | H37: POZO ALMONTE | I37: A | J37: 735,383 | K37: 33,637 | L37: 2 | M37: 0 | N37: 56,082 | O37: 47,762 | P37: =3467+30005 -> 33,472 | Q37: 53,462 | R37: 3,467 | S37: 108,765 | T37: 833 | U37: 50,437 | V37: 0 | W37: 0 | X37: 0 | Y37: 354,280 | Z37: 701,683 | AA37: 5 | AB37: 2021-02-02 | AC37: 2021-02-19 | AD37: 3 | AE37: 13 | AF37: 2021-03-04 | AG37: 2021-03-30 | AH37: -32,356 | AI37: 13 | AJ37: 2021-03-04 | AK37: 2021-03-30 | AL37: -19,078 | AM37: 55 | AN37: 2021-08-31 | AO37: 2021-09-23 | BJ37: 650,252 | BK37: 295,972
B38: 23 | C38: 31.02 | D38: 30369324 | E38: CONSTRUCCION RED ALCANTARILLADO SECTOR EL BORO PONIENTE | F38: Ejecución | G38: Tarapacá | H38: ALTO HOSPICIO | I38: A | J38: 1,767,375 | K38: 41,395 | L38: 976,706 | M38: 0 | N38: 3,585 | O38: 1,793 | P38: 1,792 | Q38: 1,793 | R38: 1,793 | S38: 1,793 | T38: 1,157 | U38: 0 | V38: 0 | W38: 0 | X38: 0 | Y38: 13,706 | Z38: 1,928,131 | AA38: 5 | AB38: 2021-02-02 | AC38: 2021-02-19 | AD38: -626,626 | AE38: 7 | AF38: 2021-02-02 | AG38: 2021-02-23 | AH38: 167,168 | AI38: 37 | AJ38: 2021-05-28 | AK38: 2021-06-07 | AL38: 259,000 | AM38: 42 | AN38: 2021-06-16 | AO38: 2021-07-08 | BJ38: 1,727,673 | BK38: 1,713,967
B39: 24 | C39: 31.02 | D39: 40008899 | E39: CONSTRUCCION RED AGUA POTABLE, SECTOR BORO PONIENTE | F39: Ejecución | G39: Tarapacá | H39: ALTO HOSPICIO | I39: N | J39: 180,415 | K39: 2,045 | L39: 0 | M39: 0 | N39: 0 | O39: 3,616 | P39: 1,808 | Q39: 1,808 | R39: 1,808 | S39: 1,808 | T39: 1,808 | U39: 1,808 | V39: 0 | W39: 0 | X39: 0 | Y39: 14,464 | Z39: 168,027 | AA39: 5 | AB39: 2021-02-02 | AC39: 2021-02-19 | AD39: -34,005 | AE39: 19 | AF39: 2021-03-19 | AG39: 2021-04-12 | AH39: 34,005 | AI39: 42 | AJ39: 2021-06-16 | AK39: 2021-07-08 | BJ39: 168,027 | BK39: 153,563
B40: 25 | C40: 31.02 | D40: 40007181 | E40: RESTAURACION ARQUITECTONICA EX ADUANA DE IQUIQUE | F40: Diseño | G40: Tarapacá | H40: REGIONAL | I40: A | J40: 330,176 | K40: 37,772 | L40: 129,800 | M40: 0 | N40: 0 | O40: 0 | P40: 0 | Q40: 0 | R40: 0 | S40: 0 | T40: 0 | U40: =30800+42300 -> 73,100 | V40: 0 | W40: 0 | X40: 0 | Y40: 73,100 | Z40: 240,000 | AA40: 5 | AB40: 2021-02-02 | AC40: 2021-02-19 | AD40: -110,766 | AE40: 7 | AF40: 2021-02-02 | AG40: 2021-02-23 | AH40: -34,984 | AI40: 33 | AJ40: 2021-05-14 | AK40: 2021-05-26 | BJ40: 94,250 | BK40: 21,150
B41: 26 | C41: 31.02 | D41: 30463225 | E41: CONSERVACION PLAN DE CCBB RUTA A-475 YA-475, PROVINCIA DEL TAMARUGAL, REGION DE TARAPACA | F41: Ejecución | G41: Tarapacá | H41: REGIONAL | I41: N | J41: 3,158,120 | K41: 0 | L41: 0 | M41: 0 | N41: 0 | O41: 0 | P41: 109,911 | Q41: 0 | R41: 0 | S41: 0 | T41: 370,997 | U41: 0 | V41: 0 | W41: 0 | X41: 0 | Y41: 480,908 | Z41: 631,868 | AA41: 5 | AB41: 2021-02-02 | AC41: 2021-02-19 | AD41: 2,332,460 | AE41: 7 | AF41: 2021-02-02 | AG41: 2021-02-23 | AH41: -406,822 | AI41: 37 | AJ41: 2021-05-28 | AK41: 2021-06-07 | AL41: -1,226,802 | AM41: 38 | AN41: 2021-06-08 | AO41: 2021-06-16 | AP41: -199,698 | AQ41: 55 | AR41: 2021-08-31 | AS41: 2021-09-23 | BJ41: 1,131,006 | BK41: 650,098
B42: 27 | C42: 31.02 | D42: 30110133 | E42: CONSTRUCCION ARCHIVO REGIONAL DE TARAPACA | F42: Ejecución | G42: Tarapacá | H42: REGIONAL | I42: N | J42: 3,585,731 | K42: 0 | L42: 3,039,299 | M42: 0 | N42: 0 | O42: 0 | P42: 0 | Q42: 0 | R42: 0 | S42: 0 | T42: 0 | U42: 0 | V42: 0 | W42: 0 | X42: 0 | Y42: 0 | Z42: 250,000 | AA42: 5 | AB42: 2021-02-02 | AC42: 2021-02-19 | AD42: -249,999 | AE42: 7 | AF42: 2021-02-02 | AG42: 2021-02-23 | BJ42: 1 | BK42: 1
B43: 28 | C43: 31.02 | D43: 30459123 | E43: CONSTRUCCION NUEVO RELLENO SANITARIO MANCOMUNADO | F43: Diseño | G43: Tarapacá | H43: ALTO HOSPICIO | I43: N | J43: 539,089 | K43: 0 | L43: 0 | M43: 0 | N43: 3,616 | O43: 1,808 | P43: 1,808 | Q43: 1,808 | R43: 1,808 | S43: 1,808 | T43: 1,808 | U43: 0 | V43: 0 | W43: 0 | X43: 0 | Y43: 14,464 | Z43: 420,345 | AA43: 5 | AB43: 2021-02-02 | AC43: 2021-02-19 | AD43: -93,021 | AE43: 42 | AF43: 2021-06-16 | AG43: 2021-07-08 | BJ43: 327,324 | BK43: 312,860
B44: 29 | C44: 31.02 | D44: 30463223 | E44: CONSERVACION PLAN DE CCBB RUTAS A-855 Y A-412 | F44: Ejecución | G44: Tarapacá | H44: REGIONAL | I44: A | J44: 51,186,410 | K44: 1,831,882 | L44: 4 | M44: 0 | N44: 441,098 | O44: 0 | P44: 0 | Q44: 0 | R44: 0 | S44: 0 | T44: 0 | U44: 0 | V44: 0 | W44: 0 | X44: 0 | Y44: 441,098 | Z44: 2,513,800 | AA44: 5 | AB44: 2021-02-02 | AC44: 2021-02-19 | AD44: -915,456 | AE44: 9 | AF44: 2021-02-11 | AG44: 2021-03-04 | AH44: -1,184,544 | AI44: 41 | AJ44: 2021-06-15 | AK44: 2021-06-24 | BJ44: 413,800 | BK44: -27,298
B45: 30 | C45: 31.02 | D45: 30108583 | E45: CONSTRUCCION CENTRO SALUD FAMILIAR COMUNA IQUIQUE | F45: Ejecución | G45: Tarapacá | H45: IQUIQUE | I45: N | J45: 2,480,427 | K45: 0 | L45: 1,969,178 | M45: 0 | N45: 0 | O45: 0 | P45: 0 | Q45: 0 | R45: 0 | S45: 0 | T45: 0 | U45: 0 | V45: 0 | W45: 0 | X45: 0 | Y45: 0 | Z45: 500,000 | AA45: 5 | AB45: 2021-02-02 | AC45: 2021-02-19 | AD45: -2,516 | AE45: 33 | AF45: 2021-05-14 | AG45: 2021-05-26 | AH45: -52,484 | AI45: 37 | AJ45: 2021-05-28 | AK45: 2021-06-07 | AL45: -97,000 | AM45: 41 | AN45: 2021-06-15 | AO45: 2021-06-24 | AP45: -95,000 | AQ45: 48 | AR45: 2021-07-13 | AS45: 2021-07-30 | BJ45: 253,000 | BK45: 253,000
B46: 31 | C46: 31.02 | D46: 30433377 | E46: REPOSICION SALA MULTIUSO DE CAMIÑA | F46: Ejecución | G46: Tarapacá | H46: CAMIÑA | I46: N | J46: 437,437 | K46: 0 | L46: 0 | M46: 0 | N46: 0 | O46: 0 | P46: 0 | Q46: 0 | R46: 0 | S46: 0 | T46: 0 | U46: 0 | V46: 0 | W46: 0 | X46: 0 | Y46: 0 | Z46: 292,155 | AA46: 5 | AB46: 2021-02-02 | AC46: 2021-02-19 | AD46: -17,702 | AE46: 30 | AF46: 2021-05-04 | AG46: 2021-05-18 | AH46: -7,070 | AI46: 37 | AJ46: 2021-05-28 | AK46: 2021-06-07 | AL46: -53,477 | AM46: 41 | AN46: 2021-06-15 | AO46: 2021-06-24 | BJ46: 213,906 | BK46: 213,906
B47: 32 | C47: 31.02 | D47: 30417623 | E47: REPOSICION CASAS DE HUESPEDES PARA FUNCIONARIOS MUNICIPALES, DE LA SALUD Y EDUCACION | F47: Ejecución | G47: Tarapacá | H47: CAMIÑA | I47: N | J47: 437,963 | K47: 0 | L47: 0 | M47: 0 | N47: 0 | O47: 0 | P47: 0 | Q47: 0 | R47: 0 | S47: 0 | T47: 0 | U47: 0 | V47: 0 | W47: 0 | X47: 0 | Y47: 0 | Z47: 218,155 | AA47: 5 | AB47: 2021-02-02 | AC47: 2021-02-19 | AD47: -13,553 | AE47: 55 | AF47: 2021-08-31 | AG47: 2021-09-23 | BJ47: 204,602 | BK47: 204,602
B48: 33 | C48: 31.02 | D48: 40001352 | E48: REPOSICION ASCENSORES DEL HOSPITAL ERNESTO TO18ES G. | F48: Ejecución | G48: Tarapacá | H48: IQUIQUE | I48: N | J48: 880,308 | K48: 0 | L48: 1 | M48: 0 | N48: 0 | O48: 0 | P48: 0 | Q48: 0 | R48: 0 | S48: 0 | T48: 32,644 | U48: 0 | V48: 0 | W48: 0 | X48: 0 | Y48: 32,644 | Z48: 860,935 | AA48: 5 | AB48: 2021-02-02 | AC48: 2021-02-19 | AD48: -510,000 | AE48: 7 | AF48: 2021-02-02 | AG48: 2021-02-23 | AH48: 182,653 | AI48: 13 | AJ48: 2021-03-04 | AK48: 2021-03-30 | AL48: 91,023 | AM48: 37 | AN48: 2021-05-28 | AO48: 2021-06-07 | AP48: 216,281 | AQ48: 41 | AR48: 2021-06-15 | AS48: 2021-06-24 | BJ48: 840,892 | BK48: 808,248
B49: 34 | C49: 31.02 | D49: 30403324 | E49: CONSTRUCCION ILUMINACION SOLAR PARA MEJORAR SEGURIDAD RUTA A-469 | F49: Ejecución | G49: Tarapacá | H49: CAMIÑA | I49: N | J49: 209,329 | K49: 1,022 | L49: 0 | M49: 0 | N49: 0 | O49: 0 | P49: 0 | Q49: 40,074 | R49: 0 | S49: 0 | T49: 0 | U49: 0 | V49: 0 | W49: 0 | X49: 0 | Y49: 40,074 | Z49: 202,698 | AA49: 5 | AB49: 2021-02-02 | AC49: 2021-02-19 | AD49: -24,397 | AE49: 27 | AF49: 2021-04-19 | AG49: 2021-04-28 | BJ49: 178,301 | BK49: 138,227
B50: 35 | C50: 31.02 | D50: 30102710 | E50: RESTAURACION ARQUITECTONICA TEATRO MUNICIPAL, IQUIQUE | F50: Ejecución | G50: Tarapacá | H50: IQUIQUE | I50: A | J50: 2,787,089 | K50: 937,873 | L50: 215,355 | M50: 0 | N50: 0 | O50: 0 | P50: 0 | Q50: 0 | R50: 0 | S50: 0 | T50: 0 | U50: 0 | V50: 0 | W50: 0 | X50: 0 | Y50: 0 | Z50: 552,202 | AA50: 5 | AB50: 2021-02-02 | AC50: 2021-02-19 | AD50: -500,999 | AE50: 10 | AF50: 2021-02-12 | AG50: 2021-03-04 | AH50: 17,998 | AI50: 33 | AJ50: 2021-05-14 | AK50: 2021-05-26 | BJ50: 69,201 | BK50: 69,201
B51: 36 | C51: 31.03 | D51: 30482631 | E51: SANEAMIENTO CONTROL DE PLAGAS SECTOR EL BORO, ALTO HOSPICIO | F51: Ejecución | G51: Tarapacá | H51: ALTO HOSPICIO | I51: A | J51: 749,592 | K51: 737,422 | L51: 0 | M51: 0 | N51: 2,444 | O51: 0 | P51: =1222+6837 -> 8,059 | Q51: 0 | R51: 0 | S51: 0 | T51: 0 | U51: 0 | V51: 0 | W51: 0 | X51: 0 | Y51: 10,503 | Z51: 3,666 | AA51: 5 | AB51: 2021-02-02 | AC51: 2021-02-19 | AD51: 6,837 | AE51: 22 | AF51: 2021-04-06 | AG51: 2021-04-23 | BJ51: 10,503 | BK51: 0
B52: 37 | C52: 31.03 | D52: 30485762 | E52: CAPACITACION TNENCIA RESPONSABLE DE MASCOTAS, REGION DE TARAPACA | F52: Ejecución | G52: Tarapacá | H52: REGIONAL | I52: A | J52: 313,368 | K52: 261,567 | L52: 1 | M52: 0 | N52: 6,160 | O52: 0 | P52: 0 | Q52: 0 | R52: 140 | S52: 0 | T52: 0 | U52: 0 | V52: 0 | W52: 0 | X52: 0 | Y52: 6,300 | Z52: 25,100 | AA52: 5 | AB52: 2021-02-02 | AC52: 2021-02-19 | AD52: 29,326 | AE52: 19 | AF52: 2021-03-19 | AG52: 2021-04-12 | AH52: -6,159 | AI52: 21 | AJ52: 2021-04-05 | AK52: 2021-04-23 | BJ52: 48,267 | BK52: 41,967
B53: 38 | C53: 31.03 | D53: 40005138 | E53: CAPACITACION EN SEPARACION DE RESIDUOS SOLIDOS DOMICILIARIOS INORGANICOS, COMUNA | F53: Ejecución | G53: Tarapacá | H53: REGIONAL | I53: A | J53: 441,306 | K53: 105,126 | L53: 98,761 | M53: 0 | N53: 0 | O53: 0 | P53: 0 | Q53: 2,560 | R53: 0 | S53: 0 | T53: 0 | U53: 10,052 | V53: 0 | W53: 0 | X53: 0 | Y53: 12,612 | Z53: 129,500 | AA53: 5 | AB53: 2021-02-02 | AC53: 2021-02-19 | AD53: -64,188 | AE53: 48 | AF53: 2021-07-13 | AG53: 2021-07-30 | BJ53: 65,312 | BK53: 52,700
B54: 39 | C54: 31.03 | D54: 40019660 | E54: CONTROL DE LA POBLACION DE CANINOS SIN DUEÑO, REGION DE TARAPACA | F54: Ejecución | G54: Tarapacá | H54: REGIONAL | I54: A | J54: 494,071 | K54: 4,601 | L54: 280,164 | M54: 0 | N54: 1,000 | O54: 4,000 | P54: 3,000 | Q54: 3,000 | R54: 3,000 | S54: 2,000 | T54: 2,000 | U54: 2,000 | V54: 0 | W54: 0 | X54: 0 | Y54: 20,000 | Z54: 127,773 | AA54: 5 | AB54: 2021-02-02 | AC54: 2021-02-19 | AD54: 927 | AE54: 19 | AF54: 2021-03-19 | AG54: 2021-04-12 | AH54: -65,072 | AI54: 48 | AJ54: 2021-07-13 | AK54: 2021-07-30 | BJ54: 63,628 | BK54: 43,628
B55: 40 | C55: 31.02 | D55: 40007766 | E55: CONSTRUCCION CENTRO DE CONTROL DE TRANSITO-SCAT REGION DE TARAPACA | F55: Ejecución | G55: Tarapacá | H55: IQUIQUE | I55: N | J55: 4,217,438 | K55: 862,199 | L55: 3,355,239 | M55: 0 | N55: 4,600 | O55: 2,300 | P55: 2,300 | Q55: 8,800 | R55: 4,300 | S55: 2,300 | T55: 2,300 | U55: 997 | V55: 0 | W55: 0 | X55: 0 | Y55: 27,897 | Z55: 26,401 | AA55: 6 | AB55: 2021-02-02 | AC55: 2021-02-23 | AD55: 9,800 | AE55: 13 | AF55: 2021-03-04 | AG55: 2021-03-30 | AH55: 2 | AI55: 18 | AJ55: 2021-03-18 | AK55: 2021-04-12 | BJ55: 36,203 | BK55: 8,306
B56: 41 | C56: 31.02 | D56: 30482839 | E56: REPOSICION ALUMBRADO PUBLICO CON TECNOLOGIA LED COMUNA DE COLCHANE | F56: Ejecución | G56: Tarapacá | H56: COLCHANE | I56: A | J56: 487,958 | K56: 21,127 | L56: 1 | M56: 0 | N56: 0 | O56: 0 | P56: 0 | Q56: 0 | R56: 0 | S56: 0 | T56: 0 | U56: 0 | V56: 0 | W56: 0 | X56: 0 | Y56: 0 | Z56: 446,588 | AA56: 6 | AB56: 2021-02-02 | AC56: 2021-02-23 | BJ56: 446,588 | BK56: 446,588
B57: 42 | C57: 31.02 | D57: 30480574 | E57: MEJORAMIENTO DEPENDENCIAS MUNICIPALES POZO ALMONTE | F57: Ejecución | G57: Tarapacá | H57: POZO ALMONTE | I57: A | J57: 359,033 | K57: 309,354 | L57: 1 | M57: 0 | N57: 0 | O57: 0 | P57: 0 | Q57: 0 | R57: 0 | S57: 23,205 | T57: 0 | U57: 0 | V57: 0 | W57: 0 | X57: 0 | Y57: 23,205 | Z57: 27,690 | AA57: 6 | AB57: 2021-02-02 | AC57: 2021-02-23 | BJ57: 27,690 | BK57: 4,485
B58: 43 | C58: 31.02 | D58: 40017378 | E58: CONSERVACION RED VIAL, OBRAS DE EMERGENCIA RUTA A-475, S. ARIQUILDA-S.C RUTA A-457 | F58: Ejecución | G58: Tarapacá | H58: HUARA | I58: A | J58: 3,997,068 | K58: 3,697,050 | L58: 2,097 | M58: 0 | N58: 0 | O58: 0 | P58: 0 | Q58: 0 | R58: 0 | S58: 0 | T58: 0 | U58: 0 | V58: 0 | W58: 0 | X58: 0 | Y58: 0 | Z58: 291,365 | AA58: 6 | AB58: 2021-02-02 | AC58: 2021-02-23 | AD58: -291,364 | AE58: 21 | AF58: 2021-04-05 | AG58: 2021-04-23 | BJ58: 1 | BK58: 1
B59: 44 | C59: 31.02 | D59: 30227573 | E59: AMPLIACION DEL RELLENO SANITARIO DE PICA | F59: Diseño | G59: Tarapacá | H59: PICA | I59: A | J59: 80,777 | K59: 44,976 | L59: 0 | M59: 0 | N59: 0 | O59: 0 | P59: 0 | Q59: 0 | R59: 0 | S59: 0 | T59: 0 | U59: 0 | V59: 0 | W59: 0 | X59: 0 | Y59: 0 | Z59: 35,014 | AA59: 6 | AB59: 2021-02-02 | AC59: 2021-02-23 | AD59: -7,014 | AE59: 29 | AF59: 2021-04-30 | AG59: 2021-05-18 | BJ59: 28,000 | BK59: 28,000
B60: 45 | C60: 31.02 | D60: 40021428 | E60: REPOSICION ASCENSOR EDIFICIO INTENDENCIA REGIONAL DE TARAPACA, IQUIQUE | F60: Ejecución | G60: Tarapacá | H60: IQUIQUE | I60: A | J60: 188,807 | K60: 21,472 | L60: 10,225 | M60: 0 | N60: 4,000 | O60: 3,000 | P60: 0 | Q60: 0 | R60: 0 | S60: 0 | T60: 0 | U60: 0 | V60: 0 | W60: 0 | X60: 0 | Y60: 7,000 | Z60: 8,502 | AA60: 6 | AB60: 2021-02-02 | AC60: 2021-02-23 | AD60: 100,823 | AE60: 33 | AF60: 2021-05-14 | AG60: 2021-05-26 | BJ60: 109,325 | BK60: 102,325
B61: 46 | C61: 31.02 | D61: 30080833 | E61: MEJORAMIENTO ACCESIBILIDAD Y CONECTIVIDAD EN LA CIUDAD DE IQUIQUE | F61: Ejecución | G61: Tarapacá | H61: IQUIQUE | I61: A | J61: 34,464,793 | K61: 30,787,709 | L61: 0 | M61: 0 | N61: 2,470 | O61: 4,940 | P61: 2,470 | Q61: 2,470 | R61: 2,470 | S61: 2,470 | T61: 87,660 | U61: 2,470 | V61: 0 | W61: 0 | X61: 0 | Y61: 107,420 | Z61: 839,640 | AA61: 6 | AB61: 2021-02-02 | AC61: 2021-02-23 | BJ61: 839,640 | BK61: 732,220
B62: 47 | C62: 31.02 | D62: 30102049 | E62: CONSTRUCCION HOSPITAL ALTO HOSPICIO | F62: Ejecución | G62: Tarapacá | H62: ALTO HOSPICIO | I62: A | J62: 4,694,880 | K62: 3,512,824 | L62: 0 | M62: 0 | N62: 0 | O62: 0 | P62: 0 | Q62: 0 | R62: 0 | S62: 0 | T62: 0 | U62: 0 | V62: 0 | W62: 0 | X62: 0 | Y62: 0 | Z62: 1 | AA62: 6 | AB62: 2021-02-02 | AC62: 2021-02-23 | AD62: 174,366 | AE62: 40 | AF62: 2021-06-11 | AG62: 2021-06-24 | BJ62: 174,367 | BK62: 174,367
B63: 48 | C63: 31.02 | D63: 30485475 | E63: REPOSICION AREAS DAÑADAS CENTRO CULTURAL, ALTO HOSPICIO | F63: Ejecución | G63: Tarapacá | H63: ALTO HOSPICIO | I63: N | J63: 173,442 | K63: 3,067 | L63: 0 | M63: 0 | N63: 0 | O63: 0 | P63: 0 | Q63: 0 | R63: 0 | S63: 0 | T63: 0 | U63: 0 | V63: 0 | W63: 0 | X63: 0 | Y63: 0 | Z63: 2 | AA63: 6 | AB63: 2021-02-02 | AC63: 2021-02-23 | BJ63: 2 | BK63: 2
B64: 49 | C64: 31.02 | D64: 30391222 | E64: REPOSICION SEDE SOCIAL PARA LA LOCALIDAD DE POROMA, COMUNA DE HUARA | F64: Ejecución | G64: Tarapacá | H64: HUARA | I64: A | J64: 358,854 | K64: 17,611 | L64: 1 | M64: 0 | N64: 42,852 | O64: 10,984 | P64: =1600+39285 -> 40,885 | Q64: 1,600 | R64: 1,600 | S64: 108,992 | T64: 1,600 | U64: 65,482 | V64: 0 | W64: 0 | X64: 0 | Y64: 273,995 | Z64: 349,132 | AA64: 7 | AB64: 2021-02-02 | AC64: 2021-02-23 | BJ64: 349,132 | BK64: 75,137
B65: 50 | C65: 31.02 | D65: 30070061 | E65: RESTAURACION 2 MONUMENTOS NACIONALES DE PISAGUA | F65: Ejecución | G65: Tarapacá | H65: HUARA | I65: A | J65: 3,649,103 | K65: 23,810 | L65: 2,353,140 | M65: 0 | N65: 9,919 | O65: 0 | P65: 0 | Q65: 14,878 | R65: 14,878 | S65: 0 | T65: 0 | U65: 0 | V65: 0 | W65: 0 | X65: 0 | Y65: 39,675 | Z65: 49,596 | AA65: 7 | AB65: 2021-02-02 | AC65: 2021-02-23 | BJ65: 49,596 | BK65: 9,921
B66: 51 | C66: 31.02 | D66: 40017726 | E66: CONSERVACION CUARTEL BARROS ARANA, PDI IQUIQUE | F66: Ejecución | G66: Tarapacá | H66: REGIONAL | I66: N | J66: 571,713 | K66: 0 | L66: 514,543 | M66: 0 | N66: 0 | O66: 0 | P66: 0 | Q66: 0 | R66: 0 | S66: 0 | T66: 0 | U66: 0 | V66: 0 | W66: 0 | X66: 0 | Y66: 0 | Z66: 2 | AA66: 9 | AB66: 2021-02-11 | AC66: 2021-03-04 | BJ66: 2 | BK66: 2
B67: 52 | C67: 31.02 | D67: 40021415 | E67: RESTAURACION VIVIENDA ZONA TIPICA DE BAQUEDANO, EN ANIBAL PINTO DEL 770 AL 792, IQUIQUE | F67: Diseño | G67: Tarapacá | H67: IQUIQUE | I67: N | J67: 919,195 | K67: 0 | L67: 109,674 | M67: 0 | N67: 0 | O67: 3,500 | P67: 3,500 | Q67: 3,500 | R67: 3,500 | S67: =1500+2000 -> 3,500 | T67: =2000+1500 -> 3,500 | U67: =1500+2000 -> 3,500 | V67: 0 | W67: 0 | X67: 0 | Y67: 24,500 | Z67: 766,500 | AA67: 10 | AB67: 2021-02-12 | AC67: 2021-03-04 | AD67: 25,000 | AE67: 19 | AF67: 2021-03-19 | AG67: 2021-04-12 | BJ67: 791,500 | BK67: 767,000
B68: 53 | C68: 31.02 | D68: 40025087 | E68: REPOSICION INFRAESTRUCTURA DEPORTIVA Y SOCIAL COMPLEJO HERNAN VILLANUEVA, IQUQUE} | F68: Diseño | G68: Tarapacá | H68: REGIONAL | I68: N | J68: 190,623 | K68: 0 | L68: 0 | M68: 0 | N68: 0 | O68: 0 | P68: 0 | Q68: 0 | R68: 0 | S68: 0 | T68: 662 | U68: 0 | V68: 0 | W68: 0 | X68: 0 | Y68: 662 | Z68: 48,481 | AA68: 10 | AB68: 2021-02-12 | AC68: 2021-03-04 | BJ68: 48,481 | BK68: 47,819
B69: 54 | C69: 31.01 | D69: 40010908 | E69: DIAGNOSTICO PROVISION ACS JARDINES INFANTILES ADMINISTRADOS POR JUNJI, REGION | F69: Ejecución | G69: Tarapacá | H69: REGIONAL | I69: N | J69: 16,894 | K69: 0 | L69: 0 | M69: 0 | N69: 0 | O69: 0 | P69: 0 | Q69: 0 | R69: 0 | S69: 0 | T69: 0 | U69: 0 | V69: 0 | W69: 0 | X69: 0 | Y69: 0 | Z69: 16,104 | AA69: 19 | AB69: 2021-03-19 | AC69: 2021-04-12 | BJ69: 16,104 | BK69: 16,104
B70: 55 | C70: 31.01 | D70: 10018058 | E70: DIAGNOSTICO PROVISION ACS CENTROS SALUD Y EDUCACION PUBLICA RURAL, TARAPACA | F70: Ejecución | G70: Tarapacá | H70: REGIONAL | I70: N | J70: 54,944 | K70: 0 | L70: 0 | M70: 0 | N70: 0 | O70: 0 | P70: 0 | Q70: 0 | R70: 0 | S70: 0 | T70: 0 | U70: 0 | V70: 0 | W70: 0 | X70: 0 | Y70: 0 | Z70: 27,997 | AA70: 19 | AB70: 2021-03-19 | AC70: 2021-04-12 | BJ70: 27,997 | BK70: 27,997
B71: 56 | C71: 31.01 | D71: 40012110 | E71: DIAGNOSTICO Y CATASTRO DE LA PROPIEDAD REGULAR E IRREGULAR DEL SUBTERRITORIO DE | F71: Ejecución | G71: Tarapacá | H71: POZO ALMONTE | I71: N | J71: 114,505 | K71: 0 | L71: 39,531 | M71: 0 | N71: 0 | O71: 0 | P71: 0 | Q71: 0 | R71: 0 | S71: 0 | T71: 0 | U71: 0 | V71: 0 | W71: 0 | X71: 0 | Y71: 0 | Z71: 63,673 | AA71: 19 | AB71: 2021-03-19 | AC71: 2021-04-12 | AD71: -9,095 | AE71: 38 | AF71: 2021-06-08 | AG71: 2021-06-16 | AH71: -9,098 | AI71: 48 | AJ71: 2021-07-13 | AK71: 2021-07-30 | BJ71: 45,480 | BK71: 45,480
B72: 57 | C72: 31.01 | D72: 40008497 | E72: DIAGNOSTICO BIODEVERSIDAD COSTERA DE TARAPACA | F72: Ejecución | G72: Tarapacá | H72: REGIONAL | I72: N | J72: 950,743 | K72: 0 | L72: 516,269 | M72: 0 | N72: 0 | O72: 0 | P72: 0 | Q72: 0 | R72: 0 | S72: 0 | T72: 0 | U72: 0 | V72: 0 | W72: 0 | X72: 0 | Y72: 0 | Z72: 75,000 | AA72: 19 | AB72: 2021-03-19 | AC72: 2021-04-12 | AD72: -25,000 | AE72: 48 | AF72: 2021-07-13 | AG72: 2021-07-30 | BJ72: 50,000 | BK72: 50,000
B73: 58 | C73: 31.01 | D73: 40016221 | E73: ACTUALIZACION PLAN REGULADOR COMUNAL DE ALTO HOSPICIO | F73: Ejecución | G73: Tarapacá | H73: ALTO HOSPICIO | I73: N | J73: 624,395 | K73: 0 | L73: 414,900 | M73: 0 | N73: 0 | O73: 0 | P73: 0 | Q73: 0 | R73: 0 | S73: 0 | T73: 0 | U73: 0 | V73: 0 | W73: 0 | X73: 0 | Y73: 0 | Z73: 100,707 | AA73: 19 | AB73: 2021-03-19 | AC73: 2021-04-12 | AD73: -48,707 | AE73: 48 | AF73: 2021-07-13 | AG73: 2021-07-30 | BJ73: 52,000 | BK73: 52,000
B74: 59 | C74: 31.02 | D74: 40005835 | E74: CONSTRUCCION PLAZA ESMERALDA, COMUNA DE PICA | F74: Ejecución | G74: Tarapacá | H74: PICA | I74: N | J74: 604,857 | K74: 0 | L74: 0 | M74: 0 | N74: 0 | O74: 0 | P74: 0 | Q74: 0 | R74: 0 | S74: 0 | T74: 0 | U74: 0 | V74: 0 | W74: 0 | X74: 0 | Y74: 0 | Z74: 1 | AA74: 19 | AB74: 2021-03-19 | AC74: 2021-04-12 | BJ74: 1 | BK74: 1
B75: 60 | C75: 31.02 | D75: 40006519 | E75: CONSTRUCCION MUROS DE CONTENCION SECTORES CAMPING, TRONCALES Y ALTO CAMIÑA, CAMIÑA | F75: Ejecución | G75: Tarapacá | H75: CAMIÑA | I75: N | J75: 140,818 | K75: 0 | L75: 0 | M75: 0 | N75: 0 | O75: 0 | P75: 0 | Q75: 0 | R75: 0 | S75: 0 | T75: 0 | U75: 0 | V75: 0 | W75: 0 | X75: 0 | Y75: 0 | Z75: 89,798 | AA75: 24 | AB75: 2021-04-12 | AC75: 2021-04-26 | BJ75: 89,798 | BK75: 89,798
B76: 61 | C76: 31.02 | D76: 40011923 | E76: REPOSICION SEDE SOCIAL LOCALIDAD DE PACHICA | F76: Ejecución | G76: Tarapacá | H76: HUARA | I76: N | J76: 408,039 | K76: 0 | L76: 3,461 | M76: 0 | N76: 0 | O76: 0 | P76: 0 | Q76: 0 | R76: 0 | S76: 0 | T76: 0 | U76: 0 | V76: 0 | W76: 0 | X76: 0 | Y76: 0 | Z76: 7,001 | AA76: 30 | AB76: 2021-05-04 | AC76: 2021-05-18 | BJ76: 7,001 | BK76: 7,001
B77: 62 | C77: 31.02 | D77: 40012335 | E77: NORMALIZACION REDES DE AGUA POTABLE, SECTOR ELENA CAFFARENA - IQUIQUE | F77: Ejecución | G77: Tarapacá | H77: IQUIQUE | I77: N | J77: 283,021 | K77: 0 | L77: 166,666 | M77: 0 | N77: 0 | O77: 0 | P77: 0 | Q77: 0 | R77: 0 | S77: 0 | T77: 0 | U77: 0 | V77: 0 | W77: 0 | X77: 0 | Y77: 0 | Z77: 10,701 | AA77: 30 | AB77: 2021-05-04 | AC77: 2021-05-18 | BJ77: 10,701 | BK77: 10,701
B78: 63 | C78: 31.02 | D78: 40025662 | E78: CONSERVACION EDIFICIO INTENDENCIA REGIONAL DE TARAPACÁ Y GOBERNACION PROVINCIAL DE IQUIQUE | F78: Ejecución | G78: Tarapacá | H78: REGIONAL | I78: N | J78: 1,218,500 | K78: 0 | L78: 389,500 | M78: 0 | N78: 0 | O78: 0 | P78: 0 | Q78: 1,000 | R78: 2,000 | S78: 2,000 | T78: =3000+2000 -> 5,000 | U78: =1500+2000 -> 3,500 | V78: 0 | W78: 0 | X78: 0 | Y78: 13,500 | Z78: 17,001 | AA78: 29 | AB78: 2021-04-30 | AC78: 2021-05-18 | AD78: -2,000 | AE78: 37 | AF78: 2021-05-28 | AG78: 2021-06-07 | BJ78: 15,001 | BK78: 1,501
B79: 64 | C79: 31.01 | D79: 40029431 | E79: DIAGNOSTICO DE SOLUCIONES DE ELECTRIFICACION PARA HUARA, COLCHANE, PICA Y POZO ALMONTE | F79: Ejecución | G79: Tarapacá | H79: REGIONAL | I79: N | J79: 447,787 | K79: 0 | L79: 37,287 | M79: 0 | N79: 0 | O79: 0 | P79: 0 | Q79: 0 | R79: 0 | S79: 0 | T79: 0 | U79: 0 | V79: 0 | W79: 0 | X79: 0 | Y79: 0 | Z79: 9,095 | AA79: 38 | AB79: 2021-06-08 | AC79: 2021-06-16 | BJ79: 9,095 | BK79: 9,095
B80: 65 | C80: 31.02 | D80: 40010566 | E80: CONSTRUCCION RED DE PUNTOS LIMPIOS REGION DE TARAPACA | F80: Diseño | G80: Tarapacá | H80: REGIONAL | I80: N | J80: 206,543 | K80: 0 | L80: 0 | M80: 0 | N80: 0 | O80: 0 | P80: 0 | Q80: 0 | R80: 0 | S80: 0 | T80: 0 | U80: 0 | V80: 0 | W80: 0 | X80: 0 | Y80: 0 | Z80: 12,044 | AA80: 38 | AB80: 2021-06-08 | AC80: 2021-06-16 | BJ80: 12,044 | BK80: 12,044
B81: 66 | C81: 31.02 | D81: 40018220 | E81: REPOSICION EDIFICIO JUNAEB REGIONAL TARAPACA. IQUIQUE | F81: Diseño | G81: Tarapacá | H81: REGIONAL | I81: N | J81: 144,272 | K81: 0 | L81: 0 | M81: 0 | N81: 0 | O81: 0 | P81: 0 | Q81: 0 | R81: 0 | S81: 0 | T81: 0 | U81: 0 | V81: 0 | W81: 0 | X81: 0 | Y81: =SUM(M81:X81) -> 0 | Z81: 17,044 | AA81: 40 | AB81: 2021-06-11 | AC81: 2021-06-24 | BJ81: =+Z81+AD81+AH81+AL81+AP81+AT81+AX81+BB81+BF81 -> 17,044 | BK81: =+BJ81-Y81 -> 17,044
B82: 67 | C82: 31.02 | D82: 30427226 | E82: CONSERVACION EDIF. INTENDENCIA REGIONAL Y GOB. REGIONAL DE TARAPACA | F82: Ejecución | G82: Tarapacá | H82: REGIONAL | I82: N | J82: 1,126,797 | K82: 0 | L82: 0 | M82: 0 | N82: 0 | O82: 0 | P82: 0 | Q82: 0 | R82: 0 | S82: 0 | T82: 0 | U82: 2,321 | V82: 0 | W82: 0 | X82: 0 | Y82: 2,321 | Z82: 2,321 | AA82: 40 | AB82: 2021-06-11 | AC82: 2021-06-24 | BJ82: 2,321 | BK82: 0
B83: 68 | C83: 31.02 | D83: 30379844 | E83: MEJORAMIENTO INTEGRAL CANCHA DE FUTBOL EXVERTEDERO, ALTO HOSPICIO | F83: Ejecución | G83: Tarapacá | H83: ALTO HOSPICIO | I83: A | J83: 1,738,084 | K83: 1,690,841 | L83: 19,643 | M83: 0 | N83: 0 | O83: 0 | P83: 0 | Q83: 0 | R83: 0 | S83: 0 | T83: 0 | U83: 0 | V83: 0 | W83: 0 | X83: 0 | Y83: 0 | Z83: 27,126 | AA83: 42 | AB83: 2021-06-16 | AC83: 2021-07-08 | BJ83: 27,126 | BK83: 27,126
B84: 69 | C84: 31.02 | D84: 40033383 | E84: CONSERVACION CENTRO DE LA MUJER, COMUNA DE IQUIQUE | F84: Ejecución | G84: Tarapacá | H84: REGIONAL | I84: N | J84: 189,491 | K84: 0 | L84: 128,000 | M84: 0 | N84: 0 | O84: 0 | P84: 0 | Q84: 0 | R84: 0 | S84: 0 | T84: 0 | U84: 0 | V84: 0 | W84: 0 | X84: 0 | Y84: =SUM(M84:X84) -> 0 | Z84: 61,491 | AA84: 49 | AB84: 2021-07-19 | AC84: 2021-07-30 | BJ84: 61,491 | BK84: 61,491
B85: 70 | C85: 31.02 | D85: 40004292 | E85: CONSTRUCCION SISITEMA DE BIGILANCIA COMUNAL DE POZO ALMONTE | F85: Ejecución | G85: Tarapacá | H85: POZO ALMONTE | I85: N | J85: 3,226,988 | K85: 0 | L85: 2,971,631 | M85: 0 | N85: 0 | O85: 0 | P85: 0 | Q85: 0 | R85: 0 | S85: 0 | T85: 0 | U85: 0 | V85: 0 | W85: 0 | X85: 0 | Y85: 0 | Z85: 17,001 | AA85: 49 | AB85: 2021-07-19 | AC85: 2021-07-30 | BJ85: 17,001 | BK85: 17,001
B86: 71 | C86: 31.02 | D86: 30136110 | E86: REPOSICION ESTADIO TIERRA DE CAMPEONES, IQUIQUE | F86: Ejecución | G86: Tarapacá | H86: REGIONAL | I86: A | J86: 14,918,284 | K86: 14,743,001 | L86: 1 | M86: 0 | N86: 0 | O86: 0 | P86: 0 | Q86: 0 | R86: 0 | S86: 0 | T86: 0 | U86: 0 | V86: 0 | W86: 0 | X86: 0 | Y86: =SUM(M86:X86) -> 0 | Z86: 175,284 | AA86: 55 | AB86: 2021-08-31 | AC86: 2021-09-23 | BJ86: 175,284 | BK86: 175,284
B87: 72 | K87: 0 | L87: 0 | M87: 0 | N87: 0 | O87: 0 | P87: 0 | Q87: 0 | R87: 0 | S87: 0 | T87: 0 | U87: 0 | V87: 0 | W87: 0 | X87: 0 | Y87: 0 | BJ87: 0 | BK87: 0
B88: 73 | K88: 0 | L88: 0 | M88: 0 | N88: 0 | O88: 0 | P88: 0 | Q88: 0 | R88: 0 | S88: 0 | T88: 0 | U88: 0 | V88: 0 | W88: 0 | X88: 0 | Y88: 0 | BJ88: 0 | BK88: 0
B89: 74 | K89: 0 | L89: 0 | M89: 0 | N89: 0 | O89: 0 | P89: 0 | Q89: 0 | R89: 0 | S89: 0 | T89: 0 | U89: 0 | V89: 0 | W89: 0 | X89: 0 | Y89: 0 | BJ89: 0 | BK89: 0
B90: Total M$ | K90: =SUBTOTAL(9,K16:K86) -> 91,876,805 | L90: =SUBTOTAL(9,L16:L86) -> 19,556,979 | M90: 0 | N90: 973,762 | O90: 380,253 | P90: 540,318 | Q90: 337,353 | R90: 272,519 | S90: 382,292 | T90: 748,067 | U90: 273,005 | V90: 0 | W90: 0 | X90: 0 | Y90: =SUBTOTAL(9,Y16:Y86) -> 3,907,569 | Z90: =SUBTOTAL(9,Z16:Z86) -> 22,785,253 | AD90: =SUBTOTAL(9,AD16:AD86) -> -2,115,040 | AH90: =SUBTOTAL(9,AH16:AH86) -> -2,357,484 | AL90: =SUBTOTAL(9,AL16:AL86) -> -925,514 | AP90: =SUBTOTAL(9,AP16:AP86) -> -1,118,673 | AT90: =SUBTOTAL(9,AT16:AT86) -> -361,799 | AX90: =SUBTOTAL(9,AX16:AX86) -> -193,731 | BB90: =SUBTOTAL(9,BB16:BB86) -> -174,437 | BF90: =SUBTOTAL(9,BF16:BF86) -> 0 | BJ90: =SUBTOTAL(9,BJ16:BJ86) -> 15,538,575 | BK90: =SUBTOTAL(9,BK16:BK86) -> 11,631,006
AV94: =+'[1]region de tarapacá sept'!$O$21+'[1]region de tarapacá sept'!$P$21+[2]Resoluciones!$O$9113+[2]Resoluciones!$P$9113 -> 0

Sheet 0562 Antofagasta
B9: INFORMACIÓN RESOLUCIONES GORE ST 31 PROGRAMA INVERSIÓN REGIONAL
B12: Ley Inicial 2021 | C12: Ley Vigente 2021 | D12: Ley Vigente Medicion 2021 | E12: Gasto Acumulado
B13: 55,539,505 | C13: 30,951,072 | D13: 30,951,072 | E13: =+Y94 -> 13,158,868
Z14: IDENTIFICACIÓN INICIAL | AD14: MODIFICACIÓN | AH14: MODIFICACIÓN | AL14: MODIFICACIÓN | AP14: MODIFICACIÓN | AT14: Programa Financiero
B15: N° | C15: ST-Item | D15: Código BIP | E15: Nombre de proyecto | F15: Etapa | G15: Región | H15: Comuna | I15: Tipo A=Arrastre , N= Nuevo | J15: Costo Total Ficha IDI | K15: Ejecutado Años Anteriores FICHA IDI | L15: Saldo Proximos Años Ficha IDI | M15: Enero mensual SIGFE 2021 | N15: Febrero mensual SIGFE 2021 | O15: Marzo mensual SIGFE 2021 | P15: Abril mensual SIGFE 2021 | Q15: Mayo mensual SIGFE 2021 | R15: Junio mensual SIGFE 2021 | S15: Julio mensual SIGFE 2021 | T15: Agosto mensual SIGFE 2021 | U15: Septiembre mensual SIGFE 2021 | V15: Octubre mensual SIGFE 2021 | W15: Noviembre mensual SIGFE 2021 | X15: Diciembre mensual SIGFE 2021 | Y15: Total Ejecución acumulada 2021 | Z15: Monto Identificado Año 2021 | AA15: N° Resolución | AB15: Fecha Resolución | AC15: Fecha de Toma de Razón | AD15: Monto Modificado 2021 | AE15: N° Resolución | AF15: Fecha Resolución | AG15: Fecha de Toma de Razón | AH15: Monto Modificado 2021 | AI15: N° Resolución | AJ15: Fecha Resolución | AK15: Fecha de Toma de Razón | AL15: Monto Modificado 2021 | AM15: N° Resolución | AN15: Fecha Resolución | AO15: Fecha de Toma de Razón | AP15: Monto Modificado 2021 | AQ15: N° Resolución | AR15: Fecha Resolución | AS15: Fecha de Toma de Razón | AT15: Total Identificado | AU15: Saldo por Ejecutar
B16: 1 | C16: 31.02 | D16: 30075677 | E16: MEJORAMIENTO AV. EJERCITO ENTRE H. AVILA Y RUTA 28, ANTOFAGASTA | F16: Ejecución | G16: ANTOFAGASTA | H16: ANTOFAGASTA | I16: A | J16: 16,591,999 | K16: 11,413 | L16: 7,663,996 | M16: 0 | N16: 0 | O16: 0 | P16: 0 | Q16: 0 | R16: 0 | S16: 0 | T16: 0 | U16: 0 | V16: 0 | W16: 0 | X16: 0 | Y16: =SUM(M16:X16) -> 0 | Z16: 843,200 | AA16: 1 | AB16: 2021-01-05 | AC16: 2021-01-25 | AT16: =+Z16+AD16+AH16+AL16+AP16 -> 843,200 | AU16: =+AT16-Y16 -> 843,200
B17: 2 | C17: 31.02 | D17: 30076880 | E17: NORMALIZACION HOSPITAL 21 DE MAYO DE TALTAL (PREFACTIBILIDAD) | F17: Prefactibilidad | G17: ANTOFAGASTA | H17: TALTAL | I17: A | J17: 85,068 | K17: 77,079 | L17: 0 | M17: 0 | N17: 0 | O17: 0 | P17: 0 | Q17: 0 | R17: 0 | S17: 0 | T17: 0 | U17: 0 | V17: 0 | W17: 0 | X17: 0 | Y17: 0 | Z17: 7,989 | AA17: 1 | AB17: 2021-01-05 | AC17: 2021-01-25 | AT17: =+Z17+AD17+AH17+AL17+AP17 -> 7,989 | AU17: =+AT17-Y17 -> 7,989
B18: 3 | C18: 31.02 | D18: 30076886 | E18: NORMALIZACIÓN DEL HOSPITAL DE MEJILLONES (PREFACTIBILIDAD) | F18: Prefactibilidad | G18: ANTOFAGASTA | H18: MEJILLONES | I18: A | J18: 94,749 | K18: 85,851 | L18: 0 | M18: 0 | N18: 0 | O18: 0 | P18: 0 | Q18: 0 | R18: 0 | S18: 0 | T18: 0 | U18: 0 | V18: 0 | W18: 0 | X18: 0 | Y18: 0 | Z18: 8,898 | AA18: 1 | AB18: 2021-01-05 | AC18: 2021-01-25 | AT18: 8,898 | AU18: 8,898
B19: 4 | C19: 31.02 | D19: 30086885 | E19: REPOSICION DIAMANTE DE BEISBOL TOCOPILLA | F19: Ejecución | G19: ANTOFAGASTA | H19: TOCOPILLA | I19: A | J19: 6,845,779 | K19: 6,766,099 | L19: 34,022 | M19: 0 | N19: 0 | O19: 0 | P19: 0 | Q19: 0 | R19: 0 | S19: 0 | T19: 0 | U19: 0 | V19: 0 | W19: 0 | X19: 0 | Y19: 0 | Z19: 79,678 | AA19: 1 | AB19: 2021-01-05 | AC19: 2021-01-25 | AT19: 79,678 | AU19: 79,678
B20: 5 | C20: 31.02 | D20: 30087356 | E20: CONSTRUCCION CUARTEL DE BOMBEROS Y AREAS VERDES ARTURO PEREZ | F20: Ejecución | G20: ANTOFAGASTA | H20: ANTOFAGASTA | I20: A | J20: 2,527,248 | K20: 2,517,925 | L20: 9,323 | M20: 0 | N20: 0 | O20: 0 | P20: 0 | Q20: 0 | R20: 0 | S20: 0 | T20: 0 | U20: 0 | V20: 0 | W20: 0 | X20: 0 | Y20: 0 | Z20: 9,323 | AA20: 1 | AB20: 2021-01-05 | AC20: 2021-01-25 | AT20: 9,323 | AU20: 9,323
B21: 6 | C21: 31.02 | D21: 30087369 | E21: REPOSICIÓN VIVERO MUNICIPAL, ANTOFAGASTA | F21: Ejecución | G21: ANTOFAGASTA | H21: ANTOFAGASTA | I21: A | J21: 4,322,062 | K21: 24,155 | L21: 4,297,907 | M21: 0 | N21: 0 | O21: 0 | P21: 0 | Q21: 0 | R21: 0 | S21: 0 | T21: 0 | U21: 0 | V21: 0 | W21: 0 | X21: 0 | Y21: 0 | Z21: 261,300 | AA21: 1 | AB21: 2021-01-05 | AC21: 2021-01-25 | AD21: -261,300 | AE21: 62 | AF21: 2021-08-27 | AG21: 2021-09-13 | AT21: 0 | AU21: 0
B22: 7 | C22: 31.02 | D22: 30108045 | E22: REPOSICION JARDIN INFANTIL DE TOCONAO COMUNA S.P.A. | F22: Ejecución | G22: ANTOFAGASTA | H22: SAN PEDRO DE ATACAMA | I22: A | J22: 725,127 | K22: 642,127 | L22: 30,482 | M22: 0 | N22: 0 | O22: 0 | P22: =3090098/1000 -> 3,090 | Q22: 0 | R22: 0 | S22: 0 | T22: 0 | U22: 0 | V22: 0 | W22: 0 | X22: 0 | Y22: 3,090 | Z22: 82,700 | AA22: 1 | AB22: 2021-01-05 | AC22: 2021-01-25 | AT22: 82,700 | AU22: 79,610
B23: 8 | C23: 31.02 | D23: 30108048 | E23: REPOSICION POSTA RURAL PEINE COMUNA DE SAN PEDRO DE ATACAMA | F23: Ejecución | G23: ANTOFAGASTA | H23: SAN PEDRO DE ATACAMA | I23: A | J23: 1,459,964 | K23: 463,780 | L23: 996,184 | M23: 0 | N23: 0 | O23: 0 | P23: 0 | Q23: 0 | R23: 0 | S23: 0 | T23: 0 | U23: 0 | V23: 0 | W23: 0 | X23: 0 | Y23: 0 | Z23: 638,833 | AA23: 1 | AB23: 2021-01-05 | AC23: 2021-01-25 | AD23: -588,833 | AE23: 35 | AF23: 2021-06-10 | AG23: 2021-07-06 | AT23: 50,000 | AU23: 50,000
B24: 9 | C24: 31.02 | D24: 30116086 | E24: REPOSICION POSTA TOCONAO, COMUNA SAN PEDRO DE ATACAMA | F24: Ejecución | G24: ANTOFAGASTA | H24: SAN PEDRO DE ATACAMA | I24: A | J24: 1,502,255 | K24: 4,532 | L24: 1,497,723 | M24: 0 | N24: 0 | O24: 0 | P24: 0 | Q24: 0 | R24: 0 | S24: 0 | T24: 0 | U24: 0 | V24: 0 | W24: 0 | X24: 0 | Y24: 0 | Z24: 17,503 | AA24: 1 | AB24: 2021-01-05 | AC24: 2021-01-25 | AT24: 17,503 | AU24: 17,503
B25: 10 | C25: 31.02 | D25: 30124596 | E25: CONSTRUCCION PARQUE COMUNITARIO RENE SCHNEIDER | F25: Ejecución | G25: ANTOFAGASTA | H25: ANTOFAGASTA | I25: A | J25: 4,521,414 | K25: 424,118 | L25: 1,000,000 | M25: =62184100/1000 -> 62,184 | N25: =105432379/1000 -> 105,432 | O25: 0 | P25: =98590171/1000 -> 98,590 | Q25: =84103353/1000 -> 84,103 | R25: 0 | S25: 0 | T25: 0 | U25: 0 | V25: 0 | W25: 0 | X25: 0 | Y25: 350,310 | Z25: 2,383,374 | AA25: 1 | AB25: 2021-01-05 | AC25: 2021-01-25 | AD25: -1,000,000 | AE25: 35 | AF25: 2021-06-10 | AG25: 2021-07-06 | AT25: 1,383,374 | AU25: 1,033,064
B26: 11 | C26: 31.02 | D26: 30126588 | E26: CONSTRUCCIÓN COMPLEJO DEPORTIVO ESCOLAR CORVALLIS | F26: Ejecución | G26: ANTOFAGASTA | H26: ANTOFAGASTA | I26: A | J26: 4,367,044 | K26: 4,267,162 | L26: 99,881 | M26: 0 | N26: 0 | O26: 0 | P26: 0 | Q26: 0 | R26: 0 | S26: 0 | T26: 0 | U26: 0 | V26: 0 | W26: 0 | X26: 0 | Y26: 0 | Z26: 1 | AA26: 1 | AB26: 2021-01-05 | AC26: 2021-01-25 | AT26: 1 | AU26: 1
B27: 12 | C27: 31.02 | D27: 30126599 | E27: CONSTRUCCION COMPLEJO DEPORTIVO ESCOLAR MUNICIPAL | F27: Ejecución | G27: ANTOFAGASTA | H27: ANTOFAGASTA | I27: A | J27: 17,120,901 | K27: 16,867,219 | L27: 28,612 | M27: 0 | N27: 0 | O27: 0 | P27: 0 | Q27: 0 | R27: =48816686/1000 -> 48,817 | S27: 0 | T27: 0 | U27: 0 | V27: 0 | W27: 0 | X27: 0 | Y27: 48,817 | Z27: 178,178 | AA27: 1 | AB27: 2021-01-05 | AC27: 2021-01-25 | AD27: 75,504 | AE27: 35 | AF27: 2021-06-10 | AG27: 2021-07-06 | AT27: 253,682 | AU27: 204,865
B28: 13 | C28: 31.02 | D28: 30127208 | E28: CONSTRUCCION MEMORIAL TOPATER CALAMA | F28: Ejecución | G28: ANTOFAGASTA | H28: CALAMA | I28: A | J28: 4,145,124 | K28: 1,976 | L28: 4,143,147 | M28: 0 | N28: 0 | O28: 0 | P28: 0 | Q28: 0 | R28: 0 | S28: 0 | T28: 0 | U28: 0 | V28: 0 | W28: 0 | X28: 0 | Y28: 0 | Z28: 1 | AA28: 1 | AB28: 2021-01-05 | AC28: 2021-01-25 | AT28: 1 | AU28: 1
B29: 14 | C29: 31.02 | D29: 30134875 | E29: MEJORAMIENTO PLAZA DE ARMAS DE MARIA ELENA | F29: Ejecución | G29: ANTOFAGASTA | H29: MARIA ELENA | I29: A | J29: 1,853,967 | K29: 20,084 | L29: 0 | M29: =61028821/1000 -> 61,029 | N29: 0 | O29: 0 | P29: 0 | Q29: 0 | R29: =336666316/1000 -> 336,666 | S29: 41,354 | T29: 82,177 | U29: 157,522 | V29: 0 | W29: 0 | X29: 0 | Y29: 678,748 | Z29: 976,663 | AA29: 1 | AB29: 2021-01-05 | AC29: 2021-01-25 | AT29: 976,663 | AU29: 297,915
B30: 15 | C30: 31.02 | D30: 30136533 | E30: CONSTRUCCION CUARTEL DE BOMBEROS Y EQUIP. ANEXOS, LAS PALMERAS | F30: Ejecución | G30: ANTOFAGASTA | H30: ANTOFAGASTA | I30: A | J30: 2,107,054 | K30: 814 | L30: 1,706,239 | M30: 0 | N30: 0 | O30: 0 | P30: 0 | Q30: 0 | R30: 0 | S30: 0 | T30: 0 | U30: 0 | V30: 0 | W30: 0 | X30: 0 | Y30: 0 | Z30: 1 | AA30: 1 | AB30: 2021-01-05 | AC30: 2021-01-25 | AT30: 1 | AU30: 1
B31: 16 | C31: 31.02 | D31: 30164922 | E31: AMPLIACION CEMENTERIO GENERAL DE ANTOFAGASTA | F31: Ejecución | G31: ANTOFAGASTA | H31: ANTOFAGASTA | I31: A | J31: 3,331,658 | K31: 35,392 | L31: 3,296,266 | M31: 0 | N31: 0 | O31: 0 | P31: 0 | Q31: 0 | R31: 0 | S31: 0 | T31: 0 | U31: 0 | V31: 0 | W31: 0 | X31: 0 | Y31: 0 | Z31: 261,300 | AA31: 1 | AB31: 2021-01-05 | AC31: 2021-01-25 | AD31: -261,300 | AE31: 62 | AF31: 2021-08-27 | AG31: 2021-09-13 | AT31: 0 | AU31: 0
B32: 17 | C32: 31.02 | D32: 30167472 | E32: CONSTRUCCION RELLENO SANITARIO, COMUNA DE SIERRA GORDA | F32: Ejecución | G32: ANTOFAGASTA | H32: SIERRA GORDA | I32: A | J32: 1,700,838 | K32: 1,157,952 | L32: 0 | M32: 0 | N32: 0 | O32: 0 | P32: 0 | Q32: 0 | R32: 0 | S32: 0 | T32: 0 | U32: 0 | V32: 0 | W32: 0 | X32: 0 | Y32: 0 | Z32: 542,886 | AA32: 1 | AB32: 2021-01-05 | AC32: 2021-01-25 | AT32: 542,886 | AU32: 542,886
B33: 18 | C33: 31.02 | D33: 30360227 | E33: MEJORAMIENTO DE LAS DEPENDENCIAS DE LA ASOCIACION DE MUNICPALIDADES | F33: Ejecución | G33: ANTOFAGASTA | H33: ANTOFAGASTA | I33: A | J33: 550,886 | K33: 509,216 | L33: 0 | M33: 0 | N33: 0 | O33: 0 | P33: 0 | Q33: 0 | R33: 0 | S33: 0 | T33: 0 | U33: 0 | V33: 0 | W33: 0 | X33: 0 | Y33: 0 | Z33: 8,866 | AA33: 1 | AB33: 2021-01-05 | AC33: 2021-01-25 | AD33: 32,804 | AE33: 62 | AF33: 2021-08-27 | AG33: 2021-09-13 | AT33: 41,670 | AU33: 41,670
B34: 19 | C34: 31.02 | D34: 30367047 | E34: AMPLIACION Y RELOCALIZACION PARVULO ESCUELA E-26 SAN PEDRO DE ATACAMA | F34: Ejecución | G34: ANTOFAGASTA | H34: SAN PEDRO DE ATACAMA | I34: A | J34: 1,368,732 | K34: 1,349,498 | L34: 19,234 | M34: 0 | N34: 0 | O34: 0 | P34: 0 | Q34: 0 | R34: 0 | S34: 0 | T34: 0 | U34: 0 | V34: 0 | W34: 0 | X34: 0 | Y34: 0 | Z34: 55,109 | AA34: 1 | AB34: 2021-01-05 | AC34: 2021-01-25 | AT34: 55,109 | AU34: 55,109
B35: 20 | C35: 31.02 | D35: 30372874 | E35: REPOSICION AVDA. TENIENTE MERINO DE CHORRILLOS A TENIENTE URIBE, TOCOPILLA | F35: Diseño | G35: ANTOFAGASTA | H35: TOCOPILLA | I35: A | J35: 101,691 | K35: 16,858 | L35: 19,925 | M35: 0 | N35: 0 | O35: 0 | P35: 0 | Q35: =39850000/1000 -> 39,850 | R35: 0 | S35: 0 | T35: 0 | U35: 0 | V35: 0 | W35: 0 | X35: 0 | Y35: 39,850 | Z35: 84,681 | AA35: 1 | AB35: 2021-01-05 | AC35: 2021-01-25 | AT35: 84,681 | AU35: 44,831
B36: 21 | C36: 31.02 | D36: 30402075 | E36: CONSTRUCCION CONSULTORIO GENERAL RURAL. DE SIERRA GORDA | F36: Ejecución | G36: ANTOFAGASTA | H36: SIERRA GORDA | I36: A | J36: 2,512,592 | K36: 30,980 | L36: 2,479,806 | M36: 0 | N36: 0 | O36: 0 | P36: 0 | Q36: 0 | R36: 0 | S36: 0 | T36: 0 | U36: 0 | V36: 0 | W36: 0 | X36: 0 | Y36: 0 | Z36: 1,806 | AA36: 1 | AB36: 2021-01-05 | AC36: 2021-01-25 | AT36: 1,806 | AU36: 1,806
B37: 22 | C37: 31.02 | D37: 30402476 | E37: CONSTRUCCION DISPOSITIVO DE SALUD SAN PEDRO DE ATACAMA | F37: Prefactibilidad | G37: ANTOFAGASTA | H37: SAN PEDRO DE ATACAMA | I37: A | J37: 138,779 | K37: 125,576 | L37: 0 | M37: 0 | N37: 0 | O37: 0 | P37: 0 | Q37: =13203288/1000 -> 13,203 | R37: 0 | S37: 0 | T37: 0 | U37: 0 | V37: 0 | W37: 0 | X37: 0 | Y37: 13,203 | Z37: 13,203 | AA37: 1 | AB37: 2021-01-05 | AC37: 2021-01-25 | AT37: 13,203 | AU37: -0
B38: 23 | C38: 31.02 | D38: 30402478 | E38: NORMALIZACION CENTRO ONCOLOGICO AMBULATORIO DE ANTOFAGASTA (COA) | F38: Prefactibilidad | G38: ANTOFAGASTA | H38: ANTOFAGASTA | I38: A | J38: 137,349 | K38: 131,131 | L38: 3,268 | M38: =1750000/1000 -> 1,750 | N38: =1200000/1000 -> 1,200 | O38: 0 | P38: 0 | Q38: 0 | R38: 0 | S38: 0 | T38: 0 | U38: 0 | V38: 0 | W38: 0 | X38: 0 | Y38: 2,950 | Z38: 6,218 | AA38: 1 | AB38: 2021-01-05 | AC38: 2021-01-25 | AT38: 6,218 | AU38: 3,268
B39: 24 | C39: 31.02 | D39: 30402480 | E39: CONSTRUCCION BODEGA FARMACIA CENTRO ATENCION DEL NORTE | F39: Ejecución | G39: ANTOFAGASTA | H39: ANTOFAGASTA | I39: A | J39: 1,040,046 | K39: 898,646 | L39: 86,734 | M39: 0 | O39: 0 | P39: 0 | Q39: 0 | R39: 0 | S39: 0 | T39: 0 | U39: 0 | V39: 0 | W39: 0 | X39: 0 | Y39: 0 | Z39: 86,734 | AA39: 1 | AB39: 2021-01-05 | AC39: 2021-01-25 | AT39: 86,734 | AU39: 86,734
B40: 25 | C40: 31.02 | D40: 30420635 | E40: CONSTRUCCION CUBIERTAS LIVIANAS EN MULTICANCHAS, CALAMA | F40: Ejecución | G40: ANTOFAGASTA | H40: CALAMA | I40: A | J40: 2,016,022 | K40: 505,363 | L40: 0 | M40: 0 | N40: =502758940/1000 -> 502,759 | O40: =502758940/1000 -> 502,759 | P40: 0 | Q40: 0 | R40: 0 | S40: 0 | T40: 0 | U40: 0 | V40: 0 | W40: 0 | X40: 0 | Y40: 1,005,518 | Z40: 1,510,659 | AA40: 1 | AB40: 2021-01-05 | AC40: 2021-01-25 | AT40: 1,510,659 | AU40: 505,141
B41: 26 | C41: 31.02 | D41: 30452924 | E41: CONSTRUCCION CENTRO DE SALUD, REHABILITACIÓN DROGAS CALAMA (DISEÑO) | F41: Diseño | G41: ANTOFAGASTA | H41: CALAMA | I41: A | J41: 109,800 | K41: 99,368 | L41: 0 | M41: 0 | N41: 0 | O41: 0 | P41: 0 | Q41: 0 | R41: 0 | S41: 0 | T41: 0 | U41: 0 | V41: 0 | W41: 0 | X41: 0 | Y41: 0 | Z41: 10,432 | AA41: 1 | AB41: 2021-01-05 | AC41: 2021-01-25 | AT41: 10,432 | AU41: 10,432
B42: 27 | C42: 31.02 | D42: 30457688 | E42: CONSTRUCCION UNIDAD DE APOYO DIAGNOSTICO MEDICINA NUCLEAR EN COA | F42: Ejecución | G42: ANTOFAGASTA | H42: ANTOFAGASTA | I42: A | J42: 3,234,865 | K42: 2,433,121 | L42: 801,744 | M42: 0 | N42: 0 | O42: 0 | P42: 0 | Q42: 0 | R42: 0 | S42: 0 | T42: 0 | U42: 0 | V42: 0 | W42: 0 | X42: 0 | Y42: 0 | Z42: 801,744 | AA42: 1 | AB42: 2021-01-05 | AC42: 2021-01-25 | AD42: -673,110 | AE42: 35 | AF42: 2021-06-10 | AG42: 2021-07-06 | AT42: 128,634 | AU42: 128,634
B43: 28 | C43: 31.02 | D43: 30467138 | E43: CONSTRUCCION PLAZAS BARRIO DIEGO PORTALES PROGAMA QUIERO MI BARRIO | F43: Ejecución | G43: ANTOFAGASTA | H43: CALAMA | I43: A | J43: 276,152 | K43: 262,076 | L43: 0 | M43: 0 | N43: 0 | O43: 0 | P43: 0 | Q43: =14075707/1000 -> 14,076 | R43: 0 | S43: 0 | T43: 0 | U43: 0 | V43: 0 | W43: 0 | X43: 0 | Y43: 14,076 | Z43: 14,076 | AA43: 1 | AB43: 2021-01-05 | AC43: 2021-01-25 | AT43: 14,076 | AU43: 0
B44: 29 | C44: 31.02 | D44: 30474249 | E44: CONSERVACION SOMBREADEROS PLAZAS CALAMA | F44: Ejecución | G44: ANTOFAGASTA | H44: CALAMA | I44: A | J44: 101,632 | K44: 0 | L44: 0 | M44: 0 | N44: 0 | O44: 0 | P44: 0 | Q44: 0 | R44: 0 | S44: 0 | T44: 0 | U44: 90,420 | V44: 0 | W44: 0 | X44: 0 | Y44: 90,420 | Z44: 101,632 | AA44: 1 | AB44: 2021-01-05 | AC44: 2021-01-25 | AT44: 101,632 | AU44: 11,212
B45: 30 | C45: 31.02 | D45: 30479810 | E45: REPOSICION UNIDAD DE SALUD MENTAL DEL HOSPITAL DE TALTAL | F45: Ejecución | G45: ANTOFAGASTA | H45: TALTAL | I45: A | J45: 1,175,849 | K45: 807,620 | L45: 6,741 | M45: 0 | N45: =31403108/1000 -> 31,403 | O45: =80814368/1000 -> 80,814 | P45: =32637477/1000 -> 32,637 | Q45: =14049008/1000 -> 14,049 | R45: =1248167/1000 -> 1,248 | S45: 66,414 | T45: 0 | U45: 15,270 | V45: 0 | W45: 0 | X45: 0 | Y45: 241,836 | Z45: 359,182 | AA45: 1 | AB45: 2021-01-05 | AC45: 2021-01-25 | AT45: 359,182 | AU45: 117,346
B46: 31 | C46: 31.02 | D46: 30481623 | E46: CONSTRUCCION NUEVO CEMENTERIO MUNICIPAL, CALAMA | F46: Diseño | G46: ANTOFAGASTA | H46: CALAMA | I46: A | J46: 116,975 | K46: 1,152 | L46: 115,823 | M46: 0 | N46: 0 | O46: 0 | P46: 0 | Q46: 0 | R46: 0 | S46: 0 | T46: 0 | U46: 0 | V46: 0 | W46: 0 | X46: 0 | Y46: 0 | Z46: 113,274 | AA46: 1 | AB46: 2021-01-05 | AC46: 2021-01-25 | AT46: 113,274 | AU46: 113,274
B47: 32 | C47: 31.01 | D47: 30481656 | E47: ACTUALIZACION PLAN DE DESARROLLO COMUNAL COMUNA DE TOCOPILLA | F47: Ejecución | G47: ANTOFAGASTA | H47: TOCOPILLA | I47: A | J47: 215,552 | K47: 137,952 | L47: 77,600 | M47: 0 | N47: 0 | O47: 0 | P47: 0 | Q47: 0 | R47: 0 | S47: 0 | T47: 0 | U47: 0 | V47: 0 | W47: 0 | X47: 0 | Y47: 0 | Z47: 77,600 | AA47: 1 | AB47: 2021-01-05 | AC47: 2021-01-25 | AT47: 77,600 | AU47: 77,600
B48: 33 | C48: 31.02 | D48: 30481908 | E48: REPOSICION POSTA RURAL CALETA PAPOSO | F48: Ejecución | G48: ANTOFAGASTA | H48: TALTAL | I48: A | J48: 1,694,579 | K48: 753,023 | L48: 0 | M48: 0 | N48: =90002195/1000 -> 90,002 | O48: =170176886/1000 -> 170,177 | P48: =127522836/1000 -> 127,523 | Q48: =100140589/1000 -> 100,141 | R48: =9372269/1000 -> 9,372 | S48: 139,235 | T48: 4,080 | U48: 14,840 | V48: 0 | W48: 0 | X48: 0 | Y48: =SUM(M48:X48) -> 655,370 | Z48: 941,556 | AA48: 1 | AB48: 2021-01-05 | AC48: 2021-01-25 | AT48: 941,556 | AU48: 286,186
B49: 34 | C49: 31.02 | D49: 30482079 | E49: REPOSICION GIMNASIO OHIGGINS COMUNA DE TOCOPILLA | F49: Diseño | G49: ANTOFAGASTA | H49: TOCOPILLA | I49: A | J49: 141,613 | K49: 80,742 | L49: 0 | M49: =28645000/1000 -> 28,645 | N49: 0 | O49: 0 | P49: 0 | Q49: =14322500/1000 -> 14,323 | R49: 0 | S49: 0 | T49: 0 | U49: 0 | V49: 0 | W49: 0 | X49: 0 | Y49: 42,968 | Z49: 60,871 | AA49: 1 | AB49: 2021-01-05 | AC49: 2021-01-25 | AT49: 60,871 | AU49: 17,904
B50: 35 | C50: 31.02 | D50: 30483963 | E50: HABILITACION INMUEBLES MONUMENTOS NACIONALES (TEATRO Y EX FFCC) COMUNA DE TATAL | F50: Prefactibilidad | G50: ANTOFAGASTA | H50: TALTAL | I50: A | J50: 110,633 | K50: 99,848 | L50: 0 | M50: 0 | N50: =10785000/1000 -> 10,785 | O50: 0 | P50: 0 | Q50: 0 | R50: 0 | S50: 0 | T50: 0 | U50: 0 | V50: 0 | W50: 0 | X50: 0 | Y50: 10,785 | Z50: 10,785 | AA50: 1 | AB50: 2021-01-05 | AC50: 2021-01-25 | AT50: 10,785 | AU50: 0
B51: 36 | C51: 31.02 | D51: 30485186 | E51: AMPLIACION AVDA. P.AGUIRRE CERDA TRAMO LOS TAMARUGOS-ROTONDA, ANTOFAGASTA | F51: Ejecución | G51: ANTOFAGASTA | H51: ANTOFAGASTA | I51: A | J51: 22,186,830 | K51: 1,745,710 | L51: 7,149,266 | M51: =438243884/1000 -> 438,244 | N51: 0 | O51: =148173780/1000 -> 148,174 | P51: =155209556/1000 -> 155,210 | Q51: =97540177/1000 -> 97,540 | R51: =89253976/1000 -> 89,254 | S51: 65,961 | T51: 168,067 | U51: 167,109 | V51: 0 | W51: 0 | X51: 0 | Y51: 1,329,558 | Z51: 2,661,000 | AA51: 1 | AB51: 2021-01-05 | AC51: 2021-01-25 | AT51: 2,661,000 | AU51: 1,331,442
B52: 37 | C52: 31.02 | D52: 30486108 | E52: RESTAURACION BASILICA CORAZON DE MARIA DE ANTOFAGASTA | F52: Diseño | G52: ANTOFAGASTA | H52: ANTOFAGASTA | I52: A | J52: 222,079 | K52: 3,811 | L52: 0 | M52: 0 | N52: 0 | O52: =21699870/1000 -> 21,700 | P52: =43399739/1000 -> 43,400 | Q52: 0 | R52: 0 | S52: 54,250 | T52: 0 | U52: 0 | V52: 0 | W52: 0 | X52: 0 | Y52: 119,350 | Z52: 228,382 | AA52: 1 | AB52: 2021-01-05 | AC52: 2021-01-25 | AT52: 228,382 | AU52: 109,032
B53: 38 | C53: 31.02 | D53: 30486510 | E53: CONSTRUCCION OBRAS DE MITIGACION SECTOR VILLA CHICA ANTOFAGASTA | F53: Diseño | G53: ANTOFAGASTA | H53: ANTOFAGASTA | I53: A | J53: 164,052 | K53: 1,268 | L53: 1 | M53: 0 | N53: 0 | O53: 0 | P53: 0 | Q53: =48113555/1000 -> 48,114 | R53: 0 | S53: 0 | T53: 0 | U53: 316 | V53: 0 | W53: 0 | X53: 0 | Y53: 48,430 | Z53: 162,783 | AA53: 1 | AB53: 2021-01-05 | AC53: 2021-01-25 | AT53: 162,783 | AU53: 114,353
B54: 39 | C54: 31.02 | D54: 40008790 | E54: CONSERVACION CAMINO BASICO RUTA1, S: PAPOSO-CALETA EL COBRE, TALTAL | F54: Ejecución | G54: ANTOFAGASTA | H54: TALTAL | I54: A | J54: 7,891,675 | K54: 4,363,443 | L54: 0 | M54: =1350548874/1000 -> 1,350,549 | N54: =472857672/1000 -> 472,858 | O54: =247707565/1000 -> 247,708 | P54: 0 | Q54: 0 | R54: =1451653105/1000 -> 1,451,653 | S54: 4,979 | T54: 0 | U54: 0 | V54: 0 | W54: 0 | X54: 0 | Y54: 3,527,746 | Z54: 2,532,486 | AA54: 1 | AB54: 2021-01-05 | AC54: 2021-01-25 | AD54: 995,746 | AE54: 33 | AF54: 2021-05-28 | AG54: 2021-06-22 | AT54: 3,528,232 | AU54: 486
B55: 40 | C55: 31.02 | D55: 40014026 | E55: MEJORAMIENTO CALLE 1 ALTOS LA CHIMBA, ANTOFAGASTA | F55: Ejecución | G55: ANTOFAGASTA | H55: ANTOFAGASTA | I55: A | J55: 1,110,766 | K55: 141,423 | L55: 0 | M55: =23692885/1000 -> 23,693 | N55: =15281256/1000 -> 15,281 | O55: 0 | P55: 0 | Q55: 0 | R55: 0 | S55: 0 | T55: 13,144 | U55: 46,273 | V55: 0 | W55: 0 | X55: 0 | Y55: 98,391 | Z55: 183,625 | AA55: 1 | AB55: 2021-01-05 | AC55: 2021-01-25 | AD55: 2,489 | AE55: 33 | AF55: 2021-05-28 | AG55: 2021-06-22 | AT55: 186,114 | AU55: 87,723
B56: 41 | C56: 31.02 | D56: 40014220 | E56: REPOSICION CALLE JAIME GUZMAN, LOCALIDAD DE BAQUEDANO | F56: Diseño | G56: ANTOFAGASTA | H56: SIERRA GORDA | I56: A | J56: 83,591 | K56: 0 | L56: 0 | M56: 0 | N56: 0 | O56: =24000000/1000 -> 24,000 | P56: 0 | Q56: 0 | R56: =16000000/1000 -> 16,000 | S56: 0 | T56: 0 | U56: 0 | V56: 0 | W56: 0 | X56: 0 | Y56: 40,000 | Z56: 83,591 | AA56: 1 | AB56: 2021-01-05 | AC56: 2021-01-25 | AT56: 83,591 | AU56: 43,591
B57: 42 | C57: 31.02 | D57: 40018702 | E57: CONSERVACION VIALIDAD CALLES LUIS CRUZ MARTINEZ Y LOS LEONES, ANTOFAGASTA | F57: Ejecución | G57: ANTOFAGASTA | H57: ANTOFAGASTA | I57: A | J57: 2,635,707 | K57: 6,818 | L57: 1,127,289 | M57: 0 | N57: 0 | O57: 0 | P57: =142873363/1000 -> 142,873 | Q57: =119173134/1000 -> 119,173 | R57: =229370785/1000 -> 229,371 | S57: 116,406 | T57: 138,671 | U57: 97,277 | V57: 0 | W57: 0 | X57: 0 | Y57: 843,771 | Z57: 1,090,600 | AA57: 1 | AB57: 2021-01-05 | AC57: 2021-01-25 | AD57: 11,000 | AE57: 33 | AF57: 2021-05-28 | AG57: 2021-06-22 | AH57: 400,000 | AI57: 62 | AJ57: 2021-08-27 | AK57: 2021-09-13 | AT57: 1,501,600 | AU57: 657,829
B58: 43 | C58: 31.02 | D58: 30074129 | E58: CONSTRUCCION OBRAS DE VIALIDAD CONEXIÓN TOPATER-EJE BALMACEDA CALAMA | F58: Ejecución | G58: ANTOFAGASTA | H58: CALAMA | I58: A | J58: 7,205,474 | K58: 6,442 | L58: 1,933,719 | M58: 0 | N58: 0 | O58: 0 | P58: 0 | Q58: 0 | R58: 0 | S58: 0 | T58: 0 | U58: 11,000 | V58: 0 | W58: 0 | X58: 0 | Y58: 11,000 | Z58: 1,418,325 | AA58: 6 | AB58: 2021-02-22 | AC58: 2021-01-25 | AD58: -498 | AE58: 33 | AF58: 2021-05-28 | AG58: 2021-06-22 | AT58: 1,417,827 | AU58: 1,406,827
B59: 44 | C59: 31.02 | D59: 30137533 | E59: REPOSICION JARDIN INFANTIL COMUNA MARIA ELENA | F59: Ejecución | G59: ANTOFAGASTA | H59: MARIA ELENA | I59: A | J59: 1,550,317 | K59: 9,250 | L59: 1,541,066 | M59: 0 | N59: 0 | O59: 0 | P59: 0 | Q59: 0 | R59: 0 | S59: 0 | T59: 0 | U59: 0 | V59: 0 | W59: 0 | X59: 0 | Y59: 0 | Z59: 1 | AA59: 6 | AB59: 2021-02-22 | AC59: 2021-03-17 | AT59: 1 | AU59: 1
B60: 45 | C60: 31.02 | D60: 30394275 | E60: CONSTRUCCION PASEO PEATONAL INDEPENDENCIA CALAMA | F60: Ejecución | G60: ANTOFAGASTA | H60: CALAMA | I60: A | J60: 2,392,282 | K60: 0 | L60: 486,198 | M60: 0 | N60: 0 | O60: =107818216/1000 -> 107,818 | P60: 0 | Q60: =29432831/1000 -> 29,433 | R60: =163020044/1000 -> 163,020 | S60: 191,137 | T60: 257,659 | U60: 422,982 | V60: 0 | W60: 0 | X60: 0 | Y60: 1,172,049 | Z60: 1,173,195 | AA60: 6 | AB60: 2021-02-22 | AC60: 2021-03-17 | AD60: -13 | AE60: 33 | AF60: 2021-05-28 | AG60: 2021-06-22 | AT60: 1,173,182 | AU60: 1,133
B61: 46 | C61: 31.02 | D61: 30457676 | E61: AMPLIACION RED DE AGUA POTABLE LA CHIMBA ALTA, ANTOFAGASTA | F61: Ejecución | G61: ANTOFAGASTA | H61: ANTOFAGASTA | I61: A | J61: 6,722,429 | K61: 10,123 | L61: 2,182,262 | M61: 0 | N61: 0 | O61: 0 | P61: 0 | Q61: 0 | R61: 0 | S61: 0 | T61: 177,209 | U61: 150,419 | V61: 0 | W61: 0 | X61: 0 | Y61: 327,628 | Z61: 1,223,341 | AA61: 6 | AB61: 2021-02-22 | AC61: 2021-03-17 | AD61: 18,098 | AE61: 33 | AF61: 2021-05-28 | AG61: 2021-06-22 | AT61: 1,241,439 | AU61: 913,811
B62: 47 | C62: 31.02 | D62: 40005850 | E62: CONSTRUCCION VIAS ALUVIONALES CALLES O'HIGGINS Y COLON, TOCOPILLA | F62: Ejecución | G62: ANTOFAGASTA | H62: TOCOPILLA | I62: A | J62: 15,479,193 | K62: 0 | L62: 4,334,096 | M62: 0 | N62: 0 | O62: 0 | P62: =322566178/1000 -> 322,566 | Q62: =222434822/1000 -> 222,435 | R62: =602911433/1000 -> 602,911 | S62: 300,787 | T62: 481,270 | U62: 408,047 | V62: 0 | W62: 0 | X62: 0 | Y62: 2,338,016 | Z62: 547,520 | AA62: 6 | AB62: 2021-02-22 | AC62: 2021-03-17 | AD62: 1,003,781 | AE62: 33 | AF62: 2021-05-28 | AG62: 2021-06-22 | AH62: 1,000,000 | AI62: 51 | AJ62: 2021-07-12 | AK62: 2021-08-05 | AT62: 2,551,301 | AU62: 213,285
B63: 48 | C63: 31.02 | D63: 40007595 | E63: CONSERVACION CAMINO BASICO POR CONSERVACION, RUTA B-161 | F63: Ejecución | G63: ANTOFAGASTA | H63: REGIONAL | I63: A | J63: 1,631,804 | K63: 1,622,804 | L63: 0 | M63: 0 | N63: 0 | O63: 0 | P63: =9000000/1000 -> 9,000 | Q63: 0 | R63: 0 | S63: 0 | T63: 0 | U63: 0 | V63: 0 | W63: 0 | X63: 0 | Y63: 9,000 | Z63: 9,000 | AA63: 6 | AB63: 2021-02-22 | AC63: 2021-03-17 | AT63: 9,000 | AU63: 0
B64: 49 | C64: 31.01 | D64: 40018140 | E64: ANALISIS ZONIFICACION AREAS EXPUESTAS A PELIGROS DE REMOSION DE MASA | F64: Ejecución | G64: ANTOFAGASTA | H64: REGIONAL | I64: N | J64: 482,594 | K64: 0 | L64: 452,093 | M64: 0 | N64: 0 | O64: 0 | P64: 0 | Q64: 0 | R64: 0 | S64: 0 | T64: 0 | U64: 0 | V64: 0 | W64: 0 | X64: 0 | Y64: 0 | Z64: 30,500 | AA64: 11 | AB64: 2021-03-15 | AC64: 2021-04-01 | AT64: 30,500 | AU64: 30,500
B65: 50 | C65: 31.01 | D65: 40020118 | E65: ACTUALIZACION PLAN DE DESARROLLO COMUNAL COMUNA MEJILLONES | F65: Ejecución | G65: ANTOFAGASTA | H65: MEJILLONES | I65: N | J65: 123,312 | K65: 0 | L65: 118,200 | M65: 0 | N65: 0 | O65: 0 | P65: 0 | Q65: 0 | R65: 0 | S65: 0 | T65: 0 | U65: 0 | V65: 0 | W65: 0 | X65: 0 | Y65: 0 | Z65: 5,112 | AA65: 11 | AB65: 2021-03-15 | AC65: 2021-04-01 | AT65: 5,112 | AU65: 5,112
B66: 51 | C66: 31.02 | D66: 30128277 | E66: CONSTRUCCION CUARTEL PREFECTURA PROVINCIAL TOCOPILLA - PDI | F66: Ejecución | G66: ANTOFAGASTA | H66: TOCOPILLA | I66: N | J66: 4,143,977 | K66: 10,285 | L66: 4,133,681 | M66: 0 | N66: 0 | O66: 0 | P66: 0 | Q66: 0 | R66: 0 | S66: 0 | T66: 0 | U66: 0 | V66: 0 | W66: 0 | X66: 0 | Y66: 0 | Z66: 10 | AA66: 11 | AB66: 2021-03-15 | AC66: 2021-04-01 | AT66: 10 | AU66: 10
B67: 52 | C67: 31.02 | D67: 30302873 | E67: RESTAURACION TEATRO PEDRO DE LA BARRA, ANTOFAGASTA | F67: Ejecución | G67: ANTOFAGASTA | H67: ANTOFAGASTA | I67: N | J67: 3,791,282 | K67: 5,219 | L67: 3,786,062 | M67: 0 | N67: 0 | O67: 0 | P67: 0 | Q67: 0 | R67: 0 | S67: 0 | T67: 0 | U67: 0 | V67: 0 | W67: 0 | X67: 0 | Y67: 0 | Z67: 161,646 | AA67: 11 | AB67: 2021-03-15 | AC67: 2021-04-01 | AT67: 161,646 | AU67: 161,646
B68: 53 | C68: 31.02 | D68: 30344426 | E68: RESTAURACION MUSEO MUNICIPAL DE MEJILLONES | F68: Ejecución | G68: ANTOFAGASTA | H68: MEJILLONES | I68: N | J68: 2,708,885 | K68: 5,006 | L68: 2,708,884 | M68: 0 | N68: 0 | O68: 0 | P68: 0 | Q68: 0 | R68: 0 | S68: 0 | T68: 0 | U68: 0 | V68: 0 | W68: 0 | X68: 0 | Y68: 0 | Z68: 10 | AA68: 11 | AB68: 2021-03-15 | AC68: 2021-04-01 | AT68: 10 | AU68: 10
B69: 54 | C69: 31.02 | D69: 30486121 | E69: REPOSICION HOSPEDERIA HOGAR DE CRISTO CALAMA | F69: Ejecución | G69: ANTOFAGASTA | H69: CALAMA | I69: N | J69: 2,287,550 | K69: 1,766 | L69: 2,285,782 | M69: 0 | N69: 0 | O69: 0 | P69: 0 | Q69: 0 | R69: 0 | S69: 0 | T69: 0 | U69: 0 | V69: 0 | W69: 0 | X69: 0 | Y69: 0 | Z69: 50 | AA69: 11 | AB69: 2021-03-15 | AC69: 2021-04-01 | AD69: 99,950 | AE69: 35 | AF69: 2021-06-10 | AG69: 2021-07-06 | AT69: 100,000 | AU69: 100,000
B70: 55 | C70: 31.02 | D70: 30487216 | E70: CONSTRUCCION HANGAR BRIGADA AEROPOLICIAL ANTOFAGASTA | F70: Ejecución | G70: ANTOFAGASTA | H70: ANTOFAGASTA | I70: N | J70: 1,833,860 | K70: 0 | L70: 1,832,244 | M70: 0 | N70: 0 | O70: 0 | P70: 0 | Q70: 0 | R70: 0 | S70: 0 | T70: 0 | U70: 0 | V70: 0 | W70: 0 | X70: 0 | Y70: 0 | Z70: 1,616 | AA70: 11 | AB70: 2021-03-15 | AC70: 2021-04-01 | AT70: 1,616 | AU70: 1,616
B71: 56 | C71: 31.02 | D71: 40006868 | E71: CONSERVACION CAMINO BASICO POR CONSERVACION, RUTA B-898, KM 24,640 AL KM 42,379, REG AFTA | F71: Ejecución | G71: ANTOFAGASTA | H71: ANTOFAGASTA | I71: N | J71: 2,514,464 | K71: 0 | L71: 2,514,463 | M71: 0 | N71: 0 | O71: 0 | P71: 0 | Q71: 0 | R71: 0 | S71: 0 | T71: 0 | U71: 0 | V71: 0 | W71: 0 | X71: 0 | Y71: 0 | Z71: 7,913 | AA71: 11 | AB71: 2021-03-15 | AC71: 2021-04-01 | AD71: -7,912 | AE71: 62 | AF71: 2021-08-27 | AG71: 2021-09-13 | AT71: 1 | AU71: 1
B72: 57 | C72: 31.02 | D72: 40010160 | E72: ADQUISICION LETREROS DE MENSAJERIA VARIABLE PARA EL CENTRO DE CONTROL DE TRANSITO ANTOFAGASTA | F72: Ejecución | G72: ANTOFAGASTA | H72: ANTOFAGASTA | I72: N | J72: 424,734 | K72: 0 | L72: 424,734 | M72: 0 | N72: 0 | O72: 0 | P72: 0 | Q72: 0 | R72: 0 | S72: 0 | T72: 0 | U72: 0 | V72: 0 | W72: 0 | X72: 0 | Y72: 0 | Z72: 20,000 | AA72: 11 | AB72: 2021-03-15 | AC72: 2021-04-01 | AT72: 20,000 | AU72: 20,000
B73: 58 | C73: 31.02 | D73: 40010683 | E73: CONSERVACION CARPETA PASTO SINTETICO ESTADIO BELMOR ROJAS TALTAL | F73: Ejecución | G73: ANTOFAGASTA | H73: TALTAL | I73: N | J73: 331,415 | K73: 0 | L73: 53 | M73: 0 | N73: 0 | O73: 0 | P73: 0 | Q73: 0 | R73: 0 | S73: 95,988 | T73: 0 | U73: 0 | V73: 0 | W73: 0 | X73: 0 | Y73: 95,988 | Z73: 10 | AA73: 11 | AB73: 2021-03-15 | AC73: 2021-04-01 | AD73: 331,352 | AE73: 35 | AF73: 2021-06-10 | AG73: 2021-07-06 | AT73: 331,362 | AU73: 235,374
B74: 59 | C74: 31.02 | D74: 40013565 | E74: REPOSICION RED ELECTRICA LOCALIDAD DE QUILLAGUA | F74: Ejecución | G74: ANTOFAGASTA | H74: MARIA ELENA | I74: N | J74: 1,428,465 | K74: 0 | L74: 1,190,570 | M74: 0 | N74: 0 | O74: 0 | P74: 0 | Q74: 0 | R74: 0 | S74: 0 | T74: 0 | U74: 0 | V74: 0 | W74: 0 | X74: 0 | Y74: 0 | Z74: 947,988 | AA74: 11 | AB74: 2021-03-15 | AC74: 2021-04-01 | AD74: -377,988 | AE74: 33 | AF74: 2021-05-28 | AG74: 2021-06-22 | AT74: 570,000 | AU74: 570,000
B75: 60 | C75: 31.02 | D75: 40018900 | E75: REPOSICION Y RELOCALIZACION COMPLEJO EDUCATIVO, LOCALIDAD SIERRA GORDA | F75: Ejecución | G75: ANTOFAGASTA | H75: SIERRA GORDA | I75: N | J75: 288,870 | K75: 0 | L75: 6,357 | M75: 0 | N75: 0 | O75: 0 | P75: 0 | Q75: 0 | R75: 0 | S75: 0 | T75: 0 | U75: 0 | V75: 0 | W75: 0 | X75: 0 | Y75: 0 | Z75: 282,513 | AA75: 11 | AB75: 2021-03-15 | AC75: 2021-04-01 | AT75: 282,513 | AU75: 282,513
B76: 61 | C76: 31.02 | D76: 40021144 | E76: CONSERVACION CAMINO BASICO RUTA B-245. KM 90,800 AL KM 113,100 | F76: Ejecución | G76: ANTOFAGASTA | H76: REGIONAL | I76: N | J76: 3,140,236 | K76: 7,240 | L76: 3,032,996 | M76: 0 | N76: 0 | O76: 0 | P76: 0 | Q76: 0 | R76: 0 | S76: 0 | T76: 0 | U76: 0 | V76: 0 | W76: 0 | X76: 0 | Y76: 0 | Z76: 100,000 | AA76: 11 | AB76: 2021-03-15 | AC76: 2021-04-01 | AT76: 100,000 | AU76: 100,000
B77: 62 | C77: 31.02 | D77: 40025978 | E77: CONSERVACION CANCHA DE FUTBOL Y MULTICANCHAS PARQUE LOS PINARES | F77: Ejecución | G77: ANTOFAGASTA | H77: ANTOFAGASTA | I77: N | J77: 391,160 | K77: 0 | L77: 391,159 | M77: 0 | N77: 0 | O77: 0 | P77: 0 | Q77: 0 | R77: 0 | S77: 0 | T77: 0 | U77: 0 | V77: 0 | W77: 0 | X77: 0 | Y77: 0 | Z77: 10 | AA77: 11 | AB77: 2021-03-15 | AC77: 2021-04-01 | AD77: 199,990 | AE77: 35 | AF77: 2021-06-10 | AG77: 2021-07-06 | AT77: 200,000 | AU77: 200,000
B78: 63 | C78: 31.02 | D78: 40007789 | E78: REPOSICION CUARTA COMPAÑÍA DE BOMBEROS CALAMA DISEÑO | F78: Diseño | G78: ANTOFAGASTA | H78: CALAMA | I78: N | J78: 77,056 | K78: 0 | L78: 75,275 | M78: 0 | N78: 0 | O78: 0 | P78: 0 | Q78: 0 | R78: 0 | S78: 0 | T78: 0 | U78: 0 | V78: 0 | W78: 0 | X78: 0 | Y78: 0 | Z78: 21,780 | AA78: 33 | AB78: 2021-05-28 | AC78: 2021-06-22 | AT78: 21,780 | AU78: 21,780
B79: 64 | C79: 31.02 | D79: 40026369 | E79: REPOSICION MUSEO ARQUEOLÓGICO GUSTAVO LE PAIGE SAN PEDRO DE ATACAMA | F79: Prefactibilidad | G79: ANTOFAGASTA | H79: SAN PEDRO DE ATACAMA | I79: N | J79: 198,294 | K79: 0 | L79: 195,555 | M79: 0 | N79: 0 | O79: 0 | P79: 0 | Q79: 0 | R79: 0 | S79: 0 | T79: 0 | U79: 0 | V79: 0 | W79: 0 | X79: 0 | Y79: 0 | Z79: 22,294 | AA79: 33 | AB79: 2021-05-28 | AC79: 2021-06-22 | AT79: 22,294 | AU79: 22,294
B80: 65 | C80: 31.02 | D80: 40029136 | E80: CONSERVACION CAMINO BÁSICO, RUTA B-245, KM 0,750 AL KM.22,100, SAN PEDRO DE ATACAMA | F80: Ejecución | G80: ANTOFAGASTA | H80: SAN PEDRO DE ATACAMA | I80: N | J80: 1,108,555 | K80: 0 | L80: 1,000,001 | M80: 0 | N80: 0 | O80: 0 | P80: 0 | Q80: 0 | R80: 0 | S80: 0 | T80: 0 | U80: 0 | V80: 0 | W80: 0 | X80: 0 | Y80: =SUM(M80:X80) -> 0 | Z80: 108,554 | AA80: 33 | AB80: 2021-05-28 | AC80: 2021-06-22 | AT80: 108,554 | AU80: 108,554
B81: 66 | C81: 31.02 | D81: 40027804 | E81: CONSERVACION MONUMENTO NACIONAL CASA ABAROA DE ANTOFAGASTA | F81: Ejecución | G81: ANTOFAGASTA | H81: ANTOFAGASTA | I81: N | J81: 271,865 | K81: 0 | L81: 270,458 | M81: 0 | N81: 0 | O81: 0 | P81: 0 | Q81: 0 | R81: 0 | S81: 0 | T81: 0 | U81: 0 | V81: 0 | W81: 0 | X81: 0 | Y81: 0 | Z81: 21,406 | AA81: 33 | AB81: 2021-05-28 | AC81: 2021-06-22 | AT81: =+Z81+AD81+AH81+AL81+AP81 -> 21,406 | AU81: =+AT81-Y81 -> 21,406
B82: 67 | C82: 31.02 | D82: 30371276 | E82: MEJORAMIENTO BORDE COSTERO ANTOFAGASTA, SECTOR LOS PINARES-TROCADERO | F82: Ejecución | G82: ANTOFAGASTA | H82: ANTOFAGASTA | I82: N | J82: 9,794,860 | K82: 0 | L82: 4,246,746 | M82: 0 | N82: 0 | O82: 0 | P82: 0 | Q82: 0 | R82: 0 | S82: 0 | T82: 0 | U82: 0 | V82: 0 | W82: 0 | X82: 0 | Y82: =SUM(M82:X82) -> 0 | Z82: 30,843 | AA82: 35 | AB82: 2021-06-10 | AC82: 2021-07-06 | AT82: 30,843 | AU82: 30,843
B83: 68 | C83: 31.01 | D83: 30460582 | E83: DIAGNOSTICO DE OCUPACION TERRENOS BORDE CERRO ANTOFAGASTA | F83: Ejecución | G83: ANTOFAGASTA | H83: ANTOFAGASTA | I83: N | J83: 120,469 | K83: 0 | L83: 117,669 | M83: 0 | N83: 0 | O83: 0 | P83: 0 | Q83: 0 | R83: 0 | S83: 0 | T83: 0 | U83: 0 | V83: 0 | W83: 0 | X83: 0 | Y83: 0 | Z83: 2,800 | AA83: 35 | AB83: 2021-06-10 | AC83: 2021-07-06 | AT83: 2,800 | AU83: 2,800
B84: 69 | C84: 31.02 | D84: 40003912 | E84: CONSTRUCCION 4TA COMPAÑÍA DE BOMBEROS DE LA COMUNA DE TOCOPILLA | F84: Ejecución | G84: ANTOFAGASTA | H84: TOCOPILLA | I84: N | J84: 1,678,241 | K84: 0 | L84: 1,674,331 | M84: 0 | N84: 0 | O84: 0 | P84: 0 | Q84: 0 | R84: 0 | S84: 0 | T84: 0 | U84: 0 | V84: 0 | W84: 0 | X84: 0 | Y84: 0 | Z84: 3,910 | AA84: 51 | AB84: 2021-07-12 | AC84: 2021-08-05 | AT84: 3,910 | AU84: 3,910
B85: 70 | C85: 31.03 | D85: 40027133 | E85: CONSERVACION MULTICANCHA SEDE SOCIAL BONILLA BAJO, ANTOFAGASTA | F85: Ejecución | G85: ANTOFAGASTA | H85: ANTOFAGASTA | I85: N | J85: 95,060 | K85: 0 | L85: 95,059 | M85: 0 | N85: 0 | O85: 0 | P85: 0 | Q85: 0 | R85: 0 | S85: 0 | T85: 0 | U85: 0 | V85: 0 | W85: 0 | X85: 0 | Y85: 0 | Z85: 1 | AA85: 51 | AB85: 2021-07-12 | AC85: 2021-08-05 | AT85: 1 | AU85: 1
B86: 71 | C86: 31.04 | D86: 40027437 | E86: CONSERVACION PASTO SINTETICO CANCHA DE FUTBOL POLIDEPORTIVO CENTENARIO ANTOFAGASTA | F86: Ejecución | G86: ANTOFAGASTA | H86: ANTOFAGASTA | I86: N | J86: 385,155 | K86: 0 | L86: 385,154 | M86: 0 | N86: 0 | O86: 0 | P86: 0 | Q86: 0 | R86: 0 | S86: 0 | T86: 0 | U86: 0 | V86: 0 | W86: 0 | X86: 0 | Y86: 0 | Z86: 1 | AA86: 51 | AB86: 2021-07-12 | AC86: 2021-08-05 | AT86: 1 | AU86: 1
B87: 72 | C87: 31.05 | D87: 40031230 | E87: CONSERVACION SEGURIDAD VIAL RUTA 1 Y B-710 | F87: Ejecución | G87: ANTOFAGASTA | H87: REGIONAL | I87: N | J87: 1,593,075 | K87: 0 | L87: 1,539,000 | M87: 0 | N87: 0 | O87: 0 | P87: 0 | Q87: 0 | R87: 0 | S87: 0 | T87: 0 | U87: 0 | V87: 0 | W87: 0 | X87: 0 | Y87: 0 | Z87: 54,075 | AA87: 51 | AB87: 2021-07-12 | AC87: 2021-08-05 | AT87: 54,075 | AU87: 54,075
B88: 73 | C88: 31.06 | D88: 40027908 | E88: MEJORAMIENTO BORDE COSTERO SECTOR LAS ALMEJAS COMUNA DE ANTOFAGASTA | F88: Ejecución | G88: ANTOFAGASTA | H88: ANTOFAGASTA | I88: N | J88: 2,799,716 | K88: 0 | L88: 2,799,715 | M88: 0 | N88: 0 | O88: 0 | P88: 0 | Q88: 0 | R88: 0 | S88: 0 | T88: 0 | U88: 0 | V88: 0 | W88: 0 | X88: 0 | Y88: 0 | Z88: 1 | AA88: 62 | AB88: 2021-08-27 | AC88: 2021-09-13 | AT88: 1 | AU88: 1
B89: 74 | C89: 31.07 | D89: 40033389 | E89: REPARACION TENDIDO ELECTRICO SALAR PEINE LOCALIDAD DE PEINE COMUNA SPA | F89: Ejecución | G89: ANTOFAGASTA | H89: SAN PEDRO DE ATACAMA | I89: N | J89: 393,640 | K89: 0 | L89: 393,639 | M89: 0 | N89: 0 | O89: 0 | P89: 0 | Q89: 0 | R89: 0 | S89: 0 | T89: 0 | U89: 0 | V89: 0 | W89: 0 | X89: 0 | Y89: 0 | Z89: 1 | AA89: 62 | AB89: 2021-08-27 | AC89: 2021-09-13 | AT89: 1 | AU89: 1
AT90: 0 | AU90: 0
AT91: 0 | AU91: 0
AT92: 0 | AU92: 0
AT93: 0 | AU93: 0
B94: Total M$ | J94: =SUBTOTAL(9,J16:J89) -> 200,028,987 | K94: =SUBTOTAL(9,K16:K89) -> 49,550,456 | L94: 82,838,434 | M94: 1,966,094 | N94: 1,229,721 | O94: 1,303,150 | P94: 934,889 | Q94: 796,439 | R94: 2,948,313 | S94: 1,076,511 | T94: 1,322,277 | U94: 1,581,475 | V94: 0 | W94: 0 | X94: 0 | Y94: 13,158,868 | Z94: =SUBTOTAL(9,Z16:Z89) -> 23,687,149 | AD94: =SUBTOTAL(9,AD16:AD89) -> -400,240 | AH94: =SUBTOTAL(9,AH16:AH89) -> 1,400,000 | AL94: =SUBTOTAL(9,AL16:AL89) -> 0 | AP94: =SUBTOTAL(9,AP16:AP89) -> 0 | AT94: =SUBTOTAL(9,AT16:AT89) -> 24,686,909 | AU94: =SUBTOTAL(9,AU16:AU89) -> 11,528,041

Sheet 0563 Atacama
B9: INFORMACIÓN RESOLUCIONES GORE ST 31 PROGRAMA INVERSIÓN REGIONAL
B12: Ley Inicial 2021 | C12: Ley Vigente 2021 | D12: Ley Vigente Medicion 2021 | E12: Gasto Acumulado
B13: 49,594,122 | C13: 44,251,382 | D13: 44,251,382 | E13: =+Y111 -> 27,759,325
Z14: IDENTIFICACIÓN INICIAL | AD14: MODIFICACIÓN | AH14: MODIFICACIÓN | AL14: MODIFICACIÓN | AP14: MODIFICACIÓN | AT14: MODIFICACIÓN | AX14: MODIFICACIÓN | BB14: MODIFICACIÓN | BF14: Programa Financiero
B15: N° | C15: ST-Item | D15: Código BIP | E15: Nombre de proyecto | F15: Etapa | G15: Región | H15: Comuna | I15: Tipo A=Arrastre , N= Nuevo | J15: Costo Total Ficha IDI | K15: Ejecutado Años Anteriores FICHA IDI | L15: Saldo Proximos Años Ficha IDI | M15: Enero mensual SIGFE 2021 | N15: Febrero mensual SIGFE 2021 | O15: Marzo mensual SIGFE 2021 | P15: Abril mensual SIGFE 2021 | Q15: Mayo mensual SIGFE 2021 | R15: Junio mensual SIGFE 2021 | S15: Julio mensual SIGFE 2021 | T15: Agosto mensual SIGFE 2021 | U15: Septiembre mensual SIGFE 2021 | V15: Octubre mensual SIGFE 2021 | W15: Noviembre mensual SIGFE 2021 | X15: Diciembre mensual SIGFE 2021 | Y15: Total Ejecución acumulada 2021 | Z15: Monto Identificado Año 2021 | AA15: N° Resolución | AB15: Fecha Resolución | AC15: Fecha de Toma de Razón | AD15: Monto Modificado 2021 | AE15: N° Resolución | AF15: Fecha Resolución | AG15: Fecha de Toma de Razón | AH15: Monto Modificado 2021 | AI15: N° Resolución | AJ15: Fecha Resolución | AK15: Fecha de Toma de Razón | AL15: Monto Modificado 2021 | AM15: N° Resolución | AN15: Fecha Resolución | AO15: Fecha de Toma de Razón | AP15: Monto Modificado 2021 | AQ15: N° Resolución | AR15: Fecha Resolución | AS15: Fecha de Toma de Razón | AT15: Monto Modificado 2021 | AU15: N° Resolución | AV15: Fecha Resolución | AW15: Fecha de Toma de Razón | AX15: Monto Modificado 2021 | AY15: N° Resolución | AZ15: Fecha Resolución | BA15: Fecha de Toma de Razón | BB15: Monto Modificado 2021 | BC15: N° Resolución | BD15: Fecha Resolución | BE15: Fecha de Toma de Razón | BF15: Total Identificado | BG15: Saldo por Ejecutar
B16: 1 | C16: 31.02 | D16: 30032937 | E16: Construcción Estadio Municipal de Huasco | F16: EJECUCION | G16: ATACAMA | H16: HUASCO | I16: A | J16: 5,361,863 | K16: 4,272,947 | L16: 0 | M16: 0 | N16: 0 | O16: 0 | P16: 0 | Q16: 0 | R16: 37,243 | S16: 0 | T16: 247,818 | U16: 41,530 | Y16: =SUM(M16:X16) -> 326,591 | Z16: 340,000 | AA16: 5 | AB16: 2021-01-20 | AC16: 2021-01-29 | AD16: 0 | BF16: =+Z16+AD16+AH16+AL16+AP16+AT16+AX16+BB16 -> 340,000 | BG16: =+BF16-Y16 -> 13,409
B17: =+B16+1 -> 2 | C17: 31.02 | D17: 30062899 | E17: Reposición Infraestructura Portuaria Caleta Chañaral de Aceituno, Freirina | F17: DISEÑO | G17: ATACAMA | H17: FREIRINA | I17: A | J17: 329,433 | K17: 133,158 | L17: 1 | M17: 0 | N17: 0 | O17: 0 | P17: 0 | Q17: 0 | R17: 0 | S17: 45,549 | T17: 12,465 | U17: 20,600 | Y17: =SUM(M17:X17) -> 78,614 | Z17: 154,062 | AA17: 5 | AB17: 2021-01-20 | AC17: 2021-01-29 | AD17: 12,365 | AE17: 22 | AF17: 2021-05-13 | AG17: 2021-05-18 | BF17: =+Z17+AD17+AH17+AL17+AP17+AT17+AX17+BB17 -> 166,427 | BG17: 87,813
B18: =+B17+1 -> 3 | C18: 31.02 | D18: 30070199 | E18: Reposición Hospital Comunitario de Huasco | F18: EJECUCION | G18: ATACAMA | H18: HUASCO | I18: A | J18: 17,855,566 | K18: 4,831,958 | L18: 4,951,499 | M18: 0 | N18: 669,018 | O18: 457,702 | P18: 512,159 | Q18: 812,325 | R18: 480,434 | S18: 543,388 | T18: 592,595 | U18: 432,094 | Y18: 4,499,716 | Z18: 5,000,000 | AA18: 5 | AB18: 2021-01-20 | AC18: 2021-01-29 | AD18: 46,648 | AE18: 16 | AF18: 2021-02-26 | AG18: 2021-03-19 | AH18: 6,525 | AI18: 38 | AJ18: 2021-08-26 | AK18: 2021-09-09 | BF18: 5,053,173 | BG18: 553,457
B19: 4 | C19: 31.02 | D19: 30072454 | E19: Reposición Cesfam Bernardo Mellibovsky | F19: DISEÑO | G19: ATACAMA | H19: COPIAPO | I19: A | J19: 135,074 | K19: 56,940 | L19: 0 | M19: 0 | N19: 0 | O19: 0 | P19: 0 | Q19: 0 | R19: 0 | S19: 0 | T19: 0 | U19: 0 | Y19: 0 | Z19: 78,134 | AA19: 5 | AB19: 2021-01-20 | AC19: 2021-01-29 | BF19: 78,134 | BG19: 78,134
B20: 5 | C20: 31.02 | D20: 30072770 | E20: Construcción Subcomisaría Pedro León Gallo, Copiapó | F20: EJECUCION | G20: ATACAMA | H20: COPIAPO | I20: N | J20: 2,040,928 | K20: 1,792 | L20: 0 | M20: 0 | N20: 0 | O20: 0 | P20: 120,188 | Q20: 0 | R20: 0 | S20: 0 | T20: 0 | U20: 0 | Y20: 120,188 | Z20: 800,000 | AA20: 5 | AB20: 2021-01-20 | AC20: 2021-01-29 | AD20: 0 | BF20: 800,000 | BG20: 679,812
B21: 6 | C21: 31.02 | D21: 30076167 | E21: Reposición Hospital Comunitario Diego de Almagro | F21: EJECUCION | G21: ATACAMA | H21: DIEGO DE ALMAGRO | I21: A | J21: 15,714,653 | K21: 1,716,979 | L21: 3,306,082 | M21: 0 | N21: 0 | O21: 4,083 | P21: 6,034 | Q21: 6,034 | R21: 2,836 | S21: 1,951 | T21: 1,951 | U21: 976 | Y21: 23,865 | Z21: 5,010,000 | AA21: 5 | AB21: 2021-01-20 | AC21: 2021-01-29 | AD21: -171,557 | AE21: 16 | AF21: 2021-02-26 | AG21: 2021-03-19 | AH21: -119,336 | AI21: 19 | AJ21: 2021-04-19 | AK21: 2021-05-14 | AL21: 30,828 | AM21: 19 | AN21: 2021-04-19 | AO21: 2021-05-14 | AP21: -691,893 | AQ21: 22 | AR21: 2021-05-13 | AS21: 2021-05-18 | AT21: -1,891,318 | AU21: 28 | AV21: 2021-06-10 | AW21: 2021-06-29 | AX21: -514,225 | AY21: 31 | AZ21: 2021-07-01 | BA21: 2021-07-23 | BB21: -1,611,671 | BC21: 38 | BD21: 2021-08-26 | BE21: 2021-09-09 | BF21: 40,828 | BG21: 16,963
B22: 7 | C22: 31.02 | D22: 30081265 | E22: Reposición Paseo Arturo Prat, Chañaral | F22: DISEÑO | G22: ATACAMA | H22: CHAÑARAL | I22: A | J22: 37,509 | K22: 27,194 | L22: 0 | M22: 0 | N22: 0 | O22: 0 | P22: 0 | Q22: 0 | R22: 0 | S22: 0 | T22: 0 | U22: 0 | Y22: 0 | Z22: 10,315 | AA22: 5 | AB22: 2021-01-20 | AC22: 2021-01-29 | AD22: 0 | BF22: 10,315 | BG22: 10,315
B23: 8 | C23: 31.02 | D23: 30082427 | E23: Mejoramiento Borde Costero Playa Brava y del Jefe, Caldera | F23: EJECUCION | G23: ATACAMA | H23: CALDERA | I23: A | J23: 3,835,621 | K23: 3,813,977 | L23: 0 | M23: 0 | N23: 0 | O23: 6,897 | P23: 0 | Q23: 0 | R23: 0 | S23: 0 | T23: 0 | U23: 0 | Y23: 6,897 | Z23: 21,644 | AA23: 5 | AB23: 2021-01-20 | AC23: 2021-01-29 | AD23: 0 | BF23: 21,644 | BG23: 14,747
B24: 9 | C24: 31.02 | D24: 30086265 | E24: Construcción Pista de Atletismo Copiapó | F24: EJECUCION | G24: ATACAMA | H24: COPIAPO | I24: A | J24: 5,794,047 | K24: 5,651,699 | L24: 0 | M24: 0 | N24: 0 | O24: 0 | P24: 2,439 | Q24: 0 | R24: 0 | S24: 0 | T24: 34,153 | U24: 44,562 | Y24: 81,154 | Z24: 134,213 | AA24: 5 | AB24: 2021-01-20 | AC24: 2021-01-29 | BF24: 134,213 | BG24: 53,059
B25: 10 | C25: 31.02 | D25: 30088016 | E25: Mejoramiento Borde Costero Huasco | F25: EJECUCION | G25: ATACAMA | H25: HUASCO | I25: A | J25: 307,687 | K25: 182,410 | L25: 0 | M25: 0 | N25: 0 | O25: 206,103 | P25: 84,841 | Q25: 0 | R25: 0 | S25: 0 | T25: 0 | U25: 0 | Y25: 290,944 | Z25: 290,944 | AA25: 5 | AB25: 2021-01-20 | AC25: 2021-01-29 | AD25: 0 | BF25: 290,944 | BG25: 0
B26: 11 | C26: 31.02 | D26: 30091568 | E26: Reposición Escuela F-35 Fundición Paipote, Copiapó | F26: EJECUCION | G26: ATACAMA | H26: COPIAPO | I26: A | J26: 20,443,271 | K26: 20,436,195 | L26: 0 | M26: 0 | N26: 7,074 | O26: 54 | P26: 0 | Q26: 0 | R26: 0 | S26: 0 | T26: 0 | U26: 0 | Y26: 7,128 | Z26: 7,075 | AA26: 5 | AB26: 2021-01-20 | AC26: 2021-01-29 | AD26: 54 | AE26: 16 | AF26: 2021-02-26 | AG26: 2021-03-19 | BF26: 7,129 | BG26: 1
B27: 12 | C27: 31.02 | D27: 30096128 | E27: Reposición Edificio Consistorial Tierra Amarilla | F27: EJECUCION | G27: ATACAMA | H27: TIERRA AMARILLA | I27: A | J27: 7,836,830 | K27: 0 | L27: 5,332,531 | M27: 0 | N27: 0 | O27: 0 | P27: 187,004 | Q27: 298,751 | R27: 305,831 | S27: 263,659 | T27: 277,040 | U27: 205,439 | Y27: 1,537,723 | Z27: 510,000 | AA27: 5 | AB27: 2021-01-20 | AC27: 2021-01-29 | AD27: 3,478 | AE27: 16 | AF27: 2021-02-26 | AG27: 2021-03-19 | AH27: 500,000 | AI27: 28 | AJ27: 2021-06-10 | AK27: 2021-06-29 | AL27: 500,000 | AM27: 38 | AN27: 2021-08-26 | AO27: 2021-09-09 | BF27: 1,513,478 | BG27: -24,245
B28: 13 | C28: 31.02 | D28: 30117141 | E28: Reposición Subcomisaría Huasco (M), Comuna de Huasco | F28: DISEÑO | G28: ATACAMA | H28: HUASCO | I28: N | J28: 169,102 | K28: 0 | L28: 100,833 | M28: 0 | N28: 0 | O28: 0 | P28: 0 | Q28: 0 | R28: 0 | S28: 0 | T28: 0 | U28: 0 | Y28: 0 | Z28: 13,000 | AA28: 19 | AB28: 2021-04-19 | AC28: 2021-05-14 | AD28: 0 | AH28: 0 | BF28: 13,000 | BG28: 13,000
B29: 14 | C29: 31.02 | D29: 30124316 | E29: Construcción Parque Recreativo Huasco Bajo, Huasco | F29: EJECUCION | G29: ATACAMA | H29: HUASCO | I29: A | J29: 2,314,402 | K29: 1,188,787 | L29: 0 | M29: 0 | N29: 33,962 | O29: 0 | P29: 0 | Q29: 35,283 | R29: 183,207 | S29: 0 | T29: 0 | U29: 0 | Y29: 252,452 | Z29: 650,000 | AA29: 5 | AB29: 2021-01-20 | AC29: 2021-01-29 | AD29: 0 | BF29: 650,000 | BG29: 397,548
B30: 15 | C30: 31.02 | D30: 30124516 | E30: Reposición Escalinatas Altiplano Norte, II Etapa, Vallenar | F30: EJECUCION | G30: ATACAMA | H30: VALLENAR | I30: A | J30: 745,587 | K30: 534,592 | L30: 0 | M30: 0 | N30: 125,946 | O30: 0 | P30: 67,918 | Q30: 0 | R30: 0 | S30: 71,611 | T30: 3,647 | U30: 0 | Y30: 269,122 | Z30: 209,946 | AA30: 5 | AB30: 2021-01-20 | AC30: 2021-01-29 | AD30: 150,000 | AE30: 38 | AF30: 2021-08-26 | AG30: 2021-09-09 | BF30: 359,946 | BG30: 90,824
B31: 16 | C31: 31.02 | D31: 30128427 | E31: Mejoramiento Sist. Radiocomunicación Parques Nacionales Atacama | F31: EJECUCION | G31: ATACAMA | H31: INTERCOMUNAL | I31: A | J31: 294,655 | K31: 190,038 | L31: 0 | M31: 0 | N31: 0 | O31: 0 | P31: 2,835 | Q31: 0 | R31: 30,549 | S31: 1,238 | T31: 53,474 | U31: 0 | Y31: 88,095 | Z31: 62,457 | AA31: 5 | AB31: 2021-01-20 | AC31: 2021-01-29 | AD31: 2,835 | AE31: 16 | AF31: 2021-02-26 | AG31: 2021-03-19 | BF31: 65,292 | BG31: -22,803
B32: 17 | C32: 31.02 | D32: 30132000 | E32: Construcción Piscina Temperada de la Comuna de Copiapó | F32: DISEÑO | G32: ATACAMA | H32: COPIAPO | I32: N | J32: 117,498 | K32: 0 | L32: 67,383 | M32: 0 | N32: 4 | O32: 0 | P32: 0 | Q32: 0 | R32: 0 | S32: 0 | T32: 0 | U32: 0 | Y32: 4 | Z32: 4 | AA32: 5 | AB32: 2021-01-20 | AC32: 2021-01-29 | AD32: 0 | BF32: 4 | BG32: 0
B33: 18 | C33: 31.02 | D33: 30132090 | E33: Construcción Nuevo Cementerio Municipal, Vallenar | F33: EJECUCION | G33: ATACAMA | H33: VALLENAR | I33: N | J33: 5,006,285 | K33: 0 | L33: 0 | M33: 0 | N33: 0 | O33: 0 | P33: 0 | Q33: 0 | R33: 0 | S33: 0 | T33: 0 | U33: 0 | Y33: 0 | Z33: 201,000 | AA33: 28 | AB33: 44357 | AC33: 2021-06-29 | BF33: 201,000 | BG33: 201,000
B34: 19 | C34: 31.02 | D34: 30132132 | E34: Construcción Polideportivo El Tránsito Alto del Carmen | F34: EJECUCION | G34: ATACAMA | H34: ALTO DEL CARMEN | I34: A | J34: 1,808,060 | K34: 12,461 | L34: 0 | M34: 0 | N34: 0 | O34: 0 | P34: 0 | Q34: 0 | R34: 0 | S34: 0 | T34: 0 | U34: 0 | Y34: 0 | Z34: 500,000 | AA34: 5 | AB34: 2021-01-20 | AC34: 2021-01-29 | AD34: -500,000 | AE34: 38 | AF34: 2021-08-26 | AG34: 2021-09-09 | BF34: 0 | BG34: 0
B35: 20 | C35: 31.02 | D35: 30132215 | E35: Construcción Casetas Sanit y Sist. Alcant La Arena, Comuna de Huasco | F35: EJECUCION | G35: ATACAMA | H35: HUASCO | I35: A | J35: 1,123,225 | K35: 567,437 | L35: 1 | M35: 0 | N35: 3,000 | O35: 1,500 | P35: 750 | Q35: 0 | R35: 0 | S35: 0 | T35: 0 | U35: 49,559 | Y35: 54,809 | Z35: 509,000 | AA35: 5 | AB35: 2021-01-20 | AC35: 2021-01-29 | AD35: 0 | BF35: 509,000 | BG35: 454,191
B36: 21 | C36: 31.02 | D36: 30262523 | E36: Restauración Villa Viña de Cristo, Copiapó | F36: EJECUCION | G36: ATACAMA | H36: COPIAPO | I36: N | J36: 2,213,030 | K36: 0 | L36: 231,654 | M36: 0 | N36: 74,938 | O36: 64,308 | P36: 175,116 | Q36: 117,431 | R36: 98,210 | S36: 174,050 | T36: 179,416 | U36: 111,552 | Y36: 995,021 | Z36: 1,299,172 | AA36: 5 | AB36: 2021-01-20 | AC36: 2021-01-29 | AD36: 0 | BF36: 1,299,172 | BG36: 304,151
B37: 22 | C37: 31.02 | D37: 30263723 | E37: Construcción Polideportivo, Comuna de Tierra Amarilla | F37: EJECUCION | G37: ATACAMA | H37: TIERRA AMARILLA | I37: N | J37: 2,494,898 | K37: 0 | L37: 1,274,889 | M37: 0 | N37: 0 | O37: 0 | P37: 0 | Q37: 0 | R37: 0 | S37: 0 | T37: 0 | U37: 0 | Y37: 0 | Z37: 304,000 | AA37: 5 | AB37: 2021-01-20 | AC37: 2021-01-29 | AD37: 0 | BF37: 304,000 | BG37: 304,000
B38: 23 | C38: 31.02 | D38: 30264172 | E38: Construcción Soluciones Sanitaria Localidad de Cachiyuyo, Vallenar | F38: EJECUCION | G38: ATACAMA | H38: VALLENAR | I38: A | J38: 2,920,601 | K38: 2,916,603 | L38: 0 | M38: 0 | N38: 0 | O38: 0 | P38: 3,521 | Q38: 0 | R38: 0 | S38: 0 | T38: 0 | U38: 0 | Y38: 3,521 | Z38: 3,522 | AA38: 16 | AB38: 2021-02-26 | AC38: 2021-03-19 | AD38: 0 | BF38: 3,522 | BG38: 1
B39: 24 | C39: 31.02 | D39: 30264173 | E39: Construcción Soluciones Sanitarias Localidad de Incahuasi, Vallenar | F39: EJECUCION | G39: ATACAMA | H39: VALLENAR | I39: N | J39: 2,238,043 | K39: 0 | L39: 660,606 | M39: 0 | N39: 0 | O39: 0 | P39: 0 | Q39: 0 | R39: 0 | S39: 0 | T39: 0 | U39: 0 | Y39: 0 | Z39: 272,000 | AA39: 5 | AB39: 2021-01-20 | AC39: 2021-01-29 | AD39: 0 | BF39: 272,000 | BG39: 272,000
B40: 25 | C40: 31.02 | D40: 30264679 | E40: Mejoramiento Plaza Manutara, Sector Aeropuerto, Chañaral | F40: EJECUCION | G40: ATACAMA | H40: CHAÑARAL | I40: A | J40: 407,324 | K40: 0 | L40: 0 | M40: 0 | N40: 59,643 | O40: 51,619 | P40: 64,508 | Q40: 0 | R40: 39,001 | S40: 0 | T40: 0 | U40: 0 | Y40: 214,771 | Z40: 214,771 | AA40: 5 | AB40: 2021-01-20 | AC40: 2021-01-29 | AD40: 0 | BF40: 214,771 | BG40: 0
B41: 26 | C41: 31.02 | D41: 30273179 | E41: Ampliación y Adecuaciones Biblioteca Municipal de Caldera | F41: EJECUCION | G41: ATACAMA | H41: CALDERA | I41: A | J41: 349,797 | K41: 281,890 | L41: 0 | M41: 0 | N41: 0 | O41: 12,783 | P41: 0 | Q41: 14,927 | R41: 0 | S41: 3,579 | T41: 0 | U41: 17,061 | Y41: 48,349 | Z41: 55,813 | AA41: 5 | AB41: 2021-01-20 | AC41: 2021-01-29 | AD41: 0 | BF41: 55,813 | BG41: 7,464
B42: 27 | C42: 31.02 | D42: 30352974 | E42: Conservación Ruta Costera C-10, Sector: Caldera - Barranquilla | F42: EJECUCION | G42: ATACAMA | H42: INTERCOMUNAL | I42: A | J42: 7,371,957 | K42: 6,627,529 | L42: 4,601 | M42: 0 | N42: 223,085 | O42: 0 | P42: 0 | Q42: 0 | R42: 66 | S42: 8,860 | T42: 0 | U42: 0 | Y42: 232,011 | Z42: 250,000 | AA42: 5 | AB42: 2021-01-20 | AC42: 2021-01-29 | AD42: 18,848 | AE42: 31 | AF42: 2021-07-01 | AG42: 2021-07-23 | BF42: 268,848 | BG42: 36,837
B43: 28 | C43: 31.02 | D43: 30353373 | E43: Conservación Caminos Básicos Región de Atacama 2019-2020, Provincia de Chañaral | F43: EJECUCION | G43: ATACAMA | H43: INTERCOMUNAL | I43: A | J43: 2,164,711 | K43: 1,757,388 | L43: 1,643 | M43: 0 | N43: 0 | O43: 0 | P43: 0 | Q43: 141,560 | R43: 56,483 | S43: 0 | T43: 0 | U43: 0 | Y43: 198,043 | Z43: 330,000 | AA43: 5 | AB43: 2021-01-20 | AC43: 2021-01-29 | AD43: 26,483 | AE43: 31 | AF43: 2021-07-01 | AG43: 2021-07-23 | BF43: 356,483 | BG43: 158,440
B44: 29 | C44: 31.02 | D44: 30353376 | E44: Conservación Caminos Básicos Región de Atacama 2019-2020 | F44: EJECUCION | G44: ATACAMA | H44: INTERCOMUNAL | I44: A | J44: 3,672,975 | K44: 3,393,510 | L44: 0 | M44: 0 | N44: 0 | O44: 0 | P44: 0 | Q44: 0 | R44: 0 | S44: 0 | T44: 0 | U44: 0 | Y44: 0 | Z44: 270,000 | AA44: 5 | AB44: 2021-01-20 | AC44: 2021-01-29 | AD44: -270,000 | AE44: 38 | AF44: 2021-08-26 | AG44: 2021-09-09 | BF44: 0 | BG44: 0
B45: 30 | C45: 31.02 | D45: 30353377 | E45: Conservación de Caminos Básicos, 2016 - 2018, Provincia de Chañaral | F45: EJECUCION | G45: ATACAMA | H45: PROVINCIA CHAÑARAL | I45: A | J45: 3,194,105 | K45: 2,507,393 | L45: 0 | M45: 0 | N45: 147,836 | O45: 0 | P45: 155,628 | Q45: 70,540 | R45: 0 | S45: 0 | T45: 0 | U45: 0 | Y45: 374,004 | Z45: 400,000 | AA45: 5 | AB45: 2021-01-20 | AC45: 2021-01-29 | AD45: 0 | BF45: 400,000 | BG45: 25,996
B46: 31 | C46: 31.02 | D46: 30353379 | E46: Conservación de Caminos Básicos, 2016 - 2019, Provincia de Copiapó | F46: EJECUCION | G46: ATACAMA | H46: PROVINCIA COPIAPO | I46: A | J46: 9,497,110 | K46: 8,471,718 | L46: 0 | M46: 0 | N46: 33,016 | O46: 269,564 | P46: 240,305 | Q46: 292,378 | R46: 180,645 | S46: 265,725 | T46: 17,988 | U46: 0 | Y46: 1,299,621 | Z46: 910,000 | AA46: 5 | AB46: 2021-01-20 | AC46: 2021-01-29 | AD46: 115,038 | AE46: 19 | AF46: 2021-04-19 | AG46: 2021-05-14 | AH46: 500,000 | AI46: 38 | AJ46: 2021-08-26 | AK46: 2021-09-09 | BF46: 1,525,038 | BG46: 225,417
B47: 32 | C47: 31.02 | D47: 30353380 | E47: Conservación de Caminos Básicos, 2016 - 2019, Provincia de Huasco | F47: EJECUCION | G47: ATACAMA | H47: PROVINCIA HUASCO | I47: A | J47: 11,383,671 | K47: 6,119,512 | L47: 0 | M47: 0 | N47: 101,474 | O47: 182,423 | P47: 106,266 | Q47: 155,312 | R47: 572,981 | S47: 634,001 | T47: 419,610 | U47: 0 | Y47: 2,172,067 | Z47: 1,100,000 | AA47: 5 | AB47: 2021-01-20 | AC47: 2021-01-29 | AD47: 1,000,000 | AE47: 38 | AF47: 2021-08-26 | AG47: 2021-09-09 | BF47: 2,100,000 | BG47: -72,067
B48: 33 | C48: 31.02 | D48: 30356572 | E48: Construcción Museo Regional de Atacama, Copiapó | F48: EJECUCION | G48: ATACAMA | H48: REGIONAL | I48: N | J48: 9,876,271 | K48: 18,658 | L48: 8,157,110 | M48: 0 | N48: 0 | O48: 0 | P48: 470,789 | Q48: 60,218 | R48: 116,452 | S48: 133,396 | T48: 4,253 | U48: 257,653 | Y48: 1,042,762 | Z48: 1,010,000 | AA48: 5 | AB48: 2021-01-20 | AC48: 2021-01-29 | AD48: 10,000 | AE48: 38 | AF48: 2021-08-26 | AG48: 2021-09-09 | BF48: 1,020,000 | BG48: -22,762
B49: 34 | C49: 31.02 | D49: 30400053 | E49: Mejoramiento Eje Cívico Río de Janeiro, Freirina | F49: EJECUCION | G49: ATACAMA | H49: FREIRINA | I49: N | J49: 1,794,968 | K49: 0 | L49: 327,583 | M49: 0 | N49: 0 | O49: 0 | P49: 0 | Q49: 0 | R49: 0 | S49: 0 | T49: 0 | U49: 58,232 | Y49: 58,232 | Z49: 1,000,000 | AA49: 5 | AB49: 2021-01-20 | AC49: 2021-01-29 | AD49: 0 | BF49: 1,000,000 | BG49: 941,768
B50: 35 | C50: 31.02 | D50: 30401272 | E50: Construcción Parque Río de Oro, Población Canto de Agua, Huasco | F50: EJECUCION | G50: ATACAMA | H50: HUASCO | I50: A | J50: 63,184 | K50: 0 | L50: 0 | M50: 0 | N50: 0 | O50: 0 | P50: 0 | Q50: 0 | R50: 58,466 | S50: 0 | T50: 0 | U50: 0 | Y50: 58,466 | Z50: 63,184 | AA50: 5 | AB50: 2021-01-20 | AC50: 2021-01-29 | AD50: 0 | BF50: 63,184 | BG50: 4,718
B51: 36 | C51: 31.02 | D51: 30439572 | E51: Construcción Soluciones Sanit y Obras Complementarias Carrizal Bajo | F51: EJECUCION | G51: ATACAMA | H51: HUASCO | I51: A | J51: 2,190,082 | K51: 1,847,847 | L51: 0 | M51: 0 | N51: 78,651 | O51: 175,616 | P51: 0 | Q51: 0 | R51: 0 | S51: 0 | T51: 0 | U51: 0 | Y51: 254,267 | Z51: 310,000 | AA51: 5 | AB51: 2021-01-20 | AC51: 2021-01-29 | AD51: 0 | BF51: 310,000 | BG51: 55,733
B52: 37 | C52: 31.02 | D52: 30440745 | E52: Reposición Infraestructura de Semáforos Copiapó | F52: EJECUCION | G52: ATACAMA | H52: COPIAPO | I52: A | J52: 2,678,433 | K52: 0 | L52: 2,132,805 | M52: 0 | N52: 0 | O52: 0 | P52: 0 | Q52: 0 | R52: 48,317 | S52: 0 | T52: 0 | U52: 153,184 | Y52: 201,501 | Z52: 507,000 | AA52: 5 | AB52: 2021-01-20 | AC52: 2021-01-29 | AD52: 0 | BF52: 507,000 | BG52: 305,499
B53: 38 | C53: 31.02 | D53: 30462772 | E53: Mejoramiento Cancha de Fútbol Chanchoquin Grande Alto del Carmen | F53: EJECUCION | G53: ATACAMA | H53: ALTO DEL CARMEN | I53: N | J53: 249,432 | K53: 0 | L53: 65,383 | M53: 0 | N53: 0 | O53: 0 | P53: 0 | Q53: 0 | R53: 0 | S53: 0 | T53: 0 | U53: 0 | Y53: 0 | Z53: 180,000 | AA53: 5 | AB53: 2021-01-20 | AC53: 2021-01-29 | AD53: 0 | BF53: 180,000 | BG53: 180,000
B54: 39 | C54: 31.02 | D54: 30462773 | E54: Mejoramiento Cancha de Fútbol, La Pampa, Alto del Carmen | F54: EJECUCION | G54: ATACAMA | H54: ALTO DEL CARMEN | I54: N | J54: 257,152 | K54: 0 | L54: 65,445 | M54: 0 | N54: 0 | O54: 0 | P54: 0 | Q54: 0 | R54: 0 | S54: 0 | T54: 0 | U54: 0 | Y54: 0 | Z54: 190,000 | AA54: 5 | AB54: 2021-01-20 | AC54: 2021-01-29 | AD54: 0 | BF54: 190,000 | BG54: 190,000
B55: 40 | C55: 31.02 | D55: 30462874 | E55: Mejoramiento Plaza Aeropuerto, Chañaral | F55: EJECUCION | G55: ATACAMA | H55: CHAÑARAL | I55: A | J55: 446,906 | K55: 108,106 | L55: 0 | M55: 0 | N55: 105,437 | O55: 107,963 | P55: 40,690 | Q55: 0 | R55: 0 | S55: 0 | T55: 0 | U55: 0 | Y55: 254,090 | Z55: 257,200 | AA55: 5 | AB55: 2021-01-20 | AC55: 2021-01-29 | AD55: 0 | BF55: 257,200 | BG55: 3,110
B56: 41 | C56: 31.02 | D56: 30463876 | E56: Normalización Posta Rural Localidad Carrizalillo, Freirina | F56: EJECUCION | G56: ATACAMA | H56: FREIRINA | I56: A | J56: 174,915 | K56: 156,626 | L56: 0 | M56: 0 | N56: 32 | O56: 1,179 | P56: 5,414 | Q56: 3,500 | R56: 0 | S56: 0 | T56: 0 | U56: 0 | Y56: 10,125 | Z56: 18,000 | AA56: 5 | AB56: 2021-01-20 | AC56: 2021-01-29 | AD56: 3,500 | AE56: 19 | AF56: 2021-04-19 | AG56: 2021-05-14 | BF56: 21,500 | BG56: 11,375
B57: 42 | C57: 31.02 | D57: 30484007 | E57: Construcción Electrificación Llanos del Lagarto Comuna de Huasco | F57: EJECUCION | G57: ATACAMA | H57: HUASCO | I57: N | J57: 337553 | K57: 0 | L57: 324,424 | M57: 0 | N57: 0 | O57: 0 | P57: 0 | Q57: 0 | R57: 0 | S57: 0 | T57: 0 | U57: 0 | Y57: 0 | Z57: 10,829 | AA57: 16 | AB57: 2021-02-26 | AC57: 2021-03-19 | AD57: 0 | BF57: 10,829 | BG57: 10,829
B58: 43 | C58: 31.02 | D58: 30484287 | E58: Reposición Biblioteca Pública, Chañaral | F58: EJECUCION | G58: ATACAMA | H58: CHAÑARAL | I58: A | J58: 2,090,327 | K58: 1,811,988 | L58: 0 | M58: 0 | N58: 6,293 | O58: 35,329 | P58: 9,813 | Q58: 506 | R58: 84 | S58: 20,945 | T58: 302 | U58: 1,526 | Y58: 74,797 | Z58: 127,740 | AA58: 5 | AB58: 2021-01-20 | AC58: 2021-01-29 | AD58: 0 | BF58: 127,740 | BG58: 52,943
B59: 44 | C59: 31.02 | D59: 40000564 | E59: Reparación Estadio Techado Orlando Guaita, Copiapó | F59: EJECUCION | G59: ATACAMA | H59: COPIAPO | I59: A | J59: 1,905,262 | K59: 527,138 | L59: 0 | M59: 0 | N59: 0 | O59: 117,337 | P59: 0 | Q59: 4,600 | R59: 164,388 | S59: 0 | T59: 0 | U59: 0 | Y59: 286,325 | Z59: 147,000 | AA59: 5 | AB59: 2021-01-20 | AC59: 2021-01-29 | AD59: 13,800 | AE59: 19 | AF59: 2021-04-19 | AG59: 2021-05-14 | AH59: 243,910 | AI59: 28 | AJ59: 2021-06-10 | AK59: 2021-06-29 | AL59: 851 | AM59: 38 | AN59: 2021-08-26 | AO59: 2021-09-09 | BF59: 405,561 | BG59: 119,236
B60: 45 | C60: 31.02 | D60: 40000774 | E60: Conservación Centro Cultural Copiapó | F60: EJECUCION | G60: ATACAMA | H60: COPIAPO | I60: A | J60: 814,911 | K60: 640,433 | L60: 0 | M60: 0 | N60: 24,162 | O60: 0 | P60: 0 | Q60: 0 | R60: 0 | S60: 0 | T60: 0 | U60: 16,656 | Y60: 40,818 | Z60: 144,162 | AA60: 5 | AB60: 2021-01-20 | AC60: 2021-01-29 | AD60: 0 | BF60: 144,162 | BG60: 103,344
B61: 46 | C61: 31.02 | D61: 40000902 | E61: Reposición Pav. Pob. José Miguel Carrera, Diego de Almagro | F61: EJECUCION | G61: ATACAMA | H61: DIEGO DE ALMAGRO | I61: A | J61: 695,832 | K61: 353,885 | L61: 0 | M61: 0 | N61: 23,637 | O61: 0 | P61: 0 | Q61: 0 | R61: 0 | S61: 0 | T61: 0 | U61: 0 | Y61: 23,637 | Z61: 22,236 | AA61: 5 | AB61: 2021-01-20 | AC61: 2021-01-29 | AD61: 1,400 | AE61: 16 | AF61: 2021-02-26 | AG61: 2021-03-19 | AH61: 1 | AI61: 28 | AJ61: 2021-06-10 | AK61: 2021-06-29 | BF61: 23,637 | BG61: 0
B62: 47 | C62: 31.02 | D62: 40000983 | E62: Reposición Alumbrado Comuna de Diego de Almagro | F62: EJECUCION | G62: ATACAMA | H62: DIEGO DE ALMAGRO | I62: N | J62: 1,340,215 | K62: 0 | L62: 54,133 | M62: 0 | N62: 0 | O62: 0 | P62: 0 | Q62: 0 | R62: 0 | S62: 0 | T62: 0 | U62: 0 | Y62: 0 | Z62: 1,008,000 | AA62: 5 | AB62: 2021-01-20 | AC62: 2021-01-29 | AD62: -400,000 | AE62: 38 | AF62: 2021-08-26 | AG62: 2021-09-09 | BF62: 608,000 | BG62: 608,000
B63: 48 | C63: 31.02 | D63: 40001138 | E63: Reposición Cierre Perimetral Estadio Eladio Rojas Tierra Amarilla | F63: EJECUCION | G63: ATACAMA | H63: TIERRA AMARILLA | I63: N | J63: 298,191 | K63: 0 | L63: 265,671 | M63: 0 | N63: 0 | O63: 0 | P63: 0 | Q63: 0 | R63: 0 | S63: 0 | T63: 0 | U63: 0 | Y63: 0 | Z63: 33,000 | AA63: 5 | AB63: 2021-01-20 | AC63: 2021-01-29 | AD63: 0 | BF63: 33,000 | BG63: 33,000
B64: 49 | C64: 31.02 | D64: 40001149 | E64: Construcción Muros de Contención, Area Comercial Calle Pedro Luján, El Salado, Chañaral | F64: EJECUCION | G64: ATACAMA | H64: CHAÑARAL | I64: A | J64: 387,875 | K64: 167,527 | L64: 0 | M64: 0 | N64: 104,999 | O64: 0 | P64: 0 | Q64: 0 | R64: 56,095 | S64: 0 | T64: 0 | U64: 0 | Y64: 161,094 | Z64: 220,348 | AA64: 5 | AB64: 2021-01-20 | AC64: 2021-01-29 | AD64: 0 | BF64: 220,348 | BG64: 59,254
B65: 50 | C65: 31.02 | D65: 40002451 | E65: Reposición Plaza Ignacio Carrera Pinto | F65: EJECUCION | G65: ATACAMA | H65: COPIAPO | I65: A | J65: 268,565 | K65: 104,858 | L65: 0 | M65: 0 | N65: 38,048 | O65: 77,188 | P65: 31,957 | Q65: 0 | R65: 0 | S65: 0 | T65: 33,807 | U65: 0 | Y65: 181,000 | Z65: 163,707 | AA65: 5 | AB65: 2021-01-20 | AC65: 2021-01-29 | AD65: 17,294 | AE65: 38 | AF65: 2021-08-26 | AG65: 2021-09-09 | BF65: 181,001 | BG65: 1
B66: 51 | C66: 31.02 | D66: 40003653 | E66: Construcción Segunda Compañía de Bomberos de Caldera | F66: EJECUCION | G66: ATACAMA | H66: CALDERA | I66: N | J66: 1070529 | K66: 0 | L66: 0 | M66: 0 | N66: 0 | O66: 0 | P66: 0 | Q66: 0 | R66: 0 | S66: 0 | T66: 0 | U66: 0 | Y66: 0 | Z66: 207,372 | AA66: 28 | AB66: 2021-06-10 | AC66: 2021-06-29 | BF66: 207,372 | BG66: 207,372
B67: 52 | C67: 31.02 | D67: 40003934 | E67: Construcción Centro de Almacenaje y Emergencias, Alto Del Carmen | F67: EJECUCION | G67: ATACAMA | H67: ALTO DEL CARMEN | I67: N | J67: 1,098,504 | K67: 0 | L67: 292,492 | M67: 0 | N67: 4,400 | O67: 2,200 | P67: 2,200 | Q67: 51,463 | R67: 2,200 | S67: 2,200 | T67: 144,988 | U67: 2,200 | Y67: 211,851 | Z67: 710,000 | AA67: 5 | AB67: 2021-01-20 | AC67: 2021-01-29 | AD67: 20,800 | AE67: 19 | AF67: 2021-04-19 | AG67: 2021-05-14 | BF67: 730,800 | BG67: 518,949
B68: 53 | C68: 31.02 | D68: 40004064 | E68: Reposición Capilla y Comedor Social San Lorenzo, El Salado, Chañaral | F68: EJECUCION | G68: ATACAMA | H68: CHAÑARAL | I68: N | J68: 466,599 | K68: 0 | L68: 0 | M68: 0 | N68: 0 | O68: 0 | P68: 0 | Q68: 0 | R68: 79,139 | S68: 0 | T68: 28,857 | U68: 36,144 | Y68: 144,140 | Z68: 428,000 | AA68: 5 | AB68: 2021-01-20 | AC68: 2021-01-29 | AD68: 0 | BF68: 428,000 | BG68: 283,860
B69: 54 | C69: 31.02 | D69: 40004600 | E69: Instalación Semáforos en Intersección Jorge Rivera Con Dagoberto Godoy,Aeropuerto, Chañaral | F69: EJECUCION | G69: ATACAMA | H69: CHAÑARAL | I69: N | J69: 62,710 | K69: 0 | L69: 0 | M69: 0 | N69: 0 | O69: 0 | P69: 0 | Q69: 0 | R69: 0 | S69: 43,721 | T69: 0 | U69: 0 | Y69: 43,721 | Z69: 61,325 | AA69: 5 | AB69: 2021-01-20 | AC69: 2021-01-29 | AD69: 0 | BF69: 61,325 | BG69: 17,604
B70: 55 | C70: 31.02 | D70: 40004674 | E70: Reposición Parque Recreativo y Cultural Rancho Atacama, Comuna de Freirina, Etapa I | F70: EJECUCION | G70: ATACAMA | H70: FREIRINA | I70: N | J70: 2965767 | K70: 0 | L70: 2,228,645 | M70: 0 | N70: 0 | O70: 0 | P70: 0 | Q70: 0 | R70: 0 | S70: 0 | T70: 0 | U70: 0 | Y70: 0 | Z70: 209,562 | AA70: 28 | AB70: 44357 | AC70: 2021-06-29 | BF70: 209,562 | BG70: 209,562
B71: 56 | C71: 31.02 | D71: 40004719 | E71: Mejoramiento Parque El Pretil I Etapa, Copiapó | F71: EJECUCION | G71: ATACAMA | H71: COPIAPO | I71: A | J71: 6,363,325 | K71: 1,062,086 | L71: 0 | M71: 0 | N71: 121,721 | O71: 279,111 | P71: 463,196 | Q71: 412,869 | R71: 354,302 | S71: 330,389 | T71: 204,557 | U71: 299,362 | Y71: 2,465,506 | Z71: 3,020,000 | AA71: 5 | AB71: 2021-01-20 | AC71: 2021-01-29 | AD71: 16,500 | AE71: 19 | AF71: 2021-04-19 | AG71: 2021-05-14 | BF71: 3,036,500 | BG71: 570,994
B72: 57 | C72: 31.02 | D72: 40004814 | E72: Reposición Sede Social José Miguel Carrera, Diego de Almagro | F72: EJECUCION | G72: ATACAMA | H72: DIEGO DE ALMAGRO | I72: N | J72: 261,905 | K72: 0 | L72: 0 | M72: 0 | N72: 0 | O72: 0 | P72: 0 | Q72: 0 | R72: 0 | S72: 0 | T72: 0 | U72: 0 | Y72: 0 | Z72: 256,000 | AA72: 5 | AB72: 2021-01-20 | AC72: 2021-01-29 | AD72: 513 | AE72: 31 | AF72: 2021-07-01 | AG72: 2021-07-23 | BF72: 256,513 | BG72: 256,513
B73: 58 | C73: 31.02 | D73: 40004829 | E73: Reposición Sede Social Villa Potrerillos, Diego de Almagro | F73: EJECUCION | G73: ATACAMA | H73: DIEGO DE ALMAGRO | I73: N | J73: 338,515 | K73: 0 | L73: 168,136 | M73: 0 | N73: 0 | O73: 0 | P73: 0 | Q73: 0 | R73: 0 | S73: 0 | T73: 0 | U73: 0 | Y73: 0 | Z73: 160,900 | AA73: 5 | AB73: 2021-01-20 | AC73: 2021-01-29 | AD73: -160,900 | AE73: 19 | AF73: 2021-04-19 | AG73: 2021-05-14 | AH73: 169,860 | AI73: 25 | AJ73: 2021-05-31 | AK73: 2021-06-16 | AL73: 500 | AM73: 40 | AN73: 2021-08-31 | AO73: 2021-09-01 | BF73: 170,360 | BG73: 170,360
B74: 59 | C74: 31.02 | D74: 40004843 | E74: Ampliación Red de Agua Potable Huasco Bajo Sur, Huasco | F74: EJECUCION | G74: ATACAMA | H74: HUASCO | I74: N | J74: 1782313 | K74: 0 | L74: 361,168 | M74: 0 | N74: 0 | O74: 0 | P74: 0 | Q74: 0 | R74: 0 | S74: 0 | T74: 0 | U74: 0 | Y74: 0 | Z74: 206,440 | AA74: 28 | AB74: 44357 | AC74: 2021-06-29 | BF74: 206,440 | BG74: 206,440
B75: 60 | C75: 31.02 | D75: 40004851 | E75: Reposición Sede Vecinal José Santos Ossa, Comuna de Freirina | F75: EJECUCION | G75: ATACAMA | H75: FREIRINA | I75: N | J75: 145,604 | K75: 0 | L75: 0 | M75: 0 | N75: 0 | O75: 55,540 | P75: 0 | Q75: 34,818 | R75: 3,000 | S75: 0 | T75: 0 | U75: 31,062 | Y75: 124,420 | Z75: 140,000 | AA75: 5 | AB75: 2021-01-20 | AC75: 2021-01-29 | AD75: 0 | BF75: 140,000 | BG75: 15,580
B76: 61 | C76: 31.02 | D76: 40004874 | E76: Reposición Carpeta de Fútbol Estadio Huasco Bajo Sur | F76: EJECUCION | G76: ATACAMA | H76: HUASCO | I76: N | J76: 253,312 | K76: 0 | L76: 58,179 | M76: 0 | N76: 0 | O76: 0 | P76: 0 | Q76: 0 | R76: 52,987 | S76: 0 | T76: 64,089 | U76: 0 | Y76: 117,076 | Z76: 190,000 | AA76: 5 | AB76: 2021-01-20 | AC76: 2021-01-29 | AD76: 527 | AE76: 38 | AF76: 2021-08-26 | AG76: 2021-09-09 | BF76: 190,527 | BG76: 73,451
B77: 62 | C77: 31.02 | D77: 40004875 | E77: Reposición Plaza María Cangana, Diego de Almagro | F77: EJECUCION | G77: ATACAMA | H77: DIEGO DE ALMAGRO | I77: A | J77: 126,776 | K77: 73,347 | L77: 0 | M77: 0 | N77: 6,393 | O77: 0 | P77: 0 | Q77: 0 | R77: 0 | S77: 0 | T77: 0 | U77: 0 | Y77: 6,393 | Z77: 6,000 | AA77: 5 | AB77: 2021-01-20 | AC77: 2021-01-29 | AD77: 1,150 | AE77: 16 | AF77: 2021-02-26 | AG77: 2021-03-19 | BF77: 7,150 | BG77: 757
B78: 63 | C78: 31.02 | D78: 40004876 | E78: Reposición Pavimentos Calle Lastaria, Diego de Almagro | F78: EJECUCION | G78: ATACAMA | H78: DIEGO DE ALMAGRO | I78: N | J78: 286,623 | K78: 0 | L78: 0 | M78: 0 | N78: 0 | O78: 0 | P78: 0 | Q78: 0 | R78: 0 | S78: 0 | T78: 0 | U78: 0 | Y78: 0 | Z78: 255,000 | AA78: 5 | AB78: 2021-01-20 | AC78: 2021-01-29 | AD78: 499 | AE78: 31 | AF78: 2021-07-01 | AG78: 2021-07-23 | BF78: 255,499 | BG78: 255,499
B79: 64 | C79: 31.02 | D79: 40004894 | E79: Construción Cancha de Fútbol y Camarines, Las Tablas, Freirina | F79: EJECUCION | G79: ATACAMA | H79: FREIRINA | I79: N | J79: 403,975 | K79: 0 | L79: 0 | M79: 0 | N79: 0 | O79: 0 | P79: 0 | Q79: 0 | R79: 0 | S79: 0 | T79: 0 | U79: 0 | Y79: 0 | Z79: 397,000 | AA79: 5 | AB79: 2021-01-20 | AC79: 2021-01-29 | AD79: -397,000 | AE79: 38 | AF79: 2021-08-26 | AG79: 2021-09-09 | BF79: 0 | BG79: 0
B80: 65 | C80: 31.02 | D80: 40004902 | E80: Construcción Relleno Sanitario de Diego de Almagro | F80: EJECUCION | G80: ATACAMA | H80: DIEGO DE ALMAGRO | I80: N | J80: 1,392,160 | K80: 0 | L80: 208,134 | M80: 0 | N80: 0 | O80: 0 | P80: 0 | Q80: 0 | R80: 0 | S80: 0 | T80: 0 | U80: 0 | Y80: 0 | Z80: 1,010,000 | AA80: 5 | AB80: 2021-01-20 | AC80: 2021-01-29 | AD80: 0 | BF80: 1,010,000 | BG80: =+BF80-Y80 -> 1,010,000
B81: 66 | C81: 31.02 | D81: 40004904 | E81: Reposición Plaza Nueva Esperanza Pob. Portal del Inca, Diego de Almagro | F81: EJECUCION | G81: ATACAMA | H81: DIEGO DE ALMAGRO | I81: A | J81: 174,623 | K81: 0 | L81: 0 | M81: 0 | N81: 88,820 | O81: 75,055 | P81: 958 | Q81: 1,452 | R81: 0 | S81: 0 | T81: 0 | U81: 0 | Y81: =SUM(M81:X81) -> 166,285 | Z81: 154,000 | AA81: 5 | AB81: 2021-01-20 | AC81: 2021-01-29 | AD81: 16,932 | AE81: 28 | AF81: 2021-06-10 | AG81: 2021-06-29 | BF81: =+Z81+AD81+AH81+AL81+AP81+AT81+AX81+BB81 -> 170,932 | BG81: 4,647
B82: =+B81+1 -> 67 | C82: 31.02 | D82: 40009168 | E82: Mejoramiento Puente Amolanas En Ruta C-447, Comuna De Tierra Amarilla 4 | F82: EJECUCION | G82: ATACAMA | H82: TIERRA AMARILLA | I82: N | J82: 588,580 | K82: 0 | L82: 6,104 | M82: 0 | N82: 0 | O82: 0 | P82: 0 | Q82: 0 | R82: 0 | S82: 0 | T82: 0 | U82: 0 | Y82: 0 | Z82: 50,000 | AA82: 5 | AB82: 2021-01-20 | AC82: 2021-01-29 | AD82: 0 | BF82: 50,000 | BG82: 50,000
B83: 68 | C83: 31.02 | D83: 40009169 | E83: Mejoramiento Puente Tirado, Localidad De Pabellón, Comuna De Tierra Amarilla | F83: EJECUCION | G83: ATACAMA | H83: TIERRA AMARILLA | I83: N | J83: 732,383 | L83: 978 | M83: 0 | N83: 0 | O83: 0 | P83: 0 | Q83: 0 | R83: 0 | S83: 0 | T83: 0 | U83: 0 | Y83: 0 | Z83: 50,000 | AA83: 5 | AB83: 2021-01-20 | AC83: 2021-01-29 | AD83: 0 | BF83: 50,000 | BG83: 50,000
B84: 69 | C84: 31.02 | D84: 40009170 | E84: Construcción Puente y Accesos, Localidad de Los Loros, Comuna de Freirina | F84: EJECUCION | G84: ATACAMA | H84: FREIRINA | I84: N | J84: 797,653 | K84: 0 | L84: 242,420 | M84: 0 | N84: 0 | O84: 0 | P84: 0 | Q84: 0 | R84: 0 | S84: 0 | T84: 0 | U84: 0 | Y84: 0 | Z84: 550,000 | AA84: 5 | AB84: 2021-01-20 | AC84: 2021-01-29 | AD84: 0 | BF84: 550,000 | BG84: 550,000
B85: 70 | C85: 31.02 | D85: 40010443 | E85: Construcción Espacio Público Mirador Cerro La Cruz, Estación Paipote Copiapó | F85: EJECUCION | G85: ATACAMA | H85: COPIAPO | I85: N | J85: 2,479,686 | K85: 0 | L85: 720,994 | M85: 0 | N85: 0 | O85: 0 | P85: 35,567 | Q85: 141,213 | R85: 74,819 | S85: 185,155 | T85: 110,094 | U85: 0 | Y85: 546,849 | Z85: 1,510,000 | AA85: 5 | AB85: 2021-01-20 | AC85: 2021-01-29 | AD85: 0 | BF85: 1,510,000 | BG85: 963,151
B86: 71 | C86: 31.02 | D86: 40012731 | E86: Mejoramiento Taludes Avenida Los Canales, Vallenar | F86: EJECUCION | G86: ATACAMA | H86: VALLENAR | I86: N | J86: 1,308,969 | K86: 0 | L86: 49,023 | M86: 0 | N86: 119,018 | O86: 268,913 | P86: 244,595 | Q86: 103,355 | R86: 86,801 | S86: 85,960 | T86: 136,837 | U86: 0 | Y86: 1,045,480 | Z86: 800,000 | AA86: 5 | AB86: 2021-01-20 | AC86: 2021-01-29 | AD86: 200,000 | AE86: 28 | AF86: 2021-06-10 | AG86: 2021-06-29 | AH86: 174,128 | AI86: 38 | AJ86: 2021-08-26 | AK86: 2021-09-09 | BF86: 1,174,128 | BG86: 128,648
B87: 72 | C87: 31.02 | D87: 40012738 | E87: Reposición Skate Park Paseo Ribereño, vallenar | F87: EJECUCION | G87: ATACAMA | H87: VALLENAR | I87: N | J87: 628,664 | K87: 0 | L87: 0 | M87: 0 | N87: 0 | O87: 0 | P87: 0 | Q87: 0 | R87: 0 | S87: 0 | T87: 0 | U87: 0 | Y87: 0 | Z87: 600,000 | AA87: 5 | AB87: 2021-01-20 | AC87: 2021-01-29 | AD87: 0 | BF87: 600,000 | BG87: 600,000
B88: 73 | C88: 31.02 | D88: 40013572 | E88: Construcción Plaza Corazón, Chañaral | F88: EJECUCION | G88: ATACAMA | H88: CHAÑARAL | I88: N | J88: 482,287 | K88: 0 | L88: 24,114 | M88: 0 | N88: 0 | O88: 0 | P88: 0 | Q88: 0 | R88: 0 | S88: 0 | T88: 0 | U88: 0 | Y88: 0 | Z88: 400,000 | AA88: 5 | AB88: 2021-01-20 | AC88: 2021-01-29 | AD88: 0 | BF88: 400,000 | BG88: 400,000
B89: 74 | C89: 31.02 | D89: 40015849 | E89: Conservación Escuelas y Liceos Copiapó | F89: EJECUCION | G89: ATACAMA | H89: COPIAPO | I89: N | J89: 4,231,153 | K89: 0 | L89: 1,634,644 | M89: 0 | N89: 0 | O89: 192,147 | P89: 196,529 | Q89: 117,761 | R89: 0 | S89: 47,771 | T89: 145,505 | U89: 16,969 | Y89: 716,682 | Z89: 2,515,000 | AA89: 5 | AB89: 2021-01-20 | AC89: 2021-01-29 | AD89: 0 | BF89: 2,515,000 | BG89: 1,798,318
B90: 75 | C90: 31.02 | D90: 40016502 | E90: Conservación Escuelas y Liceos Provincia del Huasco | F90: EJECUCION | G90: ATACAMA | H90: INTERCOMUNAL | I90: N | J90: 3,595,518 | K90: 0 | L90: 2,082,628 | M90: 0 | N90: 4,430 | O90: 4,430 | P90: 280,013 | Q90: 387,550 | R90: 245,141 | S90: 227,442 | T90: 87,217 | U90: 4,430 | Y90: 1,240,653 | Z90: 1,500,000 | AA90: 5 | AB90: 2021-01-20 | AC90: 2021-01-29 | AD90: 31,010 | AE90: 16 | AF90: 2021-02-26 | AG90: 2021-03-19 | AH90: 500,000 | AI90: 38 | AJ90: 2021-08-26 | AK90: 2021-09-09 | BF90: 2,031,010 | BG90: 790,357
B91: 76 | C91: 31.02 | D91: 40016698 | E91: Construcción Centro Oncológico de la Región de Atacama | F91: DISEÑO | G91: ATACAMA | H91: REGIONAL | I91: N | J91: 250,000 | K91: 0 | L91: 0 | M91: 0 | N91: 0 | O91: 0 | P91: 0 | Q91: 0 | R91: 0 | S91: 0 | T91: 0 | U91: 0 | Y91: 0 | Z91: 70,631 | AA91: 16 | AB91: 2021-02-26 | AC91: 2021-03-19 | AD91: 0 | BF91: 70,631 | BG91: 70,631
B92: 77 | C92: 31.02 | D92: 40022437 | E92: Conservación Calles y Vías II Etapa, Copiapó | F92: EJECUCION | G92: ATACAMA | H92: COPIAPO | I92: N | J92: 6,274,105 | K92: 0 | L92: 0 | M92: 0 | N92: 376,582 | O92: 676,838 | P92: 733,508 | Q92: 745,628 | R92: 1,682,910 | S92: 2,300 | T92: 576,728 | U92: 238,841 | Y92: 5,033,335 | Z92: 3,010,000 | AA92: 5 | AB92: 2021-01-20 | AC92: 2021-01-29 | AD92: 10,700 | AE92: 19 | AF92: 2021-04-19 | AG92: 2021-05-14 | AH92: 1,000,000 | AI92: 28 | AJ92: 2021-06-10 | AK92: 2021-06-29 | AL92: 1,000,000 | AM92: 38 | AN92: 2021-08-26 | AO92: 2021-09-09 | BF92: 5,020,700 | BG92: -12,635
B93: 78 | C93: 31.02 | D93: 40022951 | E93: Conservación Oficina Copiapó y Dirección Regional del Registro Civil de Atacama | F93: EJECUCION | G93: ATACAMA | H93: REGIONAL | I93: N | J93: 377,817 | K93: 0 | L93: 0 | M93: 0 | N93: 0 | O93: 0 | P93: 0 | Q93: 0 | R93: 0 | S93: 0 | T93: 0 | U93: 0 | Y93: 0 | Z93: 56,070 | AA93: 19 | AB93: 2021-04-19 | AC93: 2021-05-14 | AD93: 0 | AH93: 0 | BF93: 56,070 | BG93: 56,070
B94: 79 | C94: 31.02 | D94: 40005634 | E94: Reposición Pavimentos Calle Latorre, Diego de Almagro | F94: EJECUCION | G94: ATACAMA | H94: DIEGO DE ALMAGRO | I94: N | J94: 442,480 | K94: 0 | L94: 368,917 | M94: 0 | N94: 0 | O94: 0 | P94: 0 | Q94: 0 | R94: 0 | S94: 0 | T94: 0 | U94: 0 | Y94: 0 | Z94: 72,349 | AA94: 31 | AB94: 2021-07-01 | AC94: 2021-07-23 | BF94: 72,349 | BG94: 72,349
B95: 80 | C95: 31.02 | D95: 40021973 | E95: Construcción Plaza Villa 4 de Octubre, Diego de Almagro | F95: EJECUCION | G95: ATACAMA | H95: DIEGO DE ALMAGRO | I95: N | J95: 840,531 | K95: 0 | L95: 416,632 | M95: 0 | N95: 0 | O95: 0 | P95: 0 | Q95: 0 | R95: 0 | S95: 0 | T95: 0 | U95: 0 | Y95: 0 | Z95: 157,511 | AA95: 31 | AB95: 2021-07-01 | AC95: 2021-07-23 | BF95: 157,511 | BG95: 157,511
B96: 81 | C96: 31.02 | D96: 30135440 | E96: Construcción Paseo San Francisco, Freirina | F96: EJECUCION | G96: ATACAMA | H96: FREIRINA | I96: N | J96: 1,599,802 | K96: 0 | L96: 1,355,671 | M96: 0 | N96: 0 | O96: 0 | P96: 0 | Q96: 0 | R96: 0 | S96: 0 | T96: 0 | U96: 0 | Y96: 0 | Z96: 238,022 | AA96: 31 | AB96: 2021-07-01 | AC96: 2021-07-23 | BF96: 238,022 | BG96: 238,022
B97: 82 | C97: 31.02 | D97: 40021578 | E97: Mejoramiento Pasaje Lippe, Chañaral | F97: EJECUCION | G97: ATACAMA | H97: CHAÑARAL | I97: N | J97: 176,005 | K97: 0 | L97: 0 | M97: 0 | N97: 0 | O97: 0 | P97: 0 | Q97: 0 | R97: 0 | S97: 0 | T97: 0 | U97: 0 | Y97: 0 | Z97: 52,460 | AA97: 38 | AB97: 2021-08-26 | AC97: 2021-09-09 | BF97: 52,460 | BG97: 52,460
B98: 83 | C98: 31.02 | D98: 30132180 | E98: Reposición Plaza de Armas Manuel Antonio Matta, Chañaral | F98: EJECUCION | G98: ATACAMA | H98: CHAÑARAL | I98: N | J98: 2,898,740 | K98: 0 | L98: 725,389 | M98: 0 | N98: 0 | O98: 0 | P98: 0 | Q98: 0 | R98: 0 | S98: 0 | T98: 0 | U98: 0 | Y98: 0 | Z98: 52,460 | AA98: 38 | AB98: 2021-08-26 | AC98: 2021-09-09 | BF98: 52,460 | BG98: 52,460
B99: 84 | C99: 31.02 | D99: 40004774 | E99: Construcción Pista Patinaje Tierra Viva, Copiapó | F99: EJECUCION | G99: ATACAMA | H99: COPIAPO | I99: N | J99: 1,098,761 | K99: 0 | L99: 1,035,819 | M99: 0 | N99: 0 | O99: 0 | P99: 0 | Q99: 0 | R99: 0 | S99: 0 | T99: 0 | U99: 0 | Y99: 0 | Z99: 57,244 | AA99: 38 | AB99: 2021-08-26 | AC99: 2021-09-09 | BF99: 57,244 | BG99: 57,244
B100: 85 | C100: 31.02 | D100: 40017825 | E100: Reposición Espacios Públicos, Estación Paipote Copiapó | F100: EJECUCION | G100: ATACAMA | H100: COPIAPO | I100: N | J100: 4,800,844 | K100: 0 | L100: 593,257 | M100: 0 | N100: 0 | O100: 0 | P100: 0 | Q100: 0 | R100: 0 | S100: 0 | T100: 0 | U100: 0 | Y100: 0 | Z100: 87,787 | AA100: 38 | AB100: 2021-08-26 | AC100: 2021-09-09 | BF100: 87,787 | BG100: 87,787
B101: 86 | C101: 31.02 | D101: 40021575 | E101: Reposición Jardín Infantil Pulgarcito, Estación Paipote, Copiapó | F101: EJECUCION | G101: ATACAMA | H101: COPIAPO | I101: N | J101: 2,049,706 | K101: 0 | L101: 721,706 | M101: 0 | N101: 0 | O101: 0 | P101: 0 | Q101: 0 | R101: 0 | S101: 0 | T101: 0 | U101: 0 | Y101: 0 | Z101: 62,000 | AA101: 38 | AB101: 2021-08-26 | AC101: 2021-09-09 | BF101: 62,000 | BG101: 62,000
B102: 87 | C102: 31.02 | D102: 40021421 | E102: Reposición Edificio Consistorial I. Municipalidad de Copiapó | F102: DISEÑO | G102: ATACAMA | H102: COPIAPO | I102: N | J102: 472,297 | K102: 0 | L102: 109,310 | M102: 0 | N102: 0 | O102: 0 | P102: 0 | Q102: 0 | R102: 0 | S102: 0 | T102: 0 | U102: 0 | Y102: 0 | Z102: 55,112 | AA102: 38 | AB102: 2021-08-26 | AC102: 2021-09-09 | BF102: 55,112 | BG102: 55,112
B103: 88 | C103: 31.02 | D103: 40010434 | E103: Construcción Centro de Servicios Estación Paipote, Copiapó | F103: DISEÑO | G103: ATACAMA | H103: COPIAPO | I103: N | J103: 31,968 | K103: 0 | L103: 0 | M103: 0 | N103: 0 | O103: 0 | P103: 0 | Q103: 0 | R103: 0 | S103: 0 | T103: 0 | U103: 0 | Y103: 0 | Z103: 60,947 | AA103: 38 | AB103: 2021-08-26 | AC103: 2021-09-09 | BF103: 60,947 | BG103: 60,947
B104: 89 | C104: 31.02 | D104: 40004894 | E104: Construcción cancha de Fútbol y camarines Las Tablas, Freirina | F104: EJECUCION | G104: ATACAMA | H104: FREIRINA | I104: N | J104: 403,975 | K104: 0 | L104: 0 | M104: 0 | N104: 0 | O104: 0 | P104: 0 | Q104: 0 | R104: 0 | S104: 700 | T104: 1,400 | U104: 73,012 | Y104: 75,112 | Z104: 171,291 | AA104: 40 | AB104: 2021-08-31 | AC104: 2021-09-01 | BF104: 171,291 | BG104: 96,179
Y105: 0 | BF105: 0 | BG105: 0
Y106: 0 | BF106: 0 | BG106: 0
Y107: 0 | BF107: 0 | BG107: 0
Y108: 0 | BF108: 0 | BG108: 0
Y109: 0 | BF109: 0 | BG109: 0
Y110: 0 | BF110: 0 | BG110: =+BF110-Y110 -> 0
B111: Total M$ | K111: =SUBTOTAL(9,K16:K105) -> 82,566,606 | L111: =SUBTOTAL(9,L16:L105) -> 40,728,637 | M111: 0 | N111: 2,581,619 | O111: 3,325,882 | P111: 4,244,741 | Q111: =SUBTOTAL(9,Q16:Q105) -> 4,009,474 | R111: 5,012,586 | S111: 3,093,589 | T111: =SUBTOTAL(9,T16:T108) -> 3,378,790 | U111: 2,112,644 | V111: 0 | W111: 0 | X111: 0 | Y111: =SUBTOTAL(9,Y16:Y105) -> 27,759,325 | Z111: =SUBTOTAL(9,Z16:Z105) -> 44,913,961 | AD111: =SUBTOTAL(9,AD16:AD105) -> -179,083 | AH111: =SUBTOTAL(9,AH16:AH105) -> 2,975,088 | AL111: =SUBTOTAL(9,AL16:AL105) -> 1,532,179 | AP111: =SUBTOTAL(9,AP16:AP105) -> -691,893 | AT111: =SUBTOTAL(9,AT16:AT105) -> -1,891,318 | AX111: =SUBTOTAL(9,AX16:AX105) -> -514,225 | BB111: =SUBTOTAL(9,BB16:BB105) -> -1,611,671 | BF111: =SUBTOTAL(9,BF16:BF105) -> 44,533,038 | BG111: =SUBTOTAL(9,BG16:BG105) -> 16,773,713
BF113: =+'[3]INVERSIÓN 31.'!$O$55+'[3]INVERSIÓN 31.'!$P$55+[2]Resoluciones!$O$9113+[2]Resoluciones!$P$9113 -> 1,280,455
BF114: =+BF111-BF113 -> 43,252,583

Sheet 0564 Coquimbo
B9: INFORMACIÓN RESOLUCIONES GORE ST 31 PROGRAMA INVERSIÓN REGIONAL
B12: Ley Inicial 2021 | C12: Ley Vigente 2021 | D12: Ley Vigente Medicion 2021 | E12: Gasto Acumulado
B13: 40,872,537 | C13: 40,946,474 | D13: 38,109,520 | E13: =+Y148 -> 26,309,006
Z14: IDENTIFICACIÓN INICIAL | AD14: MODIFICACIÓN | AH14: MODIFICACIÓN | AL14: MODIFICACIÓN | AP14: MODIFICACIÓN | AT14: MODIFICACIÓN | AX14: Programa Financiero
B15: N° | C15: ST-Item | D15: Código BIP | E15: Nombre de proyecto | F15: Etapa | G15: Región | H15: Comuna | I15: Tipo A=Arrastre , N= Nuevo | J15: Costo Total Ficha IDI | K15: Ejecutado Años Anteriores FICHA IDI | L15: Saldo Proximos Años Ficha IDI | M15: Enero mensual SIGFE 2021 | N15: Febrero mensual SIGFE 2021 | O15: Marzo mensual SIGFE 2021 | P15: Abril mensual SIGFE 2021 | Q15: Mayo mensual SIGFE 2021 | R15: Junio mensual SIGFE 2021 | S15: Julio mensual SIGFE 2021 | T15: Agosto mensual SIGFE 2021 | U15: Septiembre mensual SIGFE 2021 | V15: Octubre mensual SIGFE 2021 | W15: Noviembre mensual SIGFE 2021 | X15: Diciembre mensual SIGFE 2021 | Y15: Total Ejecución acumulada 2021 | Z15: Monto Identificado Año 2021 | AA15: N° Resolución | AB15: Fecha Resolución | AC15: Fecha de Toma de Razón | AD15: Monto Modificado 2021 | AE15: N° Resolución | AF15: Fecha Resolución | AG15: Fecha de Toma de Razón | AH15: Monto Modificado 2021 | AI15: N° Resolución | AJ15: Fecha Resolución | AK15: Fecha de Toma de Razón | AL15: Monto Modificado 2021 | AM15: N° Resolución | AN15: Fecha Resolución | AO15: Fecha de Toma de Razón | AP15: Monto Modificado 2021 | AQ15: N° Resolución | AR15: Fecha Resolución | AS15: Fecha de Toma de Razón | AT15: Monto Modificado 2021 | AU15: N° Resolución | AV15: Fecha Resolución | AW15: Fecha de Toma de Razón | AX15: Total Identificado | AY15: Saldo por Ejecutar
B16: 1 | C16: 31.02 | D16: 20169586-0 | E16: CONSTRUCCION EDIFICIO CONSISTORIAL DE COQUIMBO | F16: Ejecución | G16: COQUIMBO | H16: COQUIMBO | I16: A | J16: =29106993-7157499 -> 21,949,494 | K16: =17344677 -> 17,344,677 | L16: =329899-329899 -> 0 | M16: 0 | N16: 2,684,380 | O16: 0 | P16: 126,052 | Q16: =0 -> 0 | R16: 26,906 | S16: 34,416 | Y16: =SUM(M16:X16) -> 2,871,754 | Z16: =3903689+92025+92025 -> 4,087,739 | AA16: 01 | AB16: 2021-01-13 | AC16: 2021-02-16 | AD16: =40000 -> 40,000 | AE16: 10 | AF16: 2021-04-13 | AG16: 2021-04-30 | AH16: =18000+270158 -> 288,158 | AI16: 16 | AJ16: 2021-05-14 | AK16: 2021-05-31 | AL16: 37,351 | AM16: 23 | AN16: 2021-06-08 | AO16: 2021-06-22 | AX16: =+Z16+AD16+AH16+AL16+AP16+AT16 -> 4,453,248 | AY16: =+AX16-Y16 -> 1,581,494
B17: 2 | C17: 31.02 | D17: 30123628-0 | E17: MEJORAMIENTO CALLE EL ESFUERZO DE PICHIDANGUI, COMUNA DE LOS VILOS | F17: Ejecución | G17: COQUIMBO | H17: LOS VILOS | I17: A | J17: =270179 -> 270,179 | K17: =2360 -> 2,360 | L17: =0 -> 0 | M17: 0 | N17: 0 | O17: 64,441 | P17: =6924 -> 6,924 | R17: 2,000 | S17: 49,681 | T17: 2,000 | U17: 2,000 | Y17: 127,046 | Z17: =12000+254781 -> 266,781 | AA17: 01 | AB17: 2021-01-13 | AC17: 2021-02-16 | AX17: =+Z17+AD17+AH17+AL17+AP17+AT17 -> 266,781 | AY17: =+AX17-Y17 -> 139,735
B18: 3 | C18: 31.02 | D18: 30134340-0 | E18: CONSTRUCCIÓN PARQUE URBANO SECTOR EL BOSQUE, LOS VILOS | F18: Ejecución | G18: COQUIMBO | H18: LOS VILOS | I18: A | J18: =718214 -> 718,214 | K18: =592 -> 592 | L18: =0 -> 0 | M18: 0 | N18: 100,956 | O18: =103318 -> 103,318 | P18: =2216+75327 -> 77,543 | Q18: =2216+57672 -> 59,888 | R18: 96,305 | S18: 59,600 | T18: 38,581 | U18: 50,153 | Y18: 586,344 | Z18: =13297+704325 -> 717,622 | AA18: 01 | AB18: 2021-01-13 | AC18: 2021-02-16 | AX18: 717,622 | AY18: 131,278
B19: 4 | C19: 31.02 | D19: 40002659-0 | E19: HABILITACIÓN UNIDAD DE MEDICINA HIPERBÁRICA, HOSPITAL DE COQUIMBO | F19: Ejecucion | G19: COQUIMBO | H19: COQUIMBO | I19: A | J19: =11462+366157 -> 377,619 | K19: =11462+14326 -> 25,788 | L19: =0 -> 0 | M19: 0 | N19: 344,089 | Y19: 344,089 | Z19: =344090 -> 344,090 | AA19: 01 | AB19: 2021-01-13 | AC19: 2021-02-16 | AX19: 344,090 | AY19: 1
B20: 5 | C20: 31.02 | D20: 30460171-0 | E20: REPOSICIÓN PLAZA DE ACCESO, LOS VILOS | F20: Ejecucion | G20: COQUIMBO | H20: LOS VILOS | I20: A | J20: =670476 -> 670,476 | K20: =577 -> 577 | L20: =13398 -> 13,398 | M20: 0 | N20: 0 | O20: 69,817 | P20: =40969 -> 40,969 | Q20: =2100+35948 -> 38,048 | R20: 36,548 | S20: 12,161 | T20: 30,310 | U20: 2,100 | Y20: 229,953 | Z20: =27899+627974 -> 655,873 | AA20: 01 | AB20: 2021-01-13 | AC20: 2021-02-16 | AD20: -11,099 | AE20: 24 | AF20: 2021-06-16 | AG20: 2021-06-25 | AX20: 644,774 | AY20: 414,821
B21: 6 | C21: 31.02 | D21: 30483947-0 | E21: MEJORAMIENTO PLAZA SERGIO SILVA, LOS VILOS | F21: Diseño | G21: COQUIMBO | H21: LOS VILOS | I21: A | J21: =14678 -> 14,678 | K21: =277 -> 277 | L21: =1 -> 1 | M21: 0 | N21: 0 | O21: 9,600 | Y21: 9,600 | Z21: =4800 -> 4,800 | AA21: 01 | AB21: 2021-01-13 | AC21: 2021-02-16 | AD21: =9600 -> 9,600 | AE21: 05 | AF21: 2021-02-26 | AG21: 2021-03-26 | AX21: 14,400 | AY21: 4,800
B22: 7 | C22: 31.02 | D22: 30070093-0 | E22: NORMALIZACIÓN HOSPITAL DR HUMBERTO ELORZA CORTÉS, ILLAPEL | F22: Diseño | G22: COQUIMBO | H22: ILLAPEL | I22: N | J22: =1567287 -> 1,567,287 | K22: =16439 -> 16,439 | L22: =617430 -> 617,430 | M22: 0 | N22: 0 | O22: 103,445 | P22: =0 -> 0 | Q22: =0 -> 0 | R22: 127,574 | U22: 137,927 | Y22: 368,946 | Z22: =932990 -> 932,990 | AA22: 01 | AB22: 2021-01-13 | AC22: 2021-02-16 | AD22: -669,249 | AE22: 10 | AF22: 2021-04-13 | AG22: 2021-04-30 | AH22: 40,000 | AI22: 11 | AJ22: 2021-05-07 | AK22: 2021-05-18 | AL22: 66,000 | AM22: 38 | AN22: 2021-08-25 | AO22: 2021-09-10 | AX22: 369,741 | AY22: 795
B23: 8 | C23: 31.02 | D23: 40003818-0 | E23: RESTAURACIÓN IGLESIA DE SOTAQUÍ, COMUNA DE OVALLE | F23: Diseño | G23: COQUIMBO | H23: OVALLE | I23: A | J23: 44,239 | K23: =2623 -> 2,623 | L23: =0 -> 0 | M23: 0 | N23: 0 | O23: 0 | Y23: 0 | Z23: =41615 -> 41,615 | AA23: 01 | AB23: 2021-01-13 | AC23: 2021-02-16 | AD23: -29,725 | AE23: 24 | AF23: 2021-06-16 | AG23: 2021-06-25 | AX23: 11,890 | AY23: 11,890
B24: 9 | C24: 31.02 | D24: 30124513-0 | E24: AMPLIACIÓN EDIFICIO CONSISTORIAL, ANDACOLLO | F24: Ejecución | G24: COQUIMBO | H24: ANDACOLLO | I24: A | J24: =6338498 -> 6,338,498 | K24: =1354638 -> 1,354,638 | L24: =2000427 -> 2,000,427 | M24: 0 | N24: 556,706 | O24: 273,886 | P24: =353739 -> 353,739 | Q24: =347787 -> 347,787 | R24: 418,756 | S24: 450,705 | T24: 387,471 | Y24: 2,789,050 | Z24: =20291+1626150 -> 1,646,441 | AA24: 01 | AB24: 2021-01-13 | AC24: 2021-02-16 | AD24: =542017 -> 542,017 | AE24: 10 | AF24: 2021-04-13 | AG24: 2021-04-30 | AH24: 770,777 | AI24: 24 | AJ24: 2021-06-16 | AK24: 2021-06-25 | AL24: =-10000+5000+5000 -> 0 | AM24: 34 | AN24: 2021-08-03 | AO24: 2021-09-10 | AP24: 50,000 | AQ24: 38 | AR24: 2021-08-25 | AS24: 2021-09-10 | AX24: 3,009,235 | AY24: 220,185
B25: 10 | C25: 31.02 | D25: 30085388-0 | E25: REPOSICIÓN TENENCIA PAIHUANO COMUNA PAIHUANO | F25: Ejecución | G25: COQUIMBO | H25: PAIHUANO | I25: N | J25: =1371520 -> 1,371,520 | K25: =9566 -> 9,566 | L25: =608844 -> 608,844 | M25: 0 | N25: 241,074 | O25: 91,533 | Q25: =800+102975 -> 103,775 | R25: 800 | S25: 800 | T25: 800 | U25: 115,216 | Y25: 553,998 | Z25: =8644+720321 -> 728,965 | AA25: 01 | AB25: 2021-01-13 | AC25: 2021-02-16 | AD25: =6905-6905 -> 0 | AE25: 10 | AF25: 2021-04-13 | AG25: 2021-04-30 | AH25: -265,000 | AI25: 24 | AJ25: 2021-06-16 | AK25: 2021-06-25 | AL25: =-10000+5000+5000 -> 0 | AM25: 34 | AN25: 2021-08-03 | AO25: 2021-09-10 | AP25: 120,000 | AQ25: 38 | AR25: 2021-08-25 | AS25: 2021-09-10 | AX25: 583,965 | AY25: 29,967
B26: 11 | C26: 31.02 | D26: 30097621-0 | E26: HABILITACIÓN CASA DE LA MEMORIA COMUNA DE COQUIMBO | F26: Ejecución | G26: COQUIMBO | H26: COQUIMBO | I26: A | J26: =237431 -> 237,431 | K26: =203167 -> 203,167 | L26: =0 -> 0 | M26: 0 | N26: 19,142 | O26: =0 -> 0 | Y26: 19,142 | Z26: =19143+7414+4414 -> 30,971 | AA26: 01 | AB26: 2021-01-13 | AC26: 2021-02-16 | AD26: 3,292 | AE26: 24 | AF26: 2021-06-16 | AG26: 2021-06-25 | AX26: 34,263 | AY26: 15,121
B27: 12 | C27: 31.02 | D27: 40006352-0 | E27: REPOSICIÓN CENTRO COMUNITARIO DE REHABILITACIÓN, COMUNA DE MONTE PATRIA | F27: Ejecución | G27: COQUIMBO | H27: MONTE PATRIA | I27: A | J27: =1130643 -> 1,130,643 | K27: =434552 -> 434,552 | L27: =87263 -> 87,263 | M27: =0 -> 0 | N27: 105,193 | O27: 73,899 | P27: =800+136999 -> 137,799 | Q27: =800+122288 -> 123,088 | R27: 92,310 | S27: 30,584 | Y27: 562,873 | Z27: =20990+669971 -> 690,961 | AA27: 01 | AB27: 2021-01-13 | AC27: 2021-02-16 | AD27: -16,005 | AE27: 10 | AF27: 2021-04-13 | AG27: 2021-04-30 | AX27: 674,956 | AY27: 112,083
B28: 13 | C28: 31.02 | D28: 30001032-0 | E28: REPOSICIÓN CONSULTORIO GENERAL URBANO DE SAN JUAN | F28: Ejecución | G28: COQUIMBO | H28: COQUIMBO | I28: A | J28: =4590307 -> 4,590,307 | K28: =4480641 -> 4,480,641 | L28: =0 -> 0 | M28: =0 -> 0 | N28: 340 | O28: =0 -> 0 | Y28: 340 | Z28: =67854+41811 -> 109,665 | AA28: 01 | AB28: 2021-01-13 | AC28: 2021-02-16 | AX28: 109,665 | AY28: 109,325
B29: 14 | C29: 31.02 | D29: 30066098-0 | E29: CONSTRUCCIÓN CESFAM II EN SECTOR TIERRAS BLANCAS, COQUIMBO | F29: Ejecución | G29: COQUIMBO | H29: COQUIMBO | I29: A | J29: =5700748 -> 5,700,748 | K29: =5581804 -> 5,581,804 | L29: =0 -> 0 | M29: =0 -> 0 | N29: =0 -> 0 | O29: 947 | P29: =3175 -> 3,175 | Q29: =0 -> 0 | R29: 3,528 | T29: 1,187 | U29: 4,218 | Y29: 13,055 | Z29: =95588+23356 -> 118,944 | AA29: 01 | AB29: 2021-01-13 | AC29: 2021-02-16 | AD29: -50,000 | AE29: 10 | AF29: 2021-04-13 | AG29: 2021-04-30 | AX29: 68,944 | AY29: 55,889
B30: 15 | C30: 31.02 | D30: 30045318-0 | E30: CONSTRUCCIÓN III CESFAM URBANO OVALLE | F30: Ejecución | G30: COQUIMBO | H30: OVALLE | I30: A | J30: =5231488 -> 5,231,488 | K30: =5177411 -> 5,177,411 | L30: =0 -> 0 | M30: =0 -> 0 | N30: =0 -> 0 | O30: =0 -> 0 | Y30: 0 | Z30: =53260+814 -> 54,074 | AA30: 01 | AB30: 2021-01-13 | AC30: 2021-02-16 | AX30: 54,074 | AY30: 54,074
B31: 16 | C31: 31.02 | D31: 30098093-0 | E31: CONSTRUCCIÓN INFR.PESQUERA CALETA PUERTO MANSO, CANELA | F31: Ejecución | G31: COQUIMBO | H31: CANELA | I31: A | J31: =706892-197811 -> 509,081 | K31: =7081 -> 7,081 | L31: =0 -> 0 | M31: =0 -> 0 | N31: =0 -> 0 | O31: 259,606 | P31: =0 -> 0 | Q31: =180493 -> 180,493 | R31: 41,400 | Y31: 481,499 | Z31: =502000 -> 502,000 | AA31: 01 | AB31: 2021-01-13 | AC31: 2021-02-16 | AX31: 502,000 | AY31: 20,501
B32: 17 | C32: 31.02 | D32: 30044384-0 | E32: REPOSICIÓN CES FAMILIAR, RÍO HURTADO | F32: Ejecución | G32: COQUIMBO | H32: RÍO HURTADO | I32: A | J32: =3363212 -> 3,363,212 | K32: =3271746 -> 3,271,746 | L32: =0 -> 0 | M32: =0 -> 0 | N32: 11,984 | O32: =0 -> 0 | P32: =447 -> 447 | Y32: 12,431 | Z32: =39932+51534 -> 91,466 | AA32: 01 | AB32: 2021-01-13 | AC32: 2021-02-16 | AD32: -69,034 | AE32: 23 | AF32: 2021-06-08 | AG32: 2021-06-22 | AX32: 22,432 | AY32: 10,001
B33: 18 | C33: 31.02 | D33: 30076274-0 | E33: RESTAURACIÓN CASA GABRIELA MISTRAL EN LAS COMPAÑÍAS, LA SERENA | F33: Ejecución | G33: COQUIMBO | H33: LA SERENA | I33: A | J33: =1057448 -> 1,057,448 | K33: =829027 -> 829,027 | L33: =2740 -> 2,740 | M33: =0 -> 0 | N33: =0 -> 0 | O33: =0 -> 0 | Q33: =0 -> 0 | Y33: 0 | Z33: =68620+124490 -> 193,110 | AA33: 01 | AB33: 2021-01-13 | AC33: 2021-02-16 | AD33: 32,571 | AE33: 10 | AF33: 2021-04-13 | AG33: 2021-04-30 | AH33: -210,681 | AI33: 24 | AJ33: 2021-06-16 | AK33: 2021-06-25 | AX33: 15,000 | AY33: 15,000
B34: 19 | C34: 31.02 | D34: 40011860-0 | E34: CONSTRUCCIÓN ESTADIO EL PUEBLO DE CHAÑARAL ALTO, MONTE PATRIA | F34: Ejecución | G34: COQUIMBO | H34: MONTE PATRIA | I34: A | J34: =1595553 -> 1,595,553 | K34: =87504 -> 87,504 | L34: =19299 -> 19,299 | M34: =0 -> 0 | N34: 210,568 | O34: 102,831 | P34: =1467+96165 -> 97,632 | Q34: =1467+331103 -> 332,570 | R34: 102,105 | S34: 96,955 | T34: 63,876 | U34: 65,503 | Y34: 1,072,040 | Z34: =15524+1469352 -> 1,484,876 | AA34: 01 | AB34: 2021-01-13 | AC34: 2021-02-16 | AD34: 45,000 | AE34: 24 | AF34: 2021-06-16 | AG34: 2021-06-25 | AX34: 1,529,876 | AY34: 457,836
B35: 20 | C35: 31.02 | D35: 40007901-0 | E35: MEJORAMIENTO ESTADIO MUNICIPAL DE PAIHUANO | F35: Diseño | G35: COQUIMBO | H35: PAIHUANO | I35: A | J35: =45143 -> 45,143 | K35: =30893 -> 30,893 | L35: =0 -> 0 | M35: =0 -> 0 | N35: =0 -> 0 | O35: =0 -> 0 | S35: 14,250 | Y35: 14,250 | Z35: =14250 -> 14,250 | AA35: 01 | AB35: 2021-01-13 | AC35: 2021-02-16 | AX35: 14,250 | AY35: 0
B36: 21 | C36: 31.02 | D36: 30109140-0 | E36: AMPLIACIÓN SERVICIO MÉDICO LEGAL DE LA SERENA | F36: Ejecución | G36: COQUIMBO | H36: LA SERENA | I36: A | J36: =4639030 -> 4,639,030 | K36: =3916953 -> 3,916,953 | L36: =0 -> 0 | M36: =0 -> 0 | N36: 22,491 | O36: =0 -> 0 | P36: =50114 -> 50,114 | Q36: =118964 -> 118,964 | R36: 67,675 | S36: 17,682 | T36: 690 | U36: 12,788 | Y36: 290,404 | Z36: =88259+600037 -> 688,296 | AA36: 01 | AB36: 2021-01-13 | AC36: 2021-02-16 | AX36: 688,296 | AY36: 397,892
B37: 22 | C37: 31.02 | D37: 30481995-0 | E37: RESTAURACIÓN MONUMENTO HISTÓRICO CASA PIÑERA, LA SERENA | F37: Diseño | G37: COQUIMBO | H37: LA SERENA | I37: A | J37: =168053 -> 168,053 | K37: =120328 -> 120,328 | L37: =0 -> 0 | M37: =0 -> 0 | N37: =0 -> 0 | O37: =0 -> 0 | Y37: 0 | Z37: =47725 -> 47,725 | AA37: 01 | AB37: 2021-01-13 | AC37: 2021-02-16 | AD37: -47,725 | AE37: 24 | AF37: 2021-06-16 | AG37: 2021-06-25 | AX37: 0 | AY37: 0
B38: 23 | C38: 31.02 | D38: 30131804-0 | E38: CONSTRUCCIÓN PASEO MIRADOR LARRAÍN ALCALDE, COMUNA DE LA SERENA | F38: Ejecución | G38: COQUIMBO | H38: LA SERENA | I38: A | J38: =3274336 -> 3,274,336 | K38: =2861590 -> 2,861,590 | L38: =20349 -> 20,349 | M38: =0 -> 0 | N38: =0 -> 0 | O38: =0 -> 0 | P38: =0 -> 0 | Q38: =0 -> 0 | Y38: 0 | Z38: =377268 -> 377,268 | AA38: 01 | AB38: 2021-01-13 | AC38: 2021-02-16 | AD38: 1 | AE38: 10 | AF38: 2021-04-13 | AG38: 2021-04-30 | AX38: 377,269 | AY38: 377,269
B39: 24 | C39: 31.02 | D39: 30108069-0 | E39: CONSTRUCCIÓN COMPLEJO DEPORTIVO Y OBRAS COMPLEMENTARIAS - VEGAS SUR | F39: Ejecución | G39: COQUIMBO | H39: LA SERENA | I39: A | J39: =4545257 -> 4,545,257 | K39: =1248804 -> 1,248,804 | L39: =295433 -> 295,433 | M39: =0 -> 0 | N39: 1,755,716 | O39: =0 -> 0 | P39: =0 -> 0 | Q39: =516414 -> 516,414 | S39: 434,394 | U39: 178,034 | Y39: 2,884,558 | Z39: =2500000 -> 2,500,000 | AA39: 01 | AB39: 2021-01-13 | AC39: 2021-02-16 | AD39: 855,344 | AE39: 24 | AF39: 2021-06-16 | AG39: 2021-06-25 | AH39: 2 | AI39: 38 | AJ39: 2021-08-25 | AK39: 2021-09-10 | AX39: 3,355,346 | AY39: 470,788
B40: 25 | C40: 31.02 | D40: 30100263-0 | E40: REPOSICIÓN CUARTEL BICRIM COQUIMBO | F40: Ejecución | G40: COQUIMBO | H40: COQUIMBO | I40: A | J40: =5623369 -> 5,623,369 | K40: =5407444 -> 5,407,444 | L40: =2 -> 2 | M40: =0 -> 0 | N40: =0 -> 0 | O40: =0 -> 0 | R40: 114,040 | S40: 32,662 | T40: 4,973 | U40: 5,224 | Y40: 156,899 | Z40: =148564+67359 -> 215,923 | AA40: 01 | AB40: 2021-01-13 | AC40: 2021-02-16 | AX40: 215,923 | AY40: 59,024
B41: 26 | C41: 31.02 | D41: 30109787-0 | E41: REPÓSICIÓN CUARTEL DE BOMBEROS DE CERRILLOS DE TAMAYA, OVALLE | F41: Ejecución | G41: COQUIMBO | H41: OVALLE | I41: A | J41: =646779 -> 646,779 | K41: =597258 -> 597,258 | L41: =2 -> 2 | M41: =0 -> 0 | N41: =0 -> 0 | O41: =0 -> 0 | Y41: 0 | Z41: =4494+3376+40731 -> 48,601 | AA41: 01 | AB41: 2021-01-13 | AC41: 2021-02-16 | AX41: 48,601 | AY41: 48,601
B42: 27 | C42: 31.02 | D42: 30486418-0 | E42: REPOSICIÓN INSTITUTO DE REHABILITACIÓN, TELETÓN, DE COQUIMBO | F42: Ejecución | G42: COQUIMBO | H42: COQUIMBO | I42: A | J42: =7365450 -> 7,365,450 | K42: =6561753 -> 6,561,753 | L42: =2 -> 2 | M42: =0 -> 0 | N42: =0 -> 0 | O42: =0 -> 0 | P42: =0 -> 0 | Q42: =0 -> 0 | R42: 981,958 | Y42: 981,958 | Z42: =240+693282+61012+49161 -> 803,695 | AA42: 01 | AB42: 2021-01-13 | AC42: 2021-02-16 | AD42: 288,677 | AE42: 10 | AF42: 2021-04-13 | AG42: 2021-04-30 | AX42: 1,092,372 | AY42: 110,414
B43: 28 | C43: 31.02 | D43: 30064663-0 | E43: MEJORAMIENTO EDIFICIO CONSISTORIAL, OVALLE | F43: Diseño | G43: COQUIMBO | H43: OVALLE | I43: A | J43: =412837 -> 412,837 | K43: =333669 -> 333,669 | L43: =0 -> 0 | M43: =0 -> 0 | N43: =0 -> 0 | O43: =0 -> 0 | U43: 79,168 | Y43: 79,168 | Z43: =79168 -> 79,168 | AA43: 01 | AB43: 2021-01-13 | AC43: 2021-02-16 | AX43: 79,168 | AY43: 0
B44: 29 | C44: 31.02 | D44: 30100599-0 | E44: REPOSICIÓN HOGAR MASCULINO, PUNITAQUI | F44: Ejecución | G44: COQUIMBO | H44: PUNITAQUI | I44: A | J44: =2379612 -> 2,379,612 | K44: =2271443 -> 2,271,443 | L44: =0 -> 0 | M44: =0 -> 0 | N44: 10,921 | O44: =0 -> 0 | Y44: 10,921 | Z44: =10922+60829+29169 -> 100,920 | AA44: 01 | AB44: 2021-01-13 | AC44: 2021-02-16 | AX44: 100,920 | AY44: 89,999
B45: 30 | C45: 31.02 | D45: 30484157-0 | E45: MEJORAMIENTO ESPACIO PÚBLICO SECTOR ALTO ILLAPEL, COMUNA DE ILLAPEL | F45: Ejecución | G45: COQUIMBO | H45: ILLAPEL | I45: A | J45: =848178 -> 848,178 | K45: =1081 -> 1,081 | L45: =190096-190096 -> 0 | M45: =0 -> 0 | N45: =456984 -> 456,984 | O45: 104,313 | P45: =38000 -> 38,000 | Q45: =20281+72320 -> 92,601 | S45: 10,661 | Y45: 702,559 | Z45: =17000+600000+23000 -> 640,000 | AA45: 01 | AB45: 2021-01-13 | AC45: 2021-02-16 | AD45: =-17000+105472+52108 -> 140,580 | AE45: 11 | AF45: 2021-05-07 | AG45: 2021-05-18 | AX45: 780,580 | AY45: 78,021
B46: 31 | C46: 31.02 | D46: 30484216-0 | E46: CONSERVACIÓN PAVIMENTOS AÑO 2017, REGIÓN DE COQUIMBO | F46: Ejecución | G46: COQUIMBO | I46: A | J46: =2618995 -> 2,618,995 | K46: =1960176 -> 1,960,176 | L46: =0 -> 0 | M46: =0 -> 0 | N46: =0 -> 0 | O46: =0 -> 0 | P46: =0 -> 0 | Q46: =2000+14920 -> 16,920 | R46: 31,534 | S46: 30,527 | T46: 29,968 | U46: 25,748 | Y46: 134,697 | Z46: =18000+540000 -> 558,000 | AA46: 01 | AB46: 2021-01-13 | AC46: 2021-02-16 | AD46: -262,000 | AE46: 24 | AF46: 2021-06-16 | AG46: 2021-06-25 | AH46: 40,000 | AI46: 38 | AJ46: 2021-08-25 | AK46: 2021-09-10 | AX46: 336,000 | AY46: 201,303
B47: 32 | C47: 31.02 | D47: 30409422-0 | E47: CONSTRUCCIÓN CUBIERTA AREA DE EJERCICIOS Y EQUIPAMIENTO PARA RECREACIÓN COLEGIO PICHASCA | F47: Ejecución | G47: COQUIMBO | H47: RÍO HURTADO | I47: A | J47: =419613 -> 419,613 | K47: =135552 -> 135,552 | L47: =3 -> 3 | M47: =0 -> 0 | N47: =97341 -> 97,341 | O47: =5827 -> 5,827 | P47: =113336+282 -> 113,618 | Q47: =0 -> 0 | Y47: 216,786 | Z47: =15218+222333+46225+282 -> 284,058 | AA47: 01 | AB47: 2021-01-13 | AC47: 2021-02-16 | AD47: =-15218+1 -> -15,217 | AE47: 10 | AF47: 2021-04-13 | AG47: 2021-04-30 | AH47: 1 | AI47: 38 | AJ47: 2021-08-25 | AK47: 2021-09-10 | AX47: 268,842 | AY47: 52,056
B48: 33 | C48: 31.02 | D48: 40003225-0 | E48: MEJORAMIENTO CAMINO ILLAPEL - CUZ CUZ, COMUNA DE ILLAPEL | F48: Ejecución | G48: COQUIMBO | H48: ILLAPEL | I48: A | J48: =813467 -> 813,467 | K48: =1945 -> 1,945 | L48: =194522 -> 194,522 | M48: =0 -> 0 | N48: =31562 -> 31,562 | O48: =263012 -> 263,012 | P48: =1950+65894 -> 67,844 | Q48: =1950+117769 -> 119,719 | R48: 127,612 | S48: 83,816 | T48: 25,652 | U48: 36,306 | Y48: =SUM(M48:X48) -> 755,523 | Z48: =17000+600000 -> 617,000 | AA48: 01 | AB48: 2021-01-13 | AC48: 2021-02-16 | AD48: 184,294 | AE48: 24 | AF48: 2021-06-16 | AG48: 2021-06-25 | AX48: 801,294 | AY48: 45,771
B49: 34 | C49: 31.02 | D49: 30431172-0 | E49: CONSTRUCCIÓN URBANIZACIÓN BÁSICA LOCALIDAD DE ALTOVALSOL, COMUNA DE LA SERENA | F49: Diseño | G49: COQUIMBO | H49: LA SERENA | I49: A | J49: =174932 -> 174,932 | K49: =135900 -> 135,900 | L49: =0 -> 0 | M49: =0 -> 0 | N49: =0 -> 0 | O49: =0 -> 0 | Q49: =0 -> 0 | Y49: 0 | Z49: =23936 -> 23,936 | AA49: 01 | AB49: 2021-01-13 | AC49: 2021-02-16 | AD49: -1,496 | AE49: 10 | AF49: 2021-04-13 | AG49: 2021-04-30 | AX49: 22,440 | AY49: 22,440
B50: 35 | C50: 31.02 | D50: 30484211-0 | E50: REPOSICIÓN CUARTEL 1° COMPAÑÍA DE BOMBEROS, SINDEMPART, COQUIMBO | F50: Ejecución | G50: COQUIMBO | H50: COQUIMBO | I50: A | J50: =996473 -> 996,473 | K50: =256867 -> 256,867 | L50: =80899-9999 -> 70,900 | M50: =0 -> 0 | N50: =76888 -> 76,888 | O50: =36947 -> 36,947 | P50: =32880 -> 32,880 | Q50: =12943 -> 12,943 | Y50: 159,658 | Z50: =15329+643377 -> 658,706 | AA50: 01 | AB50: 2021-01-13 | AC50: 2021-02-16 | AD50: =5000+5000 -> 10,000 | AE50: 05 | AF50: 2021-02-26 | AG50: 2021-03-26 | AH50: -15,000 | AI50: 10 | AJ50: 2021-04-13 | AK50: 2021-04-30 | AX50: 653,706 | AY50: 494,048
B51: 36 | C51: 31.02 | D51: 30109832-0 | E51: REPOSICIÓN COLEGIO YUNGAY DE EDUCACIÓN ESPECIAL, OVALLE | F51: Ejecución | G51: COQUIMBO | H51: OVALLE | I51: A | J51: =1818236 -> 1,818,236 | K51: =1201431 -> 1,201,431 | L51: =2810 -> 2,810 | M51: =0 -> 0 | N51: =116540 -> 116,540 | O51: =59199 -> 59,199 | P51: =47790 -> 47,790 | Q51: =51425 -> 51,425 | S51: 116,293 | T51: 44,189 | U51: 10,070 | Y51: 445,506 | Z51: =486750 -> 486,750 | AA51: 01 | AB51: 2021-01-13 | AC51: 2021-02-16 | AD51: =2312+88749+36155 -> 127,216 | AE51: 10 | AF51: 2021-04-13 | AG51: 2021-04-30 | AX51: 613,966 | AY51: 168,460
B52: 37 | C52: 31.02 | D52: 30073178-0 | E52: CONSTRUCCIÓN EDIFICIO CONSISTORIAL MUNICIPALIDAD DE LOS VILOS | F52: Ejecución | G52: COQUIMBO | H52: LOS VILOS | I52: A | J52: =5854007 -> 5,854,007 | K52: =4429005 -> 4,429,005 | L52: =601925 -> 601,925 | M52: =0 -> 0 | N52: =0 -> 0 | O52: =0 -> 0 | P52: =0 -> 0 | Q52: =0 -> 0 | U52: 229,812 | Y52: 229,812 | Z52: =16000+337791+1000+1000 -> 355,791 | AA52: 01 | AB52: 2021-01-13 | AC52: 2021-02-16 | AD52: 160,000 | AE52: 11 | AF52: 2021-05-07 | AG52: 2021-05-18 | AX52: 515,791 | AY52: 285,979
B53: 38 | C53: 31.02 | D53: 30484182-0 | E53: CONSTRUCCIÓN CUARTEL DE BOMBEROS CUARTA COMPAÑÍA, OVALLE | F53: Ejecución | G53: COQUIMBO | H53: OVALLE | I53: A | J53: =480083 -> 480,083 | K53: =428903 -> 428,903 | L53: =2 -> 2 | M53: =0 -> 0 | N53: =0 -> 0 | O53: =0 -> 0 | P53: =0 -> 0 | Q53: 4,100 | Y53: 4,100 | Z53: =8329+38411 -> 46,740 | AA53: 01 | AB53: 2021-01-13 | AC53: 2021-02-16 | AD53: 3,575 | AE53: 10 | AF53: 2021-04-13 | AG53: 2021-04-30 | AX53: 50,315 | AY53: 46,215
B54: 39 | C54: 31.02 | D54: 30293822-0 | E54: REPOSICIÓN ESTADIO MUNICIPAL DE COMBARBNALÁ | F54: Ejecución | G54: COQUIMBO | H54: COMBARBALÁ | I54: A | J54: =1406025 -> 1,406,025 | K54: =1359600 -> 1,359,600 | L54: =1 -> 1 | M54: =0 -> 0 | N54: 409 | O54: =0 -> 0 | Q54: =0 -> 0 | U54: 10,000 | Y54: 10,409 | Z54: =8329+17244 -> 25,573 | AA54: 01 | AB54: 2021-01-13 | AC54: 2021-02-16 | AD54: =278 -> 278 | AE54: 10 | AF54: 2021-04-13 | AG54: 2021-04-30 | AX54: 25,851 | AY54: 15,442
B55: 40 | C55: 31.02 | D55: 30176022-0 | E55: REPOSICIÓN POSTA DE SALUD RURAL CALETA LOS HORNOS, LA HIGUERA | F55: Ejecución | G55: COQUIMBO | H55: LA HIGUERA | I55: N | J55: =397120 -> 397,120 | K55: =3340 -> 3,340 | L55: =940 -> 940 | M55: =0 -> 0 | N55: =1677 -> 1,677 | O55: 2,000 | P55: =3333 -> 3,333 | Q55: 2,000 | R55: 14,575 | S55: 1,733 | T55: 15,664 | U55: 17,783 | Y55: 58,765 | Z55: =25000+325519+18938+6333 -> 375,790 | AA55: 01 | AB55: 2021-01-13 | AC55: 2021-02-16 | AD55: -5,000 | AE55: 10 | AF55: 2021-04-13 | AG55: 2021-04-30 | AH55: -205,271 | AI55: 24 | AJ55: 2021-06-16 | AK55: 2021-06-25 | AL55: 368 | AM55: 38 | AN55: 2021-08-25 | AO55: 2021-09-10 | AX55: 165,887 | AY55: 107,122
B56: 41 | C56: 31.02 | D56: 30369072-0 | E56: REPOSICIÓN POSTA DE SALUD PISCO ELQUI, PAIHUANO | F56: Ejecución | G56: COQUIMBO | H56: PAIHUANO | I56: N | J56: =618443 -> 618,443 | K56: =2776 -> 2,776 | L56: =37432 -> 37,432 | M56: =0 -> 0 | N56: =0 -> 0 | O56: =0 -> 0 | P56: =0 -> 0 | Q56: =0 -> 0 | Y56: 0 | Z56: =11539+472739 -> 484,278 | AA56: 01 | AB56: 2021-01-13 | AC56: 2021-02-16 | AD56: =2825+45281+43841 -> 91,947 | AE56: 10 | AF56: 2021-04-13 | AG56: 2021-04-30 | AH56: =-14364-322739-45281-43841 -> -426,225 | AI56: 11 | AJ56: 2021-05-07 | AK56: 2021-05-18 | AX56: 150,000 | AY56: 150,000
B57: 42 | C57: 31.02 | D57: 40013536-0 | E57: CONSTRUCCIÓN CENTRO DE ESTIMULACIÓN TEMPRANA PARA NIÑOS CON SINDROME DE DOWN, LA SERENA | F57: Ejecución | G57: COQUIMBO | H57: LA SERENA | I57: A | J57: =1226241 -> 1,226,241 | K57: =59895 -> 59,895 | L57: =240940 -> 240,940 | M57: =0 -> 0 | N57: 44,684 | O57: =62568 -> 62,568 | P57: =44811 -> 44,811 | Q57: =39141 -> 39,141 | Y57: 191,204 | Z57: =22000+903242 -> 925,242 | AA57: 01 | AB57: 2021-01-13 | AC57: 2021-02-16 | AD57: =163 -> 163 | AE57: 10 | AF57: 2021-04-13 | AG57: 2021-04-30 | AH57: -633,782 | AI57: 38 | AJ57: 2021-08-25 | AK57: 2021-09-10 | AX57: 291,623 | AY57: 100,419
B58: 43 | C58: 31.02 | D58: 40007564-0 | E58: CONSERVACIÓN CBC RUTA D-510, SECTOR HUAYANAY - EL TANGUE, COMUNA DE COQUIMBO | F58: Ejecución | G58: COQUIMBO | H58: COQUIMBO | I58: N | J58: =841354 -> 841,354 | K58: =7488 -> 7,488 | L58: =0 -> 0 | M58: =0 -> 0 | N58: =0 -> 0 | O58: =75311 -> 75,311 | P58: =42069 -> 42,069 | R58: 78,857 | T58: 158,121 | U58: 216,678 | Y58: 571,036 | Z58: =727133 -> 727,133 | AA58: 01 | AB58: 2021-01-13 | AC58: 2021-02-16 | AD58: 57,653 | AE58: 34 | AF58: 2021-08-03 | AG58: 2021-09-10 | AX58: 784,786 | AY58: 213,750
B59: 44 | C59: 31.02 | D59: 40007666-0 | E59: CONSERVACIÓN CBC RUTA D-540, S.PUNILLA - FRAY JORGE, COMUNA DE OVALLE, REGIÓN DE COQUIMBO | F59: Ejecución | G59: COQUIMBO | H59: OVALLE | I59: A | J59: =632513 -> 632,513 | K59: =632293 -> 632,293 | L59: =0 -> 0 | M59: =0 -> 0 | N59: =0 -> 0 | O59: =0 -> 0 | Y59: 0 | Z59: =218 -> 218 | AA59: 01 | AB59: 2021-01-13 | AC59: 2021-02-16 | AX59: 218 | AY59: 218
B60: 45 | C60: 31.02 | D60: 30477535-0 | E60: CONSTRUCCIÓN CANCHA SINTÉTICA COMPLEJO DEPORTIVO LAS ROSAS, COQIMBO | F60: Ejecución | G60: COQUIMBO | H60: COQUIMBO | I60: A | J60: =842374 -> 842,374 | K60: =794316 -> 794,316 | L60: =0 -> 0 | M60: =0 -> 0 | N60: =0 -> 0 | O60: =0 -> 0 | Y60: 0 | Z60: =2412+44589 -> 47,001 | AA60: 01 | AB60: 2021-01-13 | AC60: 2021-02-16 | AD60: -45,001 | AE60: 24 | AF60: 2021-06-16 | AG60: 2021-06-25 | AX60: 2,000 | AY60: 2,000
B61: 46 | C61: 31.02 | D61: 30037147-0 | E61: MEJORAMIENTO CALLE CAUPOLICÁN, SECTOR CENTRO CÍVICO, PUNITAQUI | F61: Ejecución | G61: COQUIMBO | H61: PUNITAQUI | I61: A | J61: =1335341 -> 1,335,341 | K61: =549947 -> 549,947 | L61: =16797 -> 16,797 | M61: =0 -> 0 | N61: 187,748 | O61: 186,182 | P61: =59872 -> 59,872 | Q61: =91687 -> 91,687 | R61: 77,611 | S61: 92,063 | Y61: 695,163 | Z61: =763353 -> 763,353 | AA61: 01 | AB61: 2021-01-13 | AC61: 2021-02-16 | AX61: 763,353 | AY61: 68,190
B62: 47 | C62: 31.02 | D62: 30483251-0 | E62: HABILITACIÓN CENTRO DE EXTENSIÓN CULTURAL PARA EL PATRIMONIO, COMUNA DE LA SERENA | F62: Diseño | G62: COQUIMBO | H62: LA SERENA | I62: A | J62: =833063 -> 833,063 | K62: =695566 -> 695,566 | L62: =1 -> 1 | M62: =0 -> 0 | N62: =0 -> 0 | O62: =0 -> 0 | S62: 62,220 | Y62: 62,220 | Z62: =137496 -> 137,496 | AA62: 01 | AB62: 2021-01-13 | AC62: 2021-02-16 | AD62: -36,496 | AE62: 24 | AF62: 2021-06-16 | AG62: 2021-06-25 | AX62: 101,000 | AY62: 38,780
B63: 48 | C63: 31.02 | D63: 30081585-0 | E63: REPOSICIÓN RETÉN DE CARABINEROS CHAÑARAL ALTO, MONTE PATRIA. | F63: Ejecución | G63: COQUIMBO | H63: MONTE PATRIA | I63: A | J63: =1050903 -> 1,050,903 | K63: =966909 -> 966,909 | L63: =0 -> 0 | M63: =0 -> 0 | N63: =0 -> 0 | O63: =0 -> 0 | Y63: 0 | Z63: =11957+70189 -> 82,146 | AA63: 01 | AB63: 2021-01-13 | AC63: 2021-02-16 | AD63: -72,146 | AE63: 24 | AF63: 2021-06-16 | AG63: 2021-06-25 | AX63: 10,000 | AY63: 10,000
B64: 49 | C64: 31.02 | D64: 40006947-0 | E64: CONSTRUCCIÓN POLIDEPORTIVO CIUDAD DE MONTE PATRIA, MONTE PATRIA | F64: Diseño | G64: COQUIMBO | H64: MONTE PATRIA | I64: A | J64: =62611 -> 62,611 | K64: =51011 -> 51,011 | L64: =0 -> 0 | M64: =0 -> 0 | N64: 11,600 | O64: =0 -> 0 | Y64: 11,600 | Z64: =11600 -> 11,600 | AA64: 01 | AB64: 2021-01-13 | AC64: 2021-02-16 | AX64: 11,600 | AY64: 0
B65: 50 | C65: 31.02 | D65: 40006948-0 | E65: CONSTRUCCIÓN ESTRUCTURA TECHADA VARIOS ESTABLECIMIENTOS EDUCACIONALES, MONTE PATRIA | F65: Ejecución | G65: COQUIMBO | H65: MONTE PATRIA | I65: A | J65: =1178228 -> 1,178,228 | K65: =974603 -> 974,603 | L65: =0 -> 0 | M65: =0 -> 0 | N65: =0 -> 0 | O65: 149,856 | P65: =53768 -> 53,768 | Q65: =0 -> 0 | Y65: 203,624 | Z65: =53768+149855 -> 203,623 | AA65: 01 | AB65: 2021-01-13 | AC65: 2021-02-16 | AD65: 1 | AE65: 05 | AF65: 2021-02-26 | AG65: 2021-03-26 | AH65: 1 | AI65: 10 | AJ65: 2021-04-13 | AK65: 2021-04-30 | AX65: 203,625 | AY65: 1
B66: 51 | C66: 31.02 | D66: 30150676-0 | E66: MEJORAMIENTO COMPLEJO DEPORTIVO DE PICHASCA, RIO HURTADO | F66: Ejecución | G66: COQUIMBO | H66: RIO HURTADO | I66: A | J66: =257232 -> 257,232 | K66: =255732 -> 255,732 | L66: =0 -> 0 | M66: =0 -> 0 | N66: =0 -> 0 | O66: =0 -> 0 | Y66: 0 | Z66: =1500 -> 1,500 | AA66: 01 | AB66: 2021-01-13 | AC66: 2021-02-16 | AX66: 1,500 | AY66: 1,500
B67: 52 | C67: 31.02 | D67: 30473496-0 | E67: MEJORAMIENTO MULTICANCHA FUNDINA, RÍO HURTADO | F67: Ejecución | G67: COQUIMBO | H67: RIO HURTADO | I67: A | J67: =487018 -> 487,018 | K67: =1416 -> 1,416 | L67: =49051 -> 49,051 | M67: =0 -> 0 | N67: =0 -> 0 | O67: =0 -> 0 | Q67: =0 -> 0 | Y67: 0 | Z67: =16000+361136+25000+911 -> 403,047 | AA67: 01 | AB67: 2021-01-13 | AC67: 2021-02-16 | AD67: =-149018-25000-911 -> -174,929 | AE67: 10 | AF67: 2021-04-13 | AG67: 2021-04-30 | AH67: -199,848 | AI67: 24 | AJ67: 2021-06-16 | AK67: 2021-06-25 | AX67: 28,270 | AY67: 28,270
B68: 53 | C68: 31.02 | D68: 30109398-0 | E68: REPOSICIÓN PLAZA VILLA LOS LAGOS LOCALIDAD LAS RAMADAS PUNITAQUI | F68: Ejecución | G68: COQUIMBO | H68: PUNITAQUI | I68: A | J68: =419437 -> 419,437 | K68: =385935 -> 385,935 | L68: =0 -> 0 | M68: =0 -> 0 | N68: =0 -> 0 | O68: =1688 -> 1,688 | Q68: =0 -> 0 | U68: 29,705 | Y68: 31,393 | Z68: =31813 -> 31,813 | AA68: 01 | AB68: 2021-01-13 | AC68: 2021-02-16 | AD68: =1688-1688 -> 0 | AE68: 05 | AF68: 2021-02-26 | AG68: 2021-03-26 | AH68: -420 | AI68: 10 | AJ68: 2021-04-13 | AK68: 2021-04-30 | AX68: 31,393 | AY68: 0
B69: 54 | C69: 31.02 | D69: 30149176-0 | E69: REPOSICIÓN RESIDENCIA DISCAPACIDAD SENAME COQUIMBO | F69: Ejecución | G69: COQUIMBO | H69: COQUIMBO | I69: A | J69: =2934114 -> 2,934,114 | K69: =18526 -> 18,526 | L69: =1309206 -> 1,309,206 | M69: =0 -> 0 | N69: =194392 -> 194,392 | O69: =800 -> 800 | P69: =800+277703 -> 278,503 | Q69: =0 -> 0 | R69: 15,162 | S69: 361,814 | U69: 138,852 | Y69: 989,523 | Z69: =36838+1499599+15162 -> 1,551,599 | AA69: 01 | AB69: 2021-01-13 | AC69: 2021-02-16 | AD69: =-34438-305473 -> -339,911 | AE69: 10 | AF69: 2021-04-13 | AG69: 2021-04-30 | AH69: -290,540 | AI69: 11 | AJ69: 2021-05-07 | AK69: 2021-05-18 | AL69: 40,925 | AM69: 24 | AN69: 2021-06-16 | AO69: 2021-06-25 | AP69: 29,787 | AQ69: 34 | AR69: 2021-08-03 | AS69: 2021-09-10 | AX69: 991,860 | AY69: 2,337
B70: 55 | C70: 31.02 | D70: 30086926-0 | E70: CONSTRUCCIÓN ESTADIO MUNICIPAL DE CANELA | F70: Ejecución | G70: COQUIMBO | H70: CANELA | I70: A | J70: =3048659 -> 3,048,659 | K70: =395110 -> 395,110 | L70: =1768534 -> 1,768,534 | M70: =0 -> 0 | N70: =279836 -> 279,836 | O70: =83361 -> 83,361 | P70: =2296+125939 -> 128,235 | Q70: =1468+113098 -> 114,566 | R70: 37,395 | S70: 414 | T70: 414 | U70: 414 | Y70: 644,635 | Z70: =17390+632319+1000+1000 -> 651,709 | AA70: 01 | AB70: 2021-01-13 | AC70: 2021-02-16 | AX70: 651,709 | AY70: 7,074
B71: 56 | C71: 31.02 | D71: 30139823-0 | E71: REPOSICIÓN POSTA DE SALUD RURAL CUNCUMEN, COMUNA DE SALAMANCA | F71: Diseño | G71: COQUIMBO | H71: SALAMANCA | I71: A | J71: =22877 -> 22,877 | K71: =21377 -> 21,377 | L71: =0 -> 0 | M71: =0 -> 0 | N71: =0 -> 0 | O71: =0 -> 0 | Y71: 0 | Z71: =1500 -> 1,500 | AA71: 01 | AB71: 2021-01-13 | AC71: 2021-02-16 | AX71: 1,500 | AY71: 1,500
B72: 57 | C72: 31.02 | D72: 30275183-0 | E72: CONSTRUCCIÓN PASEO PEATONAL QUEBRADA EL CONSUELO, COMUNA DE SALMANCA | F72: Diseño | G72: COQUIMBO | H72: SALAMANCA | I72: A | J72: =57030 -> 57,030 | K72: =46536 -> 46,536 | L72: =0 -> 0 | M72: =0 -> 0 | N72: =0 -> 0 | O72: =0 -> 0 | Y72: 0 | Z72: 10,493 | AA72: 01 | AB72: 2021-01-13 | AC72: 2021-02-16 | AX72: 10,493 | AY72: 10,493
B73: 58 | C73: 31.02 | D73: 30479844-0 | E73: REPOSICIÓN POSTA DE TAHUINCO, COMUNA DE SALAMANCA | F73: Diseño | G73: COQUIMBO | H73: SALAMANCA | I73: A | J73: =22866 -> 22,866 | K73: =21366 -> 21,366 | L73: =0 -> 0 | M73: =0 -> 0 | N73: =0 -> 0 | O73: =0 -> 0 | Y73: 0 | Z73: =1500 -> 1,500 | AA73: 01 | AB73: 2021-01-13 | AC73: 2021-02-16 | AX73: 1,500 | AY73: 1,500
B74: 59 | C74: 31.02 | D74: 40010119-0 | E74: CONSTRUCCIÓN CENTRO DE DIALISIS LOS VILOS | F74: Ejecución | G74: COQUIMBO | H74: LOS VILOS | I74: A | J74: =166543 -> 166,543 | K74: =81425 -> 81,425 | L74: =0 -> 0 | M74: =0 -> 0 | N74: =15887 -> 15,887 | O74: =2643 -> 2,643 | T74: 13,584 | Y74: 32,114 | Z74: =13738+26468+41596 -> 81,802 | AA74: 01 | AB74: 2021-01-13 | AC74: 2021-02-16 | AD74: -30,738 | AE74: 23 | AF74: 2021-06-08 | AG74: 2021-06-22 | AX74: 51,064 | AY74: 18,950
B75: 60 | C75: 31.02 | D75: 30106198-0 | E75: CONSTRUCCIÓN VÍAS DE EVACUACIÓN ZONA COSTERA LA SERENA COQUIMBO | F75: Ejecución | G75: COQUIMBO | H75: LA SERENA | I75: A | J75: =9484372 -> 9,484,372 | K75: =5995901 -> 5,995,901 | L75: 28,935 | M75: =0 -> 0 | N75: =468449 -> 468,449 | O75: =411024 -> 411,024 | P75: =1800+237368 -> 239,168 | Q75: =1800+294721 -> 296,521 | R75: 66,214 | S75: 60,330 | T75: 132,346 | U75: 222,447 | Y75: 1,896,499 | Z75: =21600+1200000 -> 1,221,600 | AA75: 01 | AB75: 2021-01-13 | AC75: 2021-02-16 | AD75: =403309 -> 403,309 | AE75: 10 | AF75: 2021-04-13 | AG75: 2021-04-30 | AH75: 528,820 | AI75: 24 | AJ75: 2021-06-16 | AK75: 2021-06-25 | AL75: 45,000 | AM75: 38 | AN75: 2021-08-25 | AO75: 2021-09-10 | AX75: 2,198,729 | AY75: 302,230
B76: 61 | C76: 31.02 | D76: 40009903-0 | E76: CONSERVACIÓN CBC RUTA D-190, S. CRUCE RUTA 5 - CHUNGUNGO, TRAMO 1, COMUNA LA HIGUERA | F76: Ejecución | G76: COQUIMBO | H76: LA HIGUERA | I76: N | J76: =2181514 -> 2,181,514 | K76: =4196 -> 4,196 | L76: =351487 -> 351,487 | M76: =0 -> 0 | N76: =513224 -> 513,224 | O76: =205656 -> 205,656 | P76: =270285 -> 270,285 | Q76: =276947 -> 276,947 | R76: 293,419 | S76: 169,469 | U76: 97,779 | Y76: 1,826,779 | Z76: =10002+720000 -> 730,002 | AA76: 01 | AB76: 2021-01-13 | AC76: 2021-02-16 | AD76: =-10002+1095338 -> 1,085,336 | AE76: 10 | AF76: 2021-04-13 | AG76: 2021-04-30 | AH76: 75,548 | AI76: 34 | AJ76: 2021-08-03 | AK76: 2021-09-10 | AX76: 1,890,886 | AY76: 64,107
B77: 62 | C77: 31.02 | D77: 30375950-0 | E77: REPOSICIÓN CUARTEL BICRIM OVALLE | F77: Diseño | G77: COQUIMBO | H77: OVALLLE | I77: A | J77: =59864 -> 59,864 | K77: =47024 -> 47,024 | L77: =0 -> 0 | M77: =0 -> 0 | N77: =0 -> 0 | O77: =0 -> 0 | R77: 12,840 | Y77: 12,840 | Z77: =12840 -> 12,840 | AA77: 01 | AB77: 2021-01-13 | AC77: 2021-02-16 | AX77: 12,840 | AY77: 0
B78: 63 | C78: 31.02 | D78: 30139872-0 | E78: REPOSICIÓN POSTA SALUD RURAL DE LLIMPO, COMUNA DE SALAMANCA | F78: Diseño | G78: COQUIMBO | H78: SALAMANCA | I78: A | J78: =21809 -> 21,809 | K78: =20359 -> 20,359 | L78: =0 -> 0 | M78: =0 -> 0 | N78: =0 -> 0 | O78: =0 -> 0 | Y78: 0 | Z78: 1,450 | AA78: 01 | AB78: 2021-01-13 | AC78: 2021-02-16 | AX78: 1,450 | AY78: 1,450
B79: 64 | C79: 31.02 | D79: 30109834-0 | E79: REPOSICIÓN ESCUELA BÁSICA EL CRISOL, OVALLE | F79: Ejecución | G79: COQUIMBO | H79: OVALLLE | I79: N | J79: =1738357 -> 1,738,357 | K79: =14514 -> 14,514 | L79: =990693 -> 990,693 | M79: =0 -> 0 | N79: =0 -> 0 | O79: =0 -> 0 | S79: 132,417 | U79: 169,245 | Y79: 301,662 | Z79: =12600+627098 -> 639,698 | AA79: 01 | AB79: 2021-01-13 | AC79: 2021-02-16 | AD79: -492,626 | AE79: 24 | AF79: 2021-06-16 | AG79: 2021-06-25 | AH79: 235,000 | AI79: 38 | AJ79: 2021-08-25 | AK79: 2021-09-10 | AX79: 382,072 | AY79: 80,410
B80: 65 | C80: 31.02 | D80: 40003078-0 | E80: CONSTRUCCIÓN MACRO DEPÓSITO ARQUEOLÓGICO REGIONAL, REGIÓN DE COQUIMBO | F80: Prefactibilidad | G80: COQUIMBO | I80: A | J80: =160337 -> 160,337 | K80: =5266 -> 5,266 | L80: =42934 -> 42,934 | M80: =0 -> 0 | N80: =7000 -> 7,000 | O80: 14,000 | P80: =14000 -> 14,000 | Q80: =14000 -> 14,000 | S80: 21,000 | U80: 28,000 | Y80: =SUM(M80:X80) -> 98,000 | Z80: =102400 -> 102,400 | AA80: 01 | AB80: 2021-01-13 | AC80: 2021-02-16 | AD80: -4,400 | AE80: 23 | AF80: 2021-06-08 | AG80: 2021-06-22 | AX80: 98,000 | AY80: 0
B81: 66 | C81: 31.02 | D81: 30139673-0 | E81: MEJORAMIENTO CALLE MUNDO NUEVO, COMUNA DE SALAMANCA | F81: Ejecución | G81: COQUIMBO | H81: SALAMANCA | I81: A | J81: =787719 -> 787,719 | K81: =673509 -> 673,509 | L81: =0 -> 0 | M81: =0 -> 0 | N81: 111,960 | O81: =0 -> 0 | Y81: 111,960 | Z81: =111960 -> 111,960 | AA81: 01 | AB81: 2021-01-13 | AC81: 2021-02-16 | AX81: =+Z81+AD81+AH81+AL81+AP81+AT81 -> 111,960 | AY81: =+AX81-Y81 -> 0
B82: 67 | C82: 31.02 | D82: 30124206-0 | E82: CONSTRUCCIÓN TECHADO MULTICANCHA COLEGIO NUESTRA SEÑORA DEL ROSARIO, ANDACOLLO | F82: Ejecución | G82: COQUIMBO | H82: ANDACOLLO | I82: A | J82: =544402 -> 544,402 | K82: =135631 -> 135,631 | L82: =1 -> 1 | M82: =0 -> 0 | N82: 300,370 | O82: =0 -> 0 | P82: =0 -> 0 | Q82: =0 -> 0 | T82: 52,060 | Y82: 352,430 | Z82: =8876+352431 -> 361,307 | AA82: 01 | AB82: 2021-01-13 | AC82: 2021-02-16 | AD82: -8,876 | AE82: 10 | AF82: 2021-04-13 | AG82: 2021-04-30 | AX82: 352,431 | AY82: 1
B83: 68 | C83: 31.02 | D83: 30100544-0 | E83: CONSTRUCCIÓN ELECTRIFICACIÓN RURAL, VALLE DE CAMISAS, SALAMANCA | F83: Ejecución | G83: COQUIMBO | H83: SALAMANCA | I83: A | J83: =129585 -> 129,585 | K83: =0 -> 0 | L83: =0 -> 0 | M83: =0 -> 0 | N83: =0 -> 0 | O83: =0 -> 0 | Q83: =0 -> 0 | R83: 9,068 | Y83: 9,068 | Z83: =9071 -> 9,071 | AA83: 01 | AB83: 2021-01-13 | AC83: 2021-02-16 | AD83: 120,514 | AE83: 10 | AF83: 2021-04-13 | AG83: 2021-04-30 | AX83: 129,585 | AY83: 120,517
B84: 69 | C84: 31.02 | D84: 30077750-0 | E84: CONSTRUCCIÓN CASA DE ACOGIDA DE COMBARBALÁ - COMBARBALÁ | F84: Ejecución | G84: COQUIMBO | H84: COMBARBALA | I84: A | J84: =714135 -> 714,135 | K84: =690353 -> 690,353 | L84: =0 -> 0 | M84: =0 -> 0 | N84: =0 -> 0 | O84: =0 -> 0 | Y84: 0 | Z84: =16242+7534 -> 23,776 | AA84: 01 | AB84: 2021-01-13 | AC84: 2021-02-16 | AX84: 23,776 | AY84: 23,776
B85: 70 | C85: 31.02 | D85: 30098095-0 | E85: CONSTRUCCIÓN INFR.PESQUERA CALETA HUENTELAUQUEN, CANELA | F85: Ejecución | G85: COQUIMBO | H85: CANELA | I85: A | J85: 1,059,676 | K85: =870941 -> 870,941 | L85: =1 -> 1 | N85: =188732 -> 188,732 | Y85: 188,732 | Z85: =188733 -> 188,733 | AA85: 04 | AB85: 2021-02-19 | AC85: 2021-02-26 | AX85: 188,733 | AY85: 1
B86: 71 | C86: 31.01 | D86: 40000508-0 | E86: DIAGNÓSTICO TRANSPORTE PÚBLICO CONURBACIÓN COQUIMBO-LA SERENA | F86: Ejecución | G86: COQUIMBO | H86: COQUIMBO-LA SERENA | I86: N | J86: 314,725 | K86: =0 -> 0 | L86: =222385 -> 222,385 | O86: =0 -> 0 | Y86: 0 | Z86: =92340 -> 92,340 | AA86: 05 | AB86: 2021-02-26 | AC86: 2021-03-26 | AX86: 92,340 | AY86: 92,340
B87: 72 | C87: 31.02 | D87: 30485976-0 | E87: CONSTRUCCIÓN INTERCONEXIÓN VIAL RUTA 41 CH - BORDE COSTERO.PROV.ELQUI | F87: Prefactibilidad | G87: COQUIMBO | H87: PROV.ELQUI | I87: A | J87: =603780+538 -> 604,318 | K87: =257383 -> 257,383 | L87: =0 -> 0 | N87: =0 -> 0 | O87: =0 -> 0 | Q87: =0 -> 0 | Y87: 0 | Z87: =346930 -> 346,930 | AA87: 05 | AB87: 2021-02-26 | AC87: 2021-03-26 | AD87: -346,930 | AE87: 10 | AF87: 2021-04-13 | AG87: 2021-04-30 | AX87: 0 | AY87: 0
B88: 73 | C88: 31.02 | D88: 40015360-0 | E88: REPOSICIÓN JARDÍN NFANTIL MI PEQUEÑO TESORO ILLAPEL, COMUNA DE ILLAPEL | F88: Ejecución | G88: COQUIMBO | H88: ILLAPEL | I88: N | J88: =1339361 -> 1,339,361 | K88: =0 -> 0 | L88: =737473 -> 737,473 | O88: =0 -> 0 | T88: 50,093 | U88: 40,149 | Y88: 90,242 | Z88: =1846+20000+120000 -> 141,846 | AA88: 05 | AB88: 2021-02-26 | AC88: 2021-03-26 | AX88: 141,846 | AY88: 51,604
B89: 74 | C89: 31.02 | D89: 40016415-0 | E89: REPOSICIÓN POSTA DE SALUD RURAL HUINTIL, COMUNA DE ILLAPEL | F89: Ejecución | G89: COQUIMBO | H89: ILLAPEL | I89: N | J89: =628737 -> 628,737 | K89: =0 -> 0 | L89: =334429 -> 334,429 | O89: =0 -> 0 | Y89: 0 | Z89: =2257+12000+280000 -> 294,257 | AA89: 05 | AB89: 2021-02-26 | AC89: 2021-03-26 | AX89: 294,257 | AY89: 294,257
B90: 75 | C90: 31.02 | D90: 30078529-0 | E90: CONSTRUCCIÓN CASA DE LA CULTURA, LOS VILOS | F90: Ejecución | G90: COQUIMBO | H90: LOS VILOS | I90: A | J90: =3008865 -> 3,008,865 | K90: =2790066 -> 2,790,066 | L90: =0 -> 0 | O90: =0 -> 0 | Y90: 0 | Z90: =17787+201011 -> 218,798 | AA90: 05 | AB90: 2021-02-26 | AC90: 2021-03-26 | AD90: -196,918 | AE90: 23 | AF90: 2021-06-08 | AG90: 2021-06-22 | AX90: 21,880 | AY90: 21,880
B91: 76 | C91: 31.02 | D91: 30484185-0 | E91: CONSTRUCCIÓN P.T.A.S Y RED DE ALCANTARILLADO DE CAREN, COMUNA DE MONTE PATRIA | F91: Factibilidad | G91: COQUIMBO | H91: MONTE PATRIA | I91: A | J91: =67823 -> 67,823 | K91: =47791 -> 47,791 | L91: =0 -> 0 | O91: =0 -> 0 | Y91: 0 | Z91: =20031 -> 20,031 | AA91: 05 | AB91: 2021-02-26 | AC91: 2021-03-26 | AX91: 20,031 | AY91: 20,031
B92: 77 | C92: 31.02 | D92: 30484187-0 | E92: CONSTRUCCIÓN P.T.A.S.Y RED ALCANTARILLADO DE RAPEL, COMUNA MONTE PATRIA | F92: Factibilidad | G92: COQUIMBO | H92: MONTE PATRIA | I92: A | J92: =69772 -> 69,772 | K92: =48077 -> 48,077 | L92: =0 -> 0 | O92: =0 -> 0 | Y92: 0 | Z92: =19751 -> 19,751 | AA92: 05 | AB92: 2021-02-26 | AC92: 2021-03-26 | AX92: 19,751 | AY92: 19,751
B93: 78 | C93: 31.02 | D93: 30484184-0 | E93: CONSTRUCCIÓN P.T.A.S.Y RED ALCANTARILLADO EL TOMÉ, COMUNA MONTE PATRIA | F93: Factibilidad | G93: COQUIMBO | H93: MONTE PATRIA | I93: A | J93: =69461 -> 69,461 | K93: =47576 -> 47,576 | L93: =0 -> 0 | O93: =0 -> 0 | Y93: 0 | Z93: =19941 -> 19,941 | AA93: 05 | AB93: 2021-02-26 | AC93: 2021-03-26 | AX93: 19,941 | AY93: 19,941
B94: 79 | C94: 31.02 | D94: 30150774-0 | E94: CONSTRUCCIÓN ELECTRIFICACIÓN LOCALIDAD RURAL LA CORTADERA, ANDACOLLO | F94: Ejecución | G94: COQUIMBO | H94: ANDACOLLO | I94: A | J94: =201561 -> 201,561 | K94: =0 -> 0 | L94: =0 -> 0 | O94: =0 -> 0 | Y94: 0 | Z94: =197126 -> 197,126 | AA94: 05 | AB94: 2021-02-26 | AC94: 2021-03-26 | AD94: -186,232 | AE94: 24 | AF94: 2021-06-16 | AG94: 2021-06-25 | AH94: 186,232 | AI94: 38 | AJ94: 2021-08-25 | AK94: 2021-09-10 | AX94: 197,126 | AY94: 197,126
Y95: 0 | AX95: 0 | AY95: 0
B96: 80 | C96: 31.02 | D96: 30124440-0 | E96: AMPLIACIÓN PASEO PEATONAL CALLE J.T. URMENETA, ANDACOLLO | F96: Diseño | G96: COQUIMBO | H96: ANDACOLLO | I96: A | J96: 87,737 | K96: 3,146 | L96: =0 -> 0 | O96: =0 -> 0 | P96: =0 -> 0 | Q96: =0 -> 0 | S96: 15,300 | Y96: 15,300 | Z96: =75940 -> 75,940 | AA96: 10 | AB96: 2021-04-14 | AC96: 2021-04-30 | AX96: 75,940 | AY96: 60,640
B97: 81 | C97: 31.02 | D97: 40014111-0 | E97: REPOSICIÓN SERVICIO DE ESTERILIZACIÓN HOSPITAL SAN PABLO DE COQUIMBO | F97: Ejecución | G97: COQUIMBO | H97: COQUIMBO | I97: N | J97: 318,306 | K97: =0 -> 0 | L97: =25561 -> 25,561 | P97: =25160 -> 25,160 | Q97: 17,164 | R97: 21,951 | S97: 25,411 | T97: 45,783 | U97: 29,751 | Y97: 165,220 | Z97: =190000 -> 190,000 | AA97: 10 | AB97: 2021-04-14 | AC97: 2021-04-30 | AX97: 190,000 | AY97: 24,780
B98: 82 | C98: 31.02 | D98: 30100596-0 | E98: CONSTRUCCIÓN SISTEMA DE ELECTRIF.RURAL AJIAL DE QUILES PUNITAQUI | F98: Ejecución | G98: COQUIMBO | H98: PUNITAQUI | I98: N | J98: =606859 -> 606,859 | K98: =0 -> 0 | L98: =13353 -> 13,353 | Q98: =0 -> 0 | Y98: 0 | Z98: =73143 -> 73,143 | AA98: 10 | AB98: 2021-04-14 | AC98: 2021-04-30 | AX98: 73,143 | AY98: 73,143
B99: 83 | C99: 31.02 | D99: 30010979-0 | E99: CONSTRUCCIÓN RED ELÉCTRICA DE CENTINELA ll - CARRIZAL, COMBARBALÁ | F99: Ejecución | G99: COQUIMBO | H99: COMBARBALÁ | I99: N | J99: =290679 -> 290,679 | K99: =0 -> 0 | L99: =6396 -> 6,396 | Q99: =0 -> 0 | Y99: 0 | Z99: 59,347 | AA99: 10 | AB99: 2021-04-14 | AC99: 2021-04-30 | AX99: 59,347 | AY99: 59,347
B100: 84 | C100: 31.02 | D100: 20169732-0 | E100: CONSTRUCCIÓN ELECTRIFICACIÓN RURAL LAS CAÑAS, CANELA | F100: Ejecución | G100: COQUIMBO | H100: CANELA | I100: N | J100: =120491 -> 120,491 | K100: =0 -> 0 | L100: =1 -> 1 | Q100: =0 -> 0 | Y100: 0 | Z100: 117,839 | AA100: 10 | AB100: 2021-04-14 | AC100: 2021-04-30 | AX100: 117,839 | AY100: 117,839
B101: 85 | C101: 31.02 | D101: 30064400-0 | E101: CONSTRUCCIÓN ELECTRIFICACIÓN RURAL HUINCHIGUALLEGO, CANELA | F101: Ejecución | G101: COQUIMBO | H101: CANELA | I101: A | J101: 51,491 | K101: =0 -> 0 | L101: =0 -> 0 | Q101: =0 -> 0 | U101: 51,490 | Y101: 51,490 | Z101: =51491 -> 51,491 | AA101: 10 | AB101: 2021-04-14 | AC101: 2021-04-30 | AX101: 51,491 | AY101: 1
B102: 86 | C102: 31.02 | D102: 40016397-0 | E102: CONSTRUCCIÓN OBRAS DE URBANIZACIÓN, CHAÑARAL DE CARÉN, MONTE PATRIA | F102: Factibilidad | G102: COQUIMBO | H102: MONTE PATRIA | I102: N | J102: =75924 -> 75,924 | K102: =0 -> 0 | L102: =1 -> 1 | Q102: =0 -> 0 | Y102: 0 | Z102: =1831+71400 -> 73,231 | AA102: 10 | AB102: 2021-04-14 | AC102: 2021-04-30 | AX102: 73,231 | AY102: 73,231
B103: 87 | C103: 31.02 | D103: 40016396-0 | E103: CONSTRUCCIÓN OBRAS DE URBANIZACIÓN, LOCALIDAD LOS MORALES, MONTE PATRIA | F103: Factibilidad | G103: COQUIMBO | H103: MONTE PATRIA | I103: N | J103: 93,799 | K103: =0 -> 0 | L103: =1 -> 1 | Q103: =0 -> 0 | Y103: 0 | Z103: =2075+89657 -> 91,732 | AA103: 10 | AB103: 2021-04-14 | AC103: 2021-04-30 | AX103: 91,732 | AY103: 91,732
B104: 88 | C104: 31.02 | D104: 30484167-0 | E104: CONSTRUCCIÓN PARQUE URBANO DEL ENCUENTRO COMUNITARIO, PUNITAQUI | F104: Ejecución | G104: COQUIMBO | H104: PUNITAQUI | I104: N | J104: =826325 -> 826,325 | K104: =5010 -> 5,010 | L104: =686984 -> 686,984 | Q104: 36,384 | R104: 60,053 | S104: 51,660 | T104: 71,137 | Y104: 219,234 | Z104: =1000+36386 -> 37,386 | AA104: 10 | AB104: 2021-04-14 | AC104: 2021-04-30 | AD104: 189,086 | AE104: 24 | AF104: 2021-06-16 | AG104: 2021-06-25 | AX104: 226,472 | AY104: 7,238
B105: 89 | C105: 31.02 | D105: 40012802-0 | E105: CONSTRUCCIÓN TECHADOS VARIOS ESTABLECIMIENTOS EDUCACIONALES, COMUNA DE PUNITAQUI | F105: Ejecución | G105: COQUIMBO | H105: PUNITAQUI | I105: N | J105: =1443611 -> 1,443,611 | K105: =5112 -> 5,112 | L105: =699483 -> 699,483 | Q105: =0 -> 0 | Y105: 0 | Z105: =1200+167353 -> 168,553 | AA105: 10 | AB105: 2021-04-14 | AC105: 2021-04-30 | AX105: 168,553 | AY105: 168,553
B106: 90 | C106: 31.02 | D106: 30465392-0 | E106: CONSERVACIÓN CAMINO BÁSICO RUTA D-457, SAMO ALTO-ANDACOLLO,TR-ELQUI | F106: Ejecución | G106: COQUIMBO | H106: PROVINCIA DE ELQUI | I106: A | J106: =1707075 -> 1,707,075 | K106: =1697197 -> 1,697,197 | L106: =0 -> 0 | Q106: =0 -> 0 | Y106: 0 | Z106: =4915 -> 4,915 | AA106: 10 | AB106: 2021-04-14 | AC106: 2021-04-30 | AX106: 4,915 | AY106: 4,915
B107: 91 | C107: 31.02 | D107: 30457897-0 | E107: MEJORAMENTO COMPLEJO DEPORTIVO JUAN SOLDADO, COMUNA DE LA SERENA | F107: Ejecución | G107: COQUIMBO | H107: LA SERENA | I107: A | J107: =787690 -> 787,690 | K107: =2140 -> 2,140 | L107: =34753 -> 34,753 | P107: =0 -> 0 | Q107: 77,097 | R107: 53,516 | S107: 61,010 | T107: 101,794 | Y107: 293,417 | Z107: =24000+126000 -> 150,000 | AA107: 10 | AB107: 2021-04-14 | AC107: 2021-04-30 | AD107: =20000-20000 -> 0 | AE107: 16 | AF107: 2021-05-14 | AG107: 2021-05-31 | AH107: 155,930 | AI107: 24 | AJ107: 2021-06-16 | AK107: 2021-06-25 | AL107: 540 | AM107: 38 | AN107: 2021-08-25 | AO107: 2021-09-10 | AX107: 306,470 | AY107: 13,053
B108: 92 | C108: 31.02 | D108: 30124186-0 | E108: MEJORAMIENTO CANCHA DE FUTBOL DE SERÓN, RÍO HURTADO | F108: Ejecución | G108: COQUIMBO | H108: RÍO HURTADO | I108: A | J108: =969521 -> 969,521 | K108: =851126 -> 851,126 | L108: =1 -> 1 | Q108: =0 -> 0 | Y108: 0 | Z108: =108734+367 -> 109,101 | AA108: 10 | AB108: 2021-04-14 | AC108: 2021-04-30 | AX108: 109,101 | AY108: 109,101
B109: 93 | C109: 31.02 | D109: 30150673-0 | E109: MEJORAMIENTO CANCHA DE FUTBOL DE HURTADO | F109: Ejecución | G109: COQUIMBO | H109: RÍO HURTADO | I109: A | J109: =592430 -> 592,430 | K109: =409536 -> 409,536 | L109: =0 -> 0 | Q109: =0 -> 0 | Y109: 0 | Z109: =119978+8211 -> 128,189 | AA109: 10 | AB109: 2021-04-14 | AC109: 2021-04-30 | AX109: 128,189 | AY109: 128,189
B110: 94 | C110: 31.02 | D110: 30393924-0 | E110: MEJORAMIENTO PLAZA DE ARMAS DE PICHASCA, COMUNA DE RÍO HURTADO | F110: Ejecución | G110: COQUIMBO | H110: RÍO HURTADO | I110: A | J110: =712703 -> 712,703 | K110: =418980 -> 418,980 | L110: =71 -> 71 | Q110: =0 -> 0 | Y110: 0 | Z110: =53196+107 -> 53,303 | AA110: 10 | AB110: 2021-04-14 | AC110: 2021-04-30 | AD110: 2,000 | AE110: 38 | AF110: 2021-08-25 | AG110: 2021-09-10 | AX110: 55,303 | AY110: 55,303
B111: 95 | Y111: 0 | AX111: 0 | AY111: 0
B112: 96 | C112: 31.02 | D112: 40009212-0 | E112: HABILITACIÓN SALA PARA RESONADOR MAGNÉTICO Y ADECUACIONES EN U IMAGENOLOGÍA.H. COQUIMBO | F112: Ejecución | G112: COQUIMBO | H112: COQUIMBO | I112: N | J112: =2046055 -> 2,046,055 | K112: =0 -> 0 | L112: =1863328 -> 1,863,328 | P112: =0 -> 0 | Q112: =0 -> 0 | Y112: =SUM(M112:X112) -> 0 | Z112: =180000+2727 -> 182,727 | AA112: 11 | AB112: 2021-05-10 | AC112: 2021-05-18 | AX112: 182,727 | AY112: 182,727
B113: 97 | C113: 31.02 | D113: 30147622-0 | E113: MEJORAMIENTO ESPACIO PÚBLICO AVENIDA BELTRÁN AMENÁBAR , ANDACOLLO | F113: Ejecución | G113: COQUIMBO | H113: ANDACOLLO | I113: A | J113: =920010 -> 920,010 | K113: =282 -> 282 | L113: =849572 -> 849,572 | P113: =0 -> 0 | Q113: =0 -> 0 | Y113: 0 | Z113: 45,000 | AA113: 11 | AB113: 2021-05-10 | AC113: 2021-05-18 | AX113: 45,000 | AY113: 45,000
B114: 98 | C114: 31.02 | D114: 40018067-0 | E114: CONSERVACIÓN CABAÑA PDI JUNTAS DEL TORO | F114: Ejecución | G114: COQUIMBO | H114: COQUIMBO | I114: N | J114: =45594 -> 45,594 | K114: =0 -> 0 | L114: =1 -> 1 | P114: =0 -> 0 | Q114: =3029+1618 -> 4,647 | R114: 737 | U114: 39,096 | Y114: 44,480 | Z114: =37645+5284+1981 -> 44,910 | AA114: 11 | AB114: 2021-05-10 | AC114: 2021-05-18 | AD114: 0 | AE114: 23 | AF114: 2021-06-08 | AG114: 2021-06-22 | AX114: 44,910 | AY114: 430
B115: 99 | C115: 31.02 | D115: 40003156-0 | E115: CONSTRUCCIÓN PLAZA DE ABASTOS VILLA LAMBERT, SECTOR LAS COMPAÑÍAS, LA SERENA | F115: Diseño | G115: COQUIMBO | H115: LA SERENA | I115: N | J115: =105559 -> 105,559 | K115: =0 -> 0 | L115: =77559 -> 77,559 | P115: =0 -> 0 | Q115: =0 -> 0 | Y115: 0 | Z115: =28000 -> 28,000 | AA115: 11 | AB115: 2021-05-10 | AC115: 2021-05-18 | AX115: 28,000 | AY115: 28,000
B116: 100 | C116: 31.02 | D116: 30100126-0 | E116: CONSTRUCCIÓN CESFAM SAN ISIDRO- CALINGASTA,VICUÑA | F116: Ejecución | G116: COQUIMBO | H116: VICUÑA | I116: A | J116: 2,788,359 | K116: 2,699,577 | L116: 88,782 | Y116: =SUM(M116:X116) -> 0 | Z116: 79,828 | AA116: 24 | AB116: 2021-06-16 | AC116: 2021-06-25 | AD116: 7,000 | AE116: 38 | AF116: 2021-08-25 | AG116: 2021-09-10 | AX116: 86,828 | AY116: 86,828
B117: 101 | C117: 31.02 | D117: 30130485-0 | E117: MEJORAMIENTO ESPACIOS PUBLICOS SECTOR HUAMPULLA | F117: Ejecución | G117: COQUIMBO | H117: RÍO HURTADO | I117: A | J117: 1,106,378 | K117: 600,189 | L117: 506,189 | Y117: 0 | Z117: 195,000 | AA117: 24 | AB117: 2021-06-16 | AC117: 2021-06-25 | AX117: 195,000 | AY117: 195,000
B118: 102 | C118: 31.02 | D118: 30064663-0 | E118: MEJORAMIENTO EDIFICIO CONSISTORIAL, OVALLE | F118: Ejecución | G118: COQUIMBO | H118: OVALLE | I118: N | J118: 21,501,860 | K118: 0 | L118: 21,394,351 | Z118: 3,323 | AA118: 25 | AB118: 2021-06-22 | AC118: 2021-07-08 | AX118: 3,323 | AY118: 3,323
B119: 103 | C119: 31.02 | D119: 30091815-0 | E119: MEJORAMIENTO PARQUE URBANO AVENIDA SUR, COMBARBALÁ | F119: Ejecución | G119: COQUIMBO | H119: COMBARBALÁ | I119: N | J119: 4,313,747 | K119: 0 | L119: 2,356,729 | Z119: 1,176 | AA119: 25 | AB119: 2021-06-22 | AC119: 2021-07-08 | AX119: 1,176 | AY119: 1,176
B120: 104 | C120: 31.02 | D120: 30432172-0 | E120: CONSTRUCCIÓN PARQUE RECREATIVO SAN JOAQUÍN, LA SERENA | F120: Ejecución | G120: COQUIMBO | H120: LA SERENA | I120: N | J120: 3,968,161 | K120: 0 | L120: 3,940,945 | Z120: 6,766 | AA120: 25 | AB120: 2021-06-22 | AC120: 2021-07-08 | AX120: 6,766 | AY120: 6,766
B121: 105 | C121: 31.02 | D121: 40012771-0 | E121: MEJORAMIENTO CANCHA N° 1,Comuna de Salamanca | F121: Ejecución | G121: COQUIMBO | H121: SALAMANCA | I121: N | J121: 688,342 | K121: 0 | L121: 674,209 | Z121: 3,907 | AA121: 25 | AB121: 2021-06-22 | AC121: 2021-07-08 | AX121: 3,907 | AY121: 3,907
B122: 106 | C122: 31.02 | D122: 40009552-0 | E122: RESTAURACIÓN DEL CONJUNTO TORRE BAUER, VICUÑA | F122: Ejecución | G122: COQUIMBO | H122: VICUÑA | I122: N | J122: 400,015 | K122: 0 | L122: 379,565 | Z122: 20,450 | AA122: 25 | AB122: 2021-06-22 | AC122: 2021-07-08 | AX122: 20,450 | AY122: 20,450
B123: 107 | C123: 31.02 | D123: 40012018-0 | E123: HABILITACIÓN CENTRO DE ARTE Y CULTURA "ESPACIO ESTACIÓN", VICUÑA | F123: Ejecución | G123: COQUIMBO | H123: VICUÑA | I123: N | J123: 302,708 | K123: 0 | L123: 286,172 | Z123: 16,536 | AA123: 25 | AB123: 2021-06-22 | AC123: 2021-07-08 | AX123: 16,536 | AY123: 16,536
B124: 108 | C124: 31.02 | D124: 30484186-0 | E124: CONSTRUCCIÓN DE OBRAS DE URBANIZACIÓN LOCALIDAD DE PEDREGAL | F124: Factibilidad | G124: COQUIMBO | H124: MONTE PATRIA | I124: N | J124: 73,302 | K124: 0 | L124: 63,179 | Z124: 1,872 | AA124: 25 | AB124: 2021-06-22 | AC124: 2021-07-08 | AX124: 1,872 | AY124: 1,872
B125: 109 | C125: 31.02 | D125: 40013598-0 | E125: HABILITACION BASE SAMU INTERVENTORA SALAMANCA | F125: Ejecución | G125: COQUIMBO | H125: SALAMANCA | I125: N | J125: 419,457 | K125: 0 | L125: 334,858 | Z125: =525+59475 -> 60,000 | AA125: 25 | AB125: 2021-06-22 | AC125: 2021-07-08 | AX125: 60,000 | AY125: 60,000
B126: 110 | C126: 31.02 | D126: 40009344-0 | E126: CONSERVACIÓN EDIFICIO CONSISTORIAL COMBARBALÁ | F126: Ejecución | G126: COQUIMBO | H126: COMBARBALÁ | I126: N | J126: 688,343 | K126: 0 | L126: 408,343 | Z126: 60,000 | AA126: 25 | AB126: 2021-06-22 | AC126: 2021-07-08 | AX126: 60,000 | AY126: 60,000
B127: 111 | C127: 31.02 | D127: 30447522-0 | E127: CONSTRUCCIÓN PARQUE CHAÑARAL ALTO, COMUNA DE MONTE PATRIA | F127: Ejecución | G127: COQUIMBO | H127: MONTE PATRIA | I127: A | J127: 2,710,884 | K127: 1,031,811 | L127: 2 | U127: 21,008 | Y127: =SUM(M127:X127) -> 21,008 | Z127: =9864+426072 -> 435,936 | AA127: 34 | AB127: 2021-08-03 | AC127: 2021-09-10 | AX127: 435,936 | AY127: 414,928
B128: 112 | C128: 31.02 | D128: 40013615-0 | E128: =+VLOOKUP(D128,[4]Iniciativas!$A$3:$M$205,3,FALSE) -> CONST. CENTRO DE DIALISIS HOSPITAL DE VICUÑA | F128: Ejecución | G128: COQUIMBO | H128: VICUÑA | I128: N | J128: 1,736,512 | K128: 0 | L128: 1,707,614 | Y128: 0 | Z128: =736+4543+23619 -> 28,898 | AA128: 34 | AB128: 2021-08-03 | AC128: 2021-09-10 | AX128: 28,898 | AY128: 28,898
B129: 113 | C129: 31.02 | D129: 40006217-0 | E129: CONSERVACION EDIFICIO BICRIM LOS VILOS | F129: Ejecución | G129: COQUIMBO | H129: LOS VILOS | I129: N | J129: 166,616 | K129: 0 | L129: 116,615 | Y129: 0 | Z129: =2908+47092 -> 50,000 | AA129: 34 | AB129: 2021-08-03 | AC129: 2021-09-10 | AX129: 50,000 | AY129: 50,000
B130: 114 | C130: 31.02 | D130: 30086690-0 | E130: MEJORAMIENTO ESTADIO MUNICIPAL, VICUÑA | F130: Ejecución | G130: COQUIMBO | H130: VICUÑA | I130: A | J130: 5,972,502 | K130: 37,362 | L130: 4,490,782 | Y130: 0 | Z130: 67,000 | AA130: 34 | AB130: 2021-08-03 | AC130: 2021-09-10 | AX130: 67,000 | AY130: 67,000
B131: 115 | C131: 31.02 | D131: 40000697-0 | E131: CONSERVACIÓN CBC RUTA D-701, SECTOR : LAS RAMADAS - EL CIÉNAGO, PUNITAQUI | F131: Ejecución | G131: COQUIMBO | H131: PUNITAQUI | I131: A | J131: 531,634 | K131: 531,621 | L131: 0 | Y131: 0 | Z131: 1 | AA131: 38 | AB131: 2021-08-28 | AC131: 2021-09-10 | AX131: 1 | AY131: 1
Y132: 0 | AX132: 0 | AY132: 0
Y133: 0 | AX133: 0 | AY133: 0
Y134: 0 | AX134: 0 | AY134: 0
Y135: 0 | AX135: 0 | AY135: 0
Y136: 0 | AX136: 0 | AY136: 0
Y137: 0 | AX137: 0 | AY137: 0
Y138: 0 | AX138: 0 | AY138: 0
Y139: 0 | AX139: 0 | AY139: 0
Y140: 0 | AX140: 0 | AY140: 0
Y141: 0 | AX141: 0 | AY141: 0
Y142: 0 | AX142: 0 | AY142: 0
Y143: 0 | AX143: 0 | AY143: 0
Y144: 0 | AX144: 0 | AY144: 0
Y145: 0 | AX145: 0 | AY145: 0
Y146: 0 | AX146: 0 | AY146: 0
Y147: 0 | AX147: 0 | AY147: 0
B148: Total M$ | K148: =SUBTOTAL(9,K16:K138) -> 97,998,308 | L148: =SUBTOTAL(9,L16:L138) -> 51,671,992 | M148: 0 | N148: 9,168,843 | O148: 2,817,710 | P148: 2,353,730 | Q148: 3,088,889 | R148: 3,012,449 | S148: 2,530,028 | T148: 1,270,693 | U148: 2,066,664 | V148: 0 | W148: 0 | X148: 0 | Y148: 26,309,006 | Z148: 35,237,583 | AD148: =SUBTOTAL(9,AD16:AD138) -> 1,287,701 | AH148: =SUBTOTAL(9,AH16:AH138) -> 73,702 | AL148: =SUBTOTAL(9,AL16:AL138) -> 190,184 | AP148: =SUBTOTAL(9,AP16:AP138) -> 199,787 | AT148: =SUBTOTAL(9,AT16:AT138) -> 0 | AX148: =SUBTOTAL(9,AX16:AX138) -> 36,988,957 | AY148: 10,679,951

Sheet 0565 Valparaiso
B9: INFORMACIÓN RESOLUCIONES GORE ST 31 PROGRAMA INVERSIÓN REGIONAL
B13: Ley Inicial 2021 | C13: Ley Vigente 2021 | D13: Ley Vigente Medicion 2021 | E13: Gasto Acumulado a Junio
B14: 57,190,327 | C14: 45,702,878 | D14: =C14 -> 45,702,878 | E14: 27,094,313
Z15: IDENTIFICACIÓN INICIAL | AD15: MODIFICACIÓN | AH15: MODIFICACIÓN | AL15: MODIFICACIÓN | AP15: MODIFICACIÓN | AT15: MODIFICACIÓN | AX15: MODIFICACIÓN | BB15: Programa Financiero
B16: N° | C16: ST-Item | D16: Código BIP | E16: Nombre de proyecto | F16: Etapa | G16: Región | H16: Comuna | I16: Tipo A=Arrastre , N= Nuevo | J16: Costo Total Ficha IDI | K16: Ejecutado Años Anteriores FICHA IDI | L16: Saldo Proximos Años Ficha IDI | M16: Enero mensual SIGFE 2021 | N16: Febrero mensual SIGFE 2021 | O16: Marzo mensual SIGFE 2021 | P16: Abril mensual SIGFE 2021 | Q16: Mayo mensual SIGFE 2021 | R16: Junio mensual SIGFE 2021 | S16: Julio mensual SIGFE 2021 | T16: Agosto mensual SIGFE 2021 | U16: Septiembre mensual SIGFE 2021 | V16: Octubre mensual SIGFE 2021 | W16: Noviembre mensual SIGFE 2021 | X16: Diciembre mensual SIGFE 2021 | Y16: Total Ejecución acumulada 2021 | Z16: Monto Identificado Año 2021 | AA16: N° Resolución | AB16: Fecha Resolución | AC16: Fecha de Toma de Razón | AD16: Monto Modificado 2021 | AE16: N° Resolución | AF16: Fecha Resolución | AG16: Fecha de Toma de Razón | AH16: Monto Modificado 2021 | AI16: N° Resolución | AJ16: Fecha Resolución | AK16: Fecha de Toma de Razón | AL16: Monto Modificado 2021 | AM16: N° Resolución | AN16: Fecha Resolución | AO16: Fecha de Toma de Razón | AP16: Monto Modificado 2021 | AQ16: N° Resolución | AR16: Fecha Resolución | AS16: Fecha de Toma de Razón | AT16: Monto Modificado 2021 | AU16: N° Resolución | AV16: Fecha Resolución | AW16: Fecha de Toma de Razón | AX16: Monto Modificado 2021 | AY16: N° Resolución | AZ16: Fecha Resolución | BA16: Fecha de Toma de Razón | BB16: Total Identificado | BC16: Saldo por Ejecutar
B17: 1 | C17: 31.02 | D17: 30464945 | E17: CONSTRUCCION SUBCOMISARÍA EL BELLOTO, COMUNA DE QUILPUÉ | F17: EJECUCION | G17: VALPARAISO | H17: QUILPUÉ | I17: A | J17: 3,753,377 | K17: 3,048,174 | L17: =J17-K17 -> 705,203 | S17: 0 | T17: 0 | U17: 0 | Y17: 0 | Z17: 522,100 | AA17: 5 | AB17: 2021-01-20 | AC17: 2021-01-29 | AD17: 7,230 | AE17: 27 | AF17: 2021-03-19 | AG17: 2021-03-24 | BB17: =Z17+AD17+AH17+AL17+AP17+AT17+AX17 -> 529,330 | BC17: =BB17-Y17 -> 529,330
B18: =B17+1 -> 2 | C18: 31.02 | D18: 30444822 | E18: REPOSICION PAVIM. CIRCUITO DE SAN JOSE A AMUNATEGUI, RECREO, VIÑA | F18: EJECUCION | G18: VALPARAISO | H18: VIÑA DEL MAR | I18: A | J18: 2,598,725 | K18: 2,463,382 | L18: =J18-K18 -> 135,343 | M18: 126,474 | P18: 0 | Q18: 0 | R18: 0 | S18: 0 | T18: 0 | U18: 0 | Y18: 126,474 | Z18: 133,520 | AA18: 5 | AB18: 2021-01-20 | AC18: 2021-01-29 | BB18: =Z18+AD18+AH18+AL18+AP18+AT18+AX18 -> 133,520 | BC18: 7,046
B19: =B18+1 -> 3 | C19: 31.02 | D19: 20039270 | E19: CONSTRUCCION CENTRO DE SALUD RURAL SECTOR OCOA, HIJUELAS | F19: EJECUCION | G19: VALPARAISO | H19: HIJUELAS | I19: A | J19: 2,466,772 | K19: 2,293,335 | L19: 173,437 | O19: 7,019 | P19: 90,542 | Q19: 4,258 | R19: 21,373 | S19: 1,655 | T19: 262 | U19: 0 | Y19: 125,109 | Z19: 173,437 | AA19: 5 | AB19: 2021-01-20 | AC19: 2021-01-29 | BB19: 173,437 | BC19: 48,328
B20: 4 | C20: 31.02 | D20: 30102811 | E20: CONSTRUCCION CENTRO DE PRODUCTOS TIPICOS, HIJUELAS | F20: EJECUCION | G20: VALPARAISO | H20: HIJUELAS | I20: A | J20: 1,014,086 | K20: 983,851 | L20: 30,235 | M20: 482 | N20: 29,753 | P20: 0 | Q20: 0 | R20: 0 | S20: 0 | T20: 0 | U20: 0 | Y20: 30,235 | Z20: 30,235 | AA20: 5 | AB20: 2021-01-20 | AC20: 2021-01-29 | BB20: 30,235 | BC20: 0
B21: 5 | C21: 31.01 | D21: 30132855 | E21: ACTUALIZACION PLAN DE REGULADOR COMUNAL DE PAPUDO | F21: EJECUCION | G21: VALPARAISO | H21: PAPUDO | I21: A | J21: 138,089 | K21: 69,274 | L21: 68,815 | P21: 19,500 | Q21: 0 | R21: 0 | S21: 45,500 | T21: 0 | U21: 0 | Y21: 65,000 | Z21: 65,001 | AA21: 5 | AB21: 2021-01-20 | AC21: 2021-01-29 | BB21: 65,001 | BC21: 1
B22: 6 | C22: 31.02 | D22: 30134987 | E22: CONSERVACION CESFAM EDUARDO FREI, COMUNA VILLA ALEMANA | F22: EJECUCION | G22: VALPARAISO | H22: VILLA ALEMANA | I22: A | J22: 238,414 | K22: 226,120 | L22: 12,294 | M22: 821 | N22: 5,083 | P22: 4,577 | Q22: 0 | R22: 0 | S22: 0 | T22: 0 | U22: 0 | Y22: 10,481 | Z22: 12,294 | AA22: 5 | AB22: 2021-01-20 | AC22: 2021-01-29 | BB22: 12,294 | BC22: 1,813
B23: 7 | C23: 31.02 | D23: 30129952 | E23: MEJORAMIENTO PLAZA DE ARMAS, COMUNA DE PETORCA | F23: EJECUCION | G23: VALPARAISO | H23: PETORCA | I23: A | J23: 2,525,528 | K23: 2,225,816 | L23: 299,712 | N23: 164,006 | P23: 24,328 | Q23: 35,235 | R23: 7,054 | S23: 0 | T23: 0 | U23: 0 | Y23: 230,623 | Z23: 299,712 | AA23: 5 | AB23: 2021-01-20 | AC23: 2021-01-29 | BB23: 299,712 | BC23: 69,089
B24: 8 | C24: 31.02 | D24: 30480266 | E24: CONSTRUCCION BY PASS RUTA E-85, TRAMO URBANO CUIDAD DE LOS ANDES (PREFACTIBILIDAD) | F24: PREFACTIBILIDAD | G24: VALPARAISO | H24: REGIONAL | I24: A | J24: 182,653 | K24: 156,178 | L24: 26,475 | N24: 26,475 | P24: 0 | Q24: 0 | R24: 0 | S24: 0 | T24: 0 | U24: 0 | Y24: 26,475 | Z24: 26,475 | AA24: 5 | AB24: 2021-01-20 | AC24: 2021-01-29 | BB24: 26,475 | BC24: 0
B25: 9 | C25: 31.02 | D25: 30453472 | E25: MEJORAMIENTO AV.ARTURO PHILLIPS - GRAN AV. DEL MAR, SANTO DOMINGO | F25: EJECUCION | G25: VALPARAISO | H25: SANTO DOMINGO | I25: A | J25: 3,425,131 | K25: 2,672,181 | L25: 752,950 | M25: 2,052 | P25: 0 | Q25: 0 | R25: 0 | S25: 0 | T25: 67,437 | U25: 30,251 | Y25: 99,740 | Z25: 751,843 | AA25: 5 | AB25: 2021-01-20 | AC25: 2021-01-29 | BB25: 751,843 | BC25: 652,103
B26: 10 | C26: 31.02 | D26: 40000834 | E26: REPOSICION CUARTEL DE INVESTIGACIÓN CRIMINAL LIMACHE (DISEÑO) | F26: DISEÑO | G26: VALPARAISO | H26: LIMACHE | I26: A | J26: 98,881 | K26: 79,861 | L26: 19,020 | S26: 0 | T26: 0 | U26: 19,020 | Y26: 19,020 | Z26: 19,020 | AA26: 5 | AB26: 2021-01-20 | AC26: 2021-01-29 | BB26: 19,020 | BC26: 0
B27: 11 | C27: 31.02 | D27: 40001982 | E27: CONSERVACION CONSERVACIÓN VIAL CALLES DE PLAYA ANCHA, ETAPA 2, VALPARAÍSO | F27: EJECUCION | G27: VALPARAISO | H27: VALPARAISO | I27: A | J27: 2,997,357 | K27: 1,257,402 | L27: 1,739,955 | M27: 17,635 | N27: 530,914 | P27: 233,918 | Q27: 14,667 | R27: 645,481 | S27: 0 | T27: 0 | U27: 0 | Y27: 1,442,614 | Z27: 1,739,955 | AA27: 5 | AB27: 2021-01-20 | AC27: 2021-01-29 | AD27: 250,000 | AE27: 71 | AF27: 2021-07-23 | AG27: 2021-07-28 | BB27: 1,989,955 | BC27: 547,341
B28: 12 | C28: 31.02 | D28: 30244322 | E28: REPOSICION CUARTEL 5ª CIA DE BOMBEROS CURIMON, SAN FELIPE | F28: EJECUCION | G28: VALPARAISO | H28: SAN FELIPE | I28: A | J28: 675,648 | K28: 288,606 | L28: 387,042 | M28: 64,741 | N28: 1,760 | P28: 0 | Q28: 0 | R28: 0 | S28: 0 | T28: 0 | U28: 0 | Y28: 66,501 | Z28: 385,963 | AA28: 5 | AB28: 2021-01-20 | AC28: 2021-01-29 | BB28: 385,963 | BC28: 319,462
B29: 13 | C29: 31.02 | D29: 40000335 | E29: CONSTRUCCION CENTRO COMUNITARIO ADULTO MAYOR ALGARROBO | F29: EJECUCION | G29: VALPARAISO | H29: ALGARROBO | I29: A | J29: 627,082 | K29: 421,822 | L29: 205,260 | O29: 44,475 | P29: 0 | Q29: 51,649 | R29: 0 | S29: 0 | T29: 27,362 | U29: 0 | Y29: 123,486 | Z29: 202,560 | AA29: 5 | AB29: 2021-01-20 | AC29: 2021-01-29 | BB29: 202,560 | BC29: 79,074
B30: 14 | C30: 31.02 | D30: 30134815 | E30: CONSERVACION ESCUELA JOHN KENNEDY, VIÑA DEL MAR | F30: EJECUCION | G30: VALPARAISO | H30: VIÑA DEL MAR | I30: A | J30: 306,300 | K30: 160,531 | L30: 145,769 | M30: 79,379 | N30: 30,023 | P30: 29,743 | Q30: 0 | R30: 0 | S30: 0 | T30: 0 | U30: 0 | Y30: 139,145 | Z30: 145,769 | AA30: 5 | AB30: 2021-01-20 | AC30: 2021-01-29 | BB30: 145,769 | BC30: 6,624
B31: 15 | C31: 31.02 | D31: 40000111 | E31: REPOSICION SEDE SOCIAL U.V. N°88, VIÑA DEL MAR | F31: EJECUCION | G31: VALPARAISO | H31: VIÑA DEL MAR | I31: A | J31: 199,839 | K31: 104,264 | L31: 95,575 | P31: 33,891 | Q31: 41,214 | R31: 0 | S31: 0 | T31: 0 | U31: 0 | Y31: 75,106 | Z31: 88,409 | AA31: 5 | AB31: 2021-01-20 | AC31: 2021-01-29 | BB31: 88,409 | BC31: 13,303
B32: 16 | C32: 31.02 | D32: 30473436 | E32: CONSERVACION BAÑOS Y DUCHAS ESCUELA E-124, VIÑA DEL MAR | F32: EJECUCION | G32: VALPARAISO | H32: VIÑA DEL MAR | I32: A | J32: 63,498 | K32: 46,485 | L32: 17,013 | O32: 17,013 | P32: 0 | Q32: 0 | R32: 0 | S32: 0 | T32: 0 | U32: 0 | Y32: 17,013 | Z32: 17,013 | AA32: 5 | AB32: 2021-01-20 | AC32: 2021-01-29 | BB32: 17,013 | BC32: 0
B33: 17 | C33: 31.02 | D33: 30484334 | E33: REPOSICION DE PAVIMENTACIÓN AVENIDA CARLOS ALESSANDRI, COMUNA DE ALGARROBO | F33: EJECUCION | G33: VALPARAISO | H33: ALGARROBO | I33: A | J33: 1,486,168 | K33: 1,228,192 | L33: 257,976 | N33: 37,847 | P33: 160,244 | Q33: 0 | R33: 0 | S33: 0 | T33: 0 | U33: 0 | Y33: 198,091 | Z33: 256,869 | AA33: 5 | AB33: 2021-01-20 | AC33: 2021-01-29 | BB33: 256,869 | BC33: 58,778
B34: 18 | C34: 31.02 | D34: 30477089 | E34: MEJORAMIENTO PAVIMENTACION AVDA LAS SALINAS DE PULLALLY, ETAPA 1, COMUNA DE PAPUDO | F34: EJECUCION | G34: VALPARAISO | H34: PAPUDO | I34: A | J34: 946,374 | K34: 851,976 | L34: 94,398 | S34: 0 | T34: 0 | U34: 0 | Y34: 0 | Z34: 93,351 | AA34: 5 | AB34: 2021-01-20 | AC34: 2021-01-29 | BB34: 93,351 | BC34: 93,351
B35: 19 | C35: 31.02 | D35: 40009356 | E35: CONSTRUCCION SANEAMIENTO SANITARIO CAMPAMENTO MANUEL BUSTOS ETAPA 1A, VIÑA DEL MAR | F35: EJECUCION | G35: VALPARAISO | H35: VIÑA DEL MAR | I35: A | J35: 984,084 | K35: 203,999 | L35: 780,085 | N35: 78,003 | P35: 197,029 | Q35: 119,430 | R35: 28,751 | S35: 39,817 | T35: 0 | U35: 0 | Y35: 463,030 | Z35: 763,825 | AA35: 5 | AB35: 2021-01-20 | AC35: 2021-01-29 | AD35: 10,000 | AE35: 71 | AF35: 2021-07-23 | AG35: 2021-07-28 | BB35: 773,825 | BC35: 310,795
B36: 20 | C36: 31.02 | D36: 40006121 | E36: CONSTRUCCION MURO DE CONTENCIÓN EN CALLE LAS HERAS, VIÑA DEL MAR | F36: EJECUCION | G36: VALPARAISO | H36: VIÑA DEL MAR | I36: A | J36: 120,780 | K36: 109,394 | L36: 11,386 | P36: 0 | Q36: 2,555 | R36: 0 | S36: 0 | T36: 0 | U36: 0 | Y36: 2,555 | Z36: 10,739 | AA36: 5 | AB36: 2021-01-20 | AC36: 2021-01-29 | BB36: 10,739 | BC36: 8,184
B37: 21 | C37: 31.02 | D37: 40008126 | E37: MEJORAMIENTO PAVIMENTO AVENIDA GENERAL BULNES REA¿ACA VIÑA DEL MAR | F37: EJECUCION | G37: VALPARAISO | H37: VIÑA DEL MAR | I37: A | J37: 687,849 | K37: 85,081 | L37: 602,768 | N37: 52,878 | O37: 103,673 | P37: 133,421 | Q37: 76,718 | R37: 68,620 | S37: 83,854 | T37: 53,303 | U37: 0 | Y37: 572,467 | Z37: 601,041 | AA37: 5 | AB37: 2021-01-20 | AC37: 2021-01-29 | BB37: 601,041 | BC37: 28,574
B38: 22 | C38: 31.02 | D38: 40008092 | E38: REPOSICION PAVIMENTO CALLE VICUÑA MACKENNA, ZAPALLAR | F38: EJECUCION | G38: VALPARAISO | H38: ZAPALLAR | I38: A | J38: 248,578 | K38: 77,824 | L38: 170,754 | P38: 0 | Q38: 122,071 | R38: 0 | S38: 0 | T38: 0 | U38: 40,692 | Y38: 162,763 | Z38: 170,754 | AA38: 5 | AB38: 2021-01-20 | AC38: 2021-01-29 | BB38: 170,754 | BC38: 7,991
B39: 23 | C39: 31.02 | D39: 30291122 | E39: CONSTRUCCION CENTRO COMUNITARIO UNION COMUNAL ADULTO MAYOR, COMUNA DE CABILDO | F39: EJECUCION | G39: VALPARAISO | H39: CABILDO | I39: A | J39: 306,739 | K39: 75,270 | L39: 231,469 | M39: 22,006 | N39: 37,887 | P39: 0 | Q39: 37,061 | R39: 1,800 | S39: 43,346 | T39: 0 | U39: 0 | Y39: 142,099 | Z39: 229,162 | AA39: 5 | AB39: 2021-01-20 | AC39: 2021-01-29 | BB39: 229,162 | BC39: 87,063
B40: 24 | C40: 31.02 | D40: 40008090 | E40: REPOSICION PAVIMENTO CALLE ARTURO PRAT, ZAPALLAR | F40: EJECUCION | G40: VALPARAISO | H40: ZAPALLAR | I40: A | J40: 173,927 | K40: 41,778 | L40: 132,149 | M40: 13,812 | P40: 0 | Q40: 63,441 | R40: 0 | S40: 0 | T40: 0 | U40: 0 | Y40: 77,253 | Z40: 132,149 | AA40: 5 | AB40: 2021-01-20 | AC40: 2021-01-29 | BB40: 132,149 | BC40: 54,896
B41: 25 | C41: 31.02 | D41: 30285272 | E41: MEJORAMIENTO BORDE COSTERO PASEO DEL MAR, SANTO DOMINGO (DISEÑO) | F41: DISEÑO | G41: VALPARAISO | H41: SANTO DOMINGO | I41: A | J41: 200,900 | K41: 40,900 | L41: 160,000 | O41: 40,000 | P41: 0 | Q41: 0 | R41: 0 | S41: 0 | T41: 0 | U41: 0 | Y41: 40,000 | Z41: 160,000 | AA41: 5 | AB41: 2021-01-20 | AC41: 2021-01-29 | BB41: 160,000 | BC41: 120,000
B42: 26 | C42: 31.02 | D42: 40008952 | E42: CONSTRUCCION PARADEROS RURALES COMUNA DE CABILDO | F42: EJECUCION | G42: VALPARAISO | H42: CABILDO | I42: N | J42: 1,126,260 | L42: 1,126,260 | N42: 27,145 | P42: 0 | Q42: 4,250 | R42: 45,624 | S42: 40,213 | T42: 53,538 | U42: 0 | Y42: 170,770 | Z42: 523,512 | AA42: 5 | AB42: 2021-01-20 | AC42: 2021-01-29 | BB42: 523,512 | BC42: 352,742
B43: 27 | C43: 31.02 | D43: 40002873 | E43: MEJORAMIENTO PAVIMENTACION DE CALLE DE LAS ROCAS, COMUNA DE SANTO DOMINGO | F43: EJECUCION | G43: VALPARAISO | H43: SANTO DOMINGO | I43: N | J43: 599,354 | L43: 599,354 | N43: 6,075 | P43: 382,491 | Q43: 76,402 | R43: 54,935 | S43: 0 | T43: 0 | U43: 0 | Y43: 519,902 | Z43: 598,306 | AA43: 5 | AB43: 2021-01-20 | AC43: 2021-01-29 | BB43: 598,306 | BC43: 78,404
B44: 28 | C44: 31.01 | D44: 40013035 | E44: DIAGNOSTICO PLAN GESTIÓN RESERVA BIOSFERA LA CAMPANA-PEÑUELAS,R. VALPARAISO | F44: EJECUCION | G44: VALPARAISO | H44: VALPARAISO | I44: A | J44: 35,668 | K44: 14,458 | L44: 21,210 | O44: 5,303 | P44: 0 | Q44: 0 | R44: 10,605 | S44: 0 | T44: 0 | U44: 5,303 | Y44: 21,210 | Z44: 21,210 | AA44: 5 | AB44: 2021-01-20 | AC44: 2021-01-29 | BB44: 21,210 | BC44: 0
B45: 29 | C45: 31.02 | D45: 40015828 | E45: AMPLIACION RED AGUA POTABE CALLE CUATRO ESQUINAS, HIJUELAS | F45: EJECUCION | G45: VALPARAISO | H45: HIJUELAS | I45: A | J45: 210,512 | K45: 136,833 | L45: 73,679 | M45: 2,655 | N45: 35,138 | P45: 2,655 | Q45: 11,256 | R45: 0 | S45: 0 | T45: 0 | U45: 0 | Y45: 51,704 | Z45: 73,679 | AA45: 5 | AB45: 2021-01-20 | AC45: 2021-01-29 | BB45: 73,679 | BC45: 21,975
B46: 30 | C46: 31.02 | D46: 40009610 | E46: REPOSICION PRIMERA COMPAÑÍA DE BOMBEROS, COMUNA DE ALGARROBO | F46: EJECUCION | G46: VALPARAISO | H46: ALGARROBO | I46: A | J46: 1,199,735 | K46: 3,076 | L46: 1,196,659 | M46: 3,008 | N46: 3,008 | O46: 21,201 | P46: 11,402 | Q46: 39,873 | R46: 39,863 | S46: 44,571 | T46: 86,568 | U46: 127,922 | Y46: 377,416 | Z46: 1,177,043 | AA46: 5 | AB46: 2021-01-20 | AC46: 2021-01-29 | AD46: -500,000 | AE46: 38 | AF46: 2021-04-30 | AG46: 2021-05-12 | BB46: 677,043 | BC46: 299,627
B47: 31 | C47: 31.01 | D47: 40016456 | E47: DIAGNOSTICO PLAN DE MANEJO DEL HUMEDAL RIO MAIPO, COMUNA DE SANTO DOMINGO | F47: EJECUCION | G47: VALPARAISO | H47: SANTO DOMINGO | I47: N | J47: 55,182 | L47: 55,182 | P47: 0 | Q47: 4,857 | R47: 0 | S47: 7,286 | T47: 0 | U47: 0 | Y47: 12,143 | Z47: 41,386 | AA47: 5 | AB47: 2021-01-20 | AC47: 2021-01-29 | BB47: 41,386 | BC47: 29,244
B48: 32 | C48: 31.02 | D48: 30409472 | E48: REPOSICION ESCUELA LIMACHITO F-377, COMUNA DE LIMACHE | F48: EJECUCION | G48: VALPARAISO | H48: LIMACHE | I48: A | J48: 4,236,502 | K48: 2,705,185 | L48: 1,531,317 | N48: 181,849 | O48: 263,444 | P48: 268,671 | Q48: 290,850 | R48: 145,281 | S48: 97,161 | T48: 143,485 | U48: 44,921 | Y48: 1,435,662 | Z48: 1,398,914 | AA48: 5 | AB48: 2021-01-20 | AC48: 2021-01-29 | AD48: 126,208 | AE48: 35 | AF48: 2021-04-28 | AG48: 2021-05-11 | BB48: 1,525,122 | BC48: 89,460
B49: 33 | C49: 31.02 | D49: 30467193 | E49: CONSERVACION VIAL Y REPARACIÓN ESP. PÚBLICOS AV. MATTA ETAPA 1 VALPO | F49: EJECUCION | G49: VALPARAISO | H49: VALPARAISO | I49: A | J49: 2,268,765 | K49: 1,140,003 | L49: 1,128,762 | M49: 106,653 | N49: 4,828 | P49: 75,378 | Q49: 198,161 | R49: 160,223 | S49: 357,439 | T49: 140,178 | U49: 230,547 | Y49: 1,273,406 | Z49: 1,128,761 | AA49: 6 | AB49: 2021-01-25 | AC49: 2021-01-29 | AD49: 265,000 | AE49: 69 | AF49: 2021-07-09 | AG49: 2021-07-13 | AH49: 30,000 | AI49: 72 | AJ49: 2021-07-29 | AK49: 2021-08-02 | AL49: -150,000 | AM49: 84 | AN49: 2021-08-23 | AO49: 2021-08-25 | AP49: 131,000 | AQ49: 95 | AR49: 21/09/221 | AS49: 2021-09-27 | BB49: 1,404,761 | BC49: 131,355
B50: 34 | C50: 31.02 | D50: 30482595 | E50: CONSTRUCCION ALCANTARILLADO DE AGUAS SERVIDAS LA TROYA, SAN FELIPE | F50: EJECUCION | G50: VALPARAISO | H50: SAN FELIPE | I50: A | J50: 1,834,771 | K50: 1,044,720 | L50: 790,051 | N50: 105,071 | P50: 100,330 | Q50: 166,548 | R50: 0 | S50: 9,417 | T50: 0 | U50: 0 | Y50: 381,366 | Z50: 790,051 | AA50: 6 | AB50: 2021-01-25 | AC50: 2021-01-29 | AD50: -150,000 | AE50: 84 | AF50: 2021-08-23 | AG50: 2021-08-25 | BB50: 640,051 | BC50: 258,685
B51: 35 | C51: 31.02 | D51: 30405274 | E51: CONSTRUCCION ALCANTARILLADO NUEVO RENACER, VALLE DEL REAL LOS ANDES | F51: EJECUCION | G51: VALPARAISO | H51: LOS ANDES | I51: A | J51: 1,280,709 | K51: 1,001,865 | L51: 278,844 | M51: 39,760 | O51: 25,438 | P51: 0 | Q51: 0 | R51: 0 | S51: 0 | T51: 0 | U51: 0 | Y51: 65,198 | Z51: 278,844 | AA51: 6 | AB51: 2021-01-25 | AC51: 2021-01-29 | BB51: 278,844 | BC51: 213,646
B52: 36 | C52: 31.02 | D52: 40002424 | E52: REPOSICION ESTADIO CENTENARIO COMUNA DE LOS ANDES | F52: EJECUCION | G52: VALPARAISO | H52: LOS ANDES | I52: A | J52: 1,546,910 | K52: 879,185 | L52: 667,725 | N52: 210,431 | P52: 311,475 | Q52: 140,252 | R52: 0 | S52: 120,680 | T52: 0 | U52: 0 | Y52: 782,839 | Z52: 667,136 | AA52: 6 | AB52: 2021-01-25 | AC52: 2021-01-29 | AD52: 8,089 | AE52: 38 | AF52: 2021-04-30 | AG52: 2021-05-12 | AH52: 120,680 | AI52: 65 | AJ52: 2021-06-30 | AK52: 2021-07-05 | BB52: 795,905 | BC52: 13,066
B53: 37 | C53: 31.02 | D53: 40004162 | E53: REPOSICION PAVIMENTO TRASLAVIÑA ORIENTAL Y ETCHEVERS, VIÑA DEL MAR | F53: EJECUCION | G53: VALPARAISO | H53: VIÑA DEL MAR | I53: A | J53: 949,615 | K53: 790,296 | L53: 159,319 | S53: 0 | T53: 0 | U53: 0 | Y53: 0 | Z53: 159,319 | AA53: 6 | AB53: 2021-01-25 | AC53: 2021-01-29 | BB53: 159,319 | BC53: 159,319
B54: 38 | C54: 31.02 | D54: 40000095 | E54: REPOSICION CUARTEL TERCERA COMPAÑIA DE BOMBEROS DE LIMACHE | F54: EJECUCION | G54: VALPARAISO | H54: LIMACHE | I54: A | J54: 847,589 | K54: 756,066 | L54: 91,523 | O54: 3,328 | P54: 65,045 | Q54: 0 | R54: 0 | S54: 0 | T54: 0 | U54: 0 | Y54: 68,373 | Z54: 89,525 | AA54: 6 | AB54: 2021-01-25 | AC54: 2021-01-29 | AD54: 1,997 | AE54: 28 | AF54: 2021-04-09 | AG54: 2021-04-15 | BB54: 91,522 | BC54: 23,149
B55: 39 | C55: 31.02 | D55: 40003136 | E55: MEJORAMIENTO PAVIMENTO CALLE EL MOLINO, COMUNA SAN ESTEBAN | F55: EJECUCION | G55: VALPARAISO | H55: SAN ESTEBAN | I55: A | J55: 802,952 | K55: 702,606 | L55: 100,346 | P55: 0 | Q55: 75,295 | R55: 0 | S55: 0 | T55: 0 | U55: 0 | Y55: 75,295 | Z55: 75,296 | AA55: 6 | AB55: 2021-01-25 | AC55: 2021-01-29 | AD55: 185 | AE55: 33 | AF55: 2021-04-21 | BB55: 75,481 | BC55: 186
B56: 40 | C56: 31.02 | D56: 40011327 | E56: REPOSICION PAVIMENTOS CALLE BAQUEDANO, COMUNA DE LIMACHE | F56: EJECUCION | G56: VALPARAISO | H56: LIMACHE | I56: A | J56: 723,640 | K56: 665,598 | L56: 58,042 | M56: 1,800 | P56: 0 | Q56: 0 | R56: 0 | S56: 0 | T56: 0 | U56: 0 | Y56: 1,800 | Z56: 58,042 | AA56: 6 | AB56: 2021-01-25 | AC56: 2021-01-29 | BB56: 58,042 | BC56: 56,242
B57: 41 | C57: 31.02 | D57: 40005398 | E57: MEJORAMIENTO CIRCUITO DE CALLES VILLA EL SOL Y LA CONCEPCION, CATEMU | F57: EJECUCION | G57: VALPARAISO | H57: CATEMU | I57: A | J57: 1,853,127 | K57: 621,872 | L57: 1,231,255 | N57: 1,846 | O57: 1,846 | P57: 442,393 | Q57: 180,860 | R57: 123,587 | S57: 0 | T57: 0 | U57: 133,370 | Y57: 883,903 | Z57: 1,231,255 | AA57: 6 | AB57: 2021-01-25 | AC57: 2021-01-29 | BB57: 1,231,255 | BC57: 347,352
B58: 42 | C58: 31.02 | D58: 30485847 | E58: MEJORAMIENTO ALUMBRADO PÚBLICO RURAL PUTAENDO | F58: EJECUCION | G58: VALPARAISO | H58: PUTAENDO | I58: A | J58: 783,593 | K58: 551,680 | L58: 231,913 | P58: 73,234 | Q58: 0 | R58: 0 | S58: 0 | T58: 0 | U58: 5,400 | Y58: 78,634 | Z58: 122,923 | AA58: 6 | AB58: 2021-01-25 | AC58: 2021-01-29 | AD58: 2,851 | AE58: 33 | AF58: 2021-04-21 | BB58: 125,774 | BC58: 47,140
B59: 43 | C59: 31.02 | D59: 30184622 | E59: REPOSICION CUARTEL DE BOMBEROS 2° COMPAÑIA LOS ANDES | F59: EJECUCION | G59: VALPARAISO | H59: LOS ANDES | I59: A | J59: 1,120,747 | K59: 513,901 | L59: 606,846 | N59: 176,624 | O59: 115,479 | P59: 0 | Q59: 0 | R59: 235,919 | S59: 0 | T59: 0 | U59: 11,666 | Y59: 539,688 | Z59: 606,846 | AA59: 6 | AB59: 2021-01-25 | AC59: 2021-01-29 | BB59: 606,846 | BC59: 67,158
B60: 44 | C60: 31.02 | D60: 30482139 | E60: MEJORAMIENTO PAVIMENTACIÓN AV. EL PERAL, COMUNA EL TABO | F60: EJECUCION | G60: VALPARAISO | H60: EL TABO | I60: A | J60: 487,234 | K60: 348,776 | L60: 138,458 | P60: 65,307 | Q60: 0 | R60: 0 | S60: 0 | T60: 0 | U60: 0 | Y60: 65,307 | Z60: 138,458 | AA60: 6 | AB60: 2021-01-25 | AC60: 2021-01-29 | BB60: 138,458 | BC60: 73,151
B61: 45 | C61: 31.02 | D61: 30103817 | E61: CONSERVACION EDIFICIO ESCUELA DE DERECHO UNIVERSIDAD DE VALPARAÍSO | F61: EJECUCION | G61: VALPARAISO | H61: VALPARAÍSO | I61: A | J61: 445,903 | K61: 333,235 | L61: 112,668 | N61: 1,726 | P61: 108,817 | Q61: 0 | R61: 1,614 | S61: 0 | T61: 0 | U61: 0 | Y61: 112,156 | Z61: 112,668 | AA61: 6 | AB61: 2021-01-25 | AC61: 2021-01-29 | BB61: 112,668 | BC61: 512
B62: 46 | C62: 31.02 | D62: 30485565 | E62: CONSTRUCCION CENTRO PLANETARIO COMUNA DE CALLE LARGA | F62: EJECUCION | G62: VALPARAISO | H62: CALLE LARGA | I62: A | J62: 4,177,210 | K62: 543,377 | L62: 3,633,833 | P62: 6,627 | Q62: 0 | R62: 0 | S62: 0 | T62: 0 | U62: 219,771 | Y62: 226,398 | Z62: 3,633,833 | AA62: 6 | AB62: 2021-01-25 | AC62: 2021-01-29 | AD62: -1,700,000 | AE62: 23 | AF62: 2021-02-26 | AG62: 2021-03-31 | AH62: -400,000 | AI62: 49 | AJ62: 2021-06-01 | AK62: 2021-06-07 | BB62: 1,533,833 | BC62: 1,307,435
B63: 47 | C63: 31.02 | D63: 30200172 | E63: CONSTRUCCION SISTEMA ALCANTARILLADO SECTOR EL SAUCE LOS ANDES | F63: EJECUCION | G63: VALPARAISO | H63: LOS ANDES | I63: A | J63: 331,080 | K63: 268,444 | L63: 62,636 | N63: 24,332 | P63: 0 | Q63: 0 | R63: 0 | S63: 0 | T63: 26,451 | U63: 0 | Y63: 50,783 | Z63: 62,636 | AA63: 6 | AB63: 2021-01-25 | AC63: 2021-01-29 | BB63: 62,636 | BC63: 11,853
B64: 48 | C64: 31.02 | D64: 40001489 | E64: CONSERVACION COMPLEJO DEPORTIVO JUAN VERA VELASQUEZ, COMUNA DE SANTO DOMINGO | F64: EJECUCION | G64: VALPARAISO | H64: SANTO DOMINGO | I64: A | J64: 538,466 | K64: 265,727 | L64: 272,739 | N64: 65,300 | O64: 46,980 | P64: 0 | Q64: 44,021 | R64: 0 | S64: 0 | T64: 57,106 | U64: 0 | Y64: 213,407 | Z64: 272,739 | AA64: 6 | AB64: 2021-01-25 | AC64: 2021-01-29 | BB64: 272,739 | BC64: 59,332
B65: 49 | C65: 31.02 | D65: 40007619 | E65: REPOSICION LUMINARIAS PUBLICAS DE LA COMUNA DE NOGALES | F65: EJECUCION | G65: VALPARAISO | H65: NOGALES | I65: A | J65: 1,105,460 | K65: 259,065 | L65: 846,395 | M65: 2,736 | N65: 688,859 | O65: 1,915 | P65: 76,962 | Q65: 0 | R65: 0 | S65: 0 | T65: 0 | U65: 0 | Y65: 770,472 | Z65: 846,395 | AA65: 6 | AB65: 2021-01-25 | AC65: 2021-01-29 | BB65: 846,395 | BC65: 75,923
B66: 50 | C66: 31.02 | D66: 40017976 | E66: AMPLIACION SERVICIO DE AGUA POTABLE RURAL HUALCAPO LAS PALMAS, HIJUELAS | F66: EJECUCION | G66: VALPARAISO | H66: HIJUELAS | I66: A | J66: 1,067,898 | K66: 248,477 | L66: 819,421 | N66: 149,390 | O66: 142,281 | P66: 407,637 | Q66: 2,216 | R66: 2,216 | S66: 0 | T66: 2,216 | U66: 0 | Y66: 705,956 | Z66: 819,421 | AA66: 6 | AB66: 2021-01-25 | AC66: 2021-01-29 | BB66: 819,421 | BC66: 113,465
B67: 51 | C67: 31.02 | D67: 40000378 | E67: MEJORAMIENTO CALLE AVIADOR ACEVEDO, BELLOTO. QUILPUÉ | F67: EJECUCION | G67: VALPARAISO | H67: QUILPUE | I67: A | J67: 526,798 | K67: 247,030 | L67: 279,768 | O67: 30,092 | P67: 0 | Q67: 0 | R67: 0 | S67: 0 | T67: 245,506 | U67: 1,545 | Y67: 277,143 | Z67: 279,768 | AA67: 6 | AB67: 2021-01-25 | AC67: 2021-01-29 | BB67: 279,768 | BC67: 2,625
B68: 52 | C68: 31.02 | D68: 30388223 | E68: CONSTRUCCION SEDE JUNTA VECINAL NUEVA RPC Y OBRAS C. CONCON | F68: EJECUCION | G68: VALPARAISO | H68: CONCON | I68: A | J68: 250,580 | K68: 217,947 | L68: 32,633 | P68: 20,792 | Q68: 0 | R68: 1,599 | S68: 1,196 | T68: 0 | U68: 0 | Y68: 23,586 | Z68: 32,632 | AA68: 6 | AB68: 2021-01-25 | AC68: 2021-01-29 | BB68: 32,632 | BC68: 9,046
B69: 53 | C69: 31.02 | D69: 40001444 | E69: CONSTRUCCION ALCANTARILLADO Y P.E.A.S. SECTOR CALLE ANCHA COMUNA DE SANTA MARIA | F69: EJECUCION | G69: VALPARAISO | H69: SANTA MARIA | I69: A | J69: 742,904 | K69: 194,166 | L69: 548,738 | O69: 27,593 | P69: 0 | Q69: 0 | R69: 36,019 | S69: 3,483 | T69: 0 | U69: 0 | Y69: 67,096 | Z69: 548,738 | AA69: 6 | AB69: 2021-01-25 | AC69: 2021-01-29 | BB69: 548,738 | BC69: 481,642
B70: 54 | C70: 31.02 | D70: 30486584 | E70: MEJORAMIENTO CIRCUITO CALLE PEDRO MONTT, WENCESLAO VIDAL Y ALBERTO NAVARRO. QUILPUÉ | F70: EJECUCION | G70: VALPARAISO | H70: QUILPUE | I70: A | J70: 245,082 | K70: 172,678 | L70: 72,404 | S70: 0 | T70: 66,873 | U70: 0 | Y70: 66,873 | Z70: 72,404 | AA70: 6 | AB70: 2021-01-25 | AC70: 2021-01-29 | BB70: 72,404 | BC70: 5,531
B71: 55 | C71: 31.02 | D71: 30436672 | E71: CONSTRUCCION CUARTEL PRIMERA COMPAÑIA DE BOMBEROS DE EL QUISCO | F71: EJECUCION | G71: VALPARAISO | H71: EL QUISCO | I71: A | J71: 561,546 | K71: 405,508 | L71: 156,038 | P71: 40,297 | Q71: 154 | R71: 0 | S71: 1,292 | T71: 115,817 | U71: 0 | Y71: 157,560 | Z71: 156,038 | AA71: 6 | AB71: 2021-01-25 | AC71: 2021-01-29 | AD71: 7,200 | AE71: 65 | AF71: 2021-06-30 | AG71: 2021-07-05 | BB71: 163,238 | BC71: 5,678
B72: 56 | C72: 31.02 | D72: 30347022 | E72: CONSTRUCCION TALLER MONTAJE INDUSTRIAL LICEO SAN ESTEBAN | F72: EJECUCION | G72: VALPARAISO | H72: SAN ESTEBAN | I72: A | J72: 449,279 | K72: 416,373 | L72: 32,906 | N72: 4,800 | P72: 0 | Q72: 0 | R72: 0 | S72: 0 | T72: 0 | U72: 0 | Y72: 4,800 | Z72: 32,906 | AA72: 6 | AB72: 2021-01-25 | AC72: 2021-01-29 | AD72: 26,000 | AE72: 95 | AF72: 2021-09-21 | AG72: 2021-09-27 | BB72: 58,906 | BC72: 54,106
B73: 57 | C73: 31.02 | D73: 30124753 | E73: REPOSICION SEDE ADMINISTRATIVA PARQUE NACIONAL LA CAMPANA OLMUE | F73: EJECUCION | G73: VALPARAISO | H73: VALPARAISO | I73: A | J73: 530,475 | K73: 513,072 | L73: 17,403 | M73: 2,257 | P73: 0 | Q73: 0 | R73: 0 | S73: 0 | T73: 0 | U73: 0 | Y73: 2,257 | Z73: 17,401 | AA73: 6 | AB73: 2021-01-25 | AC73: 2021-01-29 | BB73: 17,401 | BC73: 15,144
B74: 58 | C74: 31.02 | D74: 30477693 | E74: MEJORAMIENTO CALLE PABLO RAMIREZ. QUILPUÉ | F74: EJECUCION | G74: VALPARAISO | H74: QUILPUÉ | I74: A | J74: 576,659 | K74: 243,751 | L74: 332,908 | S74: 0 | T74: 0 | U74: 0 | Y74: 0 | Z74: 332,908 | AA74: 6 | AB74: 2021-01-25 | AC74: 2021-01-29 | BB74: 332,908 | BC74: 332,908
B75: 59 | C75: 31.02 | D75: 40002892 | E75: CONSTRUCCION PAVIMENTACIÓN Y AGUAS LLUVIAS CONEXIÓN QUEBRADA LAS CASAS, COMUNA DE ALGARROBO | F75: EJECUCION | G75: VALPARAISO | H75: ALGARROBO | I75: A | J75: 208,262 | K75: 126,694 | L75: 81,568 | O75: 14,656 | P75: 32,628 | Q75: 0 | R75: 16,368 | S75: 0 | T75: 0 | U75: 10,132 | Y75: 73,785 | Z75: 81,568 | AA75: 6 | AB75: 2021-01-25 | AC75: 2021-01-29 | BB75: 81,568 | BC75: 7,783
B76: 60 | C76: 31.02 | D76: 30086944 | E76: CONSTRUCCIÓN REDES DE ALCANTARILLADO SECTOR EL PIMIENTO, CALLE LARGA | F76: EJECUCION | G76: VALPARAISO | H76: CALLE LARGA | I76: A | J76: 792,960 | K76: 754,335 | L76: 38,625 | P76: 28,855 | Q76: 0 | R76: 16,157 | S76: 0 | T76: 0 | U76: 0 | Y76: 45,012 | Z76: 38,625 | AA76: 6 | AB76: 2021-01-25 | AC76: 2021-01-29 | AD76: 20,000 | AE76: 54 | AF76: 2021-06-16 | AG76: 2021-06-22 | AH76: 12,000 | AI76: 65 | AJ76: 2021-06-30 | AK76: 2021-07-05 | BB76: 70,625 | BC76: 25,613
B77: 61 | C77: 31.02 | D77: 40007750 | E77: MEJORAMIENTO PAVIMENTACION AVENIDA COSTANERA, SECTOR SAN SEBASTIAN, COMUNA DE CARTAGENA | F77: EJECUCION | G77: VALPARAISO | H77: CARTAGENA | I77: A | J77: 699,008 | K77: 109,175 | L77: 589,833 | M77: 6,056 | N77: 250,966 | P77: 221,247 | Q77: 0 | R77: 1,009 | S77: 109,041 | T77: 0 | U77: 0 | Y77: 588,320 | Z77: 589,833 | AA77: 6 | AB77: 2021-01-25 | AC77: 2021-01-29 | BB77: 589,833 | BC77: 1,513
B78: 62 | C78: 31.01 | D78: 40005147 | E78: ACTUALIZACION PLAN DE DESARROLLO COMUNA COMUNA LLAY- LLAY | F78: EJECUCION | G78: VALPARAISO | H78: LLAY LLAY | I78: A | J78: 37,290 | K78: 13,190 | L78: 24,100 | P78: 11,100 | Q78: 0 | R78: 13,000 | S78: 0 | T78: 0 | U78: 0 | Y78: 24,100 | Z78: 24,100 | AA78: 6 | AB78: 2021-01-25 | AC78: 2021-01-29 | BB78: 24,100 | BC78: 0
B79: 63 | C79: 31.02 | D79: 40011201 | E79: NORMALIZACION CUARTEL PRIMERA COMPAÑÍA. DE BOMBEROS, LLAY - LLAY | F79: EJECUCION | G79: VALPARAISO | H79: LLAY LLAY | I79: A | J79: 508,156 | K79: 25,652 | L79: 482,504 | N79: 41,677 | O79: 16,159 | P79: 98,916 | Q79: 0 | R79: 0 | S79: 182,221 | T79: 1,425 | U79: 0 | Y79: 340,398 | Z79: 482,504 | AA79: 6 | AB79: 2021-01-25 | AC79: 2021-01-29 | BB79: 482,504 | BC79: 142,106
B80: 64 | C80: 31.02 | D80: 40006613 | E80: NORMALIZACION LICEO POLITÉCNICO COMUNA LLAY LLAY | F80: EJECUCION | G80: VALPARAISO | H80: LLAY LLAY | I80: A | J80: 452,730 | K80: 3,067 | L80: 449,663 | N80: 1,500 | O80: 23,992 | P80: 79,764 | Q80: 61,394 | R80: 1,500 | S80: 0 | T80: 0 | U80: 0 | Y80: 168,150 | Z80: 449,663 | AA80: 6 | AB80: 2021-01-25 | AC80: 2021-01-29 | BB80: 449,663 | BC80: 281,513
B81: 65 | C81: 31.02 | D81: 30240624 | E81: CONSTRUCCION REDES DE ALCANTARILLADO CURIMÓN CENTRO, SAN FELIPE | F81: EJECUCION | G81: VALPARAISO | H81: SAN FELIPE | I81: A | J81: 2,365,836 | K81: 2,226,197 | L81: 139,639 | S81: 0 | T81: 127,352 | U81: 0 | Y81: 127,352 | Z81: 139,639 | AA81: 6 | AB81: 2021-01-25 | AC81: 2021-01-29 | BB81: 139,639 | BC81: =BB81-Y81 -> 12,287
B82: 66 | C82: 31.02 | D82: 40010609 | E82: MEJORAMIENTO SEDE SOCIAL JJ.VV POBLACION MORANDE, LLAY-LLAY | F82: EJECUCION | G82: VALPARAISO | H82: LLAY LLAY | I82: N | J82: 138,531 | L82: =J82-K82 -> 138,531 | N82: 47,089 | P82: 0 | Q82: 0 | R82: 71,275 | S82: 0 | T82: 0 | U82: 0 | Y82: 118,364 | Z82: 93,364 | AA82: 6 | AB82: 2021-01-25 | AC82: 2021-01-29 | AD82: 7,543 | AE82: 32 | AF82: 2021-04-20 | AG82: 2021-04-28 | AH82: 28,644 | AI82: 38 | AJ82: 2021-04-30 | AK82: 2021-05-12 | BB82: =Z82+AD82+AH82+AL82+AP82+AT82+AX82 -> 129,551 | BC82: 11,187
B83: =B82+1 -> 67 | C83: 31.02 | D83: 40002856 | E83: AMPLIACION ALUMBRADO PUBLICO VARIOS SECTORES RURALES COMUNA DE SAN FELIPE | F83: EJECUCION | G83: VALPARAISO | H83: SAN FELIPE | I83: N | J83: 473,993 | L83: 473,993 | O83: 215,861 | P83: 0 | Q83: 0 | R83: 0 | S83: 0 | T83: 0 | U83: 0 | Y83: 215,861 | Z83: 473,993 | AA83: 6 | AB83: 2021-01-25 | AC83: 2021-01-29 | BB83: 473,993 | BC83: 258,132
B84: 68 | C84: 31.02 | D84: 40006021 | E84: MEJORAMIENTO PAVIMENTACIÓN AVENIDA ALGARROBO, COMUNA DE ALGARROBO | F84: EJECUCION | G84: VALPARAISO | H84: ALGARROBO | I84: N | J84: 608,140 | L84: 608,140 | N84: 196,053 | P84: 0 | Q84: 0 | R84: 0 | S84: 0 | T84: 750 | U84: 331,995 | Y84: 528,798 | Z84: 608,140 | AA84: 6 | AB84: 2021-01-25 | AC84: 2021-01-29 | AD84: 0 | BB84: 608,140 | BC84: 79,342
B85: 69 | C85: 31.01 | D85: 30130360 | E85: DIAGNOSTICO PLAN DE DESARROLLO TURISTICO PROVINCIA MARGA MARGA | F85: EJECUCION | G85: VALPARAISO | H85: VILLA ALEMANA | I85: A | J85: 67,674 | K85: 48,204 | L85: 19,470 | O85: 19,470 | P85: 0 | Q85: 0 | R85: 0 | S85: 0 | T85: 0 | U85: 0 | Y85: 19,470 | Z85: 19,470 | AA85: 6 | AB85: 2021-01-25 | AC85: 2021-01-29 | BB85: 19,470 | BC85: 0
B86: 70 | C86: 31.01 | D86: 30317322 | E86: ACTUALIZACION PLAN REGULADOR COMUNAL, COMUNA LA LIGUA | F86: EJECUCION | G86: VALPARAISO | H86: LA LIGUA | I86: A | J86: 203,015 | K86: 30,675 | L86: 172,340 | N86: 40,000 | P86: 0 | Q86: 0 | R86: 0 | S86: 0 | T86: 30,000 | U86: 0 | Y86: 70,000 | Z86: 172,339 | AA86: 6 | AB86: 2021-01-25 | AC86: 2021-01-29 | BB86: 172,339 | BC86: 102,339
B87: 71 | C87: 31.02 | D87: 30465933 | E87: MEJORAMIENTO ALUMBRADO PUBLICO URBANO PUTAENDO | F87: EJECUCION | G87: VALPARAISO | H87: PUTAENDO | I87: A | J87: 565,423 | K87: 57,432 | L87: 507,991 | S87: 0 | T87: 0 | U87: 0 | Y87: 0 | Z87: 507,991 | AA87: 6 | AB87: 2021-01-25 | AC87: 2021-01-29 | AD87: -300,000 | AE87: 84 | AF87: 2021-08-23 | AG87: 2021-08-25 | BB87: 207,991 | BC87: 207,991
B88: 72 | C88: 31.02 | D88: 30465049 | E88: CONSTRUCCION RETÉN PLAYA ANCHA, VALPARAISO | F88: EJECUCION | G88: VALPARAISO | H88: VALPARAISO | I88: A | J88: 1,416,994 | K88: 14,230 | L88: 1,402,764 | S88: 0 | T88: 0 | U88: 0 | Y88: 0 | Z88: 1,402,764 | AA88: 6 | AB88: 2021-01-25 | AC88: 2021-01-29 | AD88: -1,402,763 | AE88: 24 | AF88: 2021-02-26 | AG88: 2021-03-31 | BB88: 1 | BC88: 1
B89: 73 | C89: 31.02 | D89: 30103864 | E89: CONSTRUCCION EXTENSIÓN RED ALCANTARILLADO CRUCE SAN JUAN, SAN ANTON. | F89: EJECUCION | G89: VALPARAISO | H89: SAN ANTONIO | I89: A | J89: 333,587 | K89: 255,569 | L89: 78,018 | P89: 2,212 | Q89: 0 | R89: 0 | S89: 0 | T89: 0 | U89: 0 | Y89: 2,212 | Z89: 65,018 | AA89: 6 | AB89: 2021-01-25 | AC89: 2021-01-29 | BB89: 65,018 | BC89: 62,806
B90: 74 | C90: 31.02 | D90: 30078248 | E90: CONSTRUCCION CENTRO INTERDISCIPLINARIO DE NEUROCIENCIA, VALPARAISO | F90: EJECUCION | G90: VALPARAISO | H90: VALPARAISO | I90: A | J90: 5,325,527 | K90: 36,501 | L90: 5,289,026 | N90: 5,854 | P90: 8,781 | Q90: 2,927 | R90: 0 | S90: 5,854 | T90: 0 | U90: 0 | Y90: 23,417 | Z90: 2,649,486 | AA90: 7 | AB90: 2021-01-25 | AC90: 2021-01-29 | AD90: -2,476,973 | AE90: 24 | AF90: 2021-02-26 | AG90: 2021-03-08 | BB90: 172,513 | BC90: 149,096
B91: 75 | C91: 31.03 | D91: 40001122 | E91: DIFUSION Y DESARROLLO DE ESCUELAS DEPORTIVAS PARA NIÁ¿OS Y ADOLESCENTES DE VILLA ALEMANA | F91: EJECUCION | G91: VALPARAISO | H91: VILLA ALEMANA | I91: A | J91: 466,026 | K91: 314,981 | L91: 151,045 | S91: 0 | T91: 0 | U91: 0 | Y91: 0 | Z91: 151,045 | AA91: 8 | AB91: 2021-01-25 | AC91: 2021-01-29 | AD91: -151,045 | AE91: 76 | AF91: 2021-07-29 | AG91: 2021-08-10 | BB91: 0 | BC91: 0
B92: 76 | C92: 31.02 | D92: 30484096 | E92: CONSTRUCCION PARQUE DEPORTIVO VELODOROMO REGIONAL VILLA ALEMANA (DISEÑO) | F92: DISEÑO | G92: VALPARAISO | H92: VILLA ALEMANA | I92: A | J92: 251,775 | K92: 105,175 | L92: 146,600 | S92: 0 | T92: 0 | U92: 0 | Y92: 0 | Z92: 146,600 | AA92: 8 | AB92: 2021-01-25 | AC92: 2021-01-29 | BB92: 146,600 | BC92: 146,600
B93: 77 | C93: 31.02 | D93: 40009852 | E93: CONSTRUCCION RED ALCANTARILLADO CALLE BULNES, OLMUÉ | F93: EJECUCION | G93: VALPARAISO | H93: OLMUÉ | I93: A | J93: 176,959 | K93: 77,196 | L93: 99,763 | S93: 0 | T93: 0 | U93: 0 | Y93: 0 | Z93: 99,763 | AA93: 8 | AB93: 2021-01-25 | AC93: 2021-01-29 | BB93: 99,763 | BC93: 99,763
B94: 78 | C94: 31.02 | D94: 30459960 | E94: CONSTRUCCION CENTRO CULTURAL COMUNA DE CONCON | F94: EJECUCION | G94: VALPARAISO | H94: CONCÓN | I94: A | J94: 3,109,346 | K94: 1,974,112 | L94: 1,135,234 | P94: 10,500 | Q94: 0 | R94: 0 | S94: 0 | T94: 0 | U94: 0 | Y94: 10,500 | Z94: 1,135,234 | AA94: 8 | AB94: 2021-01-25 | AC94: 2021-01-29 | AD94: -200,000 | AE94: 49 | AF94: 2021-06-01 | AG94: 2021-06-07 | AH94: -300,000 | AI94: 84 | AJ94: 2021-08-23 | AK94: 2021-08-25 | BB94: 635,234 | BC94: 624,734
B95: 79 | C95: 31.02 | D95: 40005875 | E95: CONSTRUCCION MURO DE CONTENCIÓN CALLE LOS LIRIOS, VIÑA DEL MAR | F95: EJECUCION | G95: VALPARAISO | H95: VIÑA DEL MAR | I95: A | J95: 79,371 | K95: 71,407 | L95: 7,964 | P95: 0 | Q95: 0 | R95: 4,058 | S95: 0 | T95: 0 | U95: 0 | Y95: 4,058 | Z95: 7,964 | AA95: 8 | AB95: 2021-01-25 | AC95: 2021-01-29 | BB95: 7,964 | BC95: 3,906
B96: 80 | C96: 31.02 | D96: 30444424 | E96: REPOSICION CUARTEL CUERPO BOMBEROS DE RINCONADA (DISEÑO) | F96: DISEÑO | G96: VALPARAISO | H96: RINCONADA | I96: A | J96: 93,892 | K96: 66,161 | L96: 27,731 | S96: 0 | T96: 0 | U96: 0 | Y96: 0 | Z96: 27,731 | AA96: 8 | AB96: 2021-01-25 | AC96: 2021-01-29 | BB96: 27,731 | BC96: 27,731
B97: 81 | C97: 31.02 | D97: 40005869 | E97: AMPLIACION RED DE ALCANTARILLADO VALLE LOS OLMOS, PETORCA (DISEÑO) | F97: DISEÑO | G97: VALPARAISO | H97: PETORCA | I97: A | J97: 168,627 | K97: 59,876 | L97: 108,751 | O97: 16,731 | P97: 0 | Q97: 0 | R97: 0 | S97: 0 | T97: 0 | U97: 0 | Y97: 16,731 | Z97: 108,751 | AA97: 8 | AB97: 2021-01-25 | AC97: 2021-01-29 | BB97: 108,751 | BC97: 92,020
B98: 82 | C98: 31.02 | D98: 30482540 | E98: REPOSICION CUARTEL 8 CÍA. BOMBEROS, VIÑA DEL MAR | F98: EJECUCION | G98: VALPARAISO | H98: VIÑA DEL MAR | I98: A | J98: 711,980 | K98: 686,330 | L98: 25,650 | P98: 24,398 | Q98: 0 | R98: 0 | S98: 0 | T98: 0 | U98: 0 | Y98: 24,398 | Z98: 25,650 | AA98: 8 | AB98: 2021-01-25 | AC98: 2021-01-29 | BB98: 25,650 | BC98: 1,252
B99: 83 | C99: 31.02 | D99: 40010661 | E99: CONSTRUCCION RED DE ALCANTARILLADO CALLE PORTALES, OLMUE | F99: EJECUCION | G99: VALPARAISO | H99: OLMUÉ | I99: A | J99: 129,178 | K99: 57,513 | L99: 71,665 | N99: 33,725 | P99: 0 | Q99: 0 | R99: 0 | S99: 0 | T99: 0 | U99: 0 | Y99: 33,725 | Z99: 71,665 | AA99: 8 | AB99: 2021-01-25 | AC99: 2021-01-29 | BB99: 71,665 | BC99: 37,940
B100: 84 | C100: 31.02 | D100: 40008168 | E100: CONSTRUCCION RED DE ALCANTARILLADO SECTOR LO SALAS ALTO, OLMUE | F100: EJECUCION | G100: VALPARAISO | H100: OLMUÉ | I100: A | J100: 329,121 | K100: 57,435 | L100: 271,686 | P100: 1,320 | Q100: 0 | R100: 108,743 | S100: 0 | T100: 0 | U100: 0 | Y100: 110,063 | Z100: 271,686 | AA100: 8 | AB100: 2021-01-25 | AC100: 2021-01-29 | BB100: 271,686 | BC100: 161,623
B101: 85 | C101: 31.02 | D101: 30133162 | E101: MEJORAMIENTO EJE CINCO ORIENTE-QUILLOTA, VIÑA DEL MAR (PREFACTIBILIDAD) | F101: PREFACTIBILIDAD | G101: VALPARAISO | H101: VIÑA DEL MAR | I101: A | J101: 163,600 | K101: 144,546 | L101: 19,054 | S101: 0 | T101: 0 | U101: 19,054 | Y101: 19,054 | Z101: 19,054 | AA101: 8 | AB101: 2021-01-25 | AC101: 2021-01-29 | BB101: 19,054 | BC101: 0
B102: 86 | C102: 31.02 | D102: 40005872 | E102: CONSTRUCCION MURO DE CONTENCIÓN ESQUINA CALLE UNO - LIBERTAD, VIÑA DEL MAR | F102: EJECUCION | G102: VALPARAISO | H102: VIÑA DEL MAR | I102: A | J102: 70,606 | K102: 35,441 | L102: 35,165 | P102: 0 | Q102: 23,690 | R102: 0 | S102: 0 | T102: 0 | U102: 6,498 | Y102: 30,188 | Z102: 35,165 | AA102: 8 | AB102: 2021-01-25 | AC102: 2021-01-29 | BB102: 35,165 | BC102: 4,977
B103: 87 | C103: 31.02 | D103: 30125456 | E103: MEJORAMIENTO ESPACIO PUBLICO BOULEVARD AVENIDA JOSÉ TOMAS URMENETA (DISEÑO) | F103: DISEÑO | G103: VALPARAISO | H103: LIMACHE | I103: A | J103: 115,140 | K103: 104,257 | L103: 10,883 | S103: 0 | T103: 0 | U103: 0 | Y103: 0 | Z103: 10,883 | AA103: 8 | AB103: 2021-01-25 | AC103: 2021-01-29 | BB103: 10,883 | BC103: 10,883
B104: 88 | C104: 31.02 | D104: 30438672 | E104: MEJORAMIENTO CALLE CUARTEL, COMUNA DE PETORCA | F104: EJECUCION | G104: VALPARAISO | H104: PETORCA | I104: A | J104: 154,110 | K104: 85,909 | L104: 68,201 | M104: 40,793 | P104: 0 | Q104: 0 | R104: 0 | S104: 0 | T104: 0 | U104: 0 | Y104: 40,793 | Z104: 54,345 | AA104: 8 | AB104: 2021-01-25 | AC104: 2021-01-29 | BB104: 54,345 | BC104: 13,552
B105: 89 | C105: 31.02 | D105: 40008163 | E105: CONSTRUCCION RED ALCANTARILLADO SECTOR CAI CAI ALTO, OLMUE | F105: EJECUCION | G105: VALPARAISO | H105: OLMUÉ | I105: A | J105: 308,292 | K105: 24,717 | L105: 283,575 | O105: 27,776 | P105: 1,620 | Q105: 0 | R105: 40,983 | S105: 0 | T105: 0 | U105: 0 | Y105: 70,379 | Z105: 283,575 | AA105: 8 | AB105: 2021-01-25 | AC105: 2021-01-29 | BB105: 283,575 | BC105: 213,196
B106: 90 | C106: 31.02 | D106: 30446772 | E106: REPOSICION CESFAM VALLE LOS LIBERTADORES, PUTAENDO (DISEÑO) | F106: DISEÑO | G106: VALPARAISO | H106: PUTAENDO | I106: A | J106: 264,332 | K106: 247,508 | L106: 16,824 | S106: 0 | T106: 0 | U106: 0 | Y106: 0 | Z106: 16,824 | AA106: 8 | AB106: 2021-01-25 | AC106: 2021-01-29 | BB106: 16,824 | BC106: 16,824
B107: 91 | C107: 31.02 | D107: 40002933 | E107: CONSTRUCCION SISTEMA DE AGUA POTABLE RURAL CAMINO VIEJO LO CAMPO, (DISEÑO) | F107: DISEÑO | G107: VALPARAISO | H107: PANQUEHUE | I107: A | J107: 67,334 | K107: 19,693 | L107: 47,641 | S107: 0 | T107: 0 | U107: 0 | Y107: 0 | Z107: 47,641 | AA107: 8 | AB107: 2021-01-25 | AC107: 2021-01-29 | BB107: 47,641 | BC107: 47,641
B108: 92 | C108: 31.02 | D108: 40000019 | E108: CONSTRUCCION SUBCOMISARIA FORESTAL ALTO, COMUNA DE VIÑA DEL MAR (DISEÑO) | F108: DISEÑO | G108: VALPARAISO | H108: VIÑA DEL MAR | I108: A | J108: 127,136 | K108: 19,579 | L108: 107,557 | P108: 25,307 | Q108: 0 | R108: 0 | S108: 0 | T108: 0 | U108: 25,307 | Y108: 50,614 | Z108: 107,557 | AA108: 8 | AB108: 2021-01-25 | AC108: 2021-01-29 | BB108: 107,557 | BC108: 56,943
B109: 93 | C109: 31.02 | D109: 30137138 | E109: CONSTRUCCION ALCANTARILLADO SECTOR GRANALLAS, PUTAENDO (DISEÑO) | F109: DISEÑO | G109: VALPARAISO | H109: PUTAENDO | I109: A | J109: 61,070 | K109: 38,786 | L109: 22,284 | S109: 0 | T109: 0 | U109: 0 | Y109: 0 | Z109: 22,284 | AA109: 8 | AB109: 2021-01-25 | AC109: 2021-01-29 | BB109: 22,284 | BC109: 22,284
B110: 94 | C110: 31.02 | D110: 30381122 | E110: CONSTRUCCION PLAZA ALTOS DEL BOSQUE, COMUNA VIÑA DEL MAR (DISEÑO) | F110: DISEÑO | G110: VALPARAISO | H110: VIÑA DEL MAR | I110: A | J110: 37,664 | K110: 27,584 | L110: 10,080 | S110: 0 | T110: 0 | U110: 0 | Y110: 0 | Z110: 10,080 | AA110: 8 | AB110: 2021-01-25 | AC110: 2021-01-29 | BB110: 10,080 | BC110: 10,080
B111: 95 | C111: 31.02 | D111: 40014969 | E111: REPOSICION DE SISTEMA DE REDES ELECTRICAS SASIPA SECTOR VAITEA - ISLA DE | F111: EJECUCION | G111: VALPARAISO | H111: ISLA DE PASCUA | I111: N | J111: 970,472 | L111: 970,472 | S111: 0 | T111: 0 | U111: 0 | Y111: 0 | Z111: 1 | AA111: 12 | AB111: 2021-01-29 | AC111: 2021-02-17 | BB111: 1 | BC111: 1
B112: 96 | C112: 31.02 | D112: 40017092 | E112: CONSTRUCCION SISTEMA ALCANTARILLADO SECTORES VILCUYA-BOCATOMA, LOS ANDES (DISEÑO) | F112: DISEÑO | G112: VALPARAISO | H112: LOS ANDES | I112: N | J112: 31,952 | L112: 31,952 | S112: 0 | T112: 0 | U112: 0 | Y112: 0 | Z112: 1 | AA112: 12 | AB112: 2021-01-29 | AC112: 2021-02-17 | BB112: 1 | BC112: 1
B113: 97 | C113: 31.02 | D113: 30484277 | E113: CONSTRUCCION SISTEMA ALCANTARILLADO EL ALGARROBO TERRAPLEN LOS ANDES | F113: EJECUCION | G113: VALPARAISO | H113: LOS ANDES | I113: N | J113: 92,302 | L113: 92,302 | P113: 0 | Q113: 0 | R113: 0 | S113: 0 | T113: 0 | U113: 0 | Y113: 0 | Z113: 2 | AA113: 12 | AB113: 2021-01-29 | AC113: 2021-02-17 | BB113: 2 | BC113: 2
B114: 98 | C114: 31.02 | D114: 30482162 | E114: CONSTRUCCION SISTEMA ALCANTARILLADO PARTICULAR VILLA ACONCAGUA LOS ANDES | F114: EJECUCION | G114: VALPARAISO | H114: LOS ANDES | I114: N | J114: 216,309 | L114: 216,309 | S114: 0 | T114: 0 | U114: 30,866 | Y114: 30,866 | Z114: 2 | AA114: 12 | AB114: 2021-01-29 | AC114: 2021-02-17 | AD114: 40,000 | AE114: 85 | AF114: 2021-08-27 | AG114: 2021-09-07 | BB114: 40,002 | BC114: 9,136
B115: 99 | C115: 31.02 | D115: 30476440 | E115: CONSTRUCCION SISTEMA ALCANTARILLADO PARTICULAR LOS PEUMOS LOS ANDES | F115: EJECUCION | G115: VALPARAISO | H115: LOS ANDES | I115: N | J115: 159,612 | L115: 159,612 | S115: 0 | T115: 0 | U115: 23,277 | Y115: 23,277 | Z115: 2 | AA115: 12 | AB115: 2021-01-29 | AC115: 2021-02-17 | AD115: 40,000 | AE115: 85 | AF115: 2021-08-27 | AG115: 2021-09-07 | BB115: 40,002 | BC115: 16,725
B116: 100 | C116: 31.02 | D116: 40019993 | E116: MEJORAMIENTO PAVIMENTO EJE VIAL AVDA. ALESSANDRI - AVDA. STA. TERESA COMUNA DE SAN ESTEBAN (DISEÑO) | F116: DISEÑO | G116: VALPARAISO | H116: SAN ESTEBAN | I116: N | J116: 100,972 | L116: 100,972 | S116: 0 | T116: 0 | U116: 0 | Y116: 0 | Z116: 1 | AA116: 12 | AB116: 2021-01-29 | AC116: 2021-02-17 | BB116: 1 | BC116: 1
B117: 101 | C117: 31.01 | D117: 40024349 | E117: ACTUALIZACION PLADECO COMUNA DE OLMUE | F117: EJECUCION | G117: VALPARAISO | H117: OLMUÉ | I117: N | J117: 58,303 | L117: 58,303 | S117: 0 | T117: 0 | U117: 0 | Y117: 0 | Z117: 1 | AA117: 12 | AB117: 2021-01-29 | AC117: 2021-02-17 | BB117: 1 | BC117: 1
B118: 102 | C118: 31.02 | D118: 40009328 | E118: MEJORAMIENTO CALLE CONSTITUCION, COMUNA DE QUILPUE | F118: EJECUCION | G118: VALPARAISO | H118: OLMUÉ | I118: N | J118: 346,406 | L118: 346,406 | S118: 0 | T118: 0 | U118: 0 | Y118: 0 | Z118: 3 | AA118: 12 | AB118: 2021-01-29 | AC118: 2021-02-17 | BB118: 3 | BC118: 3
B119: 103 | C119: 31.02 | D119: 40025097 | E119: CONSTRUCCION EXTENSION REDES ALCANTARILLADO Y AGUA POTABLE, CALLE LOS ARRAYANES, V ALEMANA (DISEÑO) | F119: DISEÑO | G119: VALPARAISO | H119: VILLA ALEMANA | I119: N | J119: 23,093 | L119: 23,093 | S119: 0 | T119: 0 | U119: 0 | Y119: 0 | Z119: 2 | AA119: 12 | AB119: 2021-01-29 | AC119: 2021-02-17 | BB119: 2 | BC119: 2
B120: 104 | C120: 31.02 | D120: 40019627 | E120: CONSTRUCCION ALCANTARILLADO Y AGUA POTABLE, CALLE LOS EUCALIPTUS, VILLA ALEMANA | F120: EJECUCION | G120: VALPARAISO | H120: VILLA ALEMANA | I120: N | J120: 82,988 | L120: 82,988 | S120: 0 | T120: 0 | U120: 0 | Y120: 0 | Z120: 2 | AA120: 12 | AB120: 2021-01-29 | AC120: 2021-02-17 | BB120: 2 | BC120: 2
B121: 105 | C121: 31.02 | D121: 40009196 | E121: MEJORAMIENTO PAVIMENTO CALLE HUANHUALI ENTRE CALLE NIEBLA Y TRONCAL SUR, VILLA ALEMANA (DISEÑO) | F121: DISEÑO | G121: VALPARAISO | H121: VILLA ALEMANA | I121: N | J121: 87,737 | L121: 87,737 | S121: 0 | T121: 0 | U121: 0 | Y121: 0 | Z121: 2 | AA121: 12 | AB121: 2021-01-29 | AC121: 2021-02-17 | BB121: 2 | BC121: 2
B122: 106 | C122: 31.02 | D122: 30480150 | E122: REPOSICION DE LA 1RA COMPAÑÍA DE BOMBEROS DE VILLA ALEMANA | F122: EJECUCION | G122: VALPARAISO | H122: VILLA ALEMANA | I122: N | J122: 872,827 | L122: 872,827 | S122: 0 | T122: 0 | U122: 0 | Y122: 0 | Z122: 4 | AA122: 12 | AB122: 2021-01-29 | AC122: 2021-02-17 | BB122: 4 | BC122: 4
B123: 107 | C123: 31.01 | D123: 40015277 | E123: ACTUALIZACION PLAN DE DESARROLLO COMUNAL LA CALERA 2021-2024 | F123: EJECUCION | G123: VALPARAISO | H123: LA CALERA | I123: N | J123: 58,993 | L123: 58,993 | S123: 0 | T123: 0 | U123: 0 | Y123: 0 | Z123: 2 | AA123: 12 | AB123: 2021-01-29 | AC123: 2021-02-17 | BB123: 2 | BC123: 2
B124: 108 | C124: 31.01 | D124: 40015269 | E124: ANALISIS PLAN DE DESARROLLO TURISTICO COMUNA DE LA CALERA | F124: EJECUCION | G124: VALPARAISO | H124: LA CALERA | I124: N | J124: 47,014 | L124: 47,014 | S124: 0 | T124: 0 | U124: 0 | Y124: 0 | Z124: 2 | AA124: 12 | AB124: 2021-01-29 | AC124: 2021-02-17 | BB124: 2 | BC124: 2
B125: 109 | C125: 31.02 | D125: 40001686 | E125: NORMALIZACION ESCUELA BASICA LA VIÑA, CABILDO (DISEÑO) | F125: DISEÑO | G125: VALPARAISO | H125: CABILDO | I125: N | J125: 47,208 | L125: 47,208 | S125: 0 | T125: 0 | U125: 0 | Y125: 0 | Z125: 1 | AA125: 12 | AB125: 2021-01-29 | AC125: 2021-02-17 | BB125: 1 | BC125: 1
B126: 110 | C126: 31.02 | D126: 40008485 | E126: REPOSICION LUMINARIAS EN QUINQUIMO, PLACILLA Y LA CHIMBA, COMUNA DE LA LIGUA | F126: EJECUCION | G126: VALPARAISO | H126: LA LIGUA | I126: N | J126: 367,563 | L126: 367,563 | S126: 0 | T126: 0 | U126: 0 | Y126: 0 | Z126: 3 | AA126: 12 | AB126: 2021-01-29 | AC126: 2021-02-17 | BB126: 3 | BC126: 3
B127: 111 | C127: 31.02 | D127: 40014202 | E127: CONSTRUCCION ALCANTARILLADO Y AGUA POTABLE SECTOR LAS CATITAS, COMUNA PUCHUNCAVI | F127: EJECUCION | G127: VALPARAISO | H127: PUCHUNCAVÍ | I127: N | J127: 619,095 | L127: 619,095 | S127: 0 | T127: 0 | U127: 0 | Y127: 0 | Z127: 3 | AA127: 12 | AB127: 2021-01-29 | AC127: 2021-02-17 | BB127: 3 | BC127: 3
B128: 112 | C128: 31.02 | D128: 40016795 | E128: MEJORAMIENTO PAVIMENTACIÓN Y AGUAS LLUVIAS ISLA TEJA; CONDELL; SANTA.FILOMENA, QUINTERO | F128: EJECUCION | G128: VALPARAISO | H128: QUINTERO | I128: N | J128: 267,608 | L128: 267,608 | S128: 0 | T128: 0 | U128: 0 | Y128: 0 | Z128: 3 | AA128: 12 | AB128: 2021-01-29 | AC128: 2021-02-17 | BB128: 3 | BC128: 3
B129: 113 | C129: 31.02 | D129: 40026474 | E129: CONSERVACION REPARACIONES DE EMERGENCIA ETAPA 3, VARIOS CERROS, VALPARAISO | F129: EJECUCION | G129: VALPARAISO | H129: VALPARAISO | I129: N | J129: 99,999 | L129: 99,999 | S129: 0 | T129: 0 | U129: 0 | Y129: 0 | Z129: 1 | AA129: 12 | AB129: 2021-01-29 | AC129: 2021-02-17 | BB129: 1 | BC129: 1
B130: 114 | C130: 31.02 | D130: 40026019 | E130: CONSERVACION CESFAM QUEBRADA VERDE PLAYA ANCHA VALPARAISO | F130: EJECUCION | G130: VALPARAISO | H130: VALPARAISO | I130: N | J130: 246,272 | L130: 246,272 | S130: 0 | T130: 0 | U130: 0 | Y130: 0 | Z130: 1 | AA130: 12 | AB130: 2021-01-29 | AC130: 2021-02-17 | BB130: 1 | BC130: 1
B131: 115 | C131: 31.02 | D131: 40020848 | E131: MEJORAMIENTO PAVIMENTACIÓN AVENIDA PRINCIPAL, SECTOR LAGUNA VERDE, COMUNA DE VALPARAISO | F131: EJECUCION | G131: VALPARAISO | H131: VALPARAISO | I131: N | J131: 499,224 | L131: 499,224 | S131: 0 | T131: 0 | U131: 0 | Y131: 0 | Z131: 2 | AA131: 12 | AB131: 2021-01-29 | AC131: 2021-02-17 | BB131: 2 | BC131: 2
B132: 116 | C132: 31.02 | D132: 40009258 | E132: REPOSICION PAVIMENTACION CALLE INGENIERO HYATT, CERRO CORDILLERA VALPARAISO | F132: EJECUCION | G132: VALPARAISO | H132: VALPARAISO | I132: N | J132: 168,170 | L132: 168,170 | S132: 0 | T132: 0 | U132: 0 | Y132: 0 | Z132: 2 | AA132: 12 | AB132: 2021-01-29 | AC132: 2021-02-17 | BB132: 2 | BC132: 2
B133: 117 | C133: 31.02 | D133: 40018853 | E133: CONSTRUCCION ARCHIVO REGIONAL DE VALPARAISO (DISEÑO) | F133: DISEÑO | G133: VALPARAISO | H133: VALPARAISO | I133: N | J133: 1,034,474 | L133: 1,034,474 | S133: 0 | T133: 0 | U133: 0 | Y133: 0 | Z133: 3 | AA133: 12 | AB133: 2021-01-29 | AC133: 2021-02-17 | AD133: 650,430 | AE133: 69 | AF133: 2021-07-09 | AG133: 2021-07-13 | BB133: 650,433 | BC133: 650,433
B134: 118 | C134: 31.01 | D134: 40006811 | E134: ACTUALIZACION PLADETUR Y DEFINICION ZOIT COMUNA DE VIÑA DEL MAR | F134: EJECUCION | G134: VALPARAISO | H134: VIÑA DEL MAR | I134: N | J134: 104,135 | L134: 104,135 | S134: 0 | T134: 0 | U134: 0 | Y134: 0 | Z134: 1 | AA134: 12 | AB134: 2021-01-29 | AC134: 2021-02-17 | BB134: 1 | BC134: 1
B135: 119 | C135: 31.02 | D135: 40016324 | E135: CONSTRUCCION CUARTEL USAR FT-1 CUERPO DE BOMBEROS DE VIÑA DEL MAR | F135: EJECUCION | G135: VALPARAISO | H135: VIÑA DEL MAR | I135: N | J135: 186,309 | L135: 186,309 | S135: 0 | T135: 0 | U135: 0 | Y135: 0 | Z135: 5 | AA135: 12 | AB135: 2021-01-29 | AC135: 2021-02-17 | BB135: 5 | BC135: 5
B136: 120 | C136: 31.02 | D136: 30465434 | E136: MEJORAMIENTO PASEO CALLE VALPARAISO PONIENTE DE VIÑA DEL MAR | F136: EJECUCION | G136: VALPARAISO | H136: VIÑA DEL MAR | I136: N | J136: 2,332,181 | L136: 2,332,181 | S136: 0 | T136: 0 | U136: 0 | Y136: 0 | Z136: 3 | AA136: 12 | AB136: 2021-01-29 | AC136: 2021-02-17 | BB136: 3 | BC136: 3
B137: 121 | C137: 31.02 | D137: 40016707 | E137: REPOSICION CIRCUITO CALLE LOS AROMOS - EL BOLDO VIÑA DE MAR | F137: EJECUCION | G137: VALPARAISO | H137: VIÑA DEL MAR | I137: N | J137: 279,176 | L137: 279,176 | S137: 0 | T137: 0 | U137: 0 | Y137: 0 | Z137: 3 | AA137: 12 | AB137: 2021-01-29 | AC137: 2021-02-17 | BB137: 3 | BC137: 3
B138: 122 | C138: 31.02 | D138: 40016947 | E138: CONSTRUCCION SISTEMA DE AGUA POTABLE RURAL ARTURO PRAT, PANQUEHUE (DISEÑO) | F138: DISEÑO | G138: VALPARAISO | H138: PANQUEHUE | I138: N | J138: 37,745 | L138: 37,745 | S138: 0 | T138: 0 | U138: 0 | Y138: 0 | Z138: 2 | AA138: 12 | AB138: 2021-01-29 | AC138: 2021-02-17 | BB138: 2 | BC138: 2
B139: 123 | C139: 31.02 | D139: 40020856 | E139: RESTAURACION IGLESIA, CONVENTO Y MUSEO COLONIAL SAN FRANCISCO DE CURIMON, SAN FELIPE (DISEÑO) | F139: DISEÑO | G139: VALPARAISO | H139: SAN FELIPE | I139: N | J139: 484,209 | L139: 484,209 | S139: 0 | T139: 0 | U139: 0 | Y139: 0 | Z139: 2 | AA139: 12 | AB139: 2021-01-29 | AC139: 2021-02-17 | BB139: 2 | BC139: 2
B140: 124 | C140: 31.02 | D140: 30459154 | E140: REPOSICION AVDA. YUNGAY Y CALLE ARTEMON CIFUENTES, SAN FELIPE | F140: EJECUCION | G140: VALPARAISO | H140: SAN FELIPE | I140: N | J140: 617,248 | L140: 617,248 | S140: 0 | T140: 0 | U140: 0 | Y140: 0 | Z140: 4 | AA140: 12 | AB140: 2021-01-29 | AC140: 2021-02-17 | BB140: 4 | BC140: 4
B141: 125 | C141: 31.02 | D141: 40018735 | E141: CONSTRUCCION SISTEMA DE ILUMINACION RECINTO CD BOCA JUNIORS, COMUNA DE SANTA MARIA | F141: EJECUCION | G141: VALPARAISO | H141: SANTA MARIA | I141: N | J141: 142,593 | L141: 142,593 | S141: 0 | T141: 0 | U141: 0 | Y141: 0 | Z141: 3 | AA141: 12 | AB141: 2021-01-29 | AC141: 2021-02-17 | BB141: 3 | BC141: 3
B142: 126 | C142: 31.02 | D142: 40019434 | E142: CONSTRUCCION SISTEMA DE ILUMINACION RECINTO CD ALIANZA CATOLICA, COMUNA DE SANTA MARIA | F142: EJECUCION | G142: VALPARAISO | H142: SANTA MARIA | I142: N | J142: 150,428 | L142: 150,428 | S142: 0 | T142: 0 | U142: 0 | Y142: 0 | Z142: 3 | AA142: 12 | AB142: 2021-01-29 | AC142: 2021-02-17 | BB142: 3 | BC142: 3
B143: 127 | C143: 31.01 | D143: 40017055 | E143: ACTUALIZACION PLADECO 2021 2025 COMUNA DE PUTAENDO | F143: EJECUCION | G143: VALPARAISO | H143: PUTAENDO | I143: N | J143: 79,887 | L143: 79,887 | S143: 0 | T143: 0 | U143: 0 | Y143: 0 | Z143: 1 | AA143: 12 | AB143: 2021-01-29 | AC143: 2021-02-17 | BB143: 1 | BC143: 1
B144: 128 | C144: 31.02 | D144: 40010504 | E144: CONSTRUCCION PARQUE URBANO SECTOR EL LITRE , COMUNA DE ALGARROBO | F144: EJECUCION | G144: VALPARAISO | H144: ALGARROBO | I144: N | J144: 1,850,234 | L144: 1,850,234 | S144: 0 | T144: 0 | U144: 0 | Y144: 0 | Z144: 3 | AA144: 12 | AB144: 2021-01-29 | AC144: 2021-02-17 | BB144: 3 | BC144: 3
B145: 129 | C145: 31.02 | D145: 40017812 | E145: MEJORAMIENTO PAVIMENTACION AVENIDA DE LA PLAZA, COMUNA DE CARTAGENA | F145: EJECUCION | G145: VALPARAISO | H145: CARTAGENA | I145: N | J145: 521,002 | L145: 521,002 | S145: 0 | T145: 0 | U145: 0 | Y145: 0 | Z145: 3 | AA145: 12 | AB145: 2021-01-29 | AC145: 2021-02-17 | BB145: 3 | BC145: =BB145-Y145 -> 3
B146: 130 | C146: 31.02 | D146: 30118479 | E146: CONSTRUCCION ALCANTAR Y AA.PP LOS PERALES LAURO BARROS SAN ANTONIO | F146: EJECUCION | G146: VALPARAISO | H146: SAN ANTONIO | I146: N | J146: 232,308 | L146: =J146-K146 -> 232,308 | S146: 0 | T146: 0 | U146: 0 | Y146: 0 | Z146: 3 | AA146: 12 | AB146: 2021-01-29 | AC146: 2021-02-17 | BB146: =Z146+AD146+AH146+AL146+AP146+AT146+AX146 -> 3 | BC146: 3
B147: =B146+1 -> 131 | C147: 31.02 | D147: 30482567 | E147: MEJORAMIENTO INTEGRAL AERÓDROMO RODELILLO REGION DE VALPARAISO (DISEÑO) | F147: DISEÑO | G147: VALPARAISO | H147: VALPARAISO | I147: N | J147: 386,199 | L147: 386,199 | S147: 0 | T147: 0 | U147: 0 | Y147: 0 | Z147: 2 | AA147: 12 | AB147: 2021-01-29 | AC147: 2021-02-17 | BB147: 2 | BC147: 2
B148: 132 | C148: 31.02 | D148: 30459937 | E148: CONSTRUCCION SISTEMA DE ALCANTARILLADO SECTOR RIECILLO LOS ANDES | F148: EJECUCION | G148: VALPARAISO | H148: LOS ANDES | I148: N | J148: 182,535 | L148: 182,535 | P148: 0 | Q148: 0 | R148: 0 | S148: 0 | T148: 0 | U148: 0 | Y148: 0 | Z148: 2 | AA148: 12 | AB148: 2021-01-29 | AC148: 2021-02-17 | AD148: 20,743 | AE148: 22 | AF148: 2021-02-26 | AG148: 2021-03-24 | BB148: 20,745 | BC148: 20,745
B149: 133 | C149: 31.02 | D149: 40000301 | E149: CONSTRUCCION SISTEMA DE ALCANTARILLADO PARTICULAR LAS VIZCACHAS II LOS ANDES | F149: EJECUCION | G149: VALPARAISO | H149: LOS ANDES | I149: N | J149: 250,697 | L149: 250,697 | P149: 0 | Q149: 0 | R149: 0 | S149: 0 | T149: 0 | U149: 0 | Y149: 0 | Z149: 2 | AA149: 12 | AB149: 2021-01-29 | AC149: 2021-02-17 | BB149: 2 | BC149: 2
B150: 134 | C150: 31.02 | D150: 40016754 | E150: INSTALACION DE SISTEMA DE AGUA POTABLE RURAL VILLA DISPUTADA, COMUNA DE NOGALES | F150: EJECUCION | G150: VALPARAISO | H150: NOGALES | I150: N | J150: 756,530 | L150: 756,530 | S150: 0 | T150: 0 | U150: 0 | Y150: 0 | Z150: 3 | AA150: 12 | AB150: 2021-01-29 | AC150: 2021-02-17 | BB150: 3 | BC150: 3
B151: 135 | C151: 31.02 | D151: 40027511 | E151: CONSTRUCCION EXTENSION DE REDES AGUA POTABLE Y ALCANTARILLADO LA LAGUNA, COMUNA DE ZAPALLAR | F151: EJECUCION | G151: VALPARAISO | H151: ZAPALLAR | I151: N | J151: 928,242 | L151: 928,242 | S151: 0 | T151: 0 | U151: 0 | Y151: 0 | Z151: 2 | AA151: 12 | AB151: 2021-01-29 | AC151: 2021-02-17 | BB151: 2 | BC151: 2
B152: 136 | C152: 31.02 | D152: 30484277 | E152: CONSTRUCCION SISTEMA ALCANTARILLADO EL ALGARROBO TERRAPLEN LOS ANDES (DISEÑO) | F152: DISEÑO | G152: VALPARAISO | H152: LOS ANDES | I152: N | J152: 92,302 | L152: 92,302 | M152: 8,009 | P152: 0 | Q152: 0 | R152: 0 | S152: 0 | T152: 0 | U152: 0 | Y152: 8,009 | Z152: 8,011 | AA152: 9 | AB152: 2021-01-29 | AC152: 2021-02-16 | BB152: 8,011 | BC152: 2
B153: 137 | C153: 31.02 | D153: 30483438 | E153: CONSTRUCCION ESTACION DE TRANSFERENCIA DE RESIDUOS SOLIDOS COMUNA DE CABILDO (DISEÑO) | F153: DISEÑO | G153: VALPARAISO | H153: CABILDO | I153: A | J153: 161,792 | K153: 83,317 | L153: 78,475 | P153: 6,047 | Q153: 0 | R153: 0 | S153: 0 | T153: 0 | U153: 0 | Y153: 6,047 | Z153: 78,475 | AA153: 9 | AB153: 2021-01-29 | AC153: 2021-02-16 | BB153: 78,475 | BC153: 72,428
B154: 138 | C154: 31.02 | D154: 30137113 | E154: CONSTRUCCION SISTEMA ALCANTARILLADO SECTOR GUZMANES, PUTAENDO (DISEÑO) | F154: DISEÑO | G154: VALPARAISO | H154: PUTAENDO | I154: A | J154: 112,308 | K154: 84,528 | L154: 27,780 | P154: 27,780 | Q154: 0 | R154: 0 | S154: 0 | T154: 0 | U154: 0 | Y154: 27,780 | Z154: 27,780 | AA154: 9 | AB154: 2021-01-29 | AC154: 2021-02-16 | BB154: 27,780 | BC154: 0
B155: 139 | C155: 31.02 | D155: 40008164 | E155: CONSTRUCCION RED DE ALCANTARILLADO PASAJE ARANCIBIA, OLMUE | F155: EJECUCION | G155: VALPARAISO | H155: OLMUÉ | I155: A | J155: 273,313 | K155: 3,310 | L155: 270,003 | O155: 221,407 | P155: 3,977 | Q155: 0 | R155: 0 | S155: 0 | T155: 0 | U155: 0 | Y155: 225,383 | Z155: 270,003 | AA155: 9 | AB155: 2021-01-29 | AC155: 2021-02-16 | BB155: 270,003 | BC155: 44,620
B156: 140 | C156: 31.02 | D156: 30486478 | E156: CONSERVACION VIAL Y REPARACIÓN ESP. PÚBLICOS AV. MATTA ETAPA 2 VALPO | F156: EJECUCION | G156: VALPARAISO | H156: VALPARAISO | I156: N | J156: 1,857,523 | L156: 1,857,523 | O156: 92,335 | P156: 68,869 | Q156: 161,693 | R156: 66,118 | S156: 91,733 | T156: 96,417 | U156: 46,723 | Y156: 623,888 | Z156: 1,618,158 | AA156: 9 | AB156: 2021-01-29 | AC156: 2021-02-16 | AD156: -300,000 | AE156: 49 | AF156: 2021-06-01 | AG156: 2021-06-07 | AH156: -200,000 | AI156: 84 | AJ156: 2021-08-23 | AK156: 2021-08-25 | BB156: 1,118,158 | BC156: 494,270
B157: 141 | C157: 31.02 | D157: 40004699 | E157: REPOSICION OFICINA REGISTRO CIVIL DE QUIPUÉ | F157: EJECUCION | G157: VALPARAISO | H157: VALPARAISO | I157: N | J157: 787,657 | L157: 787,657 | S157: 0 | T157: 0 | U157: 0 | Y157: 0 | Z157: 5 | AA157: 9 | AB157: 2021-01-29 | AC157: 2021-02-16 | BB157: 5 | BC157: 5
B158: 142 | C158: 31.02 | D158: 40011611 | E158: CONSTRUCCION RED DE ALCANTARILLADO DEL SECTOR PLACILLA/LA CHIMBA, COMUNA DE LA LIGUA (DISEÑO) | F158: DISEÑO | G158: VALPARAISO | H158: LA LIGUA | I158: N | J158: 86,118 | L158: 86,118 | P158: 0 | Q158: 28,964 | R158: 21,723 | S158: 0 | T158: 0 | U158: 0 | Y158: 50,686 | Z158: 86,118 | AA158: 10 | AB158: 2021-01-26 | AC158: 2021-02-16 | BB158: 86,118 | BC158: 35,432
B159: 143 | C159: 31.02 | D159: 40008006 | E159: CONSTRUCCION ALCANTARILLADO Y AGUA POTABLE CHINCOLCO CENTRO, PETORCA (DISEÑO) | F159: DISEÑO | G159: VALPARAISO | H159: PETORCA | I159: N | J159: 188,516 | L159: 188,516 | P159: 0 | Q159: 49,809 | R159: 0 | S159: 0 | T159: 0 | U159: 0 | Y159: 49,809 | Z159: 188,516 | AA159: 10 | AB159: 2021-01-26 | AC159: 2021-02-16 | BB159: 188,516 | BC159: 138,707
B160: 144 | C160: 31.01 | D160: 40015002 | E160: DIAGNOSTICO PLAN MARCO DE DESARROLLO TERRITORIAL VALLES DE CABILDO Y PETORCA | F160: EJECUCION | G160: VALPARAISO | H160: VALPARAISO | I160: N | J160: 115,661 | L160: 115,661 | O160: 5,513 | P160: 22,050 | Q160: 0 | R160: 0 | S160: 16,538 | T160: 0 | U160: 0 | Y160: 44,100 | Z160: 31,734 | AA160: 10 | AB160: 2021-01-26 | AC160: 2021-02-16 | AD160: 13,000 | AE160: 72 | AF160: 2021-07-29 | AG160: 2021-08-02 | BB160: 44,734 | BC160: 634
B161: 145 | C161: 31.02 | D161: 30347822 | E161: CONSTRUCCION CENTRO ARTÍSTICO CULTURAL Y PATRIMONIAL PUTAENDO (DISEÑO) | F161: DISEÑO | G161: VALPARAISO | H161: PUTAENDO | I161: A | J161: 185,535 | K161: 164,394 | L161: 21,141 | S161: 0 | T161: 0 | U161: 0 | Y161: 0 | Z161: 21,139 | AA161: 13 | AB161: 2021-02-04 | AC161: 2021-02-24 | BB161: 21,139 | BC161: 21,139
B162: 146 | C162: 31.02 | D162: 40000533 | E162: CONSTRUCCION GIMNASIO COMUNAL PANQUEHUE (DISEÑO) | F162: DISEÑO | G162: VALPARAISO | H162: PANQUEHUE | I162: A | J162: 75,633 | K162: 15,141 | L162: 60,492 | S162: 0 | T162: 0 | U162: 0 | Y162: 0 | Z162: 60,492 | AA162: 13 | AB162: 2021-02-04 | AC162: 2021-02-24 | BB162: 60,492 | BC162: 60,492
B163: 147 | C163: 31.02 | D163: 30465839 | E163: RESTAURACION SEGUNDO TRAMO CALLE COMERCIO PUTAENDO (DISEÑO) | F163: DISEÑO | G163: VALPARAISO | H163: PUTAENDO | I163: A | J163: 64,129 | K163: 12,932 | L163: 51,197 | S163: 0 | T163: 0 | U163: 0 | Y163: 0 | Z163: 51,197 | AA163: 13 | AB163: 2021-02-04 | AC163: 2021-02-24 | BB163: 51,197 | BC163: 51,197
B164: 148 | C164: 31.02 | D164: 40000301 | E164: CONSTRUCCION SISTEMA DE ALCANTARILLADO PARTICULAR LAS VIZCACHAS II LOS ANDES (DISEÑO) | F164: DISEÑO | G164: VALPARAISO | H164: LOS ANDES | I164: A | J164: 31,633 | K164: 22,363 | L164: 9,270 | N164: 9,270 | P164: 0 | Q164: 0 | R164: 0 | S164: 0 | T164: 0 | U164: 0 | Y164: 9,270 | Z164: 9,270 | AA164: 13 | AB164: 2021-02-04 | AC164: 2021-02-24 | BB164: 9,270 | BC164: 0
B165: 149 | C165: 31.02 | D165: 30314472 | E165: MEJORAMIENTO INFRAESTRUCTURA DEPORTIVA CLUB NEW CRUSADERS VALPARAISO (DISEÑO) | F165: DISEÑO | G165: VALPARAISO | H165: VALPARAISO | I165: A | J165: 42,717 | K165: 21,438 | L165: 21,279 | S165: 0 | T165: 0 | U165: 0 | Y165: 0 | Z165: 20,743 | AA165: 13 | AB165: 2021-02-04 | AC165: 2021-02-24 | BB165: 20,743 | BC165: 20,743
B166: 150 | C166: 31.02 | D166: 40003274 | E166: MEJORAMIENTO SISTEMA DE AGUA POTABLE RURAL PALOMAR INTERIOR, PANQUEHUE (DISEÑO) | F166: DISEÑO | G166: VALPARAISO | H166: PANQUEHUE | I166: A | J166: 36,303 | K166: 10,732 | L166: 25,571 | S166: 0 | T166: 0 | U166: 0 | Y166: 0 | Z166: 25,571 | AA166: 13 | AB166: 2021-02-04 | AC166: 2021-02-24 | BB166: 25,571 | BC166: 25,571
B167: 151 | C167: 31.02 | D167: 40004673 | E167: REPOSICION SISTEMA DE AGUA POTABLE RURAL POBLACION BULNES, PANQUEHUE (DISEÑO) | F167: DISEÑO | G167: VALPARAISO | H167: PANQUEHUE | I167: A | J167: 28,432 | K167: 8,400 | L167: 20,032 | S167: 0 | T167: 0 | U167: 0 | Y167: 0 | Z167: 20,032 | AA167: 13 | AB167: 2021-02-04 | AC167: 2021-02-24 | BB167: 20,032 | BC167: 20,032
B168: 152 | C168: 31.02 | D168: 40003945 | E168: MEJORAMIENTO SISTEMA DE AGUA POTABLE RURAL VILLA LO CAMPO, PANQUEHUE (DISEÑO) | F168: DISEÑO | G168: VALPARAISO | H168: PANQUEHUE | I168: A | J168: 21,561 | K168: 6,076 | L168: 15,485 | S168: 0 | T168: 0 | U168: 0 | Y168: 0 | Z168: 15,485 | AA168: 13 | AB168: 2021-02-04 | AC168: 2021-02-24 | BB168: 15,485 | BC168: 15,485
B169: 153 | C169: 31.02 | D169: 40002634 | E169: MEJORAMIENTO SISTEMA DE AGUA POTABLE RURAL POBLACION 9 DE OCTUBRE, PANQUEHUE (DISEÑO) | F169: DISEÑO | G169: VALPARAISO | H169: PANQUEHUE | I169: A | J169: 19,188 | K169: 5,517 | L169: 13,671 | S169: 0 | T169: 0 | U169: 0 | Y169: 0 | Z169: 13,671 | AA169: 13 | AB169: 2021-02-04 | AC169: 2021-02-24 | BB169: 13,671 | BC169: 13,671
B170: 154 | C170: 31.02 | D170: 30078622 | E170: RESTAURACION CAPILLA LO VICUÑA, COMUNA DE PUTAENDO. | F170: EJECUCION | G170: VALPARAISO | H170: PUTAENDO | I170: A | J170: 1,029,752 | K170: 1,019,751 | L170: 10,001 | S170: 0 | T170: 0 | U170: 0 | Y170: 0 | Z170: 10,000 | AA170: 13 | AB170: 2021-02-04 | AC170: 2021-02-24 | BB170: 10,000 | BC170: 10,000
B171: 155 | C171: 31.02 | D171: 30379328 | E171: CONSTRUCCION COMPLEJO DE PISCINAS MUNICIPALES VILLA OLIMPICA, QUILPUÉ | F171: EJECUCION | G171: VALPARAISO | H171: QUILPUÉ | I171: A | J171: 3,442,349 | K171: 2,498,837 | L171: 943,512 | S171: 0 | T171: 0 | U171: 0 | Y171: 0 | Z171: 618,382 | AA171: 13 | AB171: 2021-02-04 | AC171: 2021-02-24 | AD171: -200,000 | AE171: 84 | AF171: 2021-08-23 | AG171: 2021-08-25 | BB171: 418,382 | BC171: 418,382
B172: 156 | C172: 31.02 | D172: 30470587 | E172: REPOSICION ESTADIO MUNICIPAL DE MIRAFLORES, VIÑA DEL MAR | F172: EJECUCION | G172: VALPARAISO | H172: VIÑA DEL MAR | I172: N | J172: 1,129,340 | L172: 1,129,340 | S172: 0 | T172: 0 | U172: 0 | Y172: 0 | Z172: 291,812 | AA172: 13 | AB172: 2021-02-04 | AC172: 2021-02-24 | BB172: 291,812 | BC172: 291,812
B173: 157 | C173: 31.02 | D173: 30105536 | E173: HABILITACION MUSEO UNIVERSITARIO DEL GRABADO, VALPARAÍSO | F173: EJECUCION | G173: VALPARAISO | H173: VALPARAISO | I173: A | J173: 1,864,970 | K173: 1,716,490 | L173: 148,480 | S173: 0 | T173: 0 | U173: 0 | Y173: 0 | Z173: 148,480 | AA173: 13 | AB173: 2021-02-04 | AC173: 2021-02-24 | BB173: 148,480 | BC173: 148,480
B174: 158 | C174: 31.02 | D174: 30132830 | E174: CONSTRUCCION ALCANTARILLADO Y AGUA POTABLE VARIOS SECTORES, PETORCA | F174: EJECUCION | G174: VALPARAISO | H174: PETORCA | I174: A | J174: 624,505 | K174: 459,705 | L174: 164,800 | S174: 0 | T174: 0 | U174: 0 | Y174: 0 | Z174: 164,800 | AA174: 13 | AB174: 2021-02-04 | AC174: 2021-02-24 | BB174: 164,800 | BC174: 164,800
B175: 159 | C175: 31.02 | D175: 30443027 | E175: MEJORAMIENTO ESPACIO PUBLICO AVENIDA BRASIL, COMUNA DE VALPARAISO (DISEÑO) | F175: DISEÑO | G175: VALPARAISO | H175: VALPARAISO | I175: A | J175: 180,356 | K175: 91,304 | L175: 89,052 | S175: 0 | T175: 0 | U175: 0 | Y175: 0 | Z175: 89,052 | AA175: 13 | AB175: 2021-02-04 | AC175: 2021-02-24 | BB175: 89,052 | BC175: 89,052
B176: 160 | C176: 31.02 | D176: 30452522 | E176: MEJORAMIENTO ,ESPACIOS PÚBLICOS II ETAPA CENTRO NOGALES | F176: EJECUCION | G176: VALPARAISO | H176: NOGALES | I176: A | J176: 565,183 | K176: 489,208 | L176: 75,975 | P176: 1,693 | Q176: 71,242 | R176: 0 | S176: 0 | T176: 0 | U176: 0 | Y176: 72,935 | Z176: 65,483 | AA176: 13 | AB176: 2021-02-04 | AC176: 2021-02-24 | AD176: 10,492 | AE176: 28 | AF176: 2021-04-09 | AG176: 2021-04-15 | BB176: 75,975 | BC176: 3,040
B177: 161 | C177: 31.02 | D177: 40003446 | E177: CONSERVACION Y REPARACION EDIFICIO ESMERALDA VALPARAISO | F177: EJECUCION | G177: VALPARAISO | H177: VALPARAISO | I177: N | J177: 392,550 | L177: 392,550 | S177: 0 | T177: 0 | U177: 0 | Y177: 0 | Z177: 3 | AA177: 13 | AB177: 2021-02-04 | AC177: 2021-02-24 | BB177: 3 | BC177: 3
B178: 162 | C178: 31.02 | D178: 40004286 | E178: MEJORAMIENTO SISTEMA DE AGUA POTABLE RURAL LOS LIBERTADORES, PANQUEHUE (DISEÑO) | F178: DISEÑO | G178: VALPARAISO | H178: PANQUEHUE | I178: A | J178: 23,917 | K178: 7,053 | L178: 16,864 | S178: 0 | T178: 0 | U178: 0 | Y178: 0 | Z178: 16,864 | AA178: 13 | AB178: 2021-02-04 | AC178: 2021-02-24 | BB178: 16,864 | BC178: 16,864
B179: 163 | C179: 31.02 | D179: 30470837 | E179: CONSTRUCCION DE POLIDEPORTIVO LIMACHE (DISEÑO) | F179: DISEÑO | G179: VALPARAISO | H179: LIMACHE | I179: A | J179: 80,144 | K179: 49,286 | L179: 30,858 | O179: 23,143 | P179: 0 | Q179: 0 | R179: 0 | S179: 0 | T179: 0 | U179: 0 | Y179: 23,143 | Z179: 30,858 | AA179: 13 | AB179: 2021-02-04 | AC179: 2021-02-24 | BB179: 30,858 | BC179: 7,715
B180: 164 | C180: 31.02 | D180: 30477886 | E180: MEJORAMIENTO CALLE MADRID, BELLOTO SUR. QUILPUE | F180: EJECUCION | G180: VALPARAISO | H180: QUILPUE | I180: A | J180: 790,808 | K180: 744,765 | L180: 46,043 | N180: 2,472 | P180: 1,236 | Q180: 0 | R180: 0 | S180: 0 | T180: 0 | U180: 0 | Y180: 3,708 | Z180: 3,552 | AA180: 13 | AB180: 2021-02-04 | AC180: 2021-02-24 | AD180: 1,236 | AE180: 33 | AF180: 2021-04-21 | AG180: 2021-05-11 | BB180: 4,788 | BC180: 1,080
B181: 165 | C181: 31.02 | D181: 30128029 | E181: CONSTRUCCION PAVIMENTO CALLE CARCEL PARQUE CULTURAL VALPO | F181: EJECUCION | G181: VALPARAISO | H181: VALPARAISO | I181: N | J181: 115,602 | L181: 115,602 | N181: 33,908 | O181: 31,455 | P181: 20,409 | Q181: 0 | R181: 0 | S181: 0 | T181: 0 | U181: 0 | Y181: 85,772 | Z181: 115,602 | AA181: 13 | AB181: 2021-02-04 | AC181: 2021-02-24 | BB181: 115,602 | BC181: 29,830
B182: 166 | C182: 31.02 | D182: 30369025 | E182: MEJORAMIENTO PLAZA LAS MARAVILLAS, VIÑA DEL MAR (DISEÑO) | F182: DISEÑO | G182: VALPARAISO | H182: VIÑA DEL MAR | I182: N | J182: 40,946 | L182: 40,946 | S182: 0 | T182: 0 | U182: 0 | Y182: 0 | Z182: 2 | AA182: 13 | AB182: 2021-02-04 | AC182: 2021-02-24 | BB182: 2 | BC182: 2
B183: 167 | C183: 31.02 | D183: 40005874 | E183: CONSTRUCCION MURO DE CONTENCIÓN EN CALLE DARWIN, VIÑA DEL MAR | F183: EJECUCION | G183: VALPARAISO | H183: VIÑA DEL MAR | I183: N | J183: 100,507 | L183: 100,507 | S183: 0 | T183: 0 | U183: 0 | Y183: 0 | Z183: 3 | AA183: 13 | AB183: 2021-02-04 | AC183: 2021-02-24 | BB183: 3 | BC183: 3
B184: 168 | C184: 31.02 | D184: 30469338 | E184: CONSTRUCCION TUNEL LA GRUPA 2 PROV. PETORCA (DISEÑO) | F184: DISEÑO | G184: VALPARAISO | H184: PETORCA | I184: A | J184: 706,855 | K184: 462,420 | L184: 244,435 | N184: 193,083 | P184: 0 | Q184: 0 | R184: 0 | S184: 0 | T184: 0 | U184: 0 | Y184: 193,083 | Z184: 244,435 | AA184: 13 | AB184: 2021-02-04 | AC184: 2021-02-24 | BB184: 244,435 | BC184: 51,352
B185: 169 | C185: 31.02 | D185: 40007482 | E185: NORMALIZACION CONEXIÓN SCAT SAN ANTONIO | F185: EJECUCION | G185: VALPARAISO | H185: SAN ANTONIO | I185: N | J185: 1,859,263 | L185: 1,859,263 | S185: 0 | T185: 0 | U185: 0 | Y185: 0 | Z185: 3 | AA185: 14 | AB185: 2021-02-05 | AC185: 2021-02-22 | BB185: 3 | BC185: 3
B186: 170 | C186: 31.02 | D186: 40009201 | E186: CONSTRUCCION PLANTA DE GENERACIÓN FOTOVOLTAICA PARA SECTOR VAI A REPA, RAPA NUI | F186: EJECUCION | G186: VALPARAISO | H186: VALPARAISO | I186: N | J186: 2,458,089 | L186: 2,458,089 | S186: 0 | T186: 0 | U186: 0 | Y186: 0 | Z186: 2 | AA186: 14 | AB186: 2021-02-05 | AC186: 2021-02-22 | BB186: 2 | BC186: 2
B187: 171 | C187: 31.02 | D187: 40002493 | E187: MEJORAMIENTO PAVIMENTACIÓN CALLE PERFECTO DE LA FUENTE, RINCONADA | F187: EJECUCION | G187: VALPARAISO | H187: RINCONADA | I187: N | J187: 624,217 | L187: 624,217 | S187: 0 | T187: 0 | U187: 0 | Y187: 0 | Z187: 3 | AA187: 14 | AB187: 2021-02-05 | AC187: 2021-02-22 | BB187: 3 | BC187: 3
B188: 172 | C188: 31.02 | D188: 30484208 | E188: REPOSICION CENTRO DE FORMACIÓN ACADÉMICA PERFECTO DE LA FUENTE, RINCONADA (DISEÑO) | F188: DISEÑO | G188: VALPARAISO | H188: RINCONADA | I188: N | J188: 136,554 | L188: 136,554 | S188: 0 | T188: 0 | U188: 0 | Y188: 0 | Z188: 1 | AA188: 14 | AB188: 2021-02-05 | AC188: 2021-02-22 | BB188: 1 | BC188: 1
B189: 173 | C189: 31.02 | D189: 40010390 | E189: CONSTRUCCION EXTENSIÓN REDES PÚBLICAS DE ALCANTARILLADO Y EEAS, VILLA RINCONADA, RINCONADA | F189: EJECUCION | G189: VALPARAISO | H189: RINCONADA | I189: N | J189: 245,801 | L189: 245,801 | S189: 0 | T189: 0 | U189: 0 | Y189: 0 | Z189: 2 | AA189: 14 | AB189: 2021-02-05 | AC189: 2021-02-22 | BB189: 2 | BC189: 2
B190: 174 | C190: 31.02 | D190: 40004207 | E190: MEJORAMIENTO CALLE COOPERACIÓN (FLAMARIÓN - SAN FRANCISCO DE ASÍS). QUILPUÉ | F190: EJECUCION | G190: VALPARAISO | H190: QUILPUE | I190: N | J190: 293,554 | L190: 293,554 | S190: 0 | T190: 31,135 | U190: 27,065 | Y190: 58,200 | Z190: 2 | AA190: 14 | AB190: 2021-02-05 | AC190: 2021-02-22 | AD190: 287,260 | AE190: 23 | AF190: 2021-02-26 | AG190: 2021-03-31 | BB190: 287,262 | BC190: 229,062
B191: 175 | C191: 31.02 | D191: 40007565 | E191: MEJORAMIENTO CIRCUITO CALLES DEL NOGAL, EL LITRE Y DEL PLATERO, POB. ESPERANZA. QUILPUE | F191: EJECUCION | G191: VALPARAISO | H191: QUILPUE | I191: N | J191: 224,672 | L191: 224,672 | P191: 34,594 | Q191: 0 | R191: 80,067 | S191: 2,955 | T191: 83,911 | U191: 0 | Y191: 201,527 | Z191: 2 | AA191: 14 | AB191: 2021-02-05 | AC191: 2021-02-22 | AD191: 34,591 | AE191: 28 | AF191: 2021-04-09 | AG191: 2021-04-15 | AH191: 4,432 | AI191: 48 | AJ191: 2021-06-01 | AK191: 2021-06-07 | AL191: 78,600 | AM191: 49 | AN191: 2021-06-01 | AO191: 2021-06-07 | AP191: 1,478 | AQ191: 56 | AR191: 44,371 | AS191: 44,376 | AT191: 82,425 | AU191: 84 | AV191: 2021-08-23 | AW191: 2021-08-25 | BB191: 201,528 | BC191: 1
B192: 176 | C192: 31.02 | D192: 40001631 | E192: MEJORAMIENTO Y HABILITACIÓN CALLE EL OCASO, BELLOTO SUR. QUILPUÉ | F192: EJECUCION | G192: VALPARAISO | H192: QUILPUE | I192: N | J192: 707,800 | L192: 707,800 | P192: 0 | Q192: 0 | R192: 113,419 | S192: 207,763 | T192: 74,676 | U192: 0 | Y192: 395,858 | Z192: 2 | AA192: 14 | AB192: 2021-02-05 | AC192: 2021-02-22 | AD192: 623,222 | AE192: 23 | AF192: 2021-02-26 | AG192: 2021-03-31 | BB192: 623,224 | BC192: 227,366
B193: 177 | C193: 31.02 | D193: 40013139 | E193: REPOSICION PAVIMENTOS CALLE CONDELL, COMUNA DE LIMACHE | F193: EJECUCION | G193: VALPARAISO | H193: LIMACHE | I193: N | J193: 1,161,106 | L193: 1,161,106 | P193: 205,976 | Q193: 0 | R193: 62,829 | S193: 0 | T193: 0 | U193: 132,281 | Y193: 401,086 | Z193: 1 | AA193: 14 | AB193: 2021-02-05 | AC193: 2021-02-22 | AD193: 132,023 | AE193: 28 | AF193: 2021-04-09 | AG193: 2021-04-15 | AH193: 73,954 | AI193: 33 | AJ193: 2021-04-21 | AK193: 2021-05-11 | AL193: 60,000 | AM193: 48 | AN193: 2021-06-01 | AO193: 2021-06-07 | AP193: 5,400 | AQ193: 49 | AR193: 2021-06-01 | AS193: 2021-06-07 | BB193: 271,378 | BC193: -129,708
B194: 178 | C194: 31.02 | D194: 40015729 | E194: MEJORAMIENTO PAVIMENTO CALLE NUEVA HIPÓDROMO, VILLA ALEMANA (DISEÑO) | F194: DISEÑO | G194: VALPARAISO | H194: VILLA ALEMANA | I194: N | J194: 34,620 | L194: 34,620 | S194: 0 | T194: 0 | U194: 0 | Y194: 0 | Z194: 1 | AA194: 14 | AB194: 2021-02-05 | AC194: 2021-02-22 | BB194: 1 | BC194: 1
B195: 179 | C195: 31.02 | D195: 40001590 | E195: NORMALIZACION ESCUELA BASICA VALLE DE ARTIFICIO, CABILDO. (DISEÑO) | F195: DISEÑO | G195: VALPARAISO | H195: CABILDO | I195: N | J195: 52,454 | L195: 52,454 | S195: 0 | T195: 0 | U195: 0 | Y195: 0 | Z195: 1 | AA195: 14 | AB195: 2021-02-05 | AC195: 2021-02-22 | BB195: 1 | BC195: 1
B196: 180 | C196: 31.02 | D196: 40008583 | E196: REPOSICION DE LUMINARIAS PUBLICAS SECTOR VALLE HERMOSO, COMUNA DE LA LIGUA | F196: EJECUCION | G196: VALPARAISO | H196: LA LIGUA | I196: N | J196: 626,490 | L196: 626,490 | S196: 0 | T196: 0 | U196: 0 | Y196: 0 | Z196: 3 | AA196: 14 | AB196: 2021-02-05 | AC196: 2021-02-22 | BB196: 3 | BC196: 3
B197: 181 | C197: 31.02 | D197: 40009784 | E197: REPOSICION LUMINARIAS PUBLICAS VIAS COLECTORAS, COMUNA DE QUILLOTA | F197: EJECUCION | G197: VALPARAISO | H197: QUILLOTA | I197: N | J197: 2,015,866 | L197: 2,015,866 | S197: 0 | T197: 0 | U197: 0 | Y197: 0 | Z197: 2 | AA197: 14 | AB197: 2021-02-05 | AC197: 2021-02-22 | BB197: 2 | BC197: 2
B198: 182 | C198: 31.02 | D198: 40015930 | E198: CONSTRUCCION CENTRO INTEGRAL DE VALORIZACIÓN DE RSD, COMUNA DE NOGALES (DISEÑO) | F198: DISEÑO | G198: VALPARAISO | H198: NOGALES | I198: N | J198: 115,924 | L198: 115,924 | S198: 0 | T198: 0 | U198: 0 | Y198: 0 | Z198: 1 | AA198: 14 | AB198: 2021-02-05 | AC198: 2021-02-22 | BB198: 1 | BC198: 1
B199: 183 | C199: 31.02 | D199: 30485268 | E199: CONSTRUCCION ALCANTARILLADO PUBLICO SECTOR SAN CARLOS, COMUNA DE NOGALES | F199: EJECUCION | G199: VALPARAISO | H199: NOGALES | I199: N | J199: 705,131 | L199: 705,131 | P199: 0 | Q199: 2,250 | R199: 0 | S199: 0 | T199: 12,677 | U199: 77,365 | Y199: 92,291 | Z199: 3 | AA199: 14 | AB199: 2021-02-05 | AC199: 2021-02-22 | AD199: 5,000 | AE199: 35 | AF199: 2021-04-28 | AG199: 2021-05-11 | AH199: 81,200 | AI199: 73 | AJ199: 2021-07-29 | AK199: 2021-08-02 | AL199: 4,000 | AM199: 85 | AN199: 2021-08-27 | AO199: 2021-09-07 | AP199: 4,000 | AQ199: 87 | AR199: 2021-08-31 | AS199: 2021-09-07 | BB199: 94,203 | BC199: 1,912
B200: 184 | C200: 31.02 | D200: 40003755 | E200: MEJORAMIENTO PAVIMENTACION CIRCUITO LINCOLN, ARGENTINA, F. EDMANS Y STO DOMIGO, EL TABO | F200: EJECUCION | G200: VALPARAISO | H200: EL TABO | I200: N | J200: 555,043 | L200: 555,043 | P200: 89,133 | Q200: 0 | R200: 239,271 | S200: 70,078 | T200: 5,434 | U200: 0 | Y200: 403,916 | Z200: 3 | AA200: 14 | AB200: 2021-02-05 | AC200: 2021-02-22 | AD200: 535,656 | AE200: 23 | AF200: 2021-02-26 | AG200: 2021-03-31 | BB200: 535,659 | BC200: 131,743
B201: 185 | C201: 31.01 | D201: 30439724 | E201: ACTUALIZACION PLAN REGULADOR, COMUNA DE PUCHUNCAVI | F201: EJECUCION | G201: VALPARAISO | H201: PUCHUNCAVÍ | I201: A | J201: 171,488 | K201: 53,188 | L201: 118,300 | S201: 0 | T201: 0 | U201: 8,450 | Y201: 8,450 | Z201: 1 | AA201: 14 | AB201: 2021-02-05 | AC201: 2021-02-22 | AD201: 16,900 | AE201: 82 | AF201: 2021-08-18 | AG201: 2021-08-23 | BB201: 16,901 | BC201: 8,451
B202: 186 | C202: 31.02 | D202: 40012167 | E202: MEJORAMIENTO PAVIMENTACION AVENIDA PEDRO AGUIRRE CERDA, COMUNA DE CARTAGENA | F202: EJECUCION | G202: VALPARAISO | H202: CARTAGENA | I202: N | J202: 163,993 | L202: 163,993 | S202: 0 | T202: 0 | U202: 0 | Y202: 0 | Z202: 3 | AA202: 14 | AB202: 2021-02-05 | AC202: 2021-02-22 | AD202: 58,000 | AE202: 65 | AF202: 2021-06-30 | AG202: 2021-07-05 | BB202: 58,003 | BC202: 58,003
B203: 187 | C203: 31.02 | D203: 30384174 | E203: MEJORAMIENTO CALLES BALMACEDA, J.J. DEL CANTO E IRARRAZABAL, CATEMU | F203: EJECUCION | G203: VALPARAISO | H203: CATEMU | I203: N | J203: 745,817 | L203: 745,817 | S203: 0 | T203: 0 | U203: 0 | Y203: 0 | Z203: 3 | AA203: 14 | AB203: 2021-02-05 | AC203: 2021-02-22 | AD203: 144,414 | AE203: 38 | AF203: 2021-04-30 | AG203: 2021-05-12 | AH203: 2,024 | AI203: 48 | AJ203: 2021-06-01 | AK203: 2021-06-07 | AL203: 42,500 | AM203: 95 | AN203: 2021-09-21 | AO203: 2021-09-27 | BB203: 188,941 | BC203: 188,941
B204: 188 | C204: 31.02 | D204: 30060848 | E204: CONSTRUCCION PAVIMENTO CALLE SEPTIMO DE LINEA, CATEMU | F204: EJECUCION | G204: VALPARAISO | H204: CATEMU | I204: N | J204: 346,982 | L204: 346,982 | P204: 42,054 | Q204: 4,000 | R204: 64,006 | S204: 49,593 | T204: 0 | U204: 0 | Y204: 159,653 | Z204: 3 | AA204: 14 | AB204: 2021-02-05 | AC204: 2021-02-22 | AD204: 42,053 | AE204: 32 | AF204: 2021-04-20 | AG204: 2021-04-28 | AH204: 4,000 | AI204: 38 | AJ204: 2021-04-30 | AK204: 2021-05-12 | AL204: 64,010 | AM204: 48 | AN204: 2021-06-01 | AO204: 2021-06-07 | AP204: 54,389 | AQ204: 65 | AR204: 2021-06-30 | AS204: 2021-07-05 | BB204: 164,455 | BC204: 4,802
B205: 189 | C205: 31.02 | D205: 30436326 | E205: MEJORAMIENTO PAVIMENTO Y ATRAVIESOS CALLE I.CARRERA PINTO, LLAY -LLAY | F205: EJECUCION | G205: VALPARAISO | H205: LLAY LLAY | I205: N | J205: 288,272 | L205: 288,272 | S205: 0 | T205: 0 | U205: 0 | Y205: 0 | Z205: 3 | AA205: 14 | AB205: 2021-02-05 | AC205: 2021-02-22 | BB205: 3 | BC205: 3
B206: 190 | C206: 31.02 | D206: 40005658 | E206: REPOSICION RECINTO CENTRO COMUNITARIO ESCUADRA II, COMUNA DE SAN FELIPE. | F206: EJECUCION | G206: VALPARAISO | H206: SAN FELIPE | I206: N | J206: 105,153 | L206: 105,153 | S206: 0 | T206: 0 | U206: 0 | Y206: 0 | Z206: 3 | AA206: 14 | AB206: 2021-02-05 | AC206: 2021-02-22 | BB206: 3 | BC206: 3
B207: 191 | C207: 31.02 | D207: 30486351 | E207: REPOSICION SEDE COMUNITARIA EL TAMBO, COMUNA SAN FELIPE | F207: EJECUCION | G207: VALPARAISO | H207: SAN FELIPE | I207: N | J207: 87,660 | L207: 87,660 | S207: 0 | T207: 0 | U207: 0 | Y207: 0 | Z207: 4 | AA207: 14 | AB207: 2021-02-05 | AC207: 2021-02-22 | BB207: 4 | BC207: 4
B208: 192 | C208: 31.02 | D208: 30488890 | E208: REPOSICION PAVIMENTO CALLE BELISARIO MONTENEGRO, SAN FELIPE (DISEÑO) | F208: DISEÑO | G208: VALPARAISO | H208: SAN FELIPE | I208: N | J208: 22,038 | L208: 22,038 | S208: 0 | T208: 6,825 | U208: 0 | Y208: 6,825 | Z208: 2 | AA208: 14 | AB208: 2021-02-05 | AC208: 2021-02-22 | AD208: 20,000 | AE208: 71 | AF208: 2021-07-23 | AG208: 2021-07-28 | BB208: 20,002 | BC208: 13,177
B209: 193 | C209: 31.02 | D209: 30469634 | E209: REPOSICION MUTICANCHA ESCUELA BUCALEMU, SAN FELIPE | F209: EJECUCION | G209: VALPARAISO | H209: SAN FELIPE | I209: N | J209: 302,423 | L209: 302,423 | S209: 0 | T209: 0 | U209: 0 | Y209: 0 | Z209: 3 | AA209: 14 | AB209: 2021-02-05 | AC209: 2021-02-22 | BB209: 3 | BC209: =BB209-Y209 -> 3
B210: 194 | C210: 31.02 | D210: 30487016 | E210: MEJORAMIENTO RECINTO CLUB DEPORTIVO LOS HUSARES, COMUNA DE SANTA MARIA | F210: EJECUCION | G210: VALPARAISO | H210: SANTA MARIA | I210: N | J210: 993,082 | L210: =J210-K210 -> 993,082 | S210: 0 | T210: 0 | U210: 0 | Y210: 0 | Z210: 3 | AA210: 14 | AB210: 2021-02-05 | AC210: 2021-02-22 | AD210: 20,697 | AE210: 25 | AF210: 2021-02-26 | AG210: 2021-03-18 | BB210: =Z210+AD210+AH210+AL210+AP210+AT210+AX210 -> 20,700 | BC210: 20,700
B211: =B210+1 -> 195 | C211: 31.02 | D211: 40010901 | E211: CONSTRUCCION POLIDEPORTIVO MUNICIPAL DE CASABLANCA | F211: EJECUCION | G211: VALPARAISO | H211: CASABLANCA | I211: N | J211: 5,603,602 | L211: 5,603,602 | S211: 0 | T211: 0 | U211: 0 | Y211: 0 | Z211: 3 | AA211: 14 | AB211: 2021-02-05 | AC211: 2021-02-22 | BB211: 3 | BC211: 3
... 154 more rows

Sheet 0566 Ohiggins
B9: INFORMACIÓN RESOLUCIONES GORE ST 31 PROGRAMA INVERSIÓN REGIONAL
B12: Ley Inicial 2021 | C12: Ley Vigente 2021 | D12: Ley Vigente Medicion 2021 | E12: Gasto Acumulado
B13: 30,425,612 | C13: 30,425,612 | D13: 30,425,612 | E13: =+Z145 -> 15,636,826
AA14: IDENTIFICACIÓN INICIAL | AE14: MODIFICACIÓN | AI14: MODIFICACIÓN | AM14: MODIFICACIÓN | AQ14: MODIFICACIÓN | AU14: Programa Financiero
B15: N° | C15: ST-Item | D15: Código BIP | E15: Nombre de proyecto | F15: Etapa | G15: Región | H15: Comuna | I15: Tipo A=Arrastre , N= Nuevo | J15: Costo Total Ficha IDI | K15: Ejecutado Años Anteriores FICHA IDI | L15: Saldo Proximos Años Resolución | M15: Saldo Proximos Años Ficha IDI | N15: Enero mensual SIGFE 2021 | O15: Febrero mensual SIGFE 2021 | P15: Marzo mensual SIGFE 2021 | Q15: Abril mensual SIGFE 2021 | R15: Mayo mensual SIGFE 2021 | S15: Junio mensual SIGFE 2021 | T15: Julio mensual SIGFE 2021 | U15: Agosto mensual SIGFE 2021 | V15: Septiembre mensual SIGFE 2021 | W15: Octubre mensual SIGFE 2021 | X15: Noviembre mensual SIGFE 2021 | Y15: Diciembre mensual SIGFE 2021 | Z15: Total Ejecución acumulada 2021 | AA15: Monto Identificado Año 2021 | AB15: N° Resolución | AC15: Fecha Resolución | AD15: Fecha de Toma de Razón | AE15: Monto Modificado 2021 | AF15: N° Resolución | AG15: Fecha Resolución | AH15: Fecha de Toma de Razón | AI15: Monto Modificado 2021 | AJ15: N° Resolución | AK15: Fecha Resolución | AL15: Fecha de Toma de Razón | AM15: Monto Modificado 2021 | AN15: N° Resolución | AO15: Fecha Resolución | AP15: Fecha de Toma de Razón | AQ15: Monto Modificado 2021 | AR15: N° Resolución | AS15: Fecha Resolución | AT15: Fecha de Toma de Razón | AU15: Total Identificado | AV15: Saldo por Ejecutar
B16: 1 | C16: 31.01 | D16: 30125606 | E16: ACTUALIZACION PLAN REGULADOR COMUNAL DE SAN FERNANDO | F16: EJECUCION | G16: OHIGGINS | H16: SAN FERNANDO | I16: A | J16: 41,497 | K16: 34,497 | L16: 0 | M16: 0 | N16: 0 | O16: 0 | P16: 0 | Q16: 0 | R16: 0 | S16: 0 | T16: 0 | U16: 0 | V16: 4,000 | Z16: =SUM(N16:Y16) -> 4,000 | AA16: 7,000 | AB16: 2 | AC16: 2021-01-13 | AD16: 2021-02-22 | AU16: =+AA16+AE16+AI16+AM16+AQ16 -> 7,000 | AV16: =+AU16-Z16 -> 3,000
B17: 2 | C17: 31.01 | D17: 40013851 | E17: ACTUALIZACION PLAN REGULADOR INTERCOMUNAL RIO CLARO | F17: EJECUCION | G17: OHIGGINS | H17: INTERCOMUNAL | I17: N | J17: 241,500 | K17: 0 | L17: 170,529 | M17: 65,775 | N17: 0 | O17: 0 | P17: 0 | Q17: 0 | R17: 0 | S17: 0 | T17: 0 | U17: 0 | V17: 0 | Z17: =SUM(N17:Y17) -> 0 | AA17: 1 | AB17: 2 | AC17: 2021-01-13 | AD17: 2021-02-22 | AE17: 70,970 | AF17: 27 | AG17: 2021-08-13 | AH17: 2021-08-30 | AU17: 70,971 | AV17: 70,971
B18: 3 | C18: 31.02 | D18: 30062671 | E18: REPOSICION GIMNASIO MUNICIPAL, SAN VICENTE DE TAGUA TAGUA | F18: EJECUCIÓN | G18: OHIGGINS | H18: SAN VICENTE | I18: A | J18: 1,777,543 | K18: 1,761,742 | L18: 236,524 | M18: 0 | N18: 5,078 | O18: 9,407 | P18: 0 | Q18: 0 | R18: 0 | S18: 0 | T18: 0 | U18: 0 | V18: 0 | Z18: 14,486 | AA18: 16,156 | AB18: 1 | AC18: 2021-01-05 | AD18: 2021-02-02 | AU18: 16,156 | AV18: 1,670
B19: 4 | C19: 31.02 | D19: 30110114 | E19: REPOSICIÓN CUARTEL 5ª CÍA DE BOMBEROS DE CUNACO, NANCAGUA | F19: EJECUCIÓN | G19: OHIGGINS | H19: NANCAGUA | I19: A | J19: 573,836 | K19: 573,264 | L19: 0 | M19: 1 | N19: 557 | O19: 0 | P19: 0 | Q19: 0 | R19: 0 | S19: 0 | T19: 0 | U19: 0 | V19: 0 | Z19: 557 | AA19: 570 | AB19: 1 | AC19: 2021-01-05 | AD19: 2021-02-02 | AU19: 570 | AV19: 13
B20: 5 | C20: 31.02 | D20: 30110282 | E20: CONSTRUCCION HOGAR DE ANCIANOS COMUNA DE PICHILEMU | F20: EJECUCIÓN | G20: OHIGGINS | H20: PICHILEMU | I20: A | J20: 1,534,732 | K20: 1,259,453 | L20: 0 | M20: 1 | N20: 336 | O20: 0 | P20: 0 | Q20: =618633/1000 -> 619 | R20: =938910/1000 -> 939 | S20: 0 | T20: 0 | U20: 0 | V20: 0 | Z20: 1,894 | AA20: 14,507 | AB20: 1 | AC20: 2021-01-05 | AD20: 2021-02-02 | AU20: 14,507 | AV20: 12,613
B21: 6 | C21: 31.02 | D21: 30123681 | E21: MEJORAMIENTO PISTA ATLÉTICA COMUNA SAN FERNANDO | F21: EJECUCIÓN | G21: OHIGGINS | H21: SAN FERNANDO | I21: A | J21: 685,600 | K21: 475,180 | L21: 0 | M21: 0 | N21: 0 | O21: 0 | P21: 0 | Q21: =102843608/1000 -> 102,844 | R21: 0 | S21: 0 | T21: 0 | U21: 0 | V21: 0 | Z21: 102,844 | AA21: 210,420 | AB21: 1 | AC21: 2021-01-05 | AD21: 2021-02-02 | AU21: 210,420 | AV21: 107,576
B22: 7 | C22: 31.02 | D22: 30132810 | E22: MEJORAMIENTO INSTALACIONES MEDIALUNA RANCAGUA | F22: DISEÑO | G22: OHIGGINS | H22: RANCAGUA | I22: A | J22: 251,889 | K22: 101,385 | L22: 0 | M22: 0 | N22: 49,064 | O22: 0 | P22: 0 | Q22: 0 | R22: 0 | S22: 0 | T22: 0 | U22: 0 | V22: 0 | Z22: 49,064 | AA22: 150,504 | AB22: 1 | AC22: 2021-01-05 | AD22: 2021-02-02 | AU22: 150,504 | AV22: 101,440
B23: 30 | C23: 31.02 | D23: 30100763 | E23: REPOSICION CUARTEL DE BOMBEROS DE PLACILLA | F23: EJECUCIÓN | G23: OHIGGINS | H23: PLACILLA | I23: A | J23: 812,062 | K23: 625,461 | L23: 0 | M23: 6,424 | N23: 0 | O23: 39,981 | P23: 32,401 | Q23: =28813501/1000 -> 28,814 | R23: 0 | S23: 0 | T23: 0 | U23: 0 | V23: 0 | Z23: 101,195 | AA23: 180175 | AB23: 2 | AC23: 2021-01-13 | AD23: 2021-02-22 | AE23: 3,536 | AF23: 11 | AG23: 2021-04-21 | AH23: 2021-05-12 | AU23: 183,711 | AV23: 82,516
B24: 8 | C24: 31.02 | D24: 30134179 | E24: CONSTRUCCIÓN APERTURA CALLE LA VICTORIA, COMUNA DE RANCAGUA | F24: EJECUCIÓN | G24: OHIGGINS | H24: RANCAGUA | I24: A | J24: 4,306,344 | K24: 3,716,715 | L24: 247,254 | M24: 0 | N24: 375,113 | O24: 0 | P24: 0 | Q24: =194833267/1000 -> 194,833 | R24: 0 | S24: 0 | T24: 0 | U24: 0 | V24: 0 | Z24: 569,946 | AA24: 589,629 | AB24: 1 | AC24: 2021-01-05 | AD24: 2021-02-02 | AE24: 4,547 | AF24: 11 | AG24: 2021-04-21 | AH24: 2021-05-12 | AI24: -24,229 | AJ24: 26 | AK24: 2021-07-19 | AL24: 2021-08-12 | AU24: 569,947 | AV24: 1
B25: 56 | C25: 31.02 | D25: 30210123 | E25: REPOSICION CUARTEL 1CIA Y CUERPO DE BOMBEROS COINCO | F25: EJECUCIÓN | G25: OHIGGINS | H25: COINCO | I25: N | J25: 1,246,724 | K25: 0 | L25: 532,504 | M25: 548,080 | N25: 0 | O25: 0 | P25: 0 | Q25: 0 | R25: 0 | S25: 0 | T25: 5,466 | U25: 139,428 | V25: 94,303 | Z25: 239,197 | AA25: 1 | AB25: 3 | AC25: 2021-01-14 | AD25: 2021-02-10 | AE25: 165,000 | AF25: 11 | AG25: 2021-04-21 | AH25: 2021-05-12 | AI25: 521,696 | AJ25: 27 | AK25: 2021-08-13 | AL25: 2021-08-30 | AU25: 686,697 | AV25: 447,500
B26: 11 | C26: 31.02 | D26: 30388625 | E26: REPOSICION CUARTEL 3ERA COMPAÑÍA DE BOMBEROS DE APALTA, SANTA CRUZ | F26: EJECUCIÓN | G26: OHIGGINS | H26: SANTA CRUZ | I26: A | J26: 541,101 | K26: 488,324 | L26: 28,938 | M26: 75 | N26: 40,227 | O26: 0 | P26: 0 | Q26: 0 | R26: 0 | S26: 0 | T26: 0 | U26: 0 | V26: 0 | Z26: 40,227 | AA26: 53,607 | AB26: 1 | AC26: 2021-01-05 | AD26: 2021-02-02 | AU26: 53,607 | AV26: 13,380
B27: 12 | C27: 31.02 | D27: 30482642 | E27: MEJORAMIENTO SISTEMA APR CASAS DE PEUCO MOSTAZAL | F27: EJECUCIÓN | G27: OHIGGINS | H27: MOSTAZAL | I27: A | J27: 1,025,021 | K27: 257,574 | L27: 0 | M27: 0 | N27: 75,698 | O27: 72,306 | P27: 51,810 | Q27: =46171457/1000 -> 46,171 | R27: =25024316/1000 -> 25,024 | S27: =27938820/1000 -> 27,939 | T27: 28,178 | U27: 0 | V27: 30,370 | Z27: 357,497 | AA27: 679,545 | AB27: 1 | AC27: 2021-01-05 | AD27: 2021-02-02 | AU27: 679,545 | AV27: 322,048
B28: 9 | C28: 31.02 | D28: 30352123 | E28: MEJORAMIENTO SISTEMA APR NILAHUE ALTO DE LOLOL | F28: EJECUCIÓN | G28: OHIGGINS | H28: LOLOL | I28: A | J28: 1,284,130 | K28: 902,622 | L28: 0 | M28: 0 | N28: 143,018 | O28: 32,783 | P28: 0 | Q28: 0 | R28: 0 | S28: 0 | T28: 173,526 | U28: 0 | V28: 11,958 | Z28: 361,285 | AA28: 515,487 | AB28: 1 | AC28: 2021-01-05 | AD28: 2021-02-02 | AE28: -250,849 | AF28: 11 | AG28: 2021-04-21 | AH28: 2021-05-12 | AI28: 122,237 | AJ28: 15 | AK28: 2021-05-17 | AL28: 2021-06-08 | AU28: 386,875 | AV28: 25,590
B29: 10 | C29: 31.02 | D29: 30374724 | E29: CONSTRUCCION CIERRE VERTEDERO SECTOR PUEBLO DE INDIOS, SAN VICENTE | F29: EJECUCIÓN | G29: OHIGGINS | H29: SAN VICENTE | I29: A | J29: 2,270,852 | K29: 628,864 | L29: 0 | M29: 2 | N29: 669,366 | O29: 14,000 | P29: 525,304 | Q29: =174046516/1000 -> 174,047 | R29: =70097933/1000 -> 70,098 | S29: 0 | T29: 0 | U29: 0 | V29: 0 | Z29: 1,452,814 | AA29: 1,641,440 | AB29: 1 | AC29: 2021-01-05 | AD29: 2021-02-02 | AE29: -90,365 | AF29: 11 | AG29: 2021-04-21 | AH29: 2021-05-12 | AU29: 1,551,075 | AV29: 98,261
B30: 15 | C30: 31.02 | D30: 30486833 | E30: CONSTRUCCION BASE RESPUESTA RAPIDA CONAF (PLAN REGIONAL) MOSTAZAL | F30: EJECUCIÓN | G30: OHIGGINS | H30: MOSTAZAL | I30: A | J30: 232,035 | K30: 201,537 | L30: 1,358 | M30: 0 | N30: 0 | O30: 9,556 | P30: 0 | Q30: =9317626/1000 -> 9,318 | R30: 0 | S30: 0 | T30: 0 | U30: 7,482 | V30: 0 | Z30: 26,356 | AA30: 30,498 | AB30: 1 | AC30: 2021-01-05 | AD30: 2021-02-02 | AU30: 30,498 | AV30: 4,142
B31: 16 | C31: 31.02 | D31: 30486989 | E31: CONSTRUCCION BASE RESPUESTA RAPIDA CONAF (PLAN REGIONAL) COLTAUCO | F31: EJECUCIÓN | G31: OHIGGINS | H31: COLTAUCO | I31: A | J31: 240,159 | K31: 209,450 | L31: 0 | M31: 0 | N31: 982 | O31: 23,860 | P31: 0 | Q31: 0 | R31: 0 | S31: 0 | T31: 0 | U31: 0 | V31: 0 | Z31: 24,842 | AA31: 30,709 | AB31: 1 | AC31: 2021-01-05 | AD31: 2021-02-02 | AU31: 30,709 | AV31: 5,867
B32: 13 | C32: 31.02 | D32: 30482664 | E32: MEJORAMIENTO SISTEMA APR CRUZ DE CHILLEHUE, COINCO | F32: EJECUCIÓN | G32: OHIGGINS | H32: COINCO | I32: A | J32: 899,034 | K32: 701,247 | L32: 0 | M32: 0 | N32: 154,626 | O32: 1,404 | P32: 40,259 | Q32: 0 | R32: 0 | S32: 0 | T32: 0 | U32: 0 | V32: 0 | Z32: 196,289 | AA32: 329,910 | AB32: 1 | AC32: 2021-01-05 | AD32: 2021-02-02 | AE32: -128,307 | AF32: 11 | AG32: 2021-04-21 | AH32: 2021-05-12 | AU32: 201,603 | AV32: 5,314
B33: 18 | C33: 31.02 | D33: 30487301 | E33: REPOSICIÓN EDIFICIO DIRECCIÓN SERVICIO SALUD SEXTA REGIÓN | F33: DISEÑO | G33: OHIGGINS | H33: RANCAGUA | I33: A | J33: 243,038 | K33: 209,296 | L33: 334,585 | M33: 0 | N33: 0 | O33: 32,989 | P33: 0 | Q33: 0 | R33: 0 | S33: 0 | T33: 0 | U33: 0 | V33: 0 | Z33: 32,989 | AA33: 33,742 | AB33: 1 | AC33: 2021-01-05 | AD33: 2021-02-02 | AU33: 33,742 | AV33: 753
B34: 19 | C34: 31.02 | D34: 40000311 | E34: CONSTRUCCION BASE RESPUESTA RAPIDA CONAF (PLAN REGIONAL) SANTA CRUZ | F34: EJECUCIÓN | G34: OHIGGINS | H34: SANTA CRUZ | I34: A | J34: 241,080 | K34: 191,264 | L34: 0 | M34: 0 | N34: 0 | O34: 0 | P34: 0 | Q34: 0 | R34: 0 | S34: 0 | T34: 0 | U34: 0 | V34: 0 | Z34: 0 | AA34: 49,816 | AB34: 1 | AC34: 2021-01-05 | AD34: 2021-02-02 | AU34: 49,816 | AV34: 49,816
B35: 14 | C35: 31.02 | D35: 30484745 | E35: CONSERVACION VÍAS URBANAS PROCESO 2016 (EJECUCION 2019), VI REGION | F35: EJECUCIÓN | G35: OHIGGINS | H35: REGIONAL | I35: A | J35: 3,235,355 | K35: 1,700,616 | L35: 0 | M35: 0 | N35: 283,258 | O35: 102,908 | P35: 74,733 | Q35: 0 | R35: 0 | S35: =35528844/1000 -> 35,529 | T35: 0 | U35: 106,750 | V35: 0 | Z35: 603,178 | AA35: 1,534,739 | AB35: 1 | AC35: 2021-01-05 | AD35: 2021-02-02 | AE35: -231,194 | AF35: 11 | AG35: 2021-04-21 | AH35: 2021-05-12 | AU35: 1,303,545 | AV35: 700,367
B36: 78 | C36: 31.02 | D36: 30485225 | E36: MEJORAMIENTO DE ACERAS CASCO HISTÓRICO URBANO, COMUNA DE MACHALI | F36: EJECUCIÓN | G36: OHIGGINS | H36: MACHALI | I36: N | J36: 1,899,207 | K36: 3,325 | L36: 1,850,764 | M36: 1,639,882 | N36: 0 | O36: 0 | P36: 0 | Q36: 0 | R36: 0 | S36: 0 | T36: 0 | U36: 0 | V36: 0 | Z36: 0 | AA36: 3,325 | AB36: 4 | AC36: 2021-02-05 | AD36: 2021-02-25 | AE36: 6,000 | AF36: 11 | AG36: 2021-04-21 | AH36: 2021-05-12 | AU36: 9,325 | AV36: 9,325
B37: 22 | C37: 31.02 | D37: 40002924 | E37: MEJORAMIENTO SISTEMA APR SAN PEDRO LA PUNTILLA MALLOA | F37: EJECUCIÓN | G37: OHIGGINS | H37: MALLOA | I37: A | J37: 622,421 | K37: 225,988 | L37: 0 | M37: 0 | N37: 131,168 | O37: 83,594 | P37: 91,092 | Q37: =20922822/1000 -> 20,923 | R37: 0 | S37: 0 | T37: 38,583 | U37: 53 | V37: 0 | Z37: 365,413 | AA37: 396,433 | AB37: 1 | AC37: 2021-01-05 | AD37: 2021-02-02 | AU37: 396,433 | AV37: 31,020
B38: 23 | C38: 31.02 | D38: 40002930 | E38: CONSTRUCCIÓN TÚNEL INTERNACIONAL PASO LAS LEÑAS | F38: FACTIBILIDAD | G38: OHIGGINS | H38: MACHALI | I38: A | J38: 1,388,232 | K38: 470,065 | L38: 0 | M38: 0 | N38: 30,000 | O38: 0 | P38: 264,236 | Q38: 0 | R38: 187,500 | S38: 0 | T38: 245,362 | U38: 0 | V38: 0 | Z38: 727,098 | AA38: 918,167 | AB38: 1 | AC38: 2021-01-05 | AD38: 2021-02-02 | AU38: 918,167 | AV38: 191,069
B39: 24 | C39: 31.02 | D39: 40003248 | E39: CONSERVACION DE CAMINOS BASICOS GLOSA 6 GRUPO 7, PROVINCIA DE COLCHAGUA | F39: EJECUCIÓN | G39: OHIGGINS | H39: COLCHAGUA | I39: A | J39: 1,215,651 | K39: 589,320 | L39: 103,963 | M39: 0 | N39: 319,511 | O39: 64,190 | P39: 0 | Q39: =88884104/1000 -> 88,884 | R39: 0 | S39: =22777134/1000 -> 22,777 | T39: 0 | U39: 0 | V39: 0 | Z39: 495,362 | AA39: 626,331 | AB39: 1 | AC39: 2021-01-05 | AD39: 2021-02-02 | AE39: -130,968 | AF39: 27 | AG39: 2021-08-13 | AH39: 2021-08-30 | AU39: 495,363 | AV39: 1
B40: 25 | C40: 31.02 | D40: 40003439 | E40: REPOSICION CUARTEL PRIMERA COMPAÑÍA DE BOMBEROS DE PAREDONES | F40: EJECUCIÓN | G40: OHIGGINS | H40: PAREDONES | I40: A | J40: 812,682 | K40: 103,908 | L40: 0 | M40: 69,550 | N40: 108,744 | O40: 47,562 | P40: 34,398 | Q40: =17248894/1000 -> 17,249 | R40: =25978864/1000 -> 25,979 | S40: =30891837/1000 -> 30,892 | T40: 60,256 | U40: 0 | V40: 28,241 | Z40: 353,321 | AA40: 623,178 | AB40: 1 | AC40: 2021-01-05 | AD40: 2021-02-02 | AU40: 623,178 | AV40: 269,857
B41: 26 | C41: 31.02 | D41: 40005548 | E41: CONSTRUCCION SEGUNDA COMPAÑÍA DE BOMBEROS POBLACION PERALILLO | F41: EJECUCIÓN | G41: OHIGGINS | H41: PERALILLO | I41: A | J41: 500,068 | K41: 130,891 | L41: 0 | M41: 0 | N41: 106,808 | O41: 44,049 | P41: 29,182 | Q41: =65341323/1000 -> 65,341 | R41: =51108502/1000 -> 51,109 | S41: =38264462/1000 -> 38,264 | T41: 0 | U41: 0 | V41: 0 | Z41: 334,753 | AA41: 377,217 | AB41: 1 | AC41: 2021-01-05 | AD41: 2021-02-02 | AU41: 377,217 | AV41: 42,464
B42: 27 | C42: 31.02 | D42: 40005659 | E42: REPOSICION ALUMBRADO PUBLICO COMUNA LA ESTRELLA | F42: EJECUCIÓN | G42: OHIGGINS | H42: LA ESTRELLA | I42: A | J42: 601,046 | K42: 421,833 | L42: 0 | M42: 0 | N42: 0 | O42: 135,115 | P42: 0 | Q42: 0 | R42: 0 | S42: 0 | T42: 0 | U42: 0 | V42: 0 | Z42: 135,115 | AA42: 179,213 | AB42: 1 | AC42: 2021-01-05 | AD42: 2021-02-02 | AU42: 179,213 | AV42: 44,098
B43: 28 | C43: 31.02 | D43: 40009251 | E43: CONSTRUCCION BASE TACTICA PARA EMERGENCIA REGIONALES (CONAF) PUMANQUE | F43: DISEÑO | G43: OHIGGINS | H43: PUMANQUE | I43: A | J43: 80,780 | K43: 10,225 | L43: 0 | M43: 0 | N43: 0 | O43: 2,000 | P43: 27,080 | Q43: 9,720 | R43: 2,000 | S43: 2,000 | T43: 12,000 | U43: 0 | V43: 0 | Z43: 54,800 | AA43: 70,555 | AB43: 1 | AC43: 2021-01-05 | AD43: 2021-02-02 | AU43: 70,555 | AV43: 15,755
B44: 29 | C44: 31.02 | D44: 30091783 | E44: REPOSICION LICEO SAN JOSE DEL CARMEN PALMILLA | F44: DISEÑO | G44: OHIGGINS | H44: PALMILLA | I44: A | J44: 151,123 | K44: 24,045 | L44: 36,396 | M44: 0 | N44: 0 | O44: 21,932 | P44: 0 | Q44: 0 | R44: 0 | S44: =36553500/1000 -> 36,554 | T44: 0 | U44: 0 | V44: 0 | Z44: 58,486 | AA44: 124282 | AB44: 2 | AC44: 2021-01-13 | AD44: 2021-02-22 | AU44: 124,282 | AV44: 65,796
B45: 17 | C45: 31.02 | D45: 30487109 | E45: MEJORAMIENTO LUMINARIAS DEL ALUMBRADO PÚBLICO DEL SECTOR NORTE, CH Y CENTRO PONIENTE DE RANCAGUA | F45: EJECUCIÓN | G45: OHIGGINS | H45: RANCAGUA | I45: A | J45: 2,991,366 | K45: 1,234,884 | L45: 313,346 | M45: 0 | N45: 1,063,503 | O45: 242,724 | P45: 84,990 | Q45: =149284285/1000 -> 149,284 | R45: 0 | S45: =215981083/1000 -> 215,981 | T45: 0 | U45: 0 | V45: 0 | Z45: 1,756,482 | AA45: 1,743,874 | AB45: 1 | AC45: 2021-01-05 | AD45: 2021-02-02 | AE45: 12,609 | AF45: 11 | AG45: 2021-04-21 | AH45: 2021-05-12 | AU45: 1,756,483 | AV45: 1
B46: 31 | C46: 31.02 | D46: 30110324 | E46: MEJORAMIENTO INTERCONEXION VIAL EJE M.E.BALAGUER-REPUBLICA-MACHALI | F46: EJECUCIÓN | G46: OHIGGINS | H46: MACHALI | I46: A | J46: 5,623,750 | K46: 0 | L46: 5,642,983 | M46: 4,345,625 | N46: 0 | O46: 0 | P46: 0 | Q46: 0 | R46: 0 | S46: 0 | T46: 0 | U46: 0 | V46: 0 | Z46: 0 | AA46: 1 | AB46: 2 | AC46: 2021-01-13 | AD46: 2021-02-22 | AU46: 1 | AV46: 1
B47: 32 | C47: 31.02 | D47: 30123960 | E47: MEJORAMIENTO PLAZA DE ARMAS DE PEUMO, PEUMO | F47: EJECUCIÓN | G47: OHIGGINS | H47: PEUMO | I47: N | J47: 977,413 | K47: 1,907 | L47: 823,559 | M47: 0 | N47: 0 | O47: 0 | P47: 0 | Q47: 0 | R47: 0 | S47: 0 | T47: 0 | U47: 0 | V47: 0 | Z47: 0 | AA47: 86140 | AB47: 2 | AC47: 2021-01-13 | AD47: 2021-02-22 | AU47: 86,140 | AV47: 86,140
B48: 33 | C48: 31.02 | D48: 30126944 | E48: MEJORAMIENTO ESPACIO PUBLICO PATRIMONIAL AV. 18 SEPTIEMBRE, CHEPICA | F48: EJECUCIÓN | G48: OHIGGINS | H48: CHEPICA | I48: N | J48: 603,229 | K48: 0 | L48: 557,745 | M48: 0 | N48: 0 | O48: 0 | P48: 0 | Q48: 0 | R48: 0 | S48: 0 | T48: 1,500 | U48: 0 | V48: 0 | Z48: 1,500 | AA48: 32210 | AB48: 2 | AC48: 2021-01-13 | AD48: 2021-02-22 | AU48: 32,210 | AV48: 30,710
B49: 34 | C49: 31.02 | D49: 30133146 | E49: REPOSICIÓN DEL CUARTEL DEL GOPE O'HIGGINS | F49: EJECUCIÓN | G49: OHIGGINS | H49: OLIVAR | I49: N | J49: 1,250,263 | K49: 3,878 | L49: 46,388 | M49: 287,307 | N49: 0 | O49: 10,659 | P49: 106,593 | Q49: 0 | R49: =159889234/1000 -> 159,889 | S49: 0 | T49: 0 | U49: 0 | V49: 213,186 | Z49: 490,327 | AA49: 291442 | AB49: 2 | AC49: 2021-01-13 | AD49: 2021-02-22 | AE49: 615,380 | AF49: 27 | AG49: 2021-08-13 | AH49: 2021-08-30 | AU49: 906,822 | AV49: 416,495
B50: 35 | C50: 31.02 | D50: 30135425 | E50: MEJORAMIENTO ACERAS CALLE HERMANOS CARRERA COMUNA DE LITUECHE | F50: EJECUCIÓN | G50: OHIGGINS | H50: LITUECHE | I50: A | J50: 823,828 | K50: 33,244 | L50: 593,635 | M50: 0 | N50: 0 | O50: 0 | P50: 0 | Q50: 0 | R50: 0 | S50: 0 | T50: 0 | U50: 0 | V50: 0 | Z50: 0 | AA50: 661260 | AB50: 2 | AC50: 2021-01-13 | AD50: 2021-02-22 | AE50: -500,000 | AF50: 27 | AG50: 2021-08-13 | AH50: 2021-08-30 | AU50: 161,260 | AV50: 161,260
B51: 36 | C51: 31.02 | D51: 30135429 | E51: CONSTRUCCION VIA PEATONAL VALDIVIA Y PLAZOLETA M.RODRÍGUEZ, SN. FDO | F51: EJECUCIÓN | G51: OHIGGINS | H51: SAN FERNANDO | I51: N | J51: 719,930 | K51: 1,081 | L51: 515,415 | M51: 100,000 | N51: 0 | O51: 0 | P51: 0 | Q51: 0 | R51: 0 | S51: 0 | T51: 6,744 | U51: 0 | V51: 0 | Z51: 6,744 | AA51: 152792 | AB51: 2 | AC51: 2021-01-13 | AD51: 2021-02-22 | AU51: 152,792 | AV51: 146,048
B52: 37 | C52: 31.02 | D52: 30298074 | E52: MEJORAMIENTO PARQUE CAMPESINO LOLOL | F52: EJECUCIÓN | G52: OHIGGINS | H52: LOLOL | I52: A | J52: 1,244,131 | K52: 73,149 | L52: 0 | M52: 0 | N52: 0 | O52: 229,379 | P52: 210,498 | Q52: =45230612/1000 -> 45,231 | R52: =87110498/1000 -> 87,110 | S52: =51416615/1000 -> 51,417 | T52: 69,353 | U52: 46,380 | V52: 25,506 | Z52: 764,873 | AA52: 700000 | AB52: 2 | AC52: 2021-01-13 | AD52: 2021-02-22 | AE52: 373,683 | AF52: 27 | AG52: 2021-08-13 | AH52: 2021-08-30 | AU52: 1,073,683 | AV52: 308,810
B53: 38 | C53: 31.02 | D53: 30395225 | E53: RESTAURACION CENTRO CULTURAL, EX ESTACION DE FFCC, PEUMO | F53: DISEÑO | G53: OHIGGINS | H53: PEUMO | I53: N | J53: 164,476 | K53: 5,746 | L53: 108,036 | M53: 76,782 | N53: 0 | O53: 14,300 | P53: 0 | Q53: 0 | R53: 0 | S53: 0 | T53: 0 | U53: 0 | V53: 0 | Z53: 14,300 | AA53: 43000 | AB53: 2 | AC53: 2021-01-13 | AD53: 2021-02-22 | AU53: 43,000 | AV53: 28,700
B54: 39 | C54: 31.02 | D54: 30396674 | E54: REPOSICIÓN ESCUELA UNIÓN MUJERES AMERICANAS BUCALEMU | F54: DISEÑO | G54: OHIGGINS | H54: PAREDONES | I54: A | J54: 288,882 | K54: 248,513 | L54: 31,559 | M54: 0 | N54: 0 | O54: 0 | P54: 0 | Q54: 0 | R54: 0 | S54: =40368960/1000 -> 40,369 | T54: 0 | U54: 0 | V54: 0 | Z54: 40,369 | AA54: 40369 | AB54: 2 | AC54: 2021-01-13 | AD54: 2021-02-22 | AU54: 40,369 | AV54: 0
B55: 40 | C55: 31.02 | D55: 30434978 | E55: CONSERVACIÓN INFRAESTRUCTURA HOSPITAL DE COINCO | F55: EJECUCIÓN | G55: OHIGGINS | H55: COINCO | I55: A | J55: 1,519,025 | K55: 1,173,316 | L55: 0 | M55: 0 | N55: 0 | O55: 144,471 | P55: 0 | Q55: 0 | R55: 0 | S55: 0 | T55: 34,298 | U55: 0 | V55: 0 | Z55: 178,769 | AA55: 345709 | AB55: 2 | AC55: 2021-01-13 | AD55: 2021-02-22 | AE55: -44,009 | AF55: 26 | AG55: 2021-07-19 | AH55: 2021-08-12 | AU55: 301,700 | AV55: 122,931
B56: 41 | C56: 31.02 | D56: 30436222 | E56: NORMALIZACIÓN E INTEGRACIÓN DE SEMÁFOROS SCAT RANCAGUA V ETAPA | F56: EJECUCIÓN | G56: OHIGGINS | H56: RANCAGUA | I56: N | J56: 1,179,549 | K56: 0 | L56: 409,000 | M56: 520,520 | N56: 0 | O56: 0 | P56: 0 | Q56: 0 | R56: 0 | S56: 0 | T56: 0 | U56: 0 | V56: 0 | Z56: 0 | AA56: 190000 | AB56: 2 | AC56: 2021-01-13 | AD56: 2021-02-22 | AU56: 190,000 | AV56: 190,000
B57: 42 | C57: 31.02 | D57: 30437973 | E57: RESTAURACION CENTRO CULTURAL CASA HODKINSON GRANEROS | F57: DISEÑO | G57: OHIGGINS | H57: GRANEROS | I57: A | J57: 84,358 | K57: 12,167 | L57: 0 | M57: 3,600 | N57: 0 | O57: 0 | P57: 0 | Q57: =15242360/1000 -> 15,242 | R57: 0 | S57: 0 | T57: 0 | U57: 0 | V57: 0 | Z57: 15,242 | AA57: 68591 | AB57: 2 | AC57: 2021-01-13 | AD57: 2021-02-22 | AU57: 68,591 | AV57: 53,349
B58: 43 | C58: 31.02 | D58: 30460086 | E58: CONSERVACION CAMINOS BASICOS GRUPO 20, PALMILLA Y CHÉPICA | F58: EJECUCIÓN | G58: OHIGGINS | H58: PALMILLA Y CHEPICA | I58: A | J58: 1,281,879 | K58: 1,223,644 | L58: 0 | M58: 0 | N58: 0 | O58: 0 | P58: 0 | Q58: 0 | R58: 0 | S58: 0 | T58: 0 | U58: 0 | V58: 0 | Z58: 0 | AA58: 25000 | AB58: 2 | AC58: 2021-01-13 | AD58: 2021-02-22 | AE58: 41,000 | AF58: 7 | AG58: 2021-03-05 | AH58: 2021-04-01 | AU58: 66,000 | AV58: 66,000
B59: 44 | C59: 31.02 | D59: 30461624 | E59: CONSTRUCCION PLAZA CONJUNTO LOS MERCEDARIOS, CHIMBARONGO | F59: DISEÑO | G59: OHIGGINS | H59: CHIMBARONGO | I59: A | J59: 43,590 | K59: 12,866 | L59: 3,483 | M59: 0 | N59: 0 | O59: 0 | P59: 10,800 | Q59: 0 | R59: 0 | S59: 7,200 | T59: 0 | U59: 0 | V59: 7,200 | Z59: 25,200 | AA59: 25200 | AB59: 2 | AC59: 2021-01-13 | AD59: 2021-02-22 | AU59: 25,200 | AV59: 0
B60: 45 | C60: 31.02 | D60: 30462076 | E60: MEJORAMIENTO ESPACIOS PÚBLICOS AV. LA COMPAÑIA ENTRE RUTA H-10 Y ESTERO BENITO, GRANEROS | F60: DISEÑO | G60: OHIGGINS | H60: GRANEROS | I60: A | J60: 47,975 | K60: 15,086 | L60: 0 | M60: 0 | N60: 0 | O60: 0 | P60: 13,170 | Q60: 0 | R60: 0 | S60: 0 | T60: 8,780 | U60: 0 | V60: 0 | Z60: 21,950 | AA60: 32889 | AB60: 2 | AC60: 2021-01-13 | AD60: 2021-02-22 | AU60: 32,889 | AV60: 10,939
B61: 46 | C61: 31.02 | D61: 30462674 | E61: REPOSICION CENTRO DE SALUD FAMILIAR URBANO CHEPICA | F61: DISEÑO | G61: OHIGGINS | H61: CHEPICA | I61: A | J61: 512,298 | K61: 421,731 | L61: 0 | M61: 0 | N61: 0 | O61: 0 | P61: 0 | Q61: 0 | R61: 0 | S61: 0 | T61: 0 | U61: 0 | V61: 17,200 | Z61: 17,200 | AA61: 90567 | AB61: 2 | AC61: 2021-01-13 | AD61: 2021-02-22 | AU61: 90,567 | AV61: 73,367
B62: 47 | C62: 31.02 | D62: 30475641 | E62: MEJORAMIENTO PARQUE CERRO EL MANZANO DE LA COMUNA DE QUINTA DE TILCOCO | F62: DISEÑO | G62: OHIGGINS | H62: QUINTA DE TILCOCO | I62: N | J62: 105,095 | K62: 1,621 | L62: 58,555 | M62: 1 | N62: 0 | O62: 0 | P62: 0 | Q62: 0 | R62: 0 | S62: 0 | T62: 0 | U62: 0 | V62: 0 | Z62: 0 | AA62: 40000 | AB62: 2 | AC62: 2021-01-13 | AD62: 2021-02-22 | AU62: 40,000 | AV62: 40,000
B63: 48 | C63: 31.02 | D63: 30485165 | E63: REPOSICION POSTA RURAL DE CORCOLÉN COMUNA DE MALLOA | F63: EJECUCIÓN | G63: OHIGGINS | H63: MALLOA | I63: N | J63: 896,775 | K63: 6,421 | L63: 827,340 | M63: 374,128 | N63: 0 | O63: 0 | P63: 0 | Q63: 0 | R63: 0 | S63: 0 | T63: 0 | U63: 0 | V63: 0 | Z63: 0 | AA63: 266226 | AB63: 2 | AC63: 2021-01-13 | AD63: 2021-02-22 | AE63: -250,000 | AF63: 27 | AG63: 2021-08-13 | AH63: 2021-08-30 | AU63: 16,226 | AV63: 16,226
B64: 49 | C64: 31.02 | D64: 30485246 | E64: CONSTRUCCION FACULTAD DE INGENIERÍA UNIVERSIDAD REGIONAL DE O'HIGGINS, CAMPUS RENGO | F64: DISEÑO | G64: OHIGGINS | H64: RENGO | I64: N | J64: 735,100 | K64: 0 | L64: 700,243 | M64: 408,839 | N64: 0 | O64: 0 | P64: 0 | Q64: 0 | R64: 0 | S64: 0 | T64: 4,458 | U64: 2,000 | V64: 0 | Z64: 6,458 | AA64: 326261 | AB64: 2 | AC64: 2021-01-13 | AD64: 2021-02-22 | AE64: -290,750 | AF64: 26 | AG64: 2021-07-19 | AH64: 2021-08-12 | AU64: 35,511 | AV64: 29,053
B65: 50 | C65: 31.02 | D65: 30485723 | E65: MEJORAMIENTO AVENIDA DOCTOR MOORE COMUNA DE PAREDONES | F65: EJECUCIÓN | G65: OHIGGINS | H65: PAREDONES | I65: A | J65: 153,288 | K65: 96,507 | L65: 0 | M65: 0 | N65: 0 | O65: 32,228 | P65: 11,627 | Q65: 0 | R65: =7390334/1000 -> 7,390 | S65: 0 | T65: 0 | U65: 0 | V65: 0 | Z65: 51,245 | AA65: 56781 | AB65: 2 | AC65: 2021-01-13 | AD65: 2021-02-22 | AU65: 56,781 | AV65: 5,536
B66: 51 | C66: 31.02 | D66: 40000189 | E66: CONSTRUCCION BASE RESPUESTA RAPIDA CONAF (PLAN REGIONAL) LAS CABRAS | F66: EJECUCIÓN | G66: OHIGGINS | H66: LAS CABRAS | I66: A | J66: 272,856 | K66: 252,623 | L66: 0 | M66: 0 | N66: 0 | O66: 0 | P66: 0 | Q66: 0 | R66: 0 | S66: 0 | T66: 0 | U66: 0 | V66: 0 | Z66: 0 | AA66: 10000 | AB66: 2 | AC66: 2021-01-13 | AD66: 2021-02-22 | AU66: 10,000 | AV66: 10,000
B67: 52 | C67: 31.02 | D67: 40001803 | E67: RESTAURACION IGLESIA NUESTRA SEÑORA DE LA MERCED, COMUNA CODEGUA | F67: EJECUCIÓN | G67: OHIGGINS | H67: CODEGUA | I67: A | J67: 3,973,887 | K67: 16,953 | L67: 3,100,226 | M67: 2,102,655 | N67: 0 | O67: 0 | P67: 0 | Q67: 0 | R67: 0 | S67: =20287471/1000 -> 20,287 | T67: 108,494 | U67: 143,653 | V67: 132,241 | Z67: 404,675 | AA67: 800000 | AB67: 2 | AC67: 2021-01-13 | AD67: 2021-02-22 | AU67: 800,000 | AV67: 395,325
B68: 53 | C68: 31.02 | D68: 30078105 | E68: RESTAURACION PARROQUIA DE SAN NICODEMO DE COINCO | F68: EJECUCIÓN | G68: OHIGGINS | H68: COINCO | I68: N | J68: 2,696,505 | K68: 14,348 | L68: 2,613,512 | M68: 2,146,110 | N68: 0 | O68: 0 | P68: 0 | Q68: 0 | R68: 0 | S68: 0 | T68: 0 | U68: 0 | V68: 0 | Z68: 0 | AA68: 1 | AB68: 3 | AC68: 2021-01-14 | AD68: 2021-02-10 | AU68: 1 | AV68: 1
B69: 54 | C69: 31.02 | D69: 30110287 | E69: REPOSICIÓN LICEO MUNICIPAL - PICHILEMU | F69: DISEÑO | G69: OHIGGINS | H69: PICHILEMU | I69: A | J69: 998,073 | K69: 738,359 | L69: 91,812 | M69: 59,714 | N69: 0 | O69: 0 | P69: 0 | Q69: 0 | R69: 0 | S69: 0 | T69: 0 | U69: 0 | V69: 0 | Z69: 0 | AA69: 10000 | AB69: 3 | AC69: 2021-01-14 | AD69: 2021-02-10 | AU69: 10,000 | AV69: 10,000
B70: 55 | C70: 31.02 | D70: 30130356 | E70: REPOSICIÓN LICEO CLAUDIO ARRAU LEÓN, DOÑIHUE | F70: DISEÑO | G70: OHIGGINS | H70: DOÑIHUE | I70: N | J70: 145,139 | K70: 1,573 | L70: 111,372 | M70: 63,566 | N70: 0 | O70: 0 | P70: 0 | Q70: 0 | R70: 0 | S70: 0 | T70: 28,040 | U70: 0 | V70: 0 | Z70: 28,040 | AA70: 29000 | AB70: 3 | AC70: 2021-01-14 | AD70: 2021-02-10 | AU70: 29,000 | AV70: 960
B71: 20 | C71: 31.02 | D71: 40002328 | E71: CONSERVACION DE CAMINOS BASICOS GRUPO 29, VARIAS COMUNAS, PROVINCIA DE CARDENAL CARO | F71: EJECUCIÓN | G71: OHIGGINS | H71: CARDENAL CARO | I71: A | J71: 1,782,095 | K71: 1,165,828 | L71: 0 | M71: 0 | N71: 162,011 | O71: 305,641 | P71: 13,624 | Q71: 0 | R71: 0 | S71: 0 | T71: 0 | U71: 0 | V71: 0 | Z71: 481,277 | AA71: 616,267 | AB71: 1 | AC71: 2021-01-05 | AD71: 2021-02-02 | AE71: -134,989 | AF71: 11 | AG71: 2021-04-21 | AH71: 2021-05-12 | AU71: 481,278 | AV71: 1
B72: 57 | C72: 31.02 | D72: 30277573 | E72: REPOSICION ESCUELA BASICA DE PORTEZUELO, LARMAHUE, PICHIDEGUA | F72: EJECUCIÓN | G72: OHIGGINS | H72: PICHIDEGUA | I72: N | J72: 1,307,477 | K72: 0 | L72: 1,232,395 | M72: 1,079,115 | N72: 0 | O72: 0 | P72: 0 | Q72: 0 | R72: 0 | S72: 0 | T72: 0 | U72: 0 | V72: 0 | Z72: 0 | AA72: 8056 | AB72: 3 | AC72: 2021-01-14 | AD72: 2021-02-10 | AU72: 8,056 | AV72: 8,056
B73: 58 | C73: 31.02 | D73: 30474255 | E73: REPOSICION Y AMPLIACION ESCUELA ROMILIO ARELLANO LAS CABRAS | F73: DISEÑO | G73: OHIGGINS | H73: LAS CABRAS | I73: N | J73: 84,867 | K73: 0 | L73: 66,799 | M73: 0 | N73: 0 | O73: 0 | P73: 0 | Q73: 0 | R73: 0 | S73: 0 | T73: 0 | U73: 0 | V73: 0 | Z73: 0 | AA73: 16200 | AB73: 3 | AC73: 2021-01-14 | AD73: 2021-02-10 | AU73: 16,200 | AV73: 16,200
B74: 59 | C74: 31.02 | D74: 40002317 | E74: CONSERVACIÓN DE CAMINOS BÁSICOS GRUPO 27, VARIAS COMUNAS, PROVINCIA DE CACHAPOAL | F74: EJECUCIÓN | G74: OHIGGINS | H74: CACHAPOAL | I74: A | J74: 1,728,887 | K74: 1,384,141 | L74: 208,629 | M74: 0 | N74: 0 | O74: 0 | P74: 0 | Q74: 0 | R74: 0 | S74: 0 | T74: 0 | U74: 0 | V74: 304,880 | Z74: 304,880 | AA74: 305000 | AB74: 3 | AC74: 2021-01-14 | AD74: 2021-02-10 | AU74: 305,000 | AV74: 120
B75: 60 | C75: 31.02 | D75: 40002326 | E75: CONSERVACIÓN DE CAMINOS BÁSICOS GRUPO 28, VARIAS COMUNAS, PROVINCIA DE COLCHAGUA | F75: EJECUCIÓN | G75: OHIGGINS | H75: COLCHAGUA | I75: A | J75: 1,586,569 | K75: 1,101,875 | L75: 164,271 | M75: 0 | N75: 0 | O75: 0 | P75: 0 | Q75: 0 | R75: 0 | S75: 0 | T75: 0 | U75: 0 | V75: 0 | Z75: 0 | AA75: 444000 | AB75: 3 | AC75: 2021-01-14 | AD75: 2021-02-10 | AU75: 444,000 | AV75: 444,000
B76: 61 | C76: 31.02 | D76: 40002337 | E76: CONSERVACION DE CAMINOS BASICOS GLOSA 6 GRUPO 2, VARIAS COMUNAS DE CACHAPOAL | F76: EJECUCIÓN | G76: OHIGGINS | H76: CACHAPOAL | I76: N | J76: 705,752 | K76: 4,721 | L76: 38,557 | M76: 1,031 | N76: 0 | O76: 450,490 | P76: 160,711 | Q76: 0 | R76: =137484577/1000 -> 137,485 | S76: 0 | T76: 0 | U76: 4,845 | V76: 0 | Z76: 753,530 | AA76: 542000 | AB76: 3 | AC76: 2021-01-14 | AD76: 2021-02-10 | AE76: 143,858 | AF76: 7 | AG76: 2021-03-05 | AH76: 2021-04-01 | AI76: 69,277 | AJ76: 14 | AK76: 2021-05-05 | AL76: 2021-05-24 | AU76: 755,135 | AV76: 1,605
B77: 62 | C77: 31.02 | D77: 40002339 | E77: CONSERVACION DE CAMINOS BASICOS GLOSA 6 GRUPO 4, VARIAS COMUNAS PROVINCIA DE CARDENAL CARO | F77: EJECUCIÓN | G77: OHIGGINS | H77: CARDENAL CARO | I77: A | J77: 956,569 | K77: 518,506 | L77: 0 | M77: 0 | N77: 0 | O77: 256,658 | P77: 163,872 | Q77: 0 | R77: 0 | S77: 0 | T77: 0 | U77: 8,000 | V77: 0 | Z77: 428,530 | AA77: 357068 | AB77: 3 | AC77: 2021-01-14 | AD77: 2021-02-10 | AE77: 71,473 | AF77: 7 | AG77: 2021-03-05 | AH77: 2021-04-01 | AU77: 428,541 | AV77: 11
B78: 63 | C78: 31.02 | D78: 40003112 | E78: REPOSICIÓN CUARTEL DE BOMBEROS, 2DA COMPAÑÍA DE ALCONES, MARCHIGUE | F78: EJECUCIÓN | G78: OHIGGINS | H78: MARCHIGUE | I78: N | J78: 877,271 | K78: 18,873 | L78: 347,096 | M78: 347,997 | N78: 0 | O78: 40,905 | P78: 81,809 | Q78: 0 | R78: =122713515/1000 -> 122,714 | S78: 0 | T78: 0 | U78: 122,714 | V78: 0 | Z78: 368,141 | AA78: 246000 | AB78: 3 | AC78: 2021-01-14 | AD78: 2021-02-10 | AE78: 246,001 | AF78: 26 | AG78: 2021-07-19 | AH78: 2021-08-12 | AU78: 492,001 | AV78: 123,860
B79: 21 | C79: 31.02 | D79: 40002338 | E79: CONSERVACION DE CAMINOS BASICOS GLOSA 6 GRUPO 3, VARIAS COMUNAS PROVINCIA DE COLCHAGUA | F79: EJECUCIÓN | G79: OHIGGINS | H79: COLCHAGUA | I79: A | J79: 738,545 | K79: 544,637 | L79: 0 | M79: 0 | N79: 29,987 | O79: 0 | P79: 0 | Q79: =73459023/1000 -> 73,459 | R79: 0 | S79: =52525185/1000 -> 52,525 | T79: 0 | U79: 0 | V79: 0 | Z79: 155,971 | AA79: 131,745 | AB79: 1 | AC79: 2021-01-05 | AD79: 2021-02-02 | AE79: 24,227 | AF79: 11 | AG79: 2021-04-21 | AH79: 2021-05-12 | AU79: 155,972 | AV79: 1
B80: 65 | C80: 31.02 | D80: 40005541 | E80: REPOSICION CESFAM COMUNA PERALILLO | F80: DISEÑO | G80: OHIGGINS | H80: PERALILLO | I80: A | J80: 322,712 | K80: 228,027 | L80: 66,528 | M80: 0 | N80: 0 | O80: 0 | P80: 0 | Q80: 0 | R80: 0 | S80: 0 | T80: 0 | U80: 0 | V80: 0 | Z80: 0 | AA80: 17700 | AB80: 3 | AC80: 2021-01-14 | AD80: 2021-02-10 | AU80: 17,700 | AV80: 17,700
B81: 66 | C81: 31.02 | D81: 40005672 | E81: REPOSICION CUARTEL CUERPO DE BOMBEROS DE LAS ESTRELLA | F81: DISEÑO | G81: OHIGGINS | H81: LA ESTRELLA | I81: A | J81: 42,249 | K81: 30,249 | L81: 1,401 | M81: 0 | N81: 0 | O81: 0 | P81: 0 | Q81: 0 | R81: 0 | S81: =11447280/1000 -> 11,447 | T81: 0 | U81: 0 | V81: 0 | Z81: =SUM(N81:Y81) -> 11,447 | AA81: 12000 | AB81: 3 | AC81: 2021-01-14 | AD81: 2021-02-10 | AU81: 12,000 | AV81: 553
B82: 64 | C82: 31.02 | D82: 40003261 | E82: CONSERVACION DE CAMINOS BASICOS GLOSA 6 GRUPO 5, PROVINCIA CACHAPOAL | F82: EJECUCIÓN | G82: OHIGGINS | H82: CACHAPOAL | I82: N | J82: 1,385,144 | K82: 4,721 | L82: 633,689 | M82: 283 | N82: 0 | O82: 341,777 | P82: 285,063 | Q82: 0 | R82: =161227944/1000 -> 161,228 | S82: =111400442/1000 -> 111,400 | T82: 122,828 | U82: 39,674 | V82: 47,435 | Z82: 1,109,405 | AA82: 716000 | AB82: 3 | AC82: 2021-01-14 | AD82: 2021-02-10 | AE82: 501,504 | AF82: 11 | AG82: 2021-04-21 | AH82: 2021-05-12 | AU82: 1,217,504 | AV82: 108,099
B83: 68 | C83: 31.02 | D83: 40012170 | E83: MEJORAMIENTO Y AMPLIACIÓN SISTEMA APR MEMBRILLO LOS TRICAHUES, LOLOL | F83: EJECUCIÓN | G83: OHIGGINS | H83: LOLOL | I83: N | J83: 1,938,043 | K83: 921,111 | L83: 1,890,406 | M83: 1,016,932 | N83: 0 | O83: 0 | P83: 0 | Q83: 0 | R83: 0 | S83: 0 | T83: 0 | U83: 0 | V83: 0 | Z83: 0 | AA83: 1 | AB83: 3 | AC83: 2021-01-14 | AD83: 2021-02-10 | AU83: 1 | AV83: 1
B84: 69 | C84: 31.02 | D84: 40017211 | E84: REPOSICION CON RELOCALIZACIÓN 5TA. COMISARÍA PEUMO | F84: EJECUCIÓN | G84: OHIGGINS | H84: PEUMO | I84: N | J84: 3,386,067 | K84: 10,842 | L84: 3,300,719 | M84: 2,714,986 | N84: 0 | O84: 0 | P84: 0 | Q84: 0 | R84: 0 | S84: 0 | T84: 0 | U84: 0 | V84: 0 | Z84: 0 | AA84: 1 | AB84: 3 | AC84: 2021-01-14 | AD84: 2021-02-10 | AE84: 162,186 | AF84: 15 | AG84: 2021-05-17 | AH84: 2021-06-08 | AU84: 162,187 | AV84: 162,187
B85: 70 | C85: 31.02 | D85: 40018315 | E85: NORMALIZACÓN 1ERA COMPAÑÍA BOMBEROS, SAN VICENTE DE TAGUA TAGUA | F85: EJECUCIÓN | G85: OHIGGINS | H85: SAN VICENTE | I85: N | J85: 531,126 | K85: 0 | L85: 517,938 | M85: 323,090 | N85: 0 | O85: 0 | P85: 0 | Q85: 1,500 | R85: 0 | S85: 0 | T85: 0 | U85: 0 | V85: 0 | Z85: 1,500 | AA85: 1500 | AB85: 3 | AC85: 2021-01-14 | AD85: 2021-02-10 | AE85: 34 | AF85: 13 | AG85: 2021-04-28 | AH85: 2021-05-24 | AU85: 1,534 | AV85: 34
B86: 71 | C86: 31.02 | D86: 30091584 | E86: MEJORAMIENTO AVDA ALONSO DE ERCILLA, COMUNA DE RENGO | F86: EJECUCIÓN | G86: OHIGGINS | H86: RENGO | I86: N | J86: 2,919,589 | K86: 0 | L86: 2,890,581 | M86: 2,819,588 | N86: 0 | O86: 0 | P86: 0 | Q86: 0 | R86: 0 | S86: 0 | T86: 0 | U86: 0 | V86: 0 | Z86: 0 | AA86: 104,908 | AB86: 4 | AC86: 2021-02-05 | AD86: 2021-02-25 | AU86: 104,908 | AV86: 104,908
B87: 72 | C87: 31.02 | D87: 30110361 | E87: MEJORAMIENTO PAVIMENTOS VARIAS CALLES COMUNA DE PEUMO | F87: EJECUCIÓN | G87: OHIGGINS | H87: PEUMO | I87: N | J87: 1,208,181 | K87: 0 | L87: 1,172,761 | M87: 18,405 | N87: 0 | O87: 0 | P87: 0 | Q87: 2,641 | R87: 0 | S87: 0 | T87: 0 | U87: 4,000 | V87: 0 | Z87: 6,641 | AA87: 8,835 | AB87: 4 | AC87: 2021-02-05 | AD87: 2021-02-25 | AU87: 8,835 | AV87: 2,194
B88: 73 | C88: 31.02 | D88: 30133777 | E88: CONSTRUCCION OFICINA CONJUNTA SERVICIOS DEL TRABAJO EN PICHILEMU | F88: EJECUCIÓN | G88: OHIGGINS | H88: PICHILEMU | I88: N | J88: 924,536 | K88: 0 | L88: 895,729 | M88: 516,073 | N88: 0 | O88: 0 | P88: 0 | Q88: 8,463 | R88: 0 | S88: 0 | T88: 0 | U88: 0 | V88: 0 | Z88: 8,463 | AA88: 8,463 | AB88: 4 | AC88: 2021-02-05 | AD88: 2021-02-25 | AU88: 8,463 | AV88: 0
B89: 74 | C89: 31.02 | D89: 30135452 | E89: MEJORAMIENTO VEREDAS AVENIDA ARTURO PRAT MARCHIGUE | F89: EJECUCIÓN | G89: OHIGGINS | H89: MARCHIGUE | I89: N | J89: 930,401 | K89: 0 | L89: 908,395 | M89: 245,192 | N89: 0 | O89: 0 | P89: 0 | Q89: 0 | R89: 0 | S89: 0 | T89: 0 | U89: 2,143 | V89: 2,143 | Z89: 4,286 | AA89: 1,534 | AB89: 4 | AC89: 2021-02-05 | AD89: 2021-02-25 | AE89: 292,000 | AF89: 26 | AG89: 2021-07-19 | AH89: 2021-08-12 | AU89: 293,534 | AV89: 289,248
B90: 75 | C90: 31.02 | D90: 30396472 | E90: ADQUISICIÓN CUARTEL 3era.CIA. CUERPO DE BOMBEROS, NAVIDAD PUPUYA | F90: EJECUCIÓN | G90: OHIGGINS | H90: NAVIDAD | I90: N | J90: 1,003,995 | K90: 0 | L90: 817,255 | M90: 385,861 | N90: 0 | O90: 0 | P90: 0 | Q90: 0 | R90: 0 | S90: 0 | T90: 0 | U90: 0 | V90: 0 | Z90: 0 | AA90: 10,122 | AB90: 4 | AC90: 2021-02-05 | AD90: 2021-02-25 | AE90: 1 | AF90: 13 | AG90: 2021-04-28 | AH90: 2021-05-24 | AI90: 65,973 | AJ90: 15 | AK90: 2021-05-17 | AL90: 2021-06-08 | AU90: 76,096 | AV90: 76,096
B91: 76 | C91: 31.02 | D91: 30397143 | E91: MEJORAMIENTO PAVIMENTO AVENIDA OHIGGINS, CODEGUA | F91: EJECUCIÓN | G91: OHIGGINS | H91: CODEGUA | I91: A | J91: 1,644,754 | K91: 1,074,044 | L91: 191,157 | M91: 0 | N91: 0 | O91: 0 | P91: 0 | Q91: 0 | R91: 0 | S91: 0 | T91: 0 | U91: 0 | V91: 0 | Z91: 0 | AA91: 83,181 | AB91: 4 | AC91: 2021-02-05 | AD91: 2021-02-25 | AU91: 83,181 | AV91: 83,181
B92: 77 | C92: 31.02 | D92: 30485089 | E92: REPOSICIÓN OFICINA REGISTRO CIVIL COMUNA DE LAS CABRAS | F92: DISEÑO | G92: OHIGGINS | H92: LAS CABRAS | I92: A | J92: 19,768 | K92: 13,687 | L92: 3,079 | M92: 0 | N92: 0 | O92: 0 | P92: 0 | Q92: 0 | R92: 0 | S92: 0 | T92: 0 | U92: 0 | V92: 0 | Z92: 0 | AA92: 6,080 | AB92: 4 | AC92: 2021-02-05 | AD92: 2021-02-25 | AU92: 6,080 | AV92: 6,080
B93: 67 | C93: 31.02 | D93: 40006830 | E93: INSTALACION SEMAFOROS PEATONALES SAN FERNANDO | F93: EJECUCIÓN | G93: OHIGGINS | H93: SAN FERNANDO | I93: A | J93: 139,481 | K93: 0 | L93: 132,956 | M93: 0 | N93: 0 | O93: 0 | P93: 0 | Q93: 0 | R93: 0 | S93: 0 | T93: 10,088 | U93: 52,008 | V93: 0 | Z93: 62,096 | AA93: 1 | AB93: 3 | AC93: 2021-01-14 | AD93: 2021-02-10 | AE93: 118,505 | AF93: 11 | AG93: 2021-04-21 | AH93: 2021-05-12 | AU93: 118,506 | AV93: 56,410
B94: 79 | C94: 31.02 | D94: 40009195 | E94: REPOSICION DEL ALUMBRADO PUBLICO RURAL, COMUNA DE MARCHIGUE | F94: EJECUCIÓN | G94: OHIGGINS | H94: MARCHIGUE | I94: N | J94: 630,924 | K94: 1,080 | L94: 615,958 | M94: 44,660 | N94: 0 | O94: 0 | P94: 0 | Q94: 0 | R94: 0 | S94: =329087893/1000 -> 329,088 | T94: 0 | U94: 231,780 | V94: 0 | Z94: 560,868 | AA94: 1,080 | AB94: 4 | AC94: 2021-02-05 | AD94: 2021-02-25 | AE94: 585,183 | AF94: 7 | AG94: 2021-03-05 | AH94: 2021-04-01 | AU94: 586,263 | AV94: 25,395
B95: 80 | C95: 31.02 | D95: 40015372 | E95: REPOSICIÒN 8VA COMPAÑÍA DE BOMBEROS, RANCAGUA | F95: EJECUCIÓN | G95: OHIGGINS | H95: RANCAGUA | I95: N | J95: 1,207,428 | K95: 0 | L95: 1,157,669 | M95: 641,019 | N95: 0 | O95: 0 | P95: 0 | Q95: 2,098 | R95: 0 | S95: 0 | T95: 0 | U95: 0 | V95: 0 | Z95: 2,098 | AA95: 2,098 | AB95: 4 | AC95: 2021-02-05 | AD95: 2021-02-25 | AU95: 2,098 | AV95: 0
B96: 81 | C96: 31.02 | D96: 40015433 | E96: REPOSICION Y RELOCALIZACION DEL CUARTEL 3ª CIA DE BOMBEROS DE MACHALI | F96: EJECUCIÓN | G96: OHIGGINS | H96: MACHALI | I96: N | J96: 1,055,611 | K96: 0 | L96: 1,012,256 | M96: 522,091 | N96: 0 | O96: 0 | P96: 0 | Q96: 2,623 | R96: 0 | S96: 0 | T96: 0 | U96: 0 | V96: 0 | Z96: 2,623 | AA96: 2,623 | AB96: 4 | AC96: 2021-02-05 | AD96: 2021-02-25 | AU96: 2,623 | AV96: 0
B97: 82 | C97: 31.02 | D97: 40015818 | E97: CONSERVACION VÍAS URBANAS PROCESO 2017 (EJECUCIÓN 2021) | F97: EJECUCIÓN | G97: OHIGGINS | H97: REGIONAL | I97: N | J97: 3,149,706 | K97: 3,067 | L97: 3,065,061 | M97: 1,067,908 | N97: 0 | O97: 0 | P97: 0 | Q97: 0 | R97: 0 | S97: 0 | T97: 12,000 | U97: 0 | V97: 0 | Z97: 12,000 | AA97: 12,270 | AB97: 4 | AC97: 2021-02-05 | AD97: 2021-02-25 | AU97: 12,270 | AV97: 270
B98: 83 | C98: 31.02 | D98: 40019595 | E98: MEJORAMIENTO PAVIMENTO CALLE ESTANCILLA, COMUNA DE CODEGUA | F98: EJECUCIÓN | G98: OHIGGINS | H98: CODEGUA | I98: N | J98: 1,739,031 | K98: 0 | L98: 42,943 | M98: 0 | N98: 0 | O98: 0 | P98: 0 | Q98: 0 | R98: 1,350 | S98: 0 | T98: 381,523 | U98: 194,393 | V98: 218,408 | Z98: 795,674 | AA98: 27,336 | AB98: 4 | AC98: 2021-02-05 | AD98: 2021-02-25 | AE98: 400,000 | AF98: 15 | AG98: 2021-05-17 | AH98: 2021-06-08 | AI98: 1,230,484 | AJ98: 27 | AK98: 2021-08-13 | AL98: 2021-08-30 | AU98: 1,657,820 | AV98: 862,146
B99: 84 | C99: 31.02 | D99: 40024085 | E99: CONSTRUCCIÓN PISCINA CENTRO ELIGE VIVIR SANO, COMUNA RANCAGUA | F99: EJECUCIÓN | G99: OHIGGINS | H99: RANCAGUA | I99: N | J99: 2,471,575 | K99: 0 | L99: 2,471,574 | M99: 2,461,575 | N99: 0 | O99: 0 | P99: 0 | Q99: 0 | R99: 0 | S99: 0 | T99: 0 | U99: 0 | V99: 0 | Z99: 0 | AA99: 1 | AB99: 4 | AC99: 2021-02-05 | AD99: 2021-02-25 | AU99: 1 | AV99: 1
B100: 85 | C100: 31.02 | D100: 40024088 | E100: CONSTRUCCIÓN POLIDEPORTIVO CENTRO ELIGE VIVIR SANO, COMUNA SANTA CRUZ | F100: EJECUCIÓN | G100: OHIGGINS | H100: SANTA CRUZ | I100: N | J100: 2,171,507 | K100: 0 | L100: 2,171,506 | M100: 2,161,507 | N100: 0 | O100: 0 | P100: 0 | Q100: 0 | R100: 0 | S100: 0 | T100: 0 | U100: 0 | V100: 0 | Z100: 0 | AA100: 1 | AB100: 4 | AC100: 2021-02-05 | AD100: 2021-02-25 | AU100: 1 | AV100: 1
B101: 86 | C101: 31.02 | D101: 20141752 | E101: NORMALIZACION HOSPITAL REGIONAL RANCAGUA | F101: EJECUCIÓN | G101: OHIGGINS | H101: RANCAGUA | I101: A | J101: 751,844 | K101: 4,518 | L101: 4,757,896 | M101: 0 | N101: 0 | O101: 0 | P101: 0 | Q101: 0 | R101: 0 | S101: 0 | T101: 0 | U101: 0 | V101: 0 | Z101: 0 | AA101: 1 | AB101: 7 | AC101: 2021-03-05 | AD101: 2021-04-01 | AU101: 1 | AV101: 1
B102: 87 | C102: 31.02 | D102: 30127021 | E102: CONSTRUCCION CRUCE BAJO NIVEL AV. REPUBLICA DE CHILE - LINEA FERREA | F102: DISEÑO | G102: OHIGGINS | H102: RANCAGUA | I102: N | J102: 287,628 | K102: 0 | L102: 277,926 | M102: 198,978 | N102: 0 | O102: 0 | P102: 0 | Q102: 0 | R102: 0 | S102: 0 | T102: 0 | U102: 0 | V102: 0 | Z102: 0 | AA102: 3,374 | AB102: 7 | AC102: 2021-03-05 | AD102: 2021-04-01 | AU102: 3,374 | AV102: 3,374
B103: 88 | C103: 31.02 | D103: 30135456 | E103: MEJORAMIENTO PLAZA DE ARMAS Y ENTORNO COINCO | F103: DISEÑO | G103: OHIGGINS | H103: COINCO | I103: N | J103: 102,613 | K103: 1,878 | L103: 56,000 | M103: 50,368 | N103: 0 | O103: 0 | P103: 0 | Q103: 0 | R103: 0 | S103: 0 | T103: 0 | U103: 0 | V103: 0 | Z103: 0 | AA103: 1 | AB103: 7 | AC103: 2021-03-05 | AD103: 2021-04-01 | AU103: 1 | AV103: 1
B104: 89 | C104: 31.02 | D104: 30361824 | E104: NORMALIZACIÓN DE SEMAFOROS REGION DE OHIGGINS IV ETAPA SAN VICENTE | F104: EJECUCIÓN | G104: OHIGGINS | H104: SAN VICENTE | I104: N | J104: 668,004 | K104: 0 | L104: 347,670 | M104: 408,004 | N104: 0 | O104: 0 | P104: 0 | Q104: 0 | R104: 0 | S104: 0 | T104: 0 | U104: 1,000 | V104: 1,000 | Z104: 2,000 | AA104: 260,000 | AB104: 7 | AC104: 2021-03-05 | AD104: 2021-04-01 | AU104: 260,000 | AV104: 258,000
B105: 90 | C105: 31.02 | D105: 30419226 | E105: MEJORAMIENTO GESTIÓN VIAL Y PEATONAL RENGO | F105: EJECUCIÓN | G105: OHIGGINS | H105: RENGO | I105: A | J105: 1,901,740 | K105: 136,018 | L105: 1,398,935 | M105: 1,142,798 | N105: 0 | O105: 0 | P105: 0 | Q105: 0 | R105: 0 | S105: 0 | T105: 0 | U105: 0 | V105: 0 | Z105: 0 | AA105: 36,394 | AB105: 7 | AC105: 2021-03-05 | AD105: 2021-04-01 | AU105: 36,394 | AV105: 36,394
B106: 91 | C106: 31.02 | D106: 30460850 | E106: REPOSICION ESPACIO PUBLICO DE ZONA DE CONSERVACION HISTORICA, COMUNA DE PUMANQUE | F106: EJECUCIÓN | G106: OHIGGINS | H106: PUMANQUE | I106: N | J106: 473,666 | K106: 0 | L106: 181,102 | M106: 0 | N106: 0 | O106: 0 | P106: 0 | Q106: 4,104 | R106: 0 | S106: 0 | T106: 0 | U106: 0 | V106: 0 | Z106: 4,104 | AA106: 4,196 | AB106: 7 | AC106: 2021-03-05 | AD106: 2021-04-01 | AE106: 63,458 | AF106: 15 | AG106: 2021-05-17 | AH106: 2021-06-08 | AU106: 67,654 | AV106: 63,550
B107: 92 | C107: 31.02 | D107: 40007853 | E107: MEJORAMIENTO CENTRO CÍVICO COMUNA SANTA CRUZ | F107: EJECUCIÓN | G107: OHIGGINS | H107: SANTA CRUZ | I107: N | J107: 1,699,616 | K107: 1,080 | L107: 1,660,604 | M107: 1,601,103 | N107: 0 | O107: 0 | P107: 0 | Q107: 0 | R107: 0 | S107: 0 | T107: 0 | U107: 0 | V107: 0 | Z107: 0 | AA107: 527 | AB107: 7 | AC107: 2021-03-05 | AD107: 2021-04-01 | AE107: 12,000 | AF107: 15 | AG107: 2021-05-17 | AH107: 2021-06-08 | AU107: 12,527 | AV107: 12,527
B108: 93 | C108: 31.02 | D108: 30108960 | E108: AMPLIACION RUTA H-27 CARRETERA EL COBRE , RANCAGUA MACHALI | F108: EJECUCION | G108: OHIGGINS | H108: RANCAGUA-MACHALI | I108: A | J108: 18,000,000 | K108: 0 | L108: 17,728,000 | M108: 17,700,000 | N108: 0 | O108: 0 | P108: 0 | Q108: 0 | R108: 0 | S108: 0 | T108: 0 | U108: 0 | V108: 0 | Z108: 0 | AA108: 200,000 | AB108: 11 | AC108: 2021-04-21 | AD108: 2021-05-12 | AE108: 72,000 | AF108: 26 | AG108: 2021-07-19 | AH108: 2021-08-12 | AU108: 272,000 | AV108: 272,000
B109: 94 | C109: 31.02 | D109: 30396076 | E109: MEJORAMIENTO CALLE RANCAGUA SAN FERNANDO | F109: EJECUCION | G109: OHIGGINS | H109: SAN FERNANDO | I109: N | J109: 1,682,162 | K109: 2,449 | L109: 1,243,514 | M109: 949,001 | N109: 0 | O109: 0 | P109: 0 | Q109: 0 | R109: 0 | S109: 0 | T109: 0 | U109: 0 | V109: 0 | Z109: 0 | AA109: 95,060 | AB109: 11 | AC109: 2021-04-21 | AD109: 2021-05-12 | AE109: 1 | AF109: 15 | AG109: 2021-05-17 | AH109: 2021-06-08 | AU109: 95,061 | AV109: 95,061
B110: 95 | C110: 31.02 | D110: 30485940 | E110: CONSTRUCCION PASEO MIRADOR DEL PACIFICO SECTOR LA BOCA, NAVIDAD | F110: DISEÑO | G110: OHIGGINS | H110: NAVIDAD | I110: N | J110: 65,403 | K110: 1,663 | L110: 33,572 | M110: 31,870 | N110: 0 | O110: 0 | P110: 0 | Q110: 0 | R110: 0 | S110: 0 | T110: 0 | U110: 12,748 | V110: 0 | Z110: 12,748 | AA110: 31,870 | AB110: 11 | AC110: 2021-04-21 | AD110: 2021-05-12 | AU110: 31,870 | AV110: 19,122
B111: 96 | C111: 31.02 | D111: 40013093 | E111: CONSERVACION DEFENSAS FLUVIALES RÍO TINGUIRIRICA AÑO 2020, VI REGION FNDR | F111: EJECUCION | G111: OHIGGINS | H111: VARIAS | I111: N | J111: 689,873 | K111: 0 | L111: 669,693 | M111: 633,748 | N111: 0 | O111: 0 | P111: 0 | Q111: 0 | R111: 0 | S111: 0 | T111: 0 | U111: 0 | V111: 0 | Z111: 0 | AA111: 5,000 | AB111: 11 | AC111: 2021-04-21 | AD111: 2021-05-12 | AU111: 5,000 | AV111: 5,000
B112: 97 | C112: 31.02 | D112: 40018429 | E112: MEJORAMIENTO CALLES Y PASAJE VILLA CONVENTO VIEJO, COMUNA DE CHIMBARONGO | F112: EJECUCION | G112: OHIGGINS | H112: CHIMBARONGO | I112: N | J112: 1,940,166 | K112: 0 | L112: 1,896,299 | M112: 1,753,469 | N112: 0 | O112: 0 | P112: 0 | Q112: 0 | R112: 0 | S112: 0 | T112: 0 | U112: 1,150 | V112: 0 | Z112: 1,150 | AA112: 1,175 | AB112: 11 | AC112: 2021-04-21 | AD112: 2021-05-12 | AU112: 1,175 | AV112: 25
